Workbook

Sheet Sample Report (hidden)
A2: Date
A3: Hen
A4: Program
A5: Start at 999999
A6: Sequence component 1 | B6: Time 1 | C6: Seqeunce Component 2 | D6: Time 2 | E6: Seqeunce Component 3 | F6: Time 3 | G6: Correct 0 = No 1=Yes | J6: Seqeunce | K6: Time
A7: 12 | B7: 7 | C7: 12 | D7: 42 | E7: 13 | F7: 18 | G7: if 77 new line, if 31 or 41 = yes new line on 77, | J7: =string of Seqeunce compponent 1, 2 & 3 | K7: =time 3
A8: This continues until ther is a 1 on its own to indicate start of summary data
J9: 10-19 =1
A10: Summary Data | J10: 20-29 =2
A11: Correct | B11: Incorrect | C11: Rft | D11: total | E11: Av Correct | F11: Av Incorrect | G11: Percent correct | H11: Time | J11: in this example the seqeunce would be 111
A12: 40 | B12: 33 | C12: 40 | D12: 73 | E12: 23.95 | F12: 15 | G12: 54 | H12: 806

Sheet Summary
A2: Day | B2: Date | C2: Average Response Rate | D2: Target % | E2: RF for non correct sequence | F2: U Value | K2: Block 1 | L2: Block 2 | M2: Block 3 | N2: Block 4 | O2: Block 5 | P2: Block 6
A3: 1 | B3: ='!M830810.101'!B2:C2 -> <date> | C3: =('!M830810.101'!F191/60)/'!M830810.101'!Q3 -> 2.15954955 | D3: ='!M830810.101'!N20/'!M830810.101'!Q3 -> 0 | E3: =SUM('!M830810.101'!L20:Q20)/'!M830810.101'!Q3 -> 0.9945945946 | F3: ='!M830810.101'!Q16 -> 0.1004499051 | J3: Average Response Rate | K3: =AVERAGE(C3:C7) -> 2.173296887 | L3: =AVERAGE(C8:C12) -> 2.264640257 | M3: =AVERAGE(C13:C17) -> 2.374205828 | N3: =AVERAGE(C18:C22) -> 2.223608693 | O3: =AVERAGE(C23:C27) -> 2.14740536 | P3: =AVERAGE(C28:C32) -> 2.164662546
A4: 2 | B4: ='!M831850.101'!B2:C2 -> <date> | C4: =('!M831850.101'!F198/60)/'!M831850.101'!Q3 -> 2.081423611 | D4: ='!M831850.101'!N20/'!M831850.101'!Q3 -> 0 | E4: =SUM('!M831850.101'!L20:Q20)/'!M831850.101'!Q3 -> 1.489583333 | F4: ='!M831850.101'!Q16 -> 0.1337042902 | J4: Target % | K4: =AVERAGE(D3:D7) -> 0 | L4: =AVERAGE(D8:D12) -> 0 | M4: =AVERAGE(D13:D17) -> 0 | N4: =AVERAGE(D18:D22) -> 0 | O4: =AVERAGE(D23:D27) -> 0.002259887006 | P4: =AVERAGE(D28:D32) -> 0
A5: 3 | B5: ='!M901740.101'!B2:C2 -> <date> | C5: =('!M901740.101'!F186/60)/'!M901740.101'!Q3 -> 2.22 | D5: ='!M901740.101'!N20/'!M901740.101'!Q3 -> 0 | E5: =SUM('!M901740.101'!L20:Q20)/'!M901740.101'!Q3 -> 1.011111111 | F5: ='!M901740.101'!Q16 -> 0.1345048787 | J5: CCRF | K5: =AVERAGE(E3:E7) -> 1.215490851 | L5: =AVERAGE(E8:E12) -> 1.371111882 | M5: =AVERAGE(E13:E17) -> 1.288365993 | N5: =AVERAGE(E18:E22) -> 1.461161066 | O5: =AVERAGE(E23:E27) -> 1.427131917 | P5: =AVERAGE(E28:E32) -> 1.538984555
A6: 4 | B6: ='!M902850.101'!B2:C2 -> <date> | C6: =('!M902850.101'!F183/60)/'!M902850.101'!Q3 -> 2.252448211 | D6: ='!M902850.101'!N20/'!M902850.101'!Q3 -> 0 | E6: =SUM('!M902850.101'!L20:Q20)/'!M902850.101'!Q3 -> 1.587570621 | F6: ='!M902850.101'!Q16 -> 0.1395721453 | J6: U Value | K6: =AVERAGE(F3:F7) -> 0.1314937495 | L6: =AVERAGE(F8:F12) -> 0.1284552378 | M6: =AVERAGE(F13:F17) -> 0.1587614033 | N6: =AVERAGE(F18:F22) -> 0.09554373569 | O6: =AVERAGE(F23:F27) -> 0.02546227571 | P6: =AVERAGE(F28:F32) -> 0.01303434796
A7: 5 | B7: ='!M903820.101'!B2:C2 -> <date> | C7: =('!M903820.101'!F191/60)/'!M903820.101'!Q3 -> 2.153063063 | D7: ='!M903820.101'!N20/'!M903820.101'!Q3 -> 0 | E7: =SUM('!M903820.101'!L20:Q20)/'!M903820.101'!Q3 -> 0.9945945946 | F7: ='!M903820.101'!Q16 -> 0.1492375282
A8: 6 | B8: ='!M904830.101'!B2:C2 -> <date> | C8: =('!M904830.101'!F187/60)/'!M904830.101'!Q3 -> 2.208471455 | D8: ='!M904830.101'!N20/'!M904830.101'!Q3 -> 0 | E8: =SUM('!M904830.101'!L20:Q20)/'!M904830.101'!Q3 -> 1.005524862 | F8: ='!M904830.101'!Q16 -> 0.1466588713
A9: 7 | B9: ='!M905830.101'!B2:C2 -> <date> | C9: =('!M905830.101'!F185/60)/'!M905830.101'!Q3 -> 2.213240741 | D9: ='!M905830.101'!N20/'!M905830.101'!Q3 -> 0 | E9: =SUM('!M905830.101'!L20:Q20)/'!M905830.101'!Q3 -> 1.011111111 | F9: ='!M905830.101'!Q16 -> 0.1403456478 | G9: =K3 -> 2.173296887 | H9: 2.264640257 | I9: 2.374205828 | J9: 2.223608693 | K9: 2.14740536 | L9: 2.164662546 | M9: =K4 -> 0 | N9: 0 | O9: 0 | P9: 0 | Q9: 0.002259887006 | R9: 0 | S9: =K6 -> 0.1314937495 | T9: 0.1284552378 | U9: 0.1587614033 | V9: 0.09554373569 | W9: 0.02546227571 | X9: 0.01303434796
A10: 8 | B10: ='!M906820.101'!B2:C2 -> <date> | C10: =('!M906820.101'!F183/60)/'!M906820.101'!Q3 -> 2.251412429 | D10: ='!M906820.101'!N20/'!M906820.101'!Q3 -> 0 | E10: =SUM('!M906820.101'!L20:Q20)/'!M906820.101'!Q3 -> 1.587570621 | F10: ='!M906820.101'!Q16 -> 0.136766849
A11: 9 | B11: ='!M907900.101'!B2:C2 -> <date> | C11: =('!M907900.101'!F182/60)/'!M907900.101'!Q3 -> 2.271306818 | D11: ='!M907900.101'!N20/'!M907900.101'!Q3 -> 0 | E11: =SUM('!M907900.101'!L20:Q20)/'!M907900.101'!Q3 -> 1.596590909 | F11: ='!M907900.101'!Q16 -> 0.1087587052
A12: 10 | B12: ='!M908820.101'!B2:C2 -> <date> | C12: =('!M908820.101'!F174/60)/'!M908820.101'!Q3 -> 2.378769841 | D12: ='!M908820.101'!N20/'!M908820.101'!Q3 -> 0 | E12: =SUM('!M908820.101'!L20:Q20)/'!M908820.101'!Q3 -> 1.654761905 | F12: ='!M908820.101'!Q16 -> 0.1097461159
A13: 11 | B13: ='!M909850.101'!B2:C2 -> <date> | C13: =('!M909850.101'!F148/60)/'!M909850.101'!Q3 -> 2.782284382 | D13: ='!M909850.101'!N20/'!M909850.101'!Q3 -> 0 | E13: =SUM('!M909850.101'!L20:Q20)/'!M909850.101'!Q3 -> 1.188811189 | F13: ='!M909850.101'!Q16 -> 0.1624352975
A14: 12 | B14: ='!M910820.101'!B2:C2 -> <date> | C14: =('!M910820.101'!F186/60)/'!M910820.101'!Q3 -> 2.220277778 | D14: ='!M910820.101'!N20/'!M910820.101'!Q3 -> 0 | E14: =SUM('!M910820.101'!L20:Q20)/'!M910820.101'!Q3 -> 1.011111111 | F14: ='!M910820.101'!Q16 -> 0.1790171005
A15: 13 | B15: ='!M911820.101'!B2:C2 -> <date> | C15: =('!M911820.101'!F174/60)/'!M911820.101'!Q3 -> 2.376388889 | D15: ='!M911820.101'!N20/'!M911820.101'!Q3 -> 0 | E15: =SUM('!M911820.101'!L20:Q20)/'!M911820.101'!Q3 -> 1.654761905 | F15: ='!M911820.101'!Q16 -> 0.1539993298
A16: 14 | B16: ='!M912920.101'!B2:C2 -> <date> | C16: =('!M912920.101'!F177/60)/'!M912920.101'!Q3 -> 2.313662791 | D16: ='!M912920.101'!N20/'!M912920.101'!Q3 -> 0 | E16: =SUM('!M912920.101'!L20:Q20)/'!M912920.101'!Q3 -> 1.040697674 | F16: ='!M912920.101'!Q16 -> 0.1545779349
A17: 15 | B17: ='!M913750.101'!B2:C2 -> <date> | C17: =('!M913750.101'!F189/60)/'!M913750.101'!Q3 -> 2.178415301 | D17: ='!M913750.101'!N20/'!M913750.101'!Q3 -> 0 | E17: =SUM('!M913750.101'!L20:Q20)/'!M913750.101'!Q3 -> 1.546448087 | F17: ='!M913750.101'!Q16 -> 0.1437773539
A18: 16 | B18: ='!M914930.101'!B2:C2 -> <date> | C18: =('!M914930.101'!F184/60)/'!M914930.101'!Q3 -> 2.239700375 | D18: ='!M914930.101'!N20/'!M914930.101'!Q3 -> 0 | E18: =SUM('!M914930.101'!L20:Q20)/'!M914930.101'!Q3 -> 1.578651685 | F18: ='!M914930.101'!Q16 -> 0.1438440716
A19: 17 | B19: ='!M915800.101'!B2:C2 -> <date> | C19: =('!M915800.101'!F177/60)/'!M915800.101'!Q3 -> 2.335575049 | D19: ='!M915800.101'!N20/'!M915800.101'!Q3 -> 0 | E19: =SUM('!M915800.101'!L20:Q20)/'!M915800.101'!Q3 -> 1.631578947 | F19: ='!M915800.101'!Q16 -> 0.1215052868
A20: 18 | B20: ='!M916920.101'!B2:C2 -> <date> | C20: =('!M916920.101'!F188/60)/'!M916920.101'!Q3 -> 2.19459707 | D20: ='!M916920.101'!N20/'!M916920.101'!Q3 -> 0 | E20: =SUM('!M916920.101'!L20:Q20)/'!M916920.101'!Q3 -> 1.554945055 | F20: ='!M916920.101'!Q16 -> 0.09556876387
A21: 19 | B21: ='!M917800.101'!B2:C2 -> <date> | C21: =('!M917800.101'!F191/60)/'!M917800.101'!Q3 -> 2.155405405 | D21: ='!M917800.101'!N20/'!M917800.101'!Q3 -> 0 | E21: =SUM('!M917800.101'!L20:Q20)/'!M917800.101'!Q3 -> 1.535135135 | F21: ='!M917800.101'!Q16 -> 0.08215051889
A22: 20 | B22: ='!M919910.101'!B2:C2 -> <date> | C22: =('!M919910.101'!F188/60)/'!M919910.101'!Q3 -> 2.192765568 | D22: ='!M919910.101'!N20/'!M919910.101'!Q3 -> 0 | E22: =SUM('!M919910.101'!L20:Q20)/'!M919910.101'!Q3 -> 1.005494505 | F22: ='!M919910.101'!Q16 -> 0.03465003725
A23: 21 | B23: ='!M920910.101'!B2:C2 -> <date> | C23: =('!M920910.101'!F198/60)/'!M920910.101'!Q3 -> 2.0765625 | D23: ='!M920910.101'!N20/'!M920910.101'!Q3 -> 0 | E23: =SUM('!M920910.101'!L20:Q20)/'!M920910.101'!Q3 -> 1.489583333 | F23: ='!M920910.101'!Q16 -> 0.00619639818
A24: 22 | B24: ='!M921840.101'!B2:C2 -> <date> | C24: =('!M921840.101'!F198/60)/'!M921840.101'!Q3 -> 2.082291667 | D24: ='!M921840.101'!N20/'!M921840.101'!Q3 -> 0 | E24: =SUM('!M921840.101'!L20:Q20)/'!M921840.101'!Q3 -> 0.96875 | F24: ='!M921840.101'!Q16 -> 0.03294443352
A25: 23 | B25: ='!M922820.101'!B2:C2 -> <date> | C25: =('!M922820.101'!F198/60)/'!M922820.101'!Q3 -> 2.061398964 | D25: ='!M922820.101'!N20/'!M922820.101'!Q3 -> 0 | E25: =SUM('!M922820.101'!L20:Q20)/'!M922820.101'!Q3 -> 1.481865285 | F25: ='!M922820.101'!Q16 -> 0.02645000872
A26: 24 | B26: ='!M923920.101'!B2:C2 -> <date> | C26: =('!M923920.101'!F183/60)/'!M923920.101'!Q3 -> 2.247834275 | D26: ='!M923920.101'!N20/'!M923920.101'!Q3 -> 0.01129943503 | E26: =SUM('!M923920.101'!L20:Q20)/'!M923920.101'!Q3 -> 1.598870056 | F26: ='!M923920.101'!Q16 -> 0.03673878436
A27: 25 | B27: ='!M924850.101'!B2:C2 -> <date> | C27: =('!M924850.101'!F182/60)/'!M924850.101'!Q3 -> 2.268939394 | D27: ='!M924850.101'!N20/'!M924850.101'!Q3 -> 0 | E27: =SUM('!M924850.101'!L20:Q20)/'!M924850.101'!Q3 -> 1.596590909 | F27: ='!M924850.101'!Q16 -> 0.02498175376
A28: 26 | B28: ='!M925640.101'!B2:C2 -> <date> | C28: =('!M925640.101'!F186/60)/'!M925640.101'!Q3 -> 2.217407407 | D28: ='!M925640.101'!N20/'!M925640.101'!Q3 -> 0 | E28: =SUM('!M925640.101'!L20:Q20)/'!M925640.101'!Q3 -> 1.566666667 | F28: ='!M925640.101'!Q16 -> 0.02814287702
A29: 27 | B29: ='!M926650.101'!B2:C2 -> <date> | C29: =('!M926650.101'!F188/60)/'!M926650.101'!Q3 -> 2.193131868 | D29: ='!M926650.101'!N20/'!M926650.101'!Q3 -> 0 | E29: =SUM('!M926650.101'!L20:Q20)/'!M926650.101'!Q3 -> 1.554945055 | F29: ='!M926650.101'!Q16 -> 0.0065474217
A30: 28 | B30: ='!M927750.101'!B2:C2 -> <date> | C30: =('!M927750.101'!F188/60)/'!M927750.101'!Q3 -> 2.19029304 | D30: ='!M927750.101'!N20/'!M927750.101'!Q3 -> 0 | E30: =SUM('!M927750.101'!L20:Q20)/'!M927750.101'!Q3 -> 1.554945055 | F30: ='!M927750.101'!Q16 -> 0.0065474217
A31: 29 | B31: ='!M928850.101'!B2:C2 -> <date> | C31: =('!M928850.101'!F200/60)/'!M928850.101'!Q3 -> 2.057817869 | D31: ='!M928850.101'!N20/'!M928850.101'!Q3 -> 0 | E31: =SUM('!M928850.101'!L20:Q20)/'!M928850.101'!Q3 -> 1.479381443 | F31: ='!M928850.101'!Q16 -> 0.01089967142
A32: 30

Sheet Start
F1: Use Folder 51 | H1: Auto Clean Up | J1: Correct sequence
F2: FALSE | H2: TRUE | J2: 211
A4: Working with Folder | G4: Process All/Or Pick A number: ALL or an integer
A5: E:\Hen Data\Raw Data\101_181\phase 1 any\ | G5: ALL
A6: Filenames:
A7: !M921840.101 | G7: Paint Cells
A8: !M920910.101 | G8: FALSE
A9: !M919910.101
A10: !M917800.101
A11: !M916920.101
A12: !M915800.101
A13: !M914930.101
A14: !M913750.101
A15: !M912920.101
A16: !M911820.101
A17: !M910820.101
A18: !M909850.101
A19: !M908820.101
A20: !M907900.101
A21: !M906820.101
A22: !M905830.101
A23: !M904830.101
A24: !M903820.101
A25: !M902850.101
A26: !M901740.101
A27: !M831850.101
A28: !M830810.101
A29: !M927750.101
A30: !M926650.101
A31: !M925640.101
A32: !M924850.101
A33: !M923920.101
A34: !M922820.101
A35: !M928850.101

Sheet !M830810.101
A1: Report for:!M830810.101
A2: Date: | B2: <date>
A3: Hen: | B3: <hen> | F3: Correct Sequence | G3: =Start!J2 -> 211 | P3: Total Sequences in Data | Q3: =4994-COUNTBLANK(L7:L5000) -> 185 | V3: Total Sequences in Block Data | W3: =COUNTA(L7:L37) -> 31 | AA3: Total Sequences in Block Data | AB3: =COUNTA(L38:L68) -> 31 | AF3: Total Sequences in Block Data | AG3: =COUNTA(L69:L98) -> 30 | AK3: Total Sequences in Block Data | AL3: =COUNTA(L99:L129) -> 31 | AP3: Total Sequences in Block Data | AQ3: =COUNTA(L130:L160) -> 31 | AU3: Total Sequences in Block Data | AV3: =COUNTA(L161:L191) -> 31
P4: Total Sequences in Summary | Q4: =SUM(O7:O14) -> 185 | V4: Total Sequences in Block Summary | W4: =SUM(U7:U14) -> 31 | AA4: Total Sequences in Block Summary | AB4: =SUM(Z7:Z14) -> 31 | AF4: Total Sequences in Block Summary | AG4: =SUM(AE7:AE14) -> 30 | AK4: Total Sequences in Block Summary | AL4: =SUM(AJ7:AJ14) -> 31 | AP4: Total Sequences in Block Summary | AQ4: =SUM(AO7:AO14) -> 31 | AU4: Total Sequences in Block Summary | AV4: =SUM(AT7:AT14) -> 31
T5: Block 1 | Y5: Block 2 | AD5: Block 3 | AI5: Block 4 | AN5: Block 5 | AS5: Block 6
A6: Sequence Component 1 | B6: Time 1 | C6: Sequence Component 2 | D6: Time 2 | E6: Sequence Component 3 | F6: Time 3 | G6: Sequence Component 4 | H6: Time 4 | I6: Sequence Component 5 | J6: Time 5 | K6: Correct? 0=No 1=Yes | L6: Sequence | N6: Frequency | P6: Relative Frequency | Q6: Variability | T6: Frequency | V6: Relative Frequency | W6: Variability | Y6: Frequency | AA6: Relative Frequency | AB6: Variability | AD6: Frequency | AF6: Relative Frequency | AG6: Variability | AI6: Frequency | AK6: Relative Frequency | AL6: Variability | AN6: Frequency | AP6: Relative Frequency | AQ6: Variability | AS6: Frequency | AU6: Relative Frequency | AV6: Variability
A7: 21 | B7: 19 | C7: 22 | D7: 25 | E7: 24 | F7: 31 | K7: 0 | L7: 222 | N7: 111 | O7: =COUNTIF($L$7:$L$500,N7) -> 0 | P7: =O7/$Q$4 -> 0 | Q7: =IF(P7=0,0,(P7*((LOG(P7))/LOG(2)))) -> 0 | T7: =N7 -> 111 | U7: =COUNTIF(L7:L37,T7) -> 0 | V7: =U7/(W4-U11) -> 0 | W7: =IF(V7=0,0,(V7*((LOG(V7))/LOG(2)))) -> 0 | Y7: =N7 -> 111 | Z7: =COUNTIF(L38:L68,Y7) -> 0 | AA7: =Z7/(AB4-Z11) -> 0 | AB7: =IF(AA7=0,0,(AA7*((LOG(AA7))/LOG(2)))) -> 0 | AD7: =N7 -> 111 | AE7: =COUNTIF(L69:L98,AD7) -> 0 | AF7: =AE7/(AG4-AE11) -> 0 | AG7: =IF(AF7=0,0,(AF7*((LOG(AF7))/LOG(2)))) -> 0 | AI7: =N7 -> 111 | AJ7: =COUNTIF(L99:L129,AI7) -> 0 | AK7: =AJ7/(AL4-AJ11) -> 0 | AL7: =IF(AK7=0,0,(AK7*((LOG(AK7))/LOG(2)))) -> 0 | AN7: =N7 -> 111 | AO7: =COUNTIF(L130:L160,AN7) -> 0 | AP7: =AO7/(AQ4-AO11) -> 0 | AQ7: =IF(AP7=0,0,(AP7*((LOG(AP7))/LOG(2)))) -> 0 | AS7: =N7 -> 111 | AT7: =COUNTIF(L161:L191,AS7) -> 0 | AU7: =AT7/(AV4-AT11) -> 0 | AV7: =IF(AU7=0,0,(AU7*((LOG(AU7))/LOG(2)))) -> 0
A8: 21 | B8: 141 | C8: 22 | D8: 148 | E8: 24 | F8: 156 | K8: 0 | L8: 222 | N8: 112 | O8: =COUNTIF($L$7:$L$500,N8) -> 6 | P8: =O8/$Q$4 -> 0.03243243243 | Q8: =IF(P8=0,0,(P8*((LOG(P8))/LOG(2)))) -> -0.1604243987 | T8: =N8 -> 112 | U8: =COUNTIF(L7:L37,T8) -> 0 | V8: =U8/(W4-U11) -> 0 | W8: =IF(V8=0,0,(V8*((LOG(V8))/LOG(2)))) -> 0 | Y8: =N8 -> 112 | Z8: =COUNTIF(L38:L68,Y8) -> 1 | AA8: =Z8/(AB4-Z11) -> 0.03225806452 | AB8: =IF(AA8=0,0,(AA8*((LOG(AA8))/LOG(2)))) -> -0.1598127842 | AD8: =N8 -> 112 | AE8: =COUNTIF(L69:L98,AD8) -> 3 | AF8: =AE8/(AG4-AE11) -> 0.1 | AG8: =IF(AF8=0,0,(AF8*((LOG(AF8))/LOG(2)))) -> -0.3321928095 | AI8: =N8 -> 112 | AJ8: =COUNTIF(L99:L129,AI8) -> 2 | AK8: =AJ8/(AL4-AJ11) -> 0.06451612903 | AL8: =IF(AK8=0,0,(AK8*((LOG(AK8))/LOG(2)))) -> -0.2551094394 | AN8: =N8 -> 112 | AO8: =COUNTIF(L130:L160,AN8) -> 0 | AP8: =AO8/(AQ4-AO11) -> 0 | AQ8: =IF(AP8=0,0,(AP8*((LOG(AP8))/LOG(2)))) -> 0 | AS8: =N8 -> 112 | AT8: =COUNTIF(L161:L191,AS8) -> 0 | AU8: =AT8/(AV4-AT11) -> 0 | AV8: =IF(AU8=0,0,(AU8*((LOG(AU8))/LOG(2)))) -> 0
A9: 21 | B9: 269 | C9: 22 | D9: 274 | E9: 24 | F9: 282 | K9: 0 | L9: 222 | N9: 121 | O9: =COUNTIF($L$7:$L$500,N9) -> 0 | P9: =O9/$Q$4 -> 0 | Q9: =IF(P9=0,0,(P9*((LOG(P9))/LOG(2)))) -> 0 | T9: =N9 -> 121 | U9: =COUNTIF(L7:L37,T9) -> 0 | V9: =U9/(W4-U11) -> 0 | W9: =IF(V9=0,0,(V9*((LOG(V9))/LOG(2)))) -> 0 | Y9: =N9 -> 121 | Z9: =COUNTIF(L38:L68,Y9) -> 0 | AA9: =Z9/(AB4-Z11) -> 0 | AB9: =IF(AA9=0,0,(AA9*((LOG(AA9))/LOG(2)))) -> 0 | AD9: =N9 -> 121 | AE9: =COUNTIF(L69:L98,AD9) -> 0 | AF9: =AE9/(AG4-AE11) -> 0 | AG9: =IF(AF9=0,0,(AF9*((LOG(AF9))/LOG(2)))) -> 0 | AI9: =N9 -> 121 | AJ9: =COUNTIF(L99:L129,AI9) -> 0 | AK9: =AJ9/(AL4-AJ11) -> 0 | AL9: =IF(AK9=0,0,(AK9*((LOG(AK9))/LOG(2)))) -> 0 | AN9: =N9 -> 121 | AO9: =COUNTIF(L130:L160,AN9) -> 0 | AP9: =AO9/(AQ4-AO11) -> 0 | AQ9: =IF(AP9=0,0,(AP9*((LOG(AP9))/LOG(2)))) -> 0 | AS9: =N9 -> 121 | AT9: =COUNTIF(L161:L191,AS9) -> 0 | AU9: =AT9/(AV4-AT11) -> 0 | AV9: =IF(AU9=0,0,(AU9*((LOG(AU9))/LOG(2)))) -> 0
A10: 21 | B10: 386 | C10: 22 | D10: 391 | E10: 24 | F10: 403 | K10: 0 | L10: 222 | N10: 122 | O10: =COUNTIF($L$7:$L$500,N10) -> 155 | P10: =O10/$Q$4 -> 0.8378378378 | Q10: =IF(P10=0,0,(P10*((LOG(P10))/LOG(2)))) -> -0.2138640193 | T10: =N10 -> 122 | U10: =COUNTIF(L7:L37,T10) -> 18 | V10: =U10/(W4-U11) -> 0.5806451613 | W10: =IF(V10=0,0,(V10*((LOG(V10))/LOG(2)))) -> -0.4553833407 | Y10: =N10 -> 122 | Z10: =COUNTIF(L38:L68,Y10) -> 27 | AA10: =Z10/(AB4-Z11) -> 0.8709677419 | AB10: =IF(AA10=0,0,(AA10*((LOG(AA10))/LOG(2)))) -> -0.1735915426 | AD10: =N10 -> 122 | AE10: =COUNTIF(L69:L98,AD10) -> 25 | AF10: =AE10/(AG4-AE11) -> 0.8333333333 | AG10: =IF(AF10=0,0,(AF10*((LOG(AF10))/LOG(2)))) -> -0.2191953382 | AI10: =N10 -> 122 | AJ10: =COUNTIF(L99:L129,AI10) -> 27 | AK10: =AJ10/(AL4-AJ11) -> 0.8709677419 | AL10: =IF(AK10=0,0,(AK10*((LOG(AK10))/LOG(2)))) -> -0.1735915426 | AN10: =N10 -> 122 | AO10: =COUNTIF(L130:L160,AN10) -> 27 | AP10: =AO10/(AQ4-AO11) -> 0.8709677419 | AQ10: =IF(AP10=0,0,(AP10*((LOG(AP10))/LOG(2)))) -> -0.1735915426 | AS10: =N10 -> 122 | AT10: =COUNTIF(L161:L191,AS10) -> 31 | AU10: =AT10/(AV4-AT11) -> 1 | AV10: =IF(AU10=0,0,(AU10*((LOG(AU10))/LOG(2)))) -> 0
A11: 21 | B11: 540 | C11: 22 | D11: 552 | E11: 24 | F11: 561 | K11: 0 | L11: 222 | N11: 211 | O11: =COUNTIF($L$7:$L$500,N11) -> 0 | P11: =O11/$Q$4 -> 0 | Q11: =IF(P11=0,0,(P11*((LOG(P11))/LOG(2)))) -> 0 | T11: =N11 -> 211 | U11: =COUNTIF(L7:L37,T11) -> 0 | Y11: =N11 -> 211 | Z11: =COUNTIF(L38:L68,Y11) -> 0 | AD11: =N11 -> 211 | AE11: =COUNTIF(L69:L98,AD11) -> 0 | AI11: =N11 -> 211 | AJ11: =COUNTIF(L99:L129,AI11) -> 0 | AN11: =N11 -> 211 | AO11: =COUNTIF(L130:L160,AN11) -> 0 | AS11: =N11 -> 211 | AT11: =COUNTIF(L161:L191,AS11) -> 0
A12: 21 | B12: 670 | C12: 22 | D12: 693 | E12: 24 | F12: 710 | K12: 0 | L12: 222 | N12: 212 | O12: =COUNTIF($L$7:$L$500,N12) -> 0 | P12: =O12/$Q$4 -> 0 | Q12: =IF(P12=0,0,(P12*((LOG(P12))/LOG(2)))) -> 0 | T12: =N12 -> 212 | U12: =COUNTIF(L7:L37,T12) -> 0 | V12: =U12/(W4-U11) -> 0 | W12: =IF(V12=0,0,(V12*((LOG(V12))/LOG(2)))) -> 0 | Y12: =N12 -> 212 | Z12: =COUNTIF(L38:L68,Y12) -> 0 | AA12: =Z12/(AB4-Z11) -> 0 | AB12: =IF(AA12=0,0,(AA12*((LOG(AA12))/LOG(2)))) -> 0 | AD12: =N12 -> 212 | AE12: =COUNTIF(L69:L98,AD12) -> 0 | AF12: =AE12/(AG4-AE11) -> 0 | AG12: =IF(AF12=0,0,(AF12*((LOG(AF12))/LOG(2)))) -> 0 | AI12: =N12 -> 212 | AJ12: =COUNTIF(L99:L129,AI12) -> 0 | AK12: =AJ12/(AL4-AJ11) -> 0 | AL12: =IF(AK12=0,0,(AK12*((LOG(AK12))/LOG(2)))) -> 0 | AN12: =N12 -> 212 | AO12: =COUNTIF(L130:L160,AN12) -> 0 | AP12: =AO12/(AQ4-AO11) -> 0 | AQ12: =IF(AP12=0,0,(AP12*((LOG(AP12))/LOG(2)))) -> 0 | AS12: =N12 -> 212 | AT12: =COUNTIF(L161:L191,AS12) -> 0 | AU12: =AT12/(AV4-AT11) -> 0 | AV12: =IF(AU12=0,0,(AU12*((LOG(AU12))/LOG(2)))) -> 0
A13: 21 | B13: 813 | C13: 22 | D13: 824 | E13: 24 | F13: 833 | K13: 0 | L13: 222 | N13: 221 | O13: =COUNTIF($L$7:$L$500,N13) -> 0 | P13: =O13/$Q$4 -> 0 | Q13: =IF(P13=0,0,(P13*((LOG(P13))/LOG(2)))) -> 0 | T13: =N13 -> 221 | U13: =COUNTIF(L7:L37,T13) -> 0 | V13: =U13/(W4-U11) -> 0 | W13: =IF(V13=0,0,(V13*((LOG(V13))/LOG(2)))) -> 0 | Y13: =N13 -> 221 | Z13: =COUNTIF(L38:L68,Y13) -> 0 | AA13: =Z13/(AB4-Z11) -> 0 | AB13: =IF(AA13=0,0,(AA13*((LOG(AA13))/LOG(2)))) -> 0 | AD13: =N13 -> 221 | AE13: =COUNTIF(L69:L98,AD13) -> 0 | AF13: =AE13/(AG4-AE11) -> 0 | AG13: =IF(AF13=0,0,(AF13*((LOG(AF13))/LOG(2)))) -> 0 | AI13: =N13 -> 221 | AJ13: =COUNTIF(L99:L129,AI13) -> 0 | AK13: =AJ13/(AL4-AJ11) -> 0 | AL13: =IF(AK13=0,0,(AK13*((LOG(AK13))/LOG(2)))) -> 0 | AN13: =N13 -> 221 | AO13: =COUNTIF(L130:L160,AN13) -> 0 | AP13: =AO13/(AQ4-AO11) -> 0 | AQ13: =IF(AP13=0,0,(AP13*((LOG(AP13))/LOG(2)))) -> 0 | AS13: =N13 -> 221 | AT13: =COUNTIF(L161:L191,AS13) -> 0 | AU13: =AT13/(AV4-AT11) -> 0 | AV13: =IF(AU13=0,0,(AU13*((LOG(AU13))/LOG(2)))) -> 0
A14: 12 | B14: 930 | C14: 24 | D14: 942 | E14: 24 | F14: 959 | K14: 0 | L14: 122 | N14: 222 | O14: =COUNTIF($L$7:$L$500,N14) -> 24 | P14: =O14/$Q$4 -> 0.1297297297 | Q14: =IF(P14=0,0,(P14*((LOG(P14))/LOG(2)))) -> -0.3822381353 | T14: =N14 -> 222 | U14: =COUNTIF(L7:L37,T14) -> 13 | V14: =U14/(W4-U11) -> 0.4193548387 | W14: =IF(V14=0,0,(V14*((LOG(V14))/LOG(2)))) -> -0.5257688935 | Y14: =N14 -> 222 | Z14: =COUNTIF(L38:L68,Y14) -> 3 | AA14: =Z14/(AB4-Z11) -> 0.09677419355 | AB14: =IF(AA14=0,0,(AA14*((LOG(AA14))/LOG(2)))) -> -0.3260548848 | AD14: =N14 -> 222 | AE14: =COUNTIF(L69:L98,AD14) -> 2 | AF14: =AE14/(AG4-AE11) -> 0.06666666667 | AG14: =IF(AF14=0,0,(AF14*((LOG(AF14))/LOG(2)))) -> -0.260459373 | AI14: =N14 -> 222 | AJ14: =COUNTIF(L99:L129,AI14) -> 2 | AK14: =AJ14/(AL4-AJ11) -> 0.06451612903 | AL14: =IF(AK14=0,0,(AK14*((LOG(AK14))/LOG(2)))) -> -0.2551094394 | AN14: =N14 -> 222 | AO14: =COUNTIF(L130:L160,AN14) -> 4 | AP14: =AO14/(AQ4-AO11) -> 0.1290322581 | AQ14: =IF(AP14=0,0,(AP14*((LOG(AP14))/LOG(2)))) -> -0.3811866207 | AS14: =N14 -> 222 | AT14: =COUNTIF(L161:L191,AS14) -> 0 | AU14: =AT14/(AV4-AT11) -> 0 | AV14: =IF(AU14=0,0,(AU14*((LOG(AU14))/LOG(2)))) -> 0
A15: 12 | B15: 1060 | C15: 24 | D15: 1072 | E15: 24 | F15: 1086 | K15: 0 | L15: 122 | P15: =SUM(P7:P14) -> 1 | Q15: =-SUM(Q7:Q14) -> 0.7565265533 | V15: =SUM(V7:V14) -> 1 | W15: =-SUM(W7:W14) -> 0.9811522342 | AA15: =SUM(AA7:AA14) -> 1 | AB15: =-SUM(AB7:AB14) -> 0.6594592117 | AF15: =SUM(AF7:AF14) -> 1 | AG15: =-SUM(AG7:AG14) -> 0.8118475207 | AK15: =SUM(AK7:AK14) -> 1 | AL15: =-SUM(AL7:AL14) -> 0.6838104214 | AP15: =SUM(AP7:AP14) -> 1 | AQ15: =-SUM(AQ7:AQ14) -> 0.5547781633 | AU15: =SUM(AU7:AU14) -> 1 | AV15: =-SUM(AV7:AV14) -> 0
A16: 21 | B16: 1198 | C16: 22 | D16: 1204 | E16: 24 | F16: 1209 | K16: 0 | L16: 222 | P16: U= | Q16: =Q15/(LOG(Q4)/LOG(2)) -> 0.1004499051 | V16: U1= | W16: =W15/(LOG(W4)/LOG(2)) -> 0.1980446823 | AA16: U2= | AB16: =AB15/(LOG(AB4)/LOG(2)) -> 0.1331112395 | AF16: U3= | AG16: =AG15/(LOG(AG4)/LOG(2)) -> 0.1654505037 | AK16: U4= | AL16: =AL15/(LOG(AL4)/LOG(2)) -> 0.138026509 | AP16: U5= | AQ16: =AQ15/(LOG(AQ4)/LOG(2)) -> 0.1119814655 | AU16: U6= | AV16: =AV15/(LOG(AV4)/LOG(2)) -> 0
A17: 21 | B17: 1316 | C17: 22 | D17: 1348 | E17: 24 | F17: 1356 | K17: 0 | L17: 222
A18: 12 | B18: 1455 | C18: 24 | D18: 1468 | E18: 24 | F18: 1483 | K18: 0 | L18: 122
A19: 12 | B19: 1580 | C19: 24 | D19: 1594 | E19: 24 | F19: 1602 | K19: 0 | L19: 122 | N19: Total Target Seq
A20: 12 | B20: 1701 | C20: 24 | D20: 1714 | E20: 24 | F20: 1720 | K20: 0 | L20: 122 | N20: =COUNTIF(L7:L191,G3) -> 0 | P20: 31 | Q20: 31 | R20: 30 | S20: 31 | T20: 31 | U20: 31
A21: 21 | B21: 1826 | C21: 22 | D21: 1831 | E21: 24 | F21: 1847 | K21: 0 | L21: 222 | P21: % of reinforcement given in 6 equal intervals based on number of trials
A22: 12 | B22: 1945 | C22: 24 | D22: 1960 | E22: 24 | F22: 1966 | K22: 0 | L22: 122 | P22: %_1 | Q22: %_2 | R22: %_3 | S22: %_4 | T22: %_5 | U22: %_6
A23: 12 | B23: 2062 | C23: 24 | D23: 2073 | E23: 24 | F23: 2095 | K23: 0 | L23: 122 | O23: target sequence | P23: =$G$3 -> 211 | Q23: =$G$3 -> 211 | R23: =$G$3 -> 211 | S23: =$G$3 -> 211 | T23: =$G$3 -> 211 | U23: =$G$3 -> 211
A24: 12 | B24: 2187 | C24: 24 | D24: 2206 | E24: 24 | F24: 2212 | K24: 0 | L24: 122 | O24: total reinforcement | P24: =U11 -> 0 | Q24: =Z11 -> 0 | R24: =AE11 -> 0 | S24: =AJ11 -> 0 | T24: =AO11 -> 0 | U24: =AT11 -> 0
A25: 12 | B25: 2317 | C25: 24 | D25: 2330 | E25: 24 | F25: 2341 | K25: 0 | L25: 122 | O25: % target
A26: 12 | B26: 2444 | C26: 24 | D26: 2456 | E26: 24 | F26: 2465 | K26: 0 | L26: 122 | O26: CCRF
A27: 12 | B27: 2562 | C27: 24 | D27: 2575 | E27: 24 | F27: 2586 | K27: 0 | L27: 122 | O27: % CCRf
A28: 12 | B28: 2681 | C28: 24 | D28: 2718 | E28: 24 | F28: 2729 | K28: 0 | L28: 122 | O28: average response rate | P28: =F37/P20 -> 125.8387097 | Q28: =(F68-F37)/Q20 -> 128.8709677 | R28: =(F98-F68)/R20 -> 134.3666667 | S28: =(F129-F98)/S20 -> 129.7419355 | T28: =(F160-F129)/T20 -> 128.0322581 | U28: =(F191-F160)/U20 -> 130.7419355
A29: 12 | B29: 2825 | C29: 24 | D29: 2843 | E29: 24 | F29: 2848 | K29: 0 | L29: 122
A30: 12 | B30: 2947 | C30: 24 | D30: 2960 | E30: 24 | F30: 2968 | K30: 0 | L30: 122
A31: 12 | B31: 3063 | C31: 24 | D31: 3076 | E31: 24 | F31: 3085 | K31: 0 | L31: 122
A32: 12 | B32: 3188 | C32: 24 | D32: 3206 | E32: 24 | F32: 3228 | K32: 0 | L32: 122
A33: 21 | B33: 3367 | C33: 22 | D33: 3379 | E33: 24 | F33: 3391 | K33: 0 | L33: 222
A34: 21 | B34: 3501 | C34: 22 | D34: 3508 | E34: 24 | F34: 3517 | K34: 0 | L34: 222
A35: 12 | B35: 3617 | C35: 24 | D35: 3641 | E35: 24 | F35: 3648 | K35: 0 | L35: 122
A36: 12 | B36: 3748 | C36: 24 | D36: 3761 | E36: 24 | F36: 3774 | K36: 0 | L36: 122
A37: 21 | B37: 3877 | C37: 22 | D37: 3891 | E37: 24 | F37: 3901 | K37: 0 | L37: 222
A38: 12 | B38: 4001 | C38: 24 | D38: 4014 | E38: 24 | F38: 4021 | K38: 0 | L38: 122
A39: 12 | B39: 4117 | C39: 24 | D39: 4130 | E39: 24 | F39: 4135 | K39: 0 | L39: 122
A40: 12 | B40: 4234 | C40: 24 | D40: 4252 | E40: 24 | F40: 4260 | K40: 0 | L40: 122
A41: 12 | B41: 4358 | C41: 24 | D41: 4370 | E41: 24 | F41: 4377 | K41: 0 | L41: 122
A42: 12 | B42: 4471 | C42: 24 | D42: 4488 | E42: 24 | F42: 4496 | K42: 0 | L42: 122
A43: 12 | B43: 4591 | C43: 24 | D43: 4604 | E43: 24 | F43: 4612 | K43: 0 | L43: 122
A44: 12 | B44: 4711 | C44: 24 | D44: 4728 | E44: 24 | F44: 4738 | K44: 0 | L44: 122
A45: 12 | B45: 4837 | C45: 24 | D45: 4855 | E45: 24 | F45: 4867 | K45: 0 | L45: 122
A46: 12 | B46: 4968 | C46: 24 | D46: 4984 | E46: 24 | F46: 4990 | K46: 0 | L46: 122
A47: 21 | B47: 5095 | C47: 22 | D47: 5111 | E47: 24 | F47: 5119 | K47: 0 | L47: 222
A48: 12 | B48: 5219 | C48: 24 | D48: 5247 | E48: 24 | F48: 5259 | K48: 0 | L48: 122
A49: 12 | B49: 5356 | C49: 24 | D49: 5375 | E49: 24 | F49: 5384 | K49: 0 | L49: 122
A50: 12 | B50: 5485 | C50: 24 | D50: 5498 | E50: 24 | F50: 5504 | K50: 0 | L50: 122
A51: 12 | B51: 5604 | C51: 24 | D51: 5617 | E51: 24 | F51: 5651 | K51: 0 | L51: 122
A52: 12 | B52: 5744 | C52: 24 | D52: 5778 | E52: 24 | F52: 5788 | K52: 0 | L52: 122
A53: 12 | B53: 5892 | C53: 24 | D53: 5916 | E53: 24 | F53: 5947 | K53: 0 | L53: 122
A54: 12 | B54: 6045 | C54: 24 | D54: 6062 | E54: 24 | F54: 6070 | K54: 0 | L54: 122
A55: 12 | B55: 6166 | C55: 24 | D55: 6184 | E55: 24 | F55: 6204 | K55: 0 | L55: 122
A56: 12 | B56: 6304 | C56: 24 | D56: 6316 | E56: 24 | F56: 6324 | K56: 0 | L56: 122
A57: 12 | B57: 6423 | C57: 24 | D57: 6443 | E57: 24 | F57: 6451 | K57: 0 | L57: 122
A58: 12 | B58: 6553 | C58: 24 | D58: 6577 | E58: 24 | F58: 6587 | K58: 0 | L58: 122
A59: 12 | B59: 6689 | C59: 24 | D59: 6701 | E59: 24 | F59: 6708 | K59: 0 | L59: 122
A60: 12 | B60: 6801 | C60: 24 | D60: 6819 | E60: 24 | F60: 6827 | K60: 0 | L60: 122
A61: 12 | B61: 6928 | C61: 24 | D61: 6959 | E61: 24 | F61: 6969 | K61: 0 | L61: 122
A62: 12 | B62: 7065 | C62: 24 | D62: 7083 | E62: 24 | F62: 7110 | K62: 0 | L62: 122
A63: 21 | B63: 7237 | C63: 22 | D63: 7245 | E63: 24 | F63: 7253 | K63: 0 | L63: 222
A64: 12 | B64: 7352 | C64: 24 | D64: 7365 | E64: 24 | F64: 7371 | K64: 0 | L64: 122
A65: 12 | B65: 7464 | C65: 13 | D65: 7469 | E65: 24 | F65: 7488 | K65: 0 | L65: 112
A66: 12 | B66: 7589 | C66: 24 | D66: 7608 | E66: 24 | F66: 7620 | K66: 0 | L66: 122
A67: 12 | B67: 7720 | C67: 24 | D67: 7743 | E67: 24 | F67: 7762 | K67: 0 | L67: 122
A68: 21 | B68: 7877 | C68: 22 | D68: 7889 | E68: 24 | F68: 7896 | K68: 0 | L68: 222
A69: 12 | B69: 7995 | C69: 13 | D69: 8003 | E69: 24 | F69: 8016 | K69: 0 | L69: 112
A70: 12 | B70: 8122 | C70: 24 | D70: 8134 | E70: 24 | F70: 8147 | K70: 0 | L70: 122
A71: 21 | B71: 8264 | C71: 22 | D71: 8282 | E71: 24 | F71: 8290 | K71: 0 | L71: 222
A72: 12 | B72: 8393 | C72: 24 | D72: 8412 | E72: 24 | F72: 8425 | K72: 0 | L72: 122
A73: 12 | B73: 8527 | C73: 24 | D73: 8605 | E73: 24 | F73: 8620 | K73: 0 | L73: 122
A74: 12 | B74: 8719 | C74: 24 | D74: 8736 | E74: 24 | F74: 8740 | K74: 0 | L74: 122
A75: 12 | B75: 8843 | C75: 24 | D75: 8867 | E75: 24 | F75: 8877 | K75: 0 | L75: 122
A76: 12 | B76: 8985 | C76: 24 | D76: 9008 | E76: 24 | F76: 9020 | K76: 0 | L76: 122
A77: 21 | B77: 9137 | C77: 22 | D77: 9159 | E77: 24 | F77: 9166 | K77: 0 | L77: 222
A78: 12 | B78: 9259 | C78: 24 | D78: 9284 | E78: 24 | F78: 9298 | K78: 0 | L78: 122
A79: 12 | B79: 9400 | C79: 24 | D79: 9413 | E79: 24 | F79: 9436 | K79: 0 | L79: 122
A80: 12 | B80: 9534 | C80: 24 | D80: 9558 | E80: 24 | F80: 9570 | K80: 0 | L80: 122
A81: 12 | B81: 9671 | C81: 24 | D81: 9681 | E81: 24 | F81: 9688 | K81: 0 | L81: 122
A82: 12 | B82: 9787 | C82: 24 | D82: 9806 | E82: 24 | F82: 9826 | K82: 0 | L82: 122
A83: 12 | B83: 9926 | C83: 24 | D83: 9955 | E83: 24 | F83: 9972 | K83: 0 | L83: 122
A84: 12 | B84: 10073 | C84: 24 | D84: 10085 | E84: 24 | F84: 10102 | K84: 0 | L84: 122
A85: 12 | B85: 10212 | C85: 24 | D85: 10256 | E85: 24 | F85: 10277 | K85: 0 | L85: 122
A86: 12 | B86: 10377 | C86: 24 | D86: 10402 | E86: 24 | F86: 10410 | K86: 0 | L86: 122
A87: 12 | B87: 10509 | C87: 24 | D87: 10523 | E87: 24 | F87: 10529 | K87: 0 | L87: 122
A88: 12 | B88: 10629 | C88: 13 | D88: 10636 | E88: 24 | F88: 10653 | K88: 0 | L88: 112
A89: 12 | B89: 10747 | C89: 13 | D89: 10753 | E89: 24 | F89: 10771 | K89: 0 | L89: 112
A90: 12 | B90: 10871 | C90: 24 | D90: 10888 | E90: 24 | F90: 10893 | K90: 0 | L90: 122
A91: 12 | B91: 10993 | C91: 24 | D91: 11010 | E91: 24 | F91: 11018 | K91: 0 | L91: 122
A92: 12 | B92: 11124 | C92: 24 | D92: 11157 | E92: 24 | F92: 11166 | K92: 0 | L92: 122
A93: 12 | B93: 11267 | C93: 24 | D93: 11277 | E93: 24 | F93: 11283 | K93: 0 | L93: 122
A94: 12 | B94: 11385 | C94: 24 | D94: 11404 | E94: 24 | F94: 11422 | K94: 0 | L94: 122
A95: 12 | B95: 11516 | C95: 24 | D95: 11534 | E95: 24 | F95: 11541 | K95: 0 | L95: 122
A96: 12 | B96: 11645 | C96: 24 | D96: 11662 | E96: 24 | F96: 11672 | K96: 0 | L96: 122
A97: 12 | B97: 11771 | C97: 24 | D97: 11789 | E97: 24 | F97: 11796 | K97: 0 | L97: 122
A98: 12 | B98: 11896 | C98: 24 | D98: 11919 | E98: 24 | F98: 11927 | K98: 0 | L98: 122
A99: 12 | B99: 12028 | C99: 24 | D99: 12046 | E99: 24 | F99: 12054 | K99: 0 | L99: 122
A100: 12 | B100: 12151 | C100: 24 | D100: 12177 | E100: 24 | F100: 12201 | K100: 0 | L100: 122
A101: 21 | B101: 12314 | C101: 22 | D101: 12325 | E101: 24 | F101: 12333 | K101: 0 | L101: 222
A102: 12 | B102: 12428 | C102: 24 | D102: 12446 | E102: 24 | F102: 12455 | K102: 0 | L102: 122
A103: 12 | B103: 12553 | C103: 24 | D103: 12603 | E103: 24 | F103: 12621 | K103: 0 | L103: 122
A104: 12 | B104: 12719 | C104: 13 | D104: 12728 | E104: 24 | F104: 12748 | K104: 0 | L104: 112
A105: 12 | B105: 12845 | C105: 24 | D105: 12877 | E105: 24 | F105: 12886 | K105: 0 | L105: 122
A106: 12 | B106: 12995 | C106: 24 | D106: 13007 | E106: 24 | F106: 13017 | K106: 0 | L106: 122
A107: 12 | B107: 13115 | C107: 24 | D107: 13134 | E107: 24 | F107: 13142 | K107: 0 | L107: 122
A108: 12 | B108: 13235 | C108: 13 | D108: 13256 | E108: 24 | F108: 13292 | K108: 0 | L108: 112
A109: 12 | B109: 13387 | C109: 24 | D109: 13412 | E109: 24 | F109: 13428 | K109: 0 | L109: 122
A110: 12 | B110: 13527 | C110: 24 | D110: 13540 | E110: 24 | F110: 13545 | K110: 0 | L110: 122
A111: 12 | B111: 13645 | C111: 24 | D111: 13671 | E111: 24 | F111: 13699 | K111: 0 | L111: 122
A112: 12 | B112: 13798 | C112: 24 | D112: 13808 | E112: 24 | F112: 13818 | K112: 0 | L112: 122
A113: 12 | B113: 13911 | C113: 24 | D113: 13928 | E113: 24 | F113: 13936 | K113: 0 | L113: 122
A114: 12 | B114: 14038 | C114: 24 | D114: 14051 | E114: 24 | F114: 14058 | K114: 0 | L114: 122
A115: 12 | B115: 14156 | C115: 24 | D115: 14178 | E115: 24 | F115: 14186 | K115: 0 | L115: 122
A116: 12 | B116: 14281 | C116: 24 | D116: 14301 | E116: 24 | F116: 14307 | K116: 0 | L116: 122
A117: 12 | B117: 14406 | C117: 24 | D117: 14419 | E117: 24 | F117: 14427 | K117: 0 | L117: 122
A118: 12 | B118: 14524 | C118: 24 | D118: 14534 | E118: 24 | F118: 14540 | K118: 0 | L118: 122
A119: 12 | B119: 14640 | C119: 24 | D119: 14693 | E119: 24 | F119: 14731 | K119: 0 | L119: 122
A120: 12 | B120: 14833 | C120: 24 | D120: 14851 | E120: 24 | F120: 14859 | K120: 0 | L120: 122
A121: 12 | B121: 14957 | C121: 24 | D121: 14975 | E121: 24 | F121: 14989 | K121: 0 | L121: 122
A122: 12 | B122: 15088 | C122: 24 | D122: 15100 | E122: 24 | F122: 15121 | K122: 0 | L122: 122
A123: 12 | B123: 15217 | C123: 24 | D123: 15228 | E123: 24 | F123: 15241 | K123: 0 | L123: 122
A124: 12 | B124: 15339 | C124: 24 | D124: 15351 | E124: 24 | F124: 15358 | K124: 0 | L124: 122
A125: 12 | B125: 15461 | C125: 24 | D125: 15475 | E125: 24 | F125: 15482 | K125: 0 | L125: 122
A126: 12 | B126: 15582 | C126: 24 | D126: 15594 | E126: 24 | F126: 15599 | K126: 0 | L126: 122
A127: 12 | B127: 15699 | C127: 24 | D127: 15711 | E127: 24 | F127: 15716 | K127: 0 | L127: 122
A128: 12 | B128: 15817 | C128: 24 | D128: 15829 | E128: 24 | F128: 15835 | K128: 0 | L128: 122
A129: 21 | B129: 15936 | C129: 22 | D129: 15941 | E129: 24 | F129: 15949 | K129: 0 | L129: 222
A130: 12 | B130: 16047 | C130: 24 | D130: 16077 | E130: 24 | F130: 16092 | K130: 0 | L130: 122
A131: 12 | B131: 16192 | C131: 24 | D131: 16209 | E131: 24 | F131: 16218 | K131: 0 | L131: 122
A132: 21 | B132: 16330 | C132: 22 | D132: 16339 | E132: 24 | F132: 16352 | K132: 0 | L132: 222
A133: 12 | B133: 16445 | C133: 24 | D133: 16458 | E133: 24 | F133: 16464 | K133: 0 | L133: 122
A134: 12 | B134: 16564 | C134: 24 | D134: 16577 | E134: 24 | F134: 16585 | K134: 0 | L134: 122
A135: 12 | B135: 16683 | C135: 24 | D135: 16695 | E135: 24 | F135: 16703 | K135: 0 | L135: 122
A136: 12 | B136: 16808 | C136: 24 | D136: 16818 | E136: 24 | F136: 16823 | K136: 0 | L136: 122
A137: 12 | B137: 16921 | C137: 24 | D137: 16934 | E137: 24 | F137: 16941 | K137: 0 | L137: 122
A138: 12 | B138: 17036 | C138: 24 | D138: 17054 | E138: 24 | F138: 17069 | K138: 0 | L138: 122
A139: 12 | B139: 17166 | C139: 24 | D139: 17185 | E139: 24 | F139: 17198 | K139: 0 | L139: 122
A140: 12 | B140: 17300 | C140: 24 | D140: 17324 | E140: 24 | F140: 17364 | K140: 0 | L140: 122
A141: 12 | B141: 17462 | C141: 24 | D141: 17474 | E141: 24 | F141: 17479 | K141: 0 | L141: 122
A142: 12 | B142: 17575 | C142: 24 | D142: 17594 | E142: 24 | F142: 17601 | K142: 0 | L142: 122
A143: 12 | B143: 17703 | C143: 24 | D143: 17715 | E143: 24 | F143: 17731 | K143: 0 | L143: 122
A144: 21 | B144: 17840 | C144: 22 | D144: 17847 | E144: 24 | F144: 17860 | K144: 0 | L144: 222
A145: 12 | B145: 17962 | C145: 24 | D145: 17996 | E145: 24 | F145: 18058 | K145: 0 | L145: 122
A146: 12 | B146: 18158 | C146: 24 | D146: 18169 | E146: 24 | F146: 18175 | K146: 0 | L146: 122
A147: 12 | B147: 18274 | C147: 24 | D147: 18287 | E147: 24 | F147: 18295 | K147: 0 | L147: 122
A148: 12 | B148: 18391 | C148: 24 | D148: 18409 | E148: 24 | F148: 18420 | K148: 0 | L148: 122
A149: 12 | B149: 18513 | C149: 24 | D149: 18522 | E149: 24 | F149: 18533 | K149: 0 | L149: 122
A150: 12 | B150: 18633 | C150: 24 | D150: 18657 | E150: 24 | F150: 18665 | K150: 0 | L150: 122
A151: 12 | B151: 18758 | C151: 24 | D151: 18786 | E151: 24 | F151: 18803 | K151: 0 | L151: 122
A152: 12 | B152: 18902 | C152: 24 | D152: 18915 | E152: 24 | F152: 18934 | K152: 0 | L152: 122
A153: 21 | B153: 19041 | C153: 22 | D153: 19047 | E153: 24 | F153: 19053 | K153: 0 | L153: 222
A154: 12 | B154: 19153 | C154: 24 | D154: 19170 | E154: 24 | F154: 19186 | K154: 0 | L154: 122
A155: 12 | B155: 19285 | C155: 24 | D155: 19299 | E155: 24 | F155: 19305 | K155: 0 | L155: 122
A156: 12 | B156: 19395 | C156: 24 | D156: 19408 | E156: 24 | F156: 19415 | K156: 0 | L156: 122
A157: 12 | B157: 19516 | C157: 24 | D157: 19528 | E157: 24 | F157: 19537 | K157: 0 | L157: 122
A158: 12 | B158: 19637 | C158: 24 | D158: 19653 | E158: 24 | F158: 19675 | K158: 0 | L158: 122
A159: 21 | B159: 19784 | C159: 22 | D159: 19791 | E159: 24 | F159: 19799 | K159: 0 | L159: 222
A160: 12 | B160: 19898 | C160: 24 | D160: 19910 | E160: 24 | F160: 19918 | K160: 0 | L160: 122
A161: 12 | B161: 20021 | C161: 24 | D161: 20034 | E161: 24 | F161: 20040 | K161: 0 | L161: 122
A162: 12 | B162: 20135 | C162: 24 | D162: 20162 | E162: 24 | F162: 20180 | K162: 0 | L162: 122
A163: 12 | B163: 20278 | C163: 24 | D163: 20291 | E163: 24 | F163: 20297 | K163: 0 | L163: 122
A164: 12 | B164: 20397 | C164: 24 | D164: 20408 | E164: 24 | F164: 20417 | K164: 0 | L164: 122
A165: 12 | B165: 20514 | C165: 24 | D165: 20534 | E165: 24 | F165: 20543 | K165: 0 | L165: 122
A166: 12 | B166: 20640 | C166: 24 | D166: 20653 | E166: 24 | F166: 20663 | K166: 0 | L166: 122
A167: 12 | B167: 20763 | C167: 24 | D167: 20781 | E167: 24 | F167: 20788 | K167: 0 | L167: 122
A168: 12 | B168: 20883 | C168: 24 | D168: 20907 | E168: 24 | F168: 20916 | K168: 0 | L168: 122
A169: 12 | B169: 21015 | C169: 24 | D169: 21034 | E169: 24 | F169: 21041 | K169: 0 | L169: 122
A170: 12 | B170: 21143 | C170: 24 | D170: 21167 | E170: 24 | F170: 21180 | K170: 0 | L170: 122
A171: 12 | B171: 21282 | C171: 24 | D171: 21300 | E171: 24 | F171: 21313 | K171: 0 | L171: 122
A172: 12 | B172: 21411 | C172: 24 | D172: 21422 | E172: 24 | F172: 21428 | K172: 0 | L172: 122
A173: 12 | B173: 21529 | C173: 24 | D173: 21542 | E173: 24 | F173: 21600 | K173: 0 | L173: 122
A174: 12 | B174: 21694 | C174: 24 | D174: 21704 | E174: 24 | F174: 21719 | K174: 0 | L174: 122
A175: 12 | B175: 21813 | C175: 24 | D175: 21829 | E175: 24 | F175: 21835 | K175: 0 | L175: 122
A176: 12 | B176: 21936 | C176: 24 | D176: 21948 | E176: 24 | F176: 21953 | K176: 0 | L176: 122
A177: 12 | B177: 22052 | C177: 24 | D177: 22064 | E177: 24 | F177: 22117 | K177: 0 | L177: 122
A178: 12 | B178: 22221 | C178: 24 | D178: 22241 | E178: 24 | F178: 22248 | K178: 0 | L178: 122
A179: 12 | B179: 22347 | C179: 24 | D179: 22372 | E179: 24 | F179: 22382 | K179: 0 | L179: 122
A180: 12 | B180: 22482 | C180: 24 | D180: 22521 | E180: 24 | F180: 22546 | K180: 0 | L180: 122
A181: 12 | B181: 22645 | C181: 24 | D181: 22658 | E181: 24 | F181: 22666 | K181: 0 | L181: 122
A182: 12 | B182: 22761 | C182: 24 | D182: 22774 | E182: 24 | F182: 22781 | K182: 0 | L182: 122
A183: 12 | B183: 22874 | C183: 24 | D183: 22887 | E183: 24 | F183: 22892 | K183: 0 | L183: 122
A184: 12 | B184: 22994 | C184: 24 | D184: 23006 | E184: 24 | F184: 23018 | K184: 0 | L184: 122
A185: 12 | B185: 23118 | C185: 24 | D185: 23129 | E185: 24 | F185: 23136 | K185: 0 | L185: 122
A186: 12 | B186: 23237 | C186: 24 | D186: 23251 | E186: 24 | F186: 23266 | K186: 0 | L186: 122
A187: 12 | B187: 23367 | C187: 24 | D187: 23380 | E187: 24 | F187: 23387 | K187: 0 | L187: 122
A188: 12 | B188: 23480 | C188: 24 | D188: 23505 | E188: 24 | F188: 23515 | K188: 0 | L188: 122
A189: 12 | B189: 23615 | C189: 24 | D189: 23640 | E189: 24 | F189: 23680 | K189: 0 | L189: 122
A190: 12 | B190: 23777 | C190: 24 | D190: 23802 | E190: 24 | F190: 23812 | K190: 0 | L190: 122
A191: 12 | B191: 23909 | C191: 24 | D191: 23956 | E191: 24 | F191: 23971 | K191: 1 | L191: 122

Sheet !M831850.101
A1: Report for:!M831850.101
A2: Date: | B2: <date>
A3: Hen: | B3: <hen> | F3: Correct Sequence | G3: =Start!J2 -> 211 | P3: Total Sequences in Data | Q3: =4994-COUNTBLANK(L7:L5000) -> 192 | V3: Total Sequences in Block Data | W3: =COUNTA(L7:L38) -> 32 | AA3: Total Sequences in Block Data | AB3: =COUNTA(L39:L70) -> 32 | AF3: Total Sequences in Block Data | AG3: =COUNTA(L71:L102) -> 32 | AK3: Total Sequences in Block Data | AL3: =COUNTA(L103:L134) -> 32 | AP3: Total Sequences in Block Data | AQ3: =COUNTA(L135:L166) -> 32 | AU3: Total Sequences in Block Data | AV3: =COUNTA(L167:L198) -> 32
P4: Total Sequences in Summary | Q4: =SUM(O7:O14) -> 192 | V4: Total Sequences in Block Summary | W4: =SUM(U7:U14) -> 32 | AA4: Total Sequences in Block Summary | AB4: =SUM(Z7:Z14) -> 32 | AF4: Total Sequences in Block Summary | AG4: =SUM(AE7:AE14) -> 32 | AK4: Total Sequences in Block Summary | AL4: =SUM(AJ7:AJ14) -> 32 | AP4: Total Sequences in Block Summary | AQ4: =SUM(AO7:AO14) -> 32 | AU4: Total Sequences in Block Summary | AV4: =SUM(AT7:AT14) -> 32
T5: Block 1 | Y5: Block 2 | AD5: Block 3 | AI5: Block 4 | AN5: Block 5 | AS5: Block 6
A6: Sequence Component 1 | B6: Time 1 | C6: Sequence Component 2 | D6: Time 2 | E6: Sequence Component 3 | F6: Time 3 | G6: Sequence Component 4 | H6: Time 4 | I6: Sequence Component 5 | J6: Time 5 | K6: Correct? 0=No 1=Yes | L6: Sequence | N6: Frequency | P6: Relative Frequency | Q6: Variability | T6: Frequency | V6: Relative Frequency | W6: Variability | Y6: Frequency | AA6: Relative Frequency | AB6: Variability | AD6: Frequency | AF6: Relative Frequency | AG6: Variability | AI6: Frequency | AK6: Relative Frequency | AL6: Variability | AN6: Frequency | AP6: Relative Frequency | AQ6: Variability | AS6: Frequency | AU6: Relative Frequency | AV6: Variability
A7: 12 | B7: 14 | C7: 24 | D7: 28 | E7: 24 | F7: 33 | K7: 0 | L7: 122 | N7: 111 | O7: =COUNTIF($L$7:$L$500,N7) -> 0 | P7: =O7/$Q$4 -> 0 | Q7: =IF(P7=0,0,(P7*((LOG(P7))/LOG(2)))) -> 0 | T7: =N7 -> 111 | U7: =COUNTIF(L7:L38,T7) -> 0 | V7: =U7/(W4-U11) -> 0 | W7: =IF(V7=0,0,(V7*((LOG(V7))/LOG(2)))) -> 0 | Y7: =N7 -> 111 | Z7: =COUNTIF(L39:L70,Y7) -> 0 | AA7: =Z7/(AB4-Z11) -> 0 | AB7: =IF(AA7=0,0,(AA7*((LOG(AA7))/LOG(2)))) -> 0 | AD7: =N7 -> 111 | AE7: =COUNTIF(L71:L102,AD7) -> 0 | AF7: =AE7/(AG4-AE11) -> 0 | AG7: =IF(AF7=0,0,(AF7*((LOG(AF7))/LOG(2)))) -> 0 | AI7: =N7 -> 111 | AJ7: =COUNTIF(L103:L134,AI7) -> 0 | AK7: =AJ7/(AL4-AJ11) -> 0 | AL7: =IF(AK7=0,0,(AK7*((LOG(AK7))/LOG(2)))) -> 0 | AN7: =N7 -> 111 | AO7: =COUNTIF(L135:L166,AN7) -> 0 | AP7: =AO7/(AQ4-AO11) -> 0 | AQ7: =IF(AP7=0,0,(AP7*((LOG(AP7))/LOG(2)))) -> 0 | AS7: =N7 -> 111 | AT7: =COUNTIF(L167:L198,AS7) -> 0 | AU7: =AT7/(AV4-AT11) -> 0 | AV7: =IF(AU7=0,0,(AU7*((LOG(AU7))/LOG(2)))) -> 0
A8: 12 | B8: 128 | C8: 24 | D8: 141 | E8: 24 | F8: 150 | K8: 0 | L8: 122 | N8: 112 | O8: =COUNTIF($L$7:$L$500,N8) -> 6 | P8: =O8/$Q$4 -> 0.03125 | Q8: =IF(P8=0,0,(P8*((LOG(P8))/LOG(2)))) -> -0.15625 | T8: =N8 -> 112 | U8: =COUNTIF(L7:L38,T8) -> 2 | V8: =U8/(W4-U11) -> 0.0625 | W8: =IF(V8=0,0,(V8*((LOG(V8))/LOG(2)))) -> -0.25 | Y8: =N8 -> 112 | Z8: =COUNTIF(L39:L70,Y8) -> 0 | AA8: =Z8/(AB4-Z11) -> 0 | AB8: =IF(AA8=0,0,(AA8*((LOG(AA8))/LOG(2)))) -> 0 | AD8: =N8 -> 112 | AE8: =COUNTIF(L71:L102,AD8) -> 1 | AF8: =AE8/(AG4-AE11) -> 0.03125 | AG8: =IF(AF8=0,0,(AF8*((LOG(AF8))/LOG(2)))) -> -0.15625 | AI8: =N8 -> 112 | AJ8: =COUNTIF(L103:L134,AI8) -> 1 | AK8: =AJ8/(AL4-AJ11) -> 0.03125 | AL8: =IF(AK8=0,0,(AK8*((LOG(AK8))/LOG(2)))) -> -0.15625 | AN8: =N8 -> 112 | AO8: =COUNTIF(L135:L166,AN8) -> 1 | AP8: =AO8/(AQ4-AO11) -> 0.03125 | AQ8: =IF(AP8=0,0,(AP8*((LOG(AP8))/LOG(2)))) -> -0.15625 | AS8: =N8 -> 112 | AT8: =COUNTIF(L167:L198,AS8) -> 1 | AU8: =AT8/(AV4-AT11) -> 0.03125 | AV8: =IF(AU8=0,0,(AU8*((LOG(AU8))/LOG(2)))) -> -0.15625
A9: 21 | B9: 263 | C9: 22 | D9: 273 | E9: 24 | F9: 286 | K9: 0 | L9: 222 | N9: 121 | O9: =COUNTIF($L$7:$L$500,N9) -> 0 | P9: =O9/$Q$4 -> 0 | Q9: =IF(P9=0,0,(P9*((LOG(P9))/LOG(2)))) -> 0 | T9: =N9 -> 121 | U9: =COUNTIF(L7:L38,T9) -> 0 | V9: =U9/(W4-U11) -> 0 | W9: =IF(V9=0,0,(V9*((LOG(V9))/LOG(2)))) -> 0 | Y9: =N9 -> 121 | Z9: =COUNTIF(L39:L70,Y9) -> 0 | AA9: =Z9/(AB4-Z11) -> 0 | AB9: =IF(AA9=0,0,(AA9*((LOG(AA9))/LOG(2)))) -> 0 | AD9: =N9 -> 121 | AE9: =COUNTIF(L71:L102,AD9) -> 0 | AF9: =AE9/(AG4-AE11) -> 0 | AG9: =IF(AF9=0,0,(AF9*((LOG(AF9))/LOG(2)))) -> 0 | AI9: =N9 -> 121 | AJ9: =COUNTIF(L103:L134,AI9) -> 0 | AK9: =AJ9/(AL4-AJ11) -> 0 | AL9: =IF(AK9=0,0,(AK9*((LOG(AK9))/LOG(2)))) -> 0 | AN9: =N9 -> 121 | AO9: =COUNTIF(L135:L166,AN9) -> 0 | AP9: =AO9/(AQ4-AO11) -> 0 | AQ9: =IF(AP9=0,0,(AP9*((LOG(AP9))/LOG(2)))) -> 0 | AS9: =N9 -> 121 | AT9: =COUNTIF(L167:L198,AS9) -> 0 | AU9: =AT9/(AV4-AT11) -> 0 | AV9: =IF(AU9=0,0,(AU9*((LOG(AU9))/LOG(2)))) -> 0
A10: 21 | B10: 392 | C10: 22 | D10: 399 | E10: 24 | F10: 404 | K10: 0 | L10: 222 | N10: 122 | O10: =COUNTIF($L$7:$L$500,N10) -> 136 | P10: =O10/$Q$4 -> 0.7083333333 | Q10: =IF(P10=0,0,(P10*((LOG(P10))/LOG(2)))) -> -0.3523955921 | T10: =N10 -> 122 | U10: =COUNTIF(L7:L38,T10) -> 22 | V10: =U10/(W4-U11) -> 0.6875 | W10: =IF(V10=0,0,(V10*((LOG(V10))/LOG(2)))) -> -0.3716407622 | Y10: =N10 -> 122 | Z10: =COUNTIF(L39:L70,Y10) -> 25 | AA10: =Z10/(AB4-Z11) -> 0.78125 | AB10: =IF(AA10=0,0,(AA10*((LOG(AA10))/LOG(2)))) -> -0.2782373517 | AD10: =N10 -> 122 | AE10: =COUNTIF(L71:L102,AD10) -> 22 | AF10: =AE10/(AG4-AE11) -> 0.6875 | AG10: =IF(AF10=0,0,(AF10*((LOG(AF10))/LOG(2)))) -> -0.3716407622 | AI10: =N10 -> 122 | AJ10: =COUNTIF(L103:L134,AI10) -> 21 | AK10: =AJ10/(AL4-AJ11) -> 0.65625 | AL10: =IF(AK10=0,0,(AK10*((LOG(AK10))/LOG(2)))) -> -0.3987916913 | AN10: =N10 -> 122 | AO10: =COUNTIF(L135:L166,AN10) -> 26 | AP10: =AO10/(AQ4-AO11) -> 0.8125 | AQ10: =IF(AP10=0,0,(AP10*((LOG(AP10))/LOG(2)))) -> -0.243392729 | AS10: =N10 -> 122 | AT10: =COUNTIF(L167:L198,AS10) -> 20 | AU10: =AT10/(AV4-AT11) -> 0.625 | AV10: =IF(AU10=0,0,(AU10*((LOG(AU10))/LOG(2)))) -> -0.4237949407
A11: 12 | B11: 500 | C11: 24 | D11: 512 | E11: 24 | F11: 518 | K11: 0 | L11: 122 | N11: 211 | O11: =COUNTIF($L$7:$L$500,N11) -> 0 | P11: =O11/$Q$4 -> 0 | Q11: =IF(P11=0,0,(P11*((LOG(P11))/LOG(2)))) -> 0 | T11: =N11 -> 211 | U11: =COUNTIF(L7:L38,T11) -> 0 | Y11: =N11 -> 211 | Z11: =COUNTIF(L39:L70,Y11) -> 0 | AD11: =N11 -> 211 | AE11: =COUNTIF(L71:L102,AD11) -> 0 | AI11: =N11 -> 211 | AJ11: =COUNTIF(L103:L134,AI11) -> 0 | AN11: =N11 -> 211 | AO11: =COUNTIF(L135:L166,AN11) -> 0 | AS11: =N11 -> 211 | AT11: =COUNTIF(L167:L198,AS11) -> 0
A12: 12 | B12: 611 | C12: 24 | D12: 629 | E12: 24 | F12: 638 | K12: 0 | L12: 122 | N12: 212 | O12: =COUNTIF($L$7:$L$500,N12) -> 0 | P12: =O12/$Q$4 -> 0 | Q12: =IF(P12=0,0,(P12*((LOG(P12))/LOG(2)))) -> 0 | T12: =N12 -> 212 | U12: =COUNTIF(L7:L38,T12) -> 0 | V12: =U12/(W4-U11) -> 0 | W12: =IF(V12=0,0,(V12*((LOG(V12))/LOG(2)))) -> 0 | Y12: =N12 -> 212 | Z12: =COUNTIF(L39:L70,Y12) -> 0 | AA12: =Z12/(AB4-Z11) -> 0 | AB12: =IF(AA12=0,0,(AA12*((LOG(AA12))/LOG(2)))) -> 0 | AD12: =N12 -> 212 | AE12: =COUNTIF(L71:L102,AD12) -> 0 | AF12: =AE12/(AG4-AE11) -> 0 | AG12: =IF(AF12=0,0,(AF12*((LOG(AF12))/LOG(2)))) -> 0 | AI12: =N12 -> 212 | AJ12: =COUNTIF(L103:L134,AI12) -> 0 | AK12: =AJ12/(AL4-AJ11) -> 0 | AL12: =IF(AK12=0,0,(AK12*((LOG(AK12))/LOG(2)))) -> 0 | AN12: =N12 -> 212 | AO12: =COUNTIF(L135:L166,AN12) -> 0 | AP12: =AO12/(AQ4-AO11) -> 0 | AQ12: =IF(AP12=0,0,(AP12*((LOG(AP12))/LOG(2)))) -> 0 | AS12: =N12 -> 212 | AT12: =COUNTIF(L167:L198,AS12) -> 0 | AU12: =AT12/(AV4-AT11) -> 0 | AV12: =IF(AU12=0,0,(AU12*((LOG(AU12))/LOG(2)))) -> 0
A13: 12 | B13: 734 | C13: 24 | D13: 749 | E13: 24 | F13: 756 | K13: 0 | L13: 122 | N13: 221 | O13: =COUNTIF($L$7:$L$500,N13) -> 0 | P13: =O13/$Q$4 -> 0 | Q13: =IF(P13=0,0,(P13*((LOG(P13))/LOG(2)))) -> 0 | T13: =N13 -> 221 | U13: =COUNTIF(L7:L38,T13) -> 0 | V13: =U13/(W4-U11) -> 0 | W13: =IF(V13=0,0,(V13*((LOG(V13))/LOG(2)))) -> 0 | Y13: =N13 -> 221 | Z13: =COUNTIF(L39:L70,Y13) -> 0 | AA13: =Z13/(AB4-Z11) -> 0 | AB13: =IF(AA13=0,0,(AA13*((LOG(AA13))/LOG(2)))) -> 0 | AD13: =N13 -> 221 | AE13: =COUNTIF(L71:L102,AD13) -> 0 | AF13: =AE13/(AG4-AE11) -> 0 | AG13: =IF(AF13=0,0,(AF13*((LOG(AF13))/LOG(2)))) -> 0 | AI13: =N13 -> 221 | AJ13: =COUNTIF(L103:L134,AI13) -> 0 | AK13: =AJ13/(AL4-AJ11) -> 0 | AL13: =IF(AK13=0,0,(AK13*((LOG(AK13))/LOG(2)))) -> 0 | AN13: =N13 -> 221 | AO13: =COUNTIF(L135:L166,AN13) -> 0 | AP13: =AO13/(AQ4-AO11) -> 0 | AQ13: =IF(AP13=0,0,(AP13*((LOG(AP13))/LOG(2)))) -> 0 | AS13: =N13 -> 221 | AT13: =COUNTIF(L167:L198,AS13) -> 0 | AU13: =AT13/(AV4-AT11) -> 0 | AV13: =IF(AU13=0,0,(AU13*((LOG(AU13))/LOG(2)))) -> 0
A14: 12 | B14: 867 | C14: 24 | D14: 882 | E14: 24 | F14: 889 | K14: 0 | L14: 122 | N14: 222 | O14: =COUNTIF($L$7:$L$500,N14) -> 50 | P14: =O14/$Q$4 -> 0.2604166667 | Q14: =IF(P14=0,0,(P14*((LOG(P14))/LOG(2)))) -> -0.5054964351 | T14: =N14 -> 222 | U14: =COUNTIF(L7:L38,T14) -> 8 | V14: =U14/(W4-U11) -> 0.25 | W14: =IF(V14=0,0,(V14*((LOG(V14))/LOG(2)))) -> -0.5 | Y14: =N14 -> 222 | Z14: =COUNTIF(L39:L70,Y14) -> 7 | AA14: =Z14/(AB4-Z11) -> 0.21875 | AB14: =IF(AA14=0,0,(AA14*((LOG(AA14))/LOG(2)))) -> -0.4796411108 | AD14: =N14 -> 222 | AE14: =COUNTIF(L71:L102,AD14) -> 9 | AF14: =AE14/(AG4-AE11) -> 0.28125 | AG14: =IF(AF14=0,0,(AF14*((LOG(AF14))/LOG(2)))) -> -0.5147085933 | AI14: =N14 -> 222 | AJ14: =COUNTIF(L103:L134,AI14) -> 10 | AK14: =AJ14/(AL4-AJ11) -> 0.3125 | AL14: =IF(AK14=0,0,(AK14*((LOG(AK14))/LOG(2)))) -> -0.5243974703 | AN14: =N14 -> 222 | AO14: =COUNTIF(L135:L166,AN14) -> 5 | AP14: =AO14/(AQ4-AO11) -> 0.15625 | AQ14: =IF(AP14=0,0,(AP14*((LOG(AP14))/LOG(2)))) -> -0.4184487352 | AS14: =N14 -> 222 | AT14: =COUNTIF(L167:L198,AS14) -> 11 | AU14: =AT14/(AV4-AT11) -> 0.34375 | AV14: =IF(AU14=0,0,(AU14*((LOG(AU14))/LOG(2)))) -> -0.5295703811
A15: 12 | B15: 987 | C15: 24 | D15: 1003 | E15: 24 | F15: 1012 | K15: 0 | L15: 122 | P15: =SUM(P7:P14) -> 1 | Q15: =-SUM(Q7:Q14) -> 1.014142027 | V15: =SUM(V7:V14) -> 1 | W15: =-SUM(W7:W14) -> 1.121640762 | AA15: =SUM(AA7:AA14) -> 1 | AB15: =-SUM(AB7:AB14) -> 0.7578784625 | AF15: =SUM(AF7:AF14) -> 1 | AG15: =-SUM(AG7:AG14) -> 1.042599356 | AK15: =SUM(AK7:AK14) -> 1 | AL15: =-SUM(AL7:AL14) -> 1.079439162 | AP15: =SUM(AP7:AP14) -> 1 | AQ15: =-SUM(AQ7:AQ14) -> 0.8180914642 | AU15: =SUM(AU7:AU14) -> 1 | AV15: =-SUM(AV7:AV14) -> 1.109615322
A16: 12 | B16: 1108 | C16: 24 | D16: 1120 | E16: 24 | F16: 1142 | K16: 0 | L16: 122 | P16: U= | Q16: =Q15/(LOG(Q4)/LOG(2)) -> 0.1337042902 | V16: U1= | W16: =W15/(LOG(W4)/LOG(2)) -> 0.2243281524 | AA16: U2= | AB16: =AB15/(LOG(AB4)/LOG(2)) -> 0.1515756925 | AF16: U3= | AG16: =AG15/(LOG(AG4)/LOG(2)) -> 0.2085198711 | AK16: U4= | AL16: =AL15/(LOG(AL4)/LOG(2)) -> 0.2158878323 | AP16: U5= | AQ16: =AQ15/(LOG(AQ4)/LOG(2)) -> 0.1636182928 | AU16: U6= | AV16: =AV15/(LOG(AV4)/LOG(2)) -> 0.2219230644
A17: 12 | B17: 1234 | C17: 13 | D17: 1244 | E17: 24 | F17: 1262 | K17: 0 | L17: 112
A18: 21 | B18: 1373 | C18: 22 | D18: 1378 | E18: 24 | F18: 1386 | K18: 0 | L18: 222
A19: 12 | B19: 1482 | C19: 24 | D19: 1498 | E19: 24 | F19: 1503 | K19: 0 | L19: 122 | N19: Total Target Seq
A20: 21 | B20: 1624 | C20: 22 | D20: 1628 | E20: 24 | F20: 1636 | K20: 0 | L20: 222 | N20: =COUNTIF(L7:L198,G3) -> 0 | P20: 32 | Q20: 32 | R20: 32 | S20: 32 | T20: 32 | U20: 32
A21: 21 | B21: 1751 | C21: 22 | D21: 1758 | E21: 24 | F21: 1767 | K21: 0 | L21: 222 | P21: % of reinforcement given in 6 equal intervals based on number of trials
A22: 12 | B22: 1864 | C22: 24 | D22: 1881 | E22: 24 | F22: 1894 | K22: 0 | L22: 122 | P22: %_1 | Q22: %_2 | R22: %_3 | S22: %_4 | T22: %_5 | U22: %_6
A23: 12 | B23: 1993 | C23: 24 | D23: 2006 | E23: 24 | F23: 2012 | K23: 0 | L23: 122 | O23: target sequence | P23: =$G$3 -> 211 | Q23: =$G$3 -> 211 | R23: =$G$3 -> 211 | S23: =$G$3 -> 211 | T23: =$G$3 -> 211 | U23: =$G$3 -> 211
A24: 21 | B24: 2125 | C24: 22 | D24: 2133 | E24: 24 | F24: 2141 | K24: 0 | L24: 222 | O24: total reinforcement | P24: =U11 -> 0 | Q24: =Z11 -> 0 | R24: =AE11 -> 0 | S24: =AJ11 -> 0 | T24: =AO11 -> 0 | U24: =AT11 -> 0
A25: 12 | B25: 2239 | C25: 24 | D25: 2257 | E25: 24 | F25: 2264 | K25: 0 | L25: 122 | O25: % target
A26: 12 | B26: 2363 | C26: 24 | D26: 2381 | E26: 24 | F26: 2389 | K26: 0 | L26: 122 | O26: CCRF
A27: 12 | B27: 2481 | C27: 24 | D27: 2500 | E27: 24 | F27: 2516 | K27: 0 | L27: 122 | O27: % CCRf
A28: 12 | B28: 2612 | C28: 24 | D28: 2634 | E28: 24 | F28: 2640 | K28: 0 | L28: 122 | O28: average response rate | P28: =F38/P20 -> 122.875 | Q28: =(F70-F38)/Q20 -> 123.78125 | R28: =(F102-F70)/R20 -> 129.9375 | S28: =(F134-F102)/S20 -> 123.28125 | T28: =(F166-F134)/T20 -> 124.15625 | U28: =(F198-F166)/U20 -> 125.28125
A29: 12 | B29: 2739 | C29: 24 | D29: 2748 | E29: 24 | F29: 2759 | K29: 0 | L29: 122
A30: 12 | B30: 2863 | C30: 24 | D30: 2880 | E30: 24 | F30: 2933 | K30: 0 | L30: 122
A31: 12 | B31: 3031 | C31: 24 | D31: 3043 | E31: 24 | F31: 3049 | K31: 0 | L31: 122
A32: 12 | B32: 3147 | C32: 13 | D32: 3153 | E32: 24 | F32: 3190 | K32: 0 | L32: 112
A33: 21 | B33: 3290 | C33: 22 | D33: 3300 | E33: 24 | F33: 3308 | K33: 0 | L33: 222
A34: 12 | B34: 3405 | C34: 24 | D34: 3417 | E34: 24 | F34: 3422 | K34: 0 | L34: 122
A35: 12 | B35: 3520 | C35: 24 | D35: 3537 | E35: 24 | F35: 3549 | K35: 0 | L35: 122
A36: 12 | B36: 3655 | C36: 24 | D36: 3667 | E36: 24 | F36: 3675 | K36: 0 | L36: 122
A37: 12 | B37: 3775 | C37: 24 | D37: 3792 | E37: 24 | F37: 3805 | K37: 0 | L37: 122
A38: 21 | B38: 3918 | C38: 22 | D38: 3927 | E38: 24 | F38: 3932 | K38: 0 | L38: 222
A39: 21 | B39: 4042 | C39: 22 | D39: 4050 | E39: 24 | F39: 4058 | K39: 0 | L39: 222
A40: 21 | B40: 4174 | C40: 22 | D40: 4182 | E40: 24 | F40: 4191 | K40: 0 | L40: 222
A41: 21 | B41: 4317 | C41: 22 | D41: 4325 | E41: 24 | F41: 4333 | K41: 0 | L41: 222
A42: 12 | B42: 4429 | C42: 24 | D42: 4453 | E42: 24 | F42: 4461 | K42: 0 | L42: 122
A43: 12 | B43: 4565 | C43: 24 | D43: 4578 | E43: 24 | F43: 4583 | K43: 0 | L43: 122
A44: 12 | B44: 4682 | C44: 24 | D44: 4691 | E44: 24 | F44: 4696 | K44: 0 | L44: 122
A45: 12 | B45: 4792 | C45: 24 | D45: 4804 | E45: 24 | F45: 4811 | K45: 0 | L45: 122
A46: 21 | B46: 4926 | C46: 22 | D46: 4935 | E46: 24 | F46: 4940 | K46: 0 | L46: 222
A47: 21 | B47: 5074 | C47: 22 | D47: 5082 | E47: 24 | F47: 5095 | K47: 0 | L47: 222
A48: 12 | B48: 5196 | C48: 24 | D48: 5208 | E48: 24 | F48: 5228 | K48: 0 | L48: 122
A49: 12 | B49: 5325 | C49: 24 | D49: 5341 | E49: 24 | F49: 5348 | K49: 0 | L49: 122
A50: 12 | B50: 5444 | C50: 24 | D50: 5461 | E50: 24 | F50: 5476 | K50: 0 | L50: 122
A51: 12 | B51: 5573 | C51: 24 | D51: 5588 | E51: 24 | F51: 5593 | K51: 0 | L51: 122
A52: 12 | B52: 5702 | C52: 24 | D52: 5715 | E52: 24 | F52: 5720 | K52: 0 | L52: 122
A53: 12 | B53: 5818 | C53: 24 | D53: 5831 | E53: 24 | F53: 5836 | K53: 0 | L53: 122
A54: 12 | B54: 5931 | C54: 24 | D54: 5942 | E54: 24 | F54: 5949 | K54: 0 | L54: 122
A55: 12 | B55: 6044 | C55: 24 | D55: 6062 | E55: 24 | F55: 6071 | K55: 0 | L55: 122
A56: 12 | B56: 6168 | C56: 24 | D56: 6185 | E56: 24 | F56: 6197 | K56: 0 | L56: 122
A57: 21 | B57: 6307 | C57: 22 | D57: 6312 | E57: 24 | F57: 6328 | K57: 0 | L57: 222
A58: 12 | B58: 6424 | C58: 24 | D58: 6437 | E58: 24 | F58: 6444 | K58: 0 | L58: 122
A59: 21 | B59: 6558 | C59: 22 | D59: 6566 | E59: 24 | F59: 6583 | K59: 0 | L59: 222
A60: 12 | B60: 6680 | C60: 24 | D60: 6694 | E60: 24 | F60: 6701 | K60: 0 | L60: 122
A61: 12 | B61: 6796 | C61: 24 | D61: 6813 | E61: 24 | F61: 6820 | K61: 0 | L61: 122
A62: 12 | B62: 6920 | C62: 24 | D62: 6930 | E62: 24 | F62: 6943 | K62: 0 | L62: 122
A63: 12 | B63: 7040 | C63: 24 | D63: 7053 | E63: 24 | F63: 7058 | K63: 0 | L63: 122
A64: 12 | B64: 7154 | C64: 24 | D64: 7171 | E64: 24 | F64: 7176 | K64: 0 | L64: 122
A65: 12 | B65: 7271 | C65: 24 | D65: 7283 | E65: 24 | F65: 7288 | K65: 0 | L65: 122
A66: 12 | B66: 7378 | C66: 24 | D66: 7390 | E66: 24 | F66: 7396 | K66: 0 | L66: 122
A67: 12 | B67: 7494 | C67: 24 | D67: 7506 | E67: 24 | F67: 7512 | K67: 0 | L67: 122
A68: 12 | B68: 7609 | C68: 24 | D68: 7618 | E68: 24 | F68: 7624 | K68: 0 | L68: 122
A69: 12 | B69: 7722 | C69: 24 | D69: 7738 | E69: 24 | F69: 7767 | K69: 0 | L69: 122
A70: 12 | B70: 7865 | C70: 24 | D70: 7882 | E70: 24 | F70: 7893 | K70: 0 | L70: 122
A71: 12 | B71: 7988 | C71: 24 | D71: 8010 | E71: 24 | F71: 8019 | K71: 0 | L71: 122
A72: 12 | B72: 8119 | C72: 24 | D72: 8129 | E72: 24 | F72: 8134 | K72: 0 | L72: 122
A73: 12 | B73: 8235 | C73: 13 | D73: 8244 | E73: 24 | F73: 8262 | K73: 0 | L73: 112
A74: 21 | B74: 8369 | C74: 22 | D74: 8383 | E74: 24 | F74: 8391 | K74: 0 | L74: 222
A75: 21 | B75: 8523 | C75: 22 | D75: 8531 | E75: 24 | F75: 8540 | K75: 0 | L75: 222
A76: 12 | B76: 8638 | C76: 24 | D76: 8651 | E76: 24 | F76: 8658 | K76: 0 | L76: 122
A77: 12 | B77: 8756 | C77: 24 | D77: 8768 | E77: 24 | F77: 8776 | K77: 0 | L77: 122
A78: 12 | B78: 8889 | C78: 24 | D78: 8907 | E78: 24 | F78: 8915 | K78: 0 | L78: 122
A79: 12 | B79: 9013 | C79: 24 | D79: 9031 | E79: 24 | F79: 9073 | K79: 0 | L79: 122
A80: 21 | B80: 9184 | C80: 22 | D80: 9190 | E80: 24 | F80: 9198 | K80: 0 | L80: 222
A81: 12 | B81: 9304 | C81: 24 | D81: 9322 | E81: 24 | F81: 9327 | K81: 0 | L81: 122
A82: 12 | B82: 9423 | C82: 24 | D82: 9435 | E82: 24 | F82: 9447 | K82: 0 | L82: 122
A83: 12 | B83: 9542 | C83: 24 | D83: 9559 | E83: 24 | F83: 9572 | K83: 0 | L83: 122
A84: 12 | B84: 9663 | C84: 24 | D84: 9688 | E84: 24 | F84: 9709 | K84: 0 | L84: 122
A85: 12 | B85: 9808 | C85: 24 | D85: 9826 | E85: 24 | F85: 9834 | K85: 0 | L85: 122
A86: 12 | B86: 9931 | C86: 24 | D86: 9943 | E86: 24 | F86: 9966 | K86: 0 | L86: 122
A87: 21 | B87: 10071 | C87: 22 | D87: 10076 | E87: 24 | F87: 10084 | K87: 0 | L87: 222
A88: 12 | B88: 10179 | C88: 24 | D88: 10217 | E88: 24 | F88: 10228 | K88: 0 | L88: 122
A89: 21 | B89: 10352 | C89: 22 | D89: 10371 | E89: 24 | F89: 10402 | K89: 0 | L89: 222
A90: 21 | B90: 10520 | C90: 22 | D90: 10534 | E90: 24 | F90: 10554 | K90: 0 | L90: 222
A91: 21 | B91: 10663 | C91: 22 | D91: 10669 | E91: 24 | F91: 10678 | K91: 0 | L91: 222
A92: 12 | B92: 10772 | C92: 24 | D92: 10799 | E92: 24 | F92: 10806 | K92: 0 | L92: 122
A93: 12 | B93: 10907 | C93: 24 | D93: 10920 | E93: 24 | F93: 10925 | K93: 0 | L93: 122
A94: 12 | B94: 11025 | C94: 24 | D94: 11037 | E94: 24 | F94: 11044 | K94: 0 | L94: 122
A95: 12 | B95: 11142 | C95: 24 | D95: 11154 | E95: 24 | F95: 11161 | K95: 0 | L95: 122
A96: 12 | B96: 11263 | C96: 24 | D96: 11275 | E96: 24 | F96: 11290 | K96: 0 | L96: 122
A97: 12 | B97: 11386 | C97: 24 | D97: 11409 | E97: 24 | F97: 11424 | K97: 0 | L97: 122
A98: 12 | B98: 11520 | C98: 24 | D98: 11538 | E98: 24 | F98: 11547 | K98: 0 | L98: 122
A99: 12 | B99: 11645 | C99: 24 | D99: 11664 | E99: 24 | F99: 11668 | K99: 0 | L99: 122
A100: 12 | B100: 11765 | C100: 24 | D100: 11778 | E100: 24 | F100: 11785 | K100: 0 | L100: 122
A101: 21 | B101: 11896 | C101: 22 | D101: 11902 | E101: 24 | F101: 11909 | K101: 0 | L101: 222
A102: 21 | B102: 12029 | C102: 22 | D102: 12044 | E102: 24 | F102: 12051 | K102: 0 | L102: 222
A103: 12 | B103: 12145 | C103: 24 | D103: 12162 | E103: 24 | F103: 12169 | K103: 0 | L103: 122
A104: 12 | B104: 12271 | C104: 24 | D104: 12284 | E104: 24 | F104: 12290 | K104: 0 | L104: 122
A105: 12 | B105: 12388 | C105: 13 | D105: 12393 | E105: 24 | F105: 12412 | K105: 0 | L105: 112
A106: 12 | B106: 12512 | C106: 24 | D106: 12525 | E106: 24 | F106: 12530 | K106: 0 | L106: 122
A107: 12 | B107: 12629 | C107: 24 | D107: 12648 | E107: 24 | F107: 12655 | K107: 0 | L107: 122
A108: 12 | B108: 12753 | C108: 24 | D108: 12766 | E108: 24 | F108: 12775 | K108: 0 | L108: 122
A109: 12 | B109: 12870 | C109: 24 | D109: 12888 | E109: 24 | F109: 12897 | K109: 0 | L109: 122
A110: 21 | B110: 13008 | C110: 22 | D110: 13022 | E110: 24 | F110: 13032 | K110: 0 | L110: 222
A111: 21 | B111: 13141 | C111: 22 | D111: 13147 | E111: 24 | F111: 13155 | K111: 0 | L111: 222
A112: 21 | B112: 13262 | C112: 22 | D112: 13268 | E112: 24 | F112: 13275 | K112: 0 | L112: 222
A113: 12 | B113: 13374 | C113: 24 | D113: 13386 | E113: 24 | F113: 13392 | K113: 0 | L113: 122
A114: 12 | B114: 13502 | C114: 24 | D114: 13513 | E114: 24 | F114: 13519 | K114: 0 | L114: 122
A115: 12 | B115: 13617 | C115: 24 | D115: 13629 | E115: 24 | F115: 13635 | K115: 0 | L115: 122
A116: 12 | B116: 13727 | C116: 24 | D116: 13746 | E116: 24 | F116: 13753 | K116: 0 | L116: 122
A117: 12 | B117: 13846 | C117: 24 | D117: 13858 | E117: 24 | F117: 13864 | K117: 0 | L117: 122
A118: 12 | B118: 13957 | C118: 24 | D118: 13973 | E118: 24 | F118: 13978 | K118: 0 | L118: 122
A119: 12 | B119: 14074 | C119: 24 | D119: 14086 | E119: 24 | F119: 14092 | K119: 0 | L119: 122
A120: 21 | B120: 14222 | C120: 22 | D120: 14231 | E120: 24 | F120: 14239 | K120: 0 | L120: 222
A121: 21 | B121: 14350 | C121: 22 | D121: 14356 | E121: 24 | F121: 14367 | K121: 0 | L121: 222
A122: 21 | B122: 14480 | C122: 22 | D122: 14496 | E122: 24 | F122: 14508 | K122: 0 | L122: 222
A123: 12 | B123: 14599 | C123: 24 | D123: 14611 | E123: 24 | F123: 14622 | K123: 0 | L123: 122
A124: 12 | B124: 14722 | C124: 24 | D124: 14734 | E124: 24 | F124: 14743 | K124: 0 | L124: 122
A125: 12 | B125: 14838 | C125: 24 | D125: 14855 | E125: 24 | F125: 14863 | K125: 0 | L125: 122
A126: 21 | B126: 14966 | C126: 22 | D126: 14975 | E126: 24 | F126: 14983 | K126: 0 | L126: 222
A127: 21 | B127: 15097 | C127: 22 | D127: 15104 | E127: 24 | F127: 15113 | K127: 0 | L127: 222
A128: 12 | B128: 15213 | C128: 24 | D128: 15225 | E128: 24 | F128: 15233 | K128: 0 | L128: 122
A129: 12 | B129: 15336 | C129: 24 | D129: 15348 | E129: 24 | F129: 15354 | K129: 0 | L129: 122
A130: 12 | B130: 15456 | C130: 24 | D130: 15475 | E130: 24 | F130: 15479 | K130: 0 | L130: 122
A131: 12 | B131: 15580 | C131: 24 | D131: 15599 | E131: 24 | F131: 15614 | K131: 0 | L131: 122
A132: 12 | B132: 15714 | C132: 24 | D132: 15727 | E132: 24 | F132: 15738 | K132: 0 | L132: 122
A133: 21 | B133: 15858 | C133: 22 | D133: 15866 | E133: 24 | F133: 15875 | K133: 0 | L133: 222
A134: 21 | B134: 15980 | C134: 22 | D134: 15989 | E134: 24 | F134: 15996 | K134: 0 | L134: 222
A135: 21 | B135: 16115 | C135: 22 | D135: 16127 | E135: 24 | F135: 16154 | K135: 0 | L135: 222
A136: 21 | B136: 16264 | C136: 22 | D136: 16269 | E136: 24 | F136: 16277 | K136: 0 | L136: 222
A137: 21 | B137: 16408 | C137: 22 | D137: 16424 | E137: 24 | F137: 16432 | K137: 0 | L137: 222
A138: 12 | B138: 16532 | C138: 24 | D138: 16551 | E138: 24 | F138: 16559 | K138: 0 | L138: 122
A139: 12 | B139: 16658 | C139: 24 | D139: 16667 | E139: 24 | F139: 16673 | K139: 0 | L139: 122
A140: 12 | B140: 16771 | C140: 24 | D140: 16796 | E140: 24 | F140: 16805 | K140: 0 | L140: 122
A141: 12 | B141: 16909 | C141: 24 | D141: 16931 | E141: 24 | F141: 16939 | K141: 0 | L141: 122
A142: 12 | B142: 17036 | C142: 24 | D142: 17050 | E142: 24 | F142: 17056 | K142: 0 | L142: 122
A143: 12 | B143: 17153 | C143: 24 | D143: 17176 | E143: 24 | F143: 17183 | K143: 0 | L143: 122
A144: 12 | B144: 17283 | C144: 24 | D144: 17303 | E144: 24 | F144: 17316 | K144: 0 | L144: 122
A145: 12 | B145: 17427 | C145: 24 | D145: 17440 | E145: 24 | F145: 17448 | K145: 0 | L145: 122
A146: 12 | B146: 17547 | C146: 24 | D146: 17567 | E146: 24 | F146: 17575 | K146: 0 | L146: 122
A147: 12 | B147: 17665 | C147: 24 | D147: 17677 | E147: 24 | F147: 17685 | K147: 0 | L147: 122
A148: 21 | B148: 17794 | C148: 22 | D148: 17800 | E148: 24 | F148: 17808 | K148: 0 | L148: 222
A149: 12 | B149: 17908 | C149: 24 | D149: 17919 | E149: 24 | F149: 17930 | K149: 0 | L149: 122
A150: 12 | B150: 18023 | C150: 13 | D150: 18034 | E150: 24 | F150: 18047 | K150: 0 | L150: 112
A151: 12 | B151: 18146 | C151: 24 | D151: 18162 | E151: 24 | F151: 18173 | K151: 0 | L151: 122
A152: 12 | B152: 18265 | C152: 24 | D152: 18277 | E152: 24 | F152: 18283 | K152: 0 | L152: 122
A153: 12 | B153: 18381 | C153: 24 | D153: 18393 | E153: 24 | F153: 18400 | K153: 0 | L153: 122
A154: 12 | B154: 18499 | C154: 24 | D154: 18510 | E154: 24 | F154: 18517 | K154: 0 | L154: 122
A155: 12 | B155: 18617 | C155: 24 | D155: 18628 | E155: 24 | F155: 18633 | K155: 0 | L155: 122
A156: 12 | B156: 18731 | C156: 24 | D156: 18747 | E156: 24 | F156: 18752 | K156: 0 | L156: 122
A157: 12 | B157: 18854 | C157: 24 | D157: 18869 | E157: 24 | F157: 18874 | K157: 0 | L157: 122
A158: 12 | B158: 18969 | C158: 24 | D158: 18981 | E158: 24 | F158: 18990 | K158: 0 | L158: 122
A159: 21 | B159: 19102 | C159: 22 | D159: 19109 | E159: 24 | F159: 19117 | K159: 0 | L159: 222
A160: 12 | B160: 19210 | C160: 24 | D160: 19227 | E160: 24 | F160: 19234 | K160: 0 | L160: 122
A161: 12 | B161: 19332 | C161: 24 | D161: 19343 | E161: 24 | F161: 19350 | K161: 0 | L161: 122
A162: 12 | B162: 19447 | C162: 24 | D162: 19458 | E162: 24 | F162: 19464 | K162: 0 | L162: 122
A163: 12 | B163: 19560 | C163: 24 | D163: 19578 | E163: 24 | F163: 19585 | K163: 0 | L163: 122
A164: 12 | B164: 19690 | C164: 24 | D164: 19714 | E164: 24 | F164: 19733 | K164: 0 | L164: 122
A165: 12 | B165: 19831 | C165: 24 | D165: 19844 | E165: 24 | F165: 19850 | K165: 0 | L165: 122
A166: 12 | B166: 19951 | C166: 24 | D166: 19964 | E166: 24 | F166: 19969 | K166: 0 | L166: 122
A167: 21 | B167: 20077 | C167: 22 | D167: 20082 | E167: 24 | F167: 20093 | K167: 0 | L167: 222
A168: 12 | B168: 20189 | C168: 24 | D168: 20205 | E168: 24 | F168: 20210 | K168: 0 | L168: 122
A169: 12 | B169: 20305 | C169: 24 | D169: 20321 | E169: 24 | F169: 20335 | K169: 0 | L169: 122
A170: 12 | B170: 20433 | C170: 24 | D170: 20451 | E170: 24 | F170: 20498 | K170: 0 | L170: 122
A171: 12 | B171: 20590 | C171: 24 | D171: 20609 | E171: 24 | F171: 20617 | K171: 0 | L171: 122
A172: 12 | B172: 20715 | C172: 24 | D172: 20727 | E172: 24 | F172: 20733 | K172: 0 | L172: 122
A173: 12 | B173: 20834 | C173: 24 | D173: 20846 | E173: 24 | F173: 20852 | K173: 0 | L173: 122
A174: 12 | B174: 20952 | C174: 24 | D174: 20969 | E174: 24 | F174: 20977 | K174: 0 | L174: 122
A175: 12 | B175: 21079 | C175: 24 | D175: 21091 | E175: 24 | F175: 21099 | K175: 0 | L175: 122
A176: 21 | B176: 21209 | C176: 22 | D176: 21215 | E176: 24 | F176: 21231 | K176: 0 | L176: 222
A177: 21 | B177: 21342 | C177: 22 | D177: 21349 | E177: 24 | F177: 21359 | K177: 0 | L177: 222
A178: 21 | B178: 21468 | C178: 22 | D178: 21484 | E178: 24 | F178: 21491 | K178: 0 | L178: 222
A179: 12 | B179: 21592 | C179: 24 | D179: 21603 | E179: 24 | F179: 21611 | K179: 0 | L179: 122
A180: 12 | B180: 21703 | C180: 24 | D180: 21720 | E180: 24 | F180: 21730 | K180: 0 | L180: 122
A181: 12 | B181: 21830 | C181: 24 | D181: 21841 | E181: 24 | F181: 21849 | K181: 0 | L181: 122
A182: 12 | B182: 21945 | C182: 24 | D182: 21971 | E182: 24 | F182: 21980 | K182: 0 | L182: 122
A183: 12 | B183: 22079 | C183: 24 | D183: 22091 | E183: 24 | F183: 22103 | K183: 0 | L183: 122
A184: 21 | B184: 22206 | C184: 22 | D184: 22213 | E184: 24 | F184: 22220 | K184: 0 | L184: 222
A185: 21 | B185: 22333 | C185: 22 | D185: 22338 | E185: 24 | F185: 22351 | K185: 0 | L185: 222
A186: 12 | B186: 22449 | C186: 24 | D186: 22462 | E186: 24 | F186: 22469 | K186: 0 | L186: 122
A187: 21 | B187: 22578 | C187: 22 | D187: 22587 | E187: 24 | F187: 22596 | K187: 0 | L187: 222
A188: 12 | B188: 22691 | C188: 24 | D188: 22708 | E188: 24 | F188: 22716 | K188: 0 | L188: 122
A189: 12 | B189: 22810 | C189: 13 | D189: 22819 | E189: 24 | F189: 22838 | K189: 0 | L189: 112
A190: 21 | B190: 22950 | C190: 22 | D190: 22955 | E190: 24 | F190: 22966 | K190: 0 | L190: 222
A191: 21 | B191: 23083 | C191: 22 | D191: 23100 | E191: 24 | F191: 23112 | K191: 0 | L191: 222
A192: 21 | B192: 23228 | C192: 22 | D192: 23236 | E192: 24 | F192: 23243 | K192: 0 | L192: 222
A193: 12 | B193: 23340 | C193: 24 | D193: 23352 | E193: 24 | F193: 23359 | K193: 0 | L193: 122
A194: 12 | B194: 23461 | C194: 24 | D194: 23470 | E194: 24 | F194: 23479 | K194: 0 | L194: 122
A195: 12 | B195: 23588 | C195: 24 | D195: 23600 | E195: 24 | F195: 23610 | K195: 0 | L195: 122
A196: 12 | B196: 23706 | C196: 24 | D196: 23718 | E196: 24 | F196: 23724 | K196: 0 | L196: 122
A197: 12 | B197: 23821 | C197: 24 | D197: 23846 | E197: 24 | F197: 23856 | K197: 0 | L197: 122
A198: 21 | B198: 23961 | C198: 22 | D198: 23971 | E198: 24 | F198: 23978 | L198: 222

Sheet !M901740.101
A1: Report for:!M901740.101
A2: Date: | B2: <date>
A3: Hen: | B3: <hen> | F3: Correct Sequence | G3: =Start!J2 -> 211 | P3: Total Sequences in Data | Q3: =4994-COUNTBLANK(L7:L5000) -> 180 | V3: Total Sequences in Block Data | W3: =COUNTA(L7:L36) -> 30 | AA3: Total Sequences in Block Data | AB3: =COUNTA(L37:L66) -> 30 | AF3: Total Sequences in Block Data | AG3: =COUNTA(L67:L96) -> 30 | AK3: Total Sequences in Block Data | AL3: =COUNTA(L97:L126) -> 30 | AP3: Total Sequences in Block Data | AQ3: =COUNTA(L127:L156) -> 30 | AU3: Total Sequences in Block Data | AV3: =COUNTA(L157:L186) -> 30
P4: Total Sequences in Summary | Q4: =SUM(O7:O14) -> 180 | V4: Total Sequences in Block Summary | W4: =SUM(U7:U14) -> 30 | AA4: Total Sequences in Block Summary | AB4: =SUM(Z7:Z14) -> 30 | AF4: Total Sequences in Block Summary | AG4: =SUM(AE7:AE14) -> 30 | AK4: Total Sequences in Block Summary | AL4: =SUM(AJ7:AJ14) -> 30 | AP4: Total Sequences in Block Summary | AQ4: =SUM(AO7:AO14) -> 30 | AU4: Total Sequences in Block Summary | AV4: =SUM(AT7:AT14) -> 30
T5: Block 1 | Y5: Block 2 | AD5: Block 3 | AI5: Block 4 | AN5: Block 5 | AS5: Block 6
A6: Sequence Component 1 | B6: Time 1 | C6: Sequence Component 2 | D6: Time 2 | E6: Sequence Component 3 | F6: Time 3 | G6: Sequence Component 4 | H6: Time 4 | I6: Sequence Component 5 | J6: Time 5 | K6: Correct? 0=No 1=Yes | L6: Sequence | N6: Frequency | P6: Relative Frequency | Q6: Variability | T6: Frequency | V6: Relative Frequency | W6: Variability | Y6: Frequency | AA6: Relative Frequency | AB6: Variability | AD6: Frequency | AF6: Relative Frequency | AG6: Variability | AI6: Frequency | AK6: Relative Frequency | AL6: Variability | AN6: Frequency | AP6: Relative Frequency | AQ6: Variability | AS6: Frequency | AU6: Relative Frequency | AV6: Variability
A7: 12 | B7: 12 | C7: 24 | D7: 31 | E7: 24 | F7: 40 | K7: 0 | L7: 122 | N7: 111 | O7: =COUNTIF($L$7:$L$500,N7) -> 0 | P7: =O7/$Q$4 -> 0 | Q7: =IF(P7=0,0,(P7*((LOG(P7))/LOG(2)))) -> 0 | T7: =N7 -> 111 | U7: =COUNTIF(L7:L36,T7) -> 0 | V7: =U7/(W4-U11) -> 0 | W7: =IF(V7=0,0,(V7*((LOG(V7))/LOG(2)))) -> 0 | Y7: =N7 -> 111 | Z7: =COUNTIF(L37:L66,Y7) -> 0 | AA7: =Z7/(AB4-Z11) -> 0 | AB7: =IF(AA7=0,0,(AA7*((LOG(AA7))/LOG(2)))) -> 0 | AD7: =N7 -> 111 | AE7: =COUNTIF(L67:L96,AD7) -> 0 | AF7: =AE7/(AG4-AE11) -> 0 | AG7: =IF(AF7=0,0,(AF7*((LOG(AF7))/LOG(2)))) -> 0 | AI7: =N7 -> 111 | AJ7: =COUNTIF(L97:L126,AI7) -> 0 | AK7: =AJ7/(AL4-AJ11) -> 0 | AL7: =IF(AK7=0,0,(AK7*((LOG(AK7))/LOG(2)))) -> 0 | AN7: =N7 -> 111 | AO7: =COUNTIF(L127:L156,AN7) -> 0 | AP7: =AO7/(AQ4-AO11) -> 0 | AQ7: =IF(AP7=0,0,(AP7*((LOG(AP7))/LOG(2)))) -> 0 | AS7: =N7 -> 111 | AT7: =COUNTIF(L157:L186,AS7) -> 0 | AU7: =AT7/(AV4-AT11) -> 0 | AV7: =IF(AU7=0,0,(AU7*((LOG(AU7))/LOG(2)))) -> 0
A8: 12 | B8: 147 | C8: 24 | D8: 161 | E8: 24 | F8: 166 | K8: 0 | L8: 122 | N8: 112 | O8: =COUNTIF($L$7:$L$500,N8) -> 3 | P8: =O8/$Q$4 -> 0.01666666667 | Q8: =IF(P8=0,0,(P8*((LOG(P8))/LOG(2)))) -> -0.09844817659 | T8: =N8 -> 112 | U8: =COUNTIF(L7:L36,T8) -> 0 | V8: =U8/(W4-U11) -> 0 | W8: =IF(V8=0,0,(V8*((LOG(V8))/LOG(2)))) -> 0 | Y8: =N8 -> 112 | Z8: =COUNTIF(L37:L66,Y8) -> 2 | AA8: =Z8/(AB4-Z11) -> 0.06666666667 | AB8: =IF(AA8=0,0,(AA8*((LOG(AA8))/LOG(2)))) -> -0.260459373 | AD8: =N8 -> 112 | AE8: =COUNTIF(L67:L96,AD8) -> 0 | AF8: =AE8/(AG4-AE11) -> 0 | AG8: =IF(AF8=0,0,(AF8*((LOG(AF8))/LOG(2)))) -> 0 | AI8: =N8 -> 112 | AJ8: =COUNTIF(L97:L126,AI8) -> 0 | AK8: =AJ8/(AL4-AJ11) -> 0 | AL8: =IF(AK8=0,0,(AK8*((LOG(AK8))/LOG(2)))) -> 0 | AN8: =N8 -> 112 | AO8: =COUNTIF(L127:L156,AN8) -> 1 | AP8: =AO8/(AQ4-AO11) -> 0.03333333333 | AQ8: =IF(AP8=0,0,(AP8*((LOG(AP8))/LOG(2)))) -> -0.1635630199 | AS8: =N8 -> 112 | AT8: =COUNTIF(L157:L186,AS8) -> 0 | AU8: =AT8/(AV4-AT11) -> 0 | AV8: =IF(AU8=0,0,(AU8*((LOG(AU8))/LOG(2)))) -> 0
A9: 12 | B9: 267 | C9: 24 | D9: 279 | E9: 24 | F9: 285 | K9: 0 | L9: 122 | N9: 121 | O9: =COUNTIF($L$7:$L$500,N9) -> 0 | P9: =O9/$Q$4 -> 0 | Q9: =IF(P9=0,0,(P9*((LOG(P9))/LOG(2)))) -> 0 | T9: =N9 -> 121 | U9: =COUNTIF(L7:L36,T9) -> 0 | V9: =U9/(W4-U11) -> 0 | W9: =IF(V9=0,0,(V9*((LOG(V9))/LOG(2)))) -> 0 | Y9: =N9 -> 121 | Z9: =COUNTIF(L37:L66,Y9) -> 0 | AA9: =Z9/(AB4-Z11) -> 0 | AB9: =IF(AA9=0,0,(AA9*((LOG(AA9))/LOG(2)))) -> 0 | AD9: =N9 -> 121 | AE9: =COUNTIF(L67:L96,AD9) -> 0 | AF9: =AE9/(AG4-AE11) -> 0 | AG9: =IF(AF9=0,0,(AF9*((LOG(AF9))/LOG(2)))) -> 0 | AI9: =N9 -> 121 | AJ9: =COUNTIF(L97:L126,AI9) -> 0 | AK9: =AJ9/(AL4-AJ11) -> 0 | AL9: =IF(AK9=0,0,(AK9*((LOG(AK9))/LOG(2)))) -> 0 | AN9: =N9 -> 121 | AO9: =COUNTIF(L127:L156,AN9) -> 0 | AP9: =AO9/(AQ4-AO11) -> 0 | AQ9: =IF(AP9=0,0,(AP9*((LOG(AP9))/LOG(2)))) -> 0 | AS9: =N9 -> 121 | AT9: =COUNTIF(L157:L186,AS9) -> 0 | AU9: =AT9/(AV4-AT11) -> 0 | AV9: =IF(AU9=0,0,(AU9*((LOG(AU9))/LOG(2)))) -> 0
A10: 12 | B10: 383 | C10: 24 | D10: 396 | E10: 24 | F10: 402 | K10: 0 | L10: 122 | N10: 122 | O10: =COUNTIF($L$7:$L$500,N10) -> 121 | P10: =O10/$Q$4 -> 0.6722222222 | Q10: =IF(P10=0,0,(P10*((LOG(P10))/LOG(2)))) -> -0.3851765164 | T10: =N10 -> 122 | U10: =COUNTIF(L7:L36,T10) -> 27 | V10: =U10/(W4-U11) -> 0.9 | W10: =IF(V10=0,0,(V10*((LOG(V10))/LOG(2)))) -> -0.1368027841 | Y10: =N10 -> 122 | Z10: =COUNTIF(L37:L66,Y10) -> 22 | AA10: =Z10/(AB4-Z11) -> 0.7333333333 | AB10: =IF(AA10=0,0,(AA10*((LOG(AA10))/LOG(2)))) -> -0.3281365831 | AD10: =N10 -> 122 | AE10: =COUNTIF(L67:L96,AD10) -> 18 | AF10: =AE10/(AG4-AE11) -> 0.6 | AG10: =IF(AF10=0,0,(AF10*((LOG(AF10))/LOG(2)))) -> -0.4421793565 | AI10: =N10 -> 122 | AJ10: =COUNTIF(L97:L126,AI10) -> 22 | AK10: =AJ10/(AL4-AJ11) -> 0.7333333333 | AL10: =IF(AK10=0,0,(AK10*((LOG(AK10))/LOG(2)))) -> -0.3281365831 | AN10: =N10 -> 122 | AO10: =COUNTIF(L127:L156,AN10) -> 16 | AP10: =AO10/(AQ4-AO11) -> 0.5333333333 | AQ10: =IF(AP10=0,0,(AP10*((LOG(AP10))/LOG(2)))) -> -0.4836749843 | AS10: =N10 -> 122 | AT10: =COUNTIF(L157:L186,AS10) -> 16 | AU10: =AT10/(AV4-AT11) -> 0.5333333333 | AV10: =IF(AU10=0,0,(AU10*((LOG(AU10))/LOG(2)))) -> -0.4836749843
A11: 12 | B11: 503 | C11: 24 | D11: 516 | E11: 24 | F11: 521 | K11: 0 | L11: 122 | N11: 211 | O11: =COUNTIF($L$7:$L$500,N11) -> 0 | P11: =O11/$Q$4 -> 0 | Q11: =IF(P11=0,0,(P11*((LOG(P11))/LOG(2)))) -> 0 | T11: =N11 -> 211 | U11: =COUNTIF(L7:L36,T11) -> 0 | Y11: =N11 -> 211 | Z11: =COUNTIF(L37:L66,Y11) -> 0 | AD11: =N11 -> 211 | AE11: =COUNTIF(L67:L96,AD11) -> 0 | AI11: =N11 -> 211 | AJ11: =COUNTIF(L97:L126,AI11) -> 0 | AN11: =N11 -> 211 | AO11: =COUNTIF(L127:L156,AN11) -> 0 | AS11: =N11 -> 211 | AT11: =COUNTIF(L157:L186,AS11) -> 0
A12: 12 | B12: 622 | C12: 24 | D12: 635 | E12: 24 | F12: 641 | K12: 0 | L12: 122 | N12: 212 | O12: =COUNTIF($L$7:$L$500,N12) -> 0 | P12: =O12/$Q$4 -> 0 | Q12: =IF(P12=0,0,(P12*((LOG(P12))/LOG(2)))) -> 0 | T12: =N12 -> 212 | U12: =COUNTIF(L7:L36,T12) -> 0 | V12: =U12/(W4-U11) -> 0 | W12: =IF(V12=0,0,(V12*((LOG(V12))/LOG(2)))) -> 0 | Y12: =N12 -> 212 | Z12: =COUNTIF(L37:L66,Y12) -> 0 | AA12: =Z12/(AB4-Z11) -> 0 | AB12: =IF(AA12=0,0,(AA12*((LOG(AA12))/LOG(2)))) -> 0 | AD12: =N12 -> 212 | AE12: =COUNTIF(L67:L96,AD12) -> 0 | AF12: =AE12/(AG4-AE11) -> 0 | AG12: =IF(AF12=0,0,(AF12*((LOG(AF12))/LOG(2)))) -> 0 | AI12: =N12 -> 212 | AJ12: =COUNTIF(L97:L126,AI12) -> 0 | AK12: =AJ12/(AL4-AJ11) -> 0 | AL12: =IF(AK12=0,0,(AK12*((LOG(AK12))/LOG(2)))) -> 0 | AN12: =N12 -> 212 | AO12: =COUNTIF(L127:L156,AN12) -> 0 | AP12: =AO12/(AQ4-AO11) -> 0 | AQ12: =IF(AP12=0,0,(AP12*((LOG(AP12))/LOG(2)))) -> 0 | AS12: =N12 -> 212 | AT12: =COUNTIF(L157:L186,AS12) -> 0 | AU12: =AT12/(AV4-AT11) -> 0 | AV12: =IF(AU12=0,0,(AU12*((LOG(AU12))/LOG(2)))) -> 0
A13: 21 | B13: 745 | C13: 22 | D13: 751 | E13: 24 | F13: 758 | K13: 0 | L13: 222 | N13: 221 | O13: =COUNTIF($L$7:$L$500,N13) -> 0 | P13: =O13/$Q$4 -> 0 | Q13: =IF(P13=0,0,(P13*((LOG(P13))/LOG(2)))) -> 0 | T13: =N13 -> 221 | U13: =COUNTIF(L7:L36,T13) -> 0 | V13: =U13/(W4-U11) -> 0 | W13: =IF(V13=0,0,(V13*((LOG(V13))/LOG(2)))) -> 0 | Y13: =N13 -> 221 | Z13: =COUNTIF(L37:L66,Y13) -> 0 | AA13: =Z13/(AB4-Z11) -> 0 | AB13: =IF(AA13=0,0,(AA13*((LOG(AA13))/LOG(2)))) -> 0 | AD13: =N13 -> 221 | AE13: =COUNTIF(L67:L96,AD13) -> 0 | AF13: =AE13/(AG4-AE11) -> 0 | AG13: =IF(AF13=0,0,(AF13*((LOG(AF13))/LOG(2)))) -> 0 | AI13: =N13 -> 221 | AJ13: =COUNTIF(L97:L126,AI13) -> 0 | AK13: =AJ13/(AL4-AJ11) -> 0 | AL13: =IF(AK13=0,0,(AK13*((LOG(AK13))/LOG(2)))) -> 0 | AN13: =N13 -> 221 | AO13: =COUNTIF(L127:L156,AN13) -> 0 | AP13: =AO13/(AQ4-AO11) -> 0 | AQ13: =IF(AP13=0,0,(AP13*((LOG(AP13))/LOG(2)))) -> 0 | AS13: =N13 -> 221 | AT13: =COUNTIF(L157:L186,AS13) -> 0 | AU13: =AT13/(AV4-AT11) -> 0 | AV13: =IF(AU13=0,0,(AU13*((LOG(AU13))/LOG(2)))) -> 0
A14: 12 | B14: 856 | C14: 24 | D14: 867 | E14: 24 | F14: 873 | K14: 0 | L14: 122 | N14: 222 | O14: =COUNTIF($L$7:$L$500,N14) -> 56 | P14: =O14/$Q$4 -> 0.3111111111 | Q14: =IF(P14=0,0,(P14*((LOG(P14))/LOG(2)))) -> -0.5240660987 | T14: =N14 -> 222 | U14: =COUNTIF(L7:L36,T14) -> 3 | V14: =U14/(W4-U11) -> 0.1 | W14: =IF(V14=0,0,(V14*((LOG(V14))/LOG(2)))) -> -0.3321928095 | Y14: =N14 -> 222 | Z14: =COUNTIF(L37:L66,Y14) -> 6 | AA14: =Z14/(AB4-Z11) -> 0.2 | AB14: =IF(AA14=0,0,(AA14*((LOG(AA14))/LOG(2)))) -> -0.464385619 | AD14: =N14 -> 222 | AE14: =COUNTIF(L67:L96,AD14) -> 12 | AF14: =AE14/(AG4-AE11) -> 0.4 | AG14: =IF(AF14=0,0,(AF14*((LOG(AF14))/LOG(2)))) -> -0.528771238 | AI14: =N14 -> 222 | AJ14: =COUNTIF(L97:L126,AI14) -> 8 | AK14: =AJ14/(AL4-AJ11) -> 0.2666666667 | AL14: =IF(AK14=0,0,(AK14*((LOG(AK14))/LOG(2)))) -> -0.5085041588 | AN14: =N14 -> 222 | AO14: =COUNTIF(L127:L156,AN14) -> 13 | AP14: =AO14/(AQ4-AO11) -> 0.4333333333 | AQ14: =IF(AP14=0,0,(AP14*((LOG(AP14))/LOG(2)))) -> -0.5227953802 | AS14: =N14 -> 222 | AT14: =COUNTIF(L157:L186,AS14) -> 14 | AU14: =AT14/(AV4-AT11) -> 0.4666666667 | AV14: =IF(AU14=0,0,(AU14*((LOG(AU14))/LOG(2)))) -> -0.5131166477
A15: 12 | B15: 974 | C15: 24 | D15: 987 | E15: 24 | F15: 993 | K15: 0 | L15: 122 | P15: =SUM(P7:P14) -> 1 | Q15: =-SUM(Q7:Q14) -> 1.007690792 | V15: =SUM(V7:V14) -> 1 | W15: =-SUM(W7:W14) -> 0.4689955936 | AA15: =SUM(AA7:AA14) -> 1 | AB15: =-SUM(AB7:AB14) -> 1.052981575 | AF15: =SUM(AF7:AF14) -> 1 | AG15: =-SUM(AG7:AG14) -> 0.9709505945 | AK15: =SUM(AK7:AK14) -> 1 | AL15: =-SUM(AL7:AL14) -> 0.8366407419 | AP15: =SUM(AP7:AP14) -> 1 | AQ15: =-SUM(AQ7:AQ14) -> 1.170033384 | AU15: =SUM(AU7:AU14) -> 1 | AV15: =-SUM(AV7:AV14) -> 0.996791632
A16: 21 | B16: 1096 | C16: 22 | D16: 1102 | E16: 24 | F16: 1111 | K16: 0 | L16: 222 | P16: U= | Q16: =Q15/(LOG(Q4)/LOG(2)) -> 0.1345048787 | V16: U1= | W16: =W15/(LOG(W4)/LOG(2)) -> 0.09557897908 | AA16: U2= | AB16: =AB15/(LOG(AB4)/LOG(2)) -> 0.2145924297 | AF16: U3= | AG16: =AG15/(LOG(AG4)/LOG(2)) -> 0.1978749221 | AK16: U4= | AL16: =AL15/(LOG(AL4)/LOG(2)) -> 0.1705032394 | AP16: U5= | AQ16: =AQ15/(LOG(AQ4)/LOG(2)) -> 0.2384470087 | AU16: U6= | AV16: =AV15/(LOG(AV4)/LOG(2)) -> 0.2031411976
A17: 12 | B17: 1210 | C17: 24 | D17: 1222 | E17: 24 | F17: 1228 | K17: 0 | L17: 122
A18: 12 | B18: 1325 | C18: 24 | D18: 1342 | E18: 24 | F18: 1374 | K18: 0 | L18: 122
A19: 12 | B19: 1474 | C19: 24 | D19: 1506 | E19: 24 | F19: 1514 | K19: 0 | L19: 122 | N19: Total Target Seq
A20: 12 | B20: 1620 | C20: 24 | D20: 1633 | E20: 24 | F20: 1638 | K20: 0 | L20: 122 | N20: =COUNTIF(L7:L186,G3) -> 0 | P20: 30 | Q20: 30 | R20: 30 | S20: 30 | T20: 30 | U20: 30
A21: 12 | B21: 1739 | C21: 24 | D21: 1749 | E21: 24 | F21: 1755 | K21: 0 | L21: 122 | P21: % of reinforcement given in 6 equal intervals based on number of trials
A22: 12 | B22: 1855 | C22: 24 | D22: 1880 | E22: 24 | F22: 1895 | K22: 0 | L22: 122 | P22: %_1 | Q22: %_2 | R22: %_3 | S22: %_4 | T22: %_5 | U22: %_6
A23: 12 | B23: 1997 | C23: 24 | D23: 2015 | E23: 24 | F23: 2029 | K23: 0 | L23: 122 | O23: target sequence | P23: =$G$3 -> 211 | Q23: =$G$3 -> 211 | R23: =$G$3 -> 211 | S23: =$G$3 -> 211 | T23: =$G$3 -> 211 | U23: =$G$3 -> 211
A24: 12 | B24: 2127 | C24: 24 | D24: 2145 | E24: 24 | F24: 2150 | K24: 0 | L24: 122 | O24: total reinforcement | P24: =U11 -> 0 | Q24: =Z11 -> 0 | R24: =AE11 -> 0 | S24: =AJ11 -> 0 | T24: =AO11 -> 0 | U24: =AT11 -> 0
A25: 12 | B25: 2245 | C25: 24 | D25: 2265 | E25: 24 | F25: 2272 | K25: 0 | L25: 122 | O25: % target
A26: 12 | B26: 2365 | C26: 24 | D26: 2378 | E26: 24 | F26: 2394 | K26: 0 | L26: 122 | O26: CCRF
A27: 12 | B27: 2492 | C27: 24 | D27: 2502 | E27: 24 | F27: 2508 | K27: 0 | L27: 122 | O27: % CCRf
A28: 12 | B28: 2614 | C28: 24 | D28: 2627 | E28: 24 | F28: 2641 | K28: 0 | L28: 122 | O28: average response rate | P28: =F36/P20 -> 122.4333333 | Q28: =(F66-F36)/Q20 -> 126.5 | R28: =(F96-F66)/R20 -> 136.5333333 | S28: =(F126-F96)/S20 -> 145.5 | T28: =(F156-F126)/T20 -> 133.1666667 | U28: =(F186-F156)/U20 -> 135.0666667
A29: 21 | B29: 2761 | C29: 22 | D29: 2769 | E29: 24 | F29: 2821 | K29: 0 | L29: 222
A30: 12 | B30: 2920 | C30: 24 | D30: 2934 | E30: 24 | F30: 2950 | K30: 0 | L30: 122
A31: 12 | B31: 3045 | C31: 24 | D31: 3068 | E31: 24 | F31: 3086 | K31: 0 | L31: 122
A32: 12 | B32: 3181 | C32: 24 | D32: 3198 | E32: 24 | F32: 3204 | K32: 0 | L32: 122
A33: 12 | B33: 3303 | C33: 24 | D33: 3315 | E33: 24 | F33: 3321 | K33: 0 | L33: 122
A34: 12 | B34: 3420 | C34: 24 | D34: 3429 | E34: 24 | F34: 3435 | K34: 0 | L34: 122
A35: 12 | B35: 3533 | C35: 24 | D35: 3546 | E35: 24 | F35: 3551 | K35: 0 | L35: 122
A36: 12 | B36: 3651 | C36: 24 | D36: 3661 | E36: 24 | F36: 3673 | K36: 0 | L36: 122
A37: 12 | B37: 3770 | C37: 24 | D37: 3787 | E37: 24 | F37: 3795 | K37: 0 | L37: 122
A38: 12 | B38: 3894 | C38: 24 | D38: 3912 | E38: 24 | F38: 3927 | K38: 0 | L38: 122
A39: 12 | B39: 4023 | C39: 24 | D39: 4036 | E39: 24 | F39: 4041 | K39: 0 | L39: 122
A40: 12 | B40: 4138 | C40: 24 | D40: 4162 | E40: 24 | F40: 4170 | K40: 0 | L40: 122
A41: 12 | B41: 4267 | C41: 24 | D41: 4283 | E41: 24 | F41: 4290 | K41: 0 | L41: 122
A42: 12 | B42: 4390 | C42: 24 | D42: 4406 | E42: 24 | F42: 4411 | K42: 0 | L42: 122
A43: 12 | B43: 4506 | C43: 24 | D43: 4524 | E43: 24 | F43: 4544 | K43: 0 | L43: 122
A44: 21 | B44: 4663 | C44: 22 | D44: 4681 | E44: 24 | F44: 4697 | K44: 0 | L44: 222
A45: 21 | B45: 4842 | C45: 22 | D45: 4848 | E45: 24 | F45: 4856 | K45: 0 | L45: 222
A46: 12 | B46: 4956 | C46: 24 | D46: 4980 | E46: 24 | F46: 4990 | K46: 0 | L46: 122
A47: 12 | B47: 5093 | C47: 13 | D47: 5099 | E47: 24 | F47: 5111 | K47: 0 | L47: 112
A48: 12 | B48: 5208 | C48: 24 | D48: 5222 | E48: 24 | F48: 5234 | K48: 0 | L48: 122
A49: 12 | B49: 5327 | C49: 24 | D49: 5339 | E49: 24 | F49: 5345 | K49: 0 | L49: 122
A50: 12 | B50: 5440 | C50: 24 | D50: 5453 | E50: 24 | F50: 5459 | K50: 0 | L50: 122
A51: 12 | B51: 5564 | C51: 24 | D51: 5576 | E51: 24 | F51: 5582 | K51: 0 | L51: 122
A52: 12 | B52: 5679 | C52: 24 | D52: 5697 | E52: 24 | F52: 5716 | K52: 0 | L52: 122
A53: 12 | B53: 5819 | C53: 24 | D53: 5829 | E53: 24 | F53: 5841 | K53: 0 | L53: 122
A54: 12 | B54: 5937 | C54: 24 | D54: 5948 | E54: 24 | F54: 5954 | K54: 0 | L54: 122
A55: 12 | B55: 6053 | C55: 24 | D55: 6071 | E55: 24 | F55: 6076 | K55: 0 | L55: 122
A56: 12 | B56: 6173 | C56: 24 | D56: 6186 | E56: 24 | F56: 6192 | K56: 0 | L56: 122
A57: 12 | B57: 6292 | C57: 24 | D57: 6309 | E57: 24 | F57: 6317 | K57: 0 | L57: 122
A58: 21 | B58: 6435 | C58: 22 | D58: 6439 | E58: 24 | F58: 6452 | K58: 0 | L58: 222
A59: 21 | B59: 6571 | C59: 22 | D59: 6593 | E59: 24 | F59: 6615 | K59: 0 | L59: 222
A60: 21 | B60: 6728 | C60: 22 | D60: 6737 | E60: 24 | F60: 6749 | K60: 0 | L60: 222
A61: 21 | B61: 6857 | C61: 22 | D61: 6862 | E61: 24 | F61: 6867 | K61: 0 | L61: 222
A62: 12 | B62: 6964 | C62: 13 | D62: 6968 | E62: 24 | F62: 6986 | K62: 0 | L62: 112
A63: 12 | B63: 7082 | C63: 24 | D63: 7096 | E63: 24 | F63: 7101 | K63: 0 | L63: 122
A64: 12 | B64: 7202 | C64: 24 | D64: 7212 | E64: 24 | F64: 7218 | K64: 0 | L64: 122
A65: 12 | B65: 7317 | C65: 24 | D65: 7335 | E65: 24 | F65: 7342 | K65: 0 | L65: 122
A66: 12 | B66: 7445 | C66: 24 | D66: 7463 | E66: 24 | F66: 7468 | K66: 0 | L66: 122
A67: 12 | B67: 7563 | C67: 24 | D67: 7576 | E67: 24 | F67: 7582 | K67: 0 | L67: 122
A68: 12 | B68: 7683 | C68: 24 | D68: 7699 | E68: 24 | F68: 7707 | K68: 0 | L68: 122
A69: 21 | B69: 7829 | C69: 22 | D69: 7837 | E69: 24 | F69: 7853 | K69: 0 | L69: 222
A70: 21 | B70: 7981 | C70: 22 | D70: 7986 | E70: 24 | F70: 7994 | K70: 0 | L70: 222
A71: 12 | B71: 8094 | C71: 24 | D71: 8107 | E71: 24 | F71: 8113 | K71: 0 | L71: 122
A72: 12 | B72: 8205 | C72: 24 | D72: 8225 | E72: 24 | F72: 8230 | K72: 0 | L72: 122
A73: 12 | B73: 8329 | C73: 24 | D73: 8346 | E73: 24 | F73: 8357 | K73: 0 | L73: 122
A74: 12 | B74: 8457 | C74: 24 | D74: 8476 | E74: 24 | F74: 8492 | K74: 0 | L74: 122
A75: 21 | B75: 8611 | C75: 22 | D75: 8616 | E75: 24 | F75: 8622 | K75: 0 | L75: 222
A76: 12 | B76: 8720 | C76: 24 | D76: 8739 | E76: 24 | F76: 8747 | K76: 0 | L76: 122
A77: 12 | B77: 8849 | C77: 24 | D77: 8873 | E77: 24 | F77: 8882 | K77: 0 | L77: 122
A78: 12 | B78: 8977 | C78: 24 | D78: 8989 | E78: 24 | F78: 8995 | K78: 0 | L78: 122
A79: 12 | B79: 9094 | C79: 24 | D79: 9117 | E79: 24 | F79: 9125 | K79: 0 | L79: 122
A80: 12 | B80: 9215 | C80: 24 | D80: 9234 | E80: 24 | F80: 9256 | K80: 0 | L80: 122
A81: 21 | B81: 9385 | C81: 22 | D81: 9392 | E81: 24 | F81: 9424 | K81: 0 | L81: 222
A82: 12 | B82: 9525 | C82: 24 | D82: 9538 | E82: 24 | F82: 9550 | K82: 0 | L82: 122
A83: 12 | B83: 9649 | C83: 24 | D83: 9666 | E83: 24 | F83: 9677 | K83: 0 | L83: 122
A84: 12 | B84: 9776 | C84: 24 | D84: 9814 | E84: 24 | F84: 9823 | K84: 0 | L84: 122
A85: 12 | B85: 9920 | C85: 24 | D85: 9940 | E85: 24 | F85: 9946 | K85: 0 | L85: 122
A86: 21 | B86: 10060 | C86: 22 | D86: 10081 | E86: 24 | F86: 10089 | K86: 0 | L86: 222
A87: 12 | B87: 10184 | C87: 24 | D87: 10207 | E87: 24 | F87: 10221 | K87: 0 | L87: 122
A88: 21 | B88: 10335 | C88: 22 | D88: 10343 | E88: 24 | F88: 10350 | K88: 0 | L88: 222
A89: 21 | B89: 10484 | C89: 22 | D89: 10494 | E89: 24 | F89: 10502 | K89: 0 | L89: 222
A90: 12 | B90: 10606 | C90: 24 | D90: 10625 | E90: 24 | F90: 10631 | K90: 0 | L90: 122
A91: 21 | B91: 10746 | C91: 22 | D91: 10760 | E91: 24 | F91: 10796 | K91: 0 | L91: 222
A92: 21 | B92: 10922 | C92: 22 | D92: 10938 | E92: 24 | F92: 10952 | K92: 0 | L92: 222
A93: 12 | B93: 11054 | C93: 24 | D93: 11094 | E93: 24 | F93: 11111 | K93: 0 | L93: 122
A94: 21 | B94: 11264 | C94: 22 | D94: 11274 | E94: 24 | F94: 11284 | K94: 0 | L94: 222
A95: 21 | B95: 11394 | C95: 22 | D95: 11421 | E95: 24 | F95: 11430 | K95: 0 | L95: 222
A96: 21 | B96: 11547 | C96: 22 | D96: 11558 | E96: 24 | F96: 11564 | K96: 0 | L96: 222
A97: 12 | B97: 11662 | C97: 24 | D97: 11680 | E97: 24 | F97: 11686 | K97: 0 | L97: 122
A98: 21 | B98: 11817 | C98: 22 | D98: 11825 | E98: 24 | F98: 11887 | K98: 0 | L98: 222
A99: 12 | B99: 11987 | C99: 24 | D99: 12012 | E99: 24 | F99: 12021 | K99: 0 | L99: 122
A100: 21 | B100: 12165 | C100: 22 | D100: 12173 | E100: 24 | F100: 12208 | K100: 0 | L100: 222
A101: 12 | B101: 12308 | C101: 24 | D101: 12356 | E101: 24 | F101: 12382 | K101: 0 | L101: 122
A102: 21 | B102: 12497 | C102: 22 | D102: 12524 | E102: 24 | F102: 12533 | K102: 0 | L102: 222
A103: 12 | B103: 12632 | C103: 24 | D103: 12666 | E103: 24 | F103: 12680 | K103: 0 | L103: 122
A104: 12 | B104: 12776 | C104: 24 | D104: 12801 | E104: 24 | F104: 12831 | K104: 0 | L104: 122
A105: 21 | B105: 12943 | C105: 22 | D105: 12960 | E105: 24 | F105: 12970 | K105: 0 | L105: 222
A106: 12 | B106: 13067 | C106: 24 | D106: 13091 | E106: 24 | F106: 13099 | K106: 0 | L106: 122
A107: 12 | B107: 13199 | C107: 24 | D107: 13224 | E107: 24 | F107: 13233 | K107: 0 | L107: 122
A108: 21 | B108: 13338 | C108: 22 | D108: 13349 | E108: 24 | F108: 13356 | K108: 0 | L108: 222
A109: 12 | B109: 13457 | C109: 24 | D109: 13473 | E109: 24 | F109: 13480 | K109: 0 | L109: 122
A110: 12 | B110: 13578 | C110: 24 | D110: 13601 | E110: 24 | F110: 13616 | K110: 0 | L110: 122
A111: 12 | B111: 13716 | C111: 24 | D111: 13733 | E111: 24 | F111: 13784 | K111: 0 | L111: 122
A112: 12 | B112: 13884 | C112: 24 | D112: 13903 | E112: 24 | F112: 13924 | K112: 0 | L112: 122
A113: 12 | B113: 14019 | C113: 24 | D113: 14036 | E113: 24 | F113: 14061 | K113: 0 | L113: 122
A114: 12 | B114: 14164 | C114: 24 | D114: 14179 | E114: 24 | F114: 14193 | K114: 0 | L114: 122
A115: 12 | B115: 14294 | C115: 24 | D115: 14311 | E115: 24 | F115: 14317 | K115: 0 | L115: 122
A116: 12 | B116: 14416 | C116: 24 | D116: 14429 | E116: 24 | F116: 14446 | K116: 0 | L116: 122
A117: 12 | B117: 14546 | C117: 24 | D117: 14579 | E117: 24 | F117: 14612 | K117: 0 | L117: 122
A118: 12 | B118: 14710 | C118: 24 | D118: 14728 | E118: 24 | F118: 14748 | K118: 0 | L118: 122
A119: 21 | B119: 14863 | C119: 22 | D119: 14893 | E119: 24 | F119: 14915 | K119: 0 | L119: 222
A120: 12 | B120: 15010 | C120: 24 | D120: 15041 | E120: 24 | F120: 15068 | K120: 0 | L120: 122
A121: 21 | B121: 15189 | C121: 22 | D121: 15194 | E121: 24 | F121: 15202 | K121: 0 | L121: 222
A122: 12 | B122: 15301 | C122: 24 | D122: 15319 | E122: 24 | F122: 15332 | K122: 0 | L122: 122
A123: 12 | B123: 15432 | C123: 24 | D123: 15445 | E123: 24 | F123: 15465 | K123: 0 | L123: 122
A124: 12 | B124: 15562 | C124: 24 | D124: 15603 | E124: 24 | F124: 15618 | K124: 0 | L124: 122
A125: 12 | B125: 15713 | C125: 24 | D125: 15768 | E125: 24 | F125: 15789 | K125: 0 | L125: 122
A126: 21 | B126: 15903 | C126: 22 | D126: 15914 | E126: 24 | F126: 15929 | K126: 0 | L126: 222
A127: 12 | B127: 16025 | C127: 24 | D127: 16042 | E127: 24 | F127: 16054 | K127: 0 | L127: 122
A128: 21 | B128: 16165 | C128: 22 | D128: 16170 | E128: 24 | F128: 16185 | K128: 0 | L128: 222
A129: 21 | B129: 16295 | C129: 22 | D129: 16325 | E129: 24 | F129: 16333 | K129: 0 | L129: 222
A130: 12 | B130: 16430 | C130: 24 | D130: 16454 | E130: 24 | F130: 16472 | K130: 0 | L130: 122
A131: 12 | B131: 16573 | C131: 13 | D131: 16583 | E131: 24 | F131: 16596 | K131: 0 | L131: 112
A132: 21 | B132: 16717 | C132: 22 | D132: 16722 | E132: 24 | F132: 16731 | K132: 0 | L132: 222
A133: 21 | B133: 16855 | C133: 22 | D133: 16870 | E133: 24 | F133: 16879 | K133: 0 | L133: 222
A134: 12 | B134: 16978 | C134: 24 | D134: 16999 | E134: 24 | F134: 17013 | K134: 0 | L134: 122
A135: 21 | B135: 17126 | C135: 22 | D135: 17133 | E135: 24 | F135: 17138 | K135: 0 | L135: 222
A136: 12 | B136: 17233 | C136: 24 | D136: 17250 | E136: 24 | F136: 17263 | K136: 0 | L136: 122
A137: 12 | B137: 17362 | C137: 24 | D137: 17372 | E137: 24 | F137: 17405 | K137: 0 | L137: 122
A138: 21 | B138: 17513 | C138: 22 | D138: 17520 | E138: 24 | F138: 17528 | K138: 0 | L138: 222
A139: 21 | B139: 17643 | C139: 22 | D139: 17650 | E139: 24 | F139: 17657 | K139: 0 | L139: 222
A140: 21 | B140: 17769 | C140: 22 | D140: 17787 | E140: 24 | F140: 17795 | K140: 0 | L140: 222
A141: 12 | B141: 17899 | C141: 24 | D141: 17931 | E141: 24 | F141: 17943 | K141: 0 | L141: 122
A142: 21 | B142: 18051 | C142: 22 | D142: 18066 | E142: 24 | F142: 18073 | K142: 0 | L142: 222
A143: 12 | B143: 18177 | C143: 24 | D143: 18191 | E143: 24 | F143: 18199 | K143: 0 | L143: 122
A144: 21 | B144: 18317 | C144: 22 | D144: 18326 | E144: 24 | F144: 18333 | K144: 0 | L144: 222
A145: 12 | B145: 18433 | C145: 24 | D145: 18450 | E145: 24 | F145: 18458 | K145: 0 | L145: 122
A146: 21 | B146: 18567 | C146: 22 | D146: 18574 | E146: 24 | F146: 18582 | K146: 0 | L146: 222
A147: 12 | B147: 18683 | C147: 24 | D147: 18706 | E147: 24 | F147: 18717 | K147: 0 | L147: 122
A148: 12 | B148: 18817 | C148: 24 | D148: 18830 | E148: 24 | F148: 18844 | K148: 0 | L148: 122
A149: 12 | B149: 18942 | C149: 24 | D149: 18967 | E149: 24 | F149: 18979 | K149: 0 | L149: 122
A150: 21 | B150: 19106 | C150: 22 | D150: 19114 | E150: 24 | F150: 19133 | K150: 0 | L150: 222
A151: 12 | B151: 19233 | C151: 24 | D151: 19271 | E151: 24 | F151: 19280 | K151: 0 | L151: 122
A152: 12 | B152: 19377 | C152: 24 | D152: 19392 | E152: 24 | F152: 19407 | K152: 0 | L152: 122
A153: 12 | B153: 19506 | C153: 24 | D153: 19520 | E153: 24 | F153: 19530 | K153: 0 | L153: 122
A154: 12 | B154: 19629 | C154: 24 | D154: 19672 | E154: 24 | F154: 19685 | K154: 0 | L154: 122
A155: 12 | B155: 19780 | C155: 24 | D155: 19794 | E155: 24 | F155: 19806 | K155: 0 | L155: 122
A156: 21 | B156: 19911 | C156: 22 | D156: 19916 | E156: 24 | F156: 19924 | K156: 0 | L156: 222
A157: 12 | B157: 20034 | C157: 24 | D157: 20054 | E157: 24 | F157: 20060 | K157: 0 | L157: 122
A158: 12 | B158: 20160 | C158: 24 | D158: 20183 | E158: 24 | F158: 20193 | K158: 0 | L158: 122
A159: 12 | B159: 20293 | C159: 24 | D159: 20315 | E159: 24 | F159: 20320 | K159: 0 | L159: 122
A160: 12 | B160: 20420 | C160: 24 | D160: 20432 | E160: 24 | F160: 20446 | K160: 0 | L160: 122
A161: 12 | B161: 20554 | C161: 24 | D161: 20580 | E161: 24 | F161: 20588 | K161: 0 | L161: 122
A162: 21 | B162: 20699 | C162: 22 | D162: 20715 | E162: 24 | F162: 20739 | K162: 0 | L162: 222
A163: 12 | B163: 20842 | C163: 24 | D163: 20859 | E163: 24 | F163: 20873 | K163: 0 | L163: 122
A164: 12 | B164: 20969 | C164: 24 | D164: 20986 | E164: 24 | F164: 21000 | K164: 0 | L164: 122
A165: 21 | B165: 21113 | C165: 22 | D165: 21119 | E165: 24 | F165: 21134 | K165: 0 | L165: 222
A166: 12 | B166: 21230 | C166: 24 | D166: 21243 | E166: 24 | F166: 21255 | K166: 0 | L166: 122
A167: 12 | B167: 21353 | C167: 24 | D167: 21377 | E167: 24 | F167: 21400 | K167: 0 | L167: 122
A168: 21 | B168: 21508 | C168: 22 | D168: 21514 | E168: 24 | F168: 21521 | K168: 0 | L168: 222
A169: 12 | B169: 21625 | C169: 24 | D169: 21638 | E169: 24 | F169: 21655 | K169: 0 | L169: 122
A170: 12 | B170: 21753 | C170: 24 | D170: 21798 | E170: 24 | F170: 21818 | K170: 0 | L170: 122
A171: 21 | B171: 21936 | C171: 22 | D171: 21941 | E171: 24 | F171: 21963 | K171: 0 | L171: 222
A172: 21 | B172: 22096 | C172: 22 | D172: 22108 | E172: 24 | F172: 22117 | K172: 0 | L172: 222
A173: 21 | B173: 22224 | C173: 22 | D173: 22232 | E173: 24 | F173: 22240 | K173: 0 | L173: 222
A174: 21 | B174: 22349 | C174: 22 | D174: 22370 | E174: 24 | F174: 22380 | K174: 0 | L174: 222
A175: 12 | B175: 22478 | C175: 24 | D175: 22491 | E175: 24 | F175: 22504 | K175: 0 | L175: 122
A176: 21 | B176: 22610 | C176: 22 | D176: 22615 | E176: 24 | F176: 22624 | K176: 0 | L176: 222
A177: 21 | B177: 22760 | C177: 22 | D177: 22769 | E177: 24 | F177: 22794 | K177: 0 | L177: 222
A178: 21 | B178: 22904 | C178: 22 | D178: 22916 | E178: 24 | F178: 22924 | K178: 0 | L178: 222
A179: 21 | B179: 23029 | C179: 22 | D179: 23037 | E179: 24 | F179: 23045 | K179: 0 | L179: 222
A180: 21 | B180: 23175 | C180: 22 | D180: 23195 | E180: 24 | F180: 23232 | K180: 0 | L180: 222
A181: 12 | B181: 23334 | C181: 24 | D181: 23351 | E181: 24 | F181: 23359 | K181: 0 | L181: 122
A182: 12 | B182: 23457 | C182: 24 | D182: 23471 | E182: 24 | F182: 23478 | K182: 0 | L182: 122
A183: 21 | B183: 23585 | C183: 22 | D183: 23598 | E183: 24 | F183: 23603 | K183: 0 | L183: 222
A184: 21 | B184: 23721 | C184: 22 | D184: 23726 | E184: 24 | F184: 23738 | K184: 0 | L184: 222
A185: 12 | B185: 23841 | C185: 24 | D185: 23858 | E185: 24 | F185: 23863 | K185: 0 | L185: 122
A186: 12 | B186: 23958 | C186: 24 | D186: 23970 | E186: 24 | F186: 23976 | L186: 122

Sheet !M902850.101
A1: Report for:!M902850.101
A2: Date: | B2: <date>
A3: Hen: | B3: <hen> | F3: Correct Sequence | G3: =Start!J2 -> 211 | P3: Total Sequences in Data | Q3: =4994-COUNTBLANK(L7:L5000) -> 177 | V3: Total Sequences in Block Data | W3: =COUNTA(L7:L36) -> 30 | AA3: Total Sequences in Block Data | AB3: =COUNTA(L37:L65) -> 29 | AF3: Total Sequences in Block Data | AG3: =COUNTA(L66:L95) -> 30 | AK3: Total Sequences in Block Data | AL3: =COUNTA(L96:L124) -> 29 | AP3: Total Sequences in Block Data | AQ3: =COUNTA(L125:L154) -> 30 | AU3: Total Sequences in Block Data | AV3: =COUNTA(L155:L183) -> 29
P4: Total Sequences in Summary | Q4: =SUM(O7:O14) -> 177 | V4: Total Sequences in Block Summary | W4: =SUM(U7:U14) -> 30 | AA4: Total Sequences in Block Summary | AB4: =SUM(Z7:Z14) -> 29 | AF4: Total Sequences in Block Summary | AG4: =SUM(AE7:AE14) -> 30 | AK4: Total Sequences in Block Summary | AL4: =SUM(AJ7:AJ14) -> 29 | AP4: Total Sequences in Block Summary | AQ4: =SUM(AO7:AO14) -> 30 | AU4: Total Sequences in Block Summary | AV4: =SUM(AT7:AT14) -> 29
T5: Block 1 | Y5: Block 2 | AD5: Block 3 | AI5: Block 4 | AN5: Block 5 | AS5: Block 6
A6: Sequence Component 1 | B6: Time 1 | C6: Sequence Component 2 | D6: Time 2 | E6: Sequence Component 3 | F6: Time 3 | G6: Sequence Component 4 | H6: Time 4 | I6: Sequence Component 5 | J6: Time 5 | K6: Correct? 0=No 1=Yes | L6: Sequence | N6: Frequency | P6: Relative Frequency | Q6: Variability | T6: Frequency | V6: Relative Frequency | W6: Variability | Y6: Frequency | AA6: Relative Frequency | AB6: Variability | AD6: Frequency | AF6: Relative Frequency | AG6: Variability | AI6: Frequency | AK6: Relative Frequency | AL6: Variability | AN6: Frequency | AP6: Relative Frequency | AQ6: Variability | AS6: Frequency | AU6: Relative Frequency | AV6: Variability
A7: 12 | B7: 8 | C7: 24 | D7: 24 | E7: 24 | F7: 35 | K7: 0 | L7: 122 | N7: 111 | O7: =COUNTIF($L$7:$L$500,N7) -> 0 | P7: =O7/$Q$4 -> 0 | Q7: =IF(P7=0,0,(P7*((LOG(P7))/LOG(2)))) -> 0 | T7: =N7 -> 111 | U7: =COUNTIF(L7:L36,T7) -> 0 | V7: =U7/(W4-U11) -> 0 | W7: =IF(V7=0,0,(V7*((LOG(V7))/LOG(2)))) -> 0 | Y7: =N7 -> 111 | Z7: =COUNTIF(L37:L65,Y7) -> 0 | AA7: =Z7/(AB4-Z11) -> 0 | AB7: =IF(AA7=0,0,(AA7*((LOG(AA7))/LOG(2)))) -> 0 | AD7: =N7 -> 111 | AE7: =COUNTIF(L66:L95,AD7) -> 0 | AF7: =AE7/(AG4-AE11) -> 0 | AG7: =IF(AF7=0,0,(AF7*((LOG(AF7))/LOG(2)))) -> 0 | AI7: =N7 -> 111 | AJ7: =COUNTIF(L96:L124,AI7) -> 0 | AK7: =AJ7/(AL4-AJ11) -> 0 | AL7: =IF(AK7=0,0,(AK7*((LOG(AK7))/LOG(2)))) -> 0 | AN7: =N7 -> 111 | AO7: =COUNTIF(L125:L154,AN7) -> 0 | AP7: =AO7/(AQ4-AO11) -> 0 | AQ7: =IF(AP7=0,0,(AP7*((LOG(AP7))/LOG(2)))) -> 0 | AS7: =N7 -> 111 | AT7: =COUNTIF(L155:L183,AS7) -> 0 | AU7: =AT7/(AV4-AT11) -> 0 | AV7: =IF(AU7=0,0,(AU7*((LOG(AU7))/LOG(2)))) -> 0
A8: 12 | B8: 136 | C8: 24 | D8: 153 | E8: 24 | F8: 158 | K8: 0 | L8: 122 | N8: 112 | O8: =COUNTIF($L$7:$L$500,N8) -> 2 | P8: =O8/$Q$4 -> 0.01129943503 | Q8: =IF(P8=0,0,(P8*((LOG(P8))/LOG(2)))) -> -0.0730802887 | T8: =N8 -> 112 | U8: =COUNTIF(L7:L36,T8) -> 0 | V8: =U8/(W4-U11) -> 0 | W8: =IF(V8=0,0,(V8*((LOG(V8))/LOG(2)))) -> 0 | Y8: =N8 -> 112 | Z8: =COUNTIF(L37:L65,Y8) -> 1 | AA8: =Z8/(AB4-Z11) -> 0.03448275862 | AB8: =IF(AA8=0,0,(AA8*((LOG(AA8))/LOG(2)))) -> -0.167516586 | AD8: =N8 -> 112 | AE8: =COUNTIF(L66:L95,AD8) -> 1 | AF8: =AE8/(AG4-AE11) -> 0.03333333333 | AG8: =IF(AF8=0,0,(AF8*((LOG(AF8))/LOG(2)))) -> -0.1635630199 | AI8: =N8 -> 112 | AJ8: =COUNTIF(L96:L124,AI8) -> 0 | AK8: =AJ8/(AL4-AJ11) -> 0 | AL8: =IF(AK8=0,0,(AK8*((LOG(AK8))/LOG(2)))) -> 0 | AN8: =N8 -> 112 | AO8: =COUNTIF(L125:L154,AN8) -> 0 | AP8: =AO8/(AQ4-AO11) -> 0 | AQ8: =IF(AP8=0,0,(AP8*((LOG(AP8))/LOG(2)))) -> 0 | AS8: =N8 -> 112 | AT8: =COUNTIF(L155:L183,AS8) -> 0 | AU8: =AT8/(AV4-AT11) -> 0 | AV8: =IF(AU8=0,0,(AU8*((LOG(AU8))/LOG(2)))) -> 0
A9: 12 | B9: 260 | C9: 24 | D9: 272 | E9: 24 | F9: 278 | K9: 0 | L9: 122 | N9: 121 | O9: =COUNTIF($L$7:$L$500,N9) -> 0 | P9: =O9/$Q$4 -> 0 | Q9: =IF(P9=0,0,(P9*((LOG(P9))/LOG(2)))) -> 0 | T9: =N9 -> 121 | U9: =COUNTIF(L7:L36,T9) -> 0 | V9: =U9/(W4-U11) -> 0 | W9: =IF(V9=0,0,(V9*((LOG(V9))/LOG(2)))) -> 0 | Y9: =N9 -> 121 | Z9: =COUNTIF(L37:L65,Y9) -> 0 | AA9: =Z9/(AB4-Z11) -> 0 | AB9: =IF(AA9=0,0,(AA9*((LOG(AA9))/LOG(2)))) -> 0 | AD9: =N9 -> 121 | AE9: =COUNTIF(L66:L95,AD9) -> 0 | AF9: =AE9/(AG4-AE11) -> 0 | AG9: =IF(AF9=0,0,(AF9*((LOG(AF9))/LOG(2)))) -> 0 | AI9: =N9 -> 121 | AJ9: =COUNTIF(L96:L124,AI9) -> 0 | AK9: =AJ9/(AL4-AJ11) -> 0 | AL9: =IF(AK9=0,0,(AK9*((LOG(AK9))/LOG(2)))) -> 0 | AN9: =N9 -> 121 | AO9: =COUNTIF(L125:L154,AN9) -> 0 | AP9: =AO9/(AQ4-AO11) -> 0 | AQ9: =IF(AP9=0,0,(AP9*((LOG(AP9))/LOG(2)))) -> 0 | AS9: =N9 -> 121 | AT9: =COUNTIF(L155:L183,AS9) -> 0 | AU9: =AT9/(AV4-AT11) -> 0 | AV9: =IF(AU9=0,0,(AU9*((LOG(AU9))/LOG(2)))) -> 0
A10: 21 | B10: 383 | C10: 22 | D10: 388 | E10: 24 | F10: 402 | K10: 0 | L10: 222 | N10: 122 | O10: =COUNTIF($L$7:$L$500,N10) -> 107 | P10: =O10/$Q$4 -> 0.604519774 | Q10: =IF(P10=0,0,(P10*((LOG(P10))/LOG(2)))) -> -0.4389651204 | T10: =N10 -> 122 | U10: =COUNTIF(L7:L36,T10) -> 16 | V10: =U10/(W4-U11) -> 0.5333333333 | W10: =IF(V10=0,0,(V10*((LOG(V10))/LOG(2)))) -> -0.4836749843 | Y10: =N10 -> 122 | Z10: =COUNTIF(L37:L65,Y10) -> 14 | AA10: =Z10/(AB4-Z11) -> 0.4827586207 | AB10: =IF(AA10=0,0,(AA10*((LOG(AA10))/LOG(2)))) -> -0.5071987939 | AD10: =N10 -> 122 | AE10: =COUNTIF(L66:L95,AD10) -> 22 | AF10: =AE10/(AG4-AE11) -> 0.7333333333 | AG10: =IF(AF10=0,0,(AF10*((LOG(AF10))/LOG(2)))) -> -0.3281365831 | AI10: =N10 -> 122 | AJ10: =COUNTIF(L96:L124,AI10) -> 16 | AK10: =AJ10/(AL4-AJ11) -> 0.5517241379 | AL10: =IF(AK10=0,0,(AK10*((LOG(AK10))/LOG(2)))) -> -0.4733688249 | AN10: =N10 -> 122 | AO10: =COUNTIF(L125:L154,AN10) -> 17 | AP10: =AO10/(AQ4-AO11) -> 0.5666666667 | AQ10: =IF(AP10=0,0,(AP10*((LOG(AP10))/LOG(2)))) -> -0.4643423941 | AS10: =N10 -> 122 | AT10: =COUNTIF(L155:L183,AS10) -> 22 | AU10: =AT10/(AV4-AT11) -> 0.7586206897 | AV10: =IF(AU10=0,0,(AU10*((LOG(AU10))/LOG(2)))) -> -0.3023478029
A11: 12 | B11: 501 | C11: 24 | D11: 524 | E11: 24 | F11: 533 | K11: 0 | L11: 122 | N11: 211 | O11: =COUNTIF($L$7:$L$500,N11) -> 0 | P11: =O11/$Q$4 -> 0 | Q11: =IF(P11=0,0,(P11*((LOG(P11))/LOG(2)))) -> 0 | T11: =N11 -> 211 | U11: =COUNTIF(L7:L36,T11) -> 0 | Y11: =N11 -> 211 | Z11: =COUNTIF(L37:L65,Y11) -> 0 | AD11: =N11 -> 211 | AE11: =COUNTIF(L66:L95,AD11) -> 0 | AI11: =N11 -> 211 | AJ11: =COUNTIF(L96:L124,AI11) -> 0 | AN11: =N11 -> 211 | AO11: =COUNTIF(L125:L154,AN11) -> 0 | AS11: =N11 -> 211 | AT11: =COUNTIF(L155:L183,AS11) -> 0
A12: 12 | B12: 632 | C12: 24 | D12: 647 | E12: 24 | F12: 654 | K12: 0 | L12: 122 | N12: 212 | O12: =COUNTIF($L$7:$L$500,N12) -> 0 | P12: =O12/$Q$4 -> 0 | Q12: =IF(P12=0,0,(P12*((LOG(P12))/LOG(2)))) -> 0 | T12: =N12 -> 212 | U12: =COUNTIF(L7:L36,T12) -> 0 | V12: =U12/(W4-U11) -> 0 | W12: =IF(V12=0,0,(V12*((LOG(V12))/LOG(2)))) -> 0 | Y12: =N12 -> 212 | Z12: =COUNTIF(L37:L65,Y12) -> 0 | AA12: =Z12/(AB4-Z11) -> 0 | AB12: =IF(AA12=0,0,(AA12*((LOG(AA12))/LOG(2)))) -> 0 | AD12: =N12 -> 212 | AE12: =COUNTIF(L66:L95,AD12) -> 0 | AF12: =AE12/(AG4-AE11) -> 0 | AG12: =IF(AF12=0,0,(AF12*((LOG(AF12))/LOG(2)))) -> 0 | AI12: =N12 -> 212 | AJ12: =COUNTIF(L96:L124,AI12) -> 0 | AK12: =AJ12/(AL4-AJ11) -> 0 | AL12: =IF(AK12=0,0,(AK12*((LOG(AK12))/LOG(2)))) -> 0 | AN12: =N12 -> 212 | AO12: =COUNTIF(L125:L154,AN12) -> 0 | AP12: =AO12/(AQ4-AO11) -> 0 | AQ12: =IF(AP12=0,0,(AP12*((LOG(AP12))/LOG(2)))) -> 0 | AS12: =N12 -> 212 | AT12: =COUNTIF(L155:L183,AS12) -> 0 | AU12: =AT12/(AV4-AT11) -> 0 | AV12: =IF(AU12=0,0,(AU12*((LOG(AU12))/LOG(2)))) -> 0
A13: 12 | B13: 757 | C13: 24 | D13: 767 | E13: 24 | F13: 779 | K13: 0 | L13: 122 | N13: 221 | O13: =COUNTIF($L$7:$L$500,N13) -> 0 | P13: =O13/$Q$4 -> 0 | Q13: =IF(P13=0,0,(P13*((LOG(P13))/LOG(2)))) -> 0 | T13: =N13 -> 221 | U13: =COUNTIF(L7:L36,T13) -> 0 | V13: =U13/(W4-U11) -> 0 | W13: =IF(V13=0,0,(V13*((LOG(V13))/LOG(2)))) -> 0 | Y13: =N13 -> 221 | Z13: =COUNTIF(L37:L65,Y13) -> 0 | AA13: =Z13/(AB4-Z11) -> 0 | AB13: =IF(AA13=0,0,(AA13*((LOG(AA13))/LOG(2)))) -> 0 | AD13: =N13 -> 221 | AE13: =COUNTIF(L66:L95,AD13) -> 0 | AF13: =AE13/(AG4-AE11) -> 0 | AG13: =IF(AF13=0,0,(AF13*((LOG(AF13))/LOG(2)))) -> 0 | AI13: =N13 -> 221 | AJ13: =COUNTIF(L96:L124,AI13) -> 0 | AK13: =AJ13/(AL4-AJ11) -> 0 | AL13: =IF(AK13=0,0,(AK13*((LOG(AK13))/LOG(2)))) -> 0 | AN13: =N13 -> 221 | AO13: =COUNTIF(L125:L154,AN13) -> 0 | AP13: =AO13/(AQ4-AO11) -> 0 | AQ13: =IF(AP13=0,0,(AP13*((LOG(AP13))/LOG(2)))) -> 0 | AS13: =N13 -> 221 | AT13: =COUNTIF(L155:L183,AS13) -> 0 | AU13: =AT13/(AV4-AT11) -> 0 | AV13: =IF(AU13=0,0,(AU13*((LOG(AU13))/LOG(2)))) -> 0
A14: 12 | B14: 878 | C14: 24 | D14: 895 | E14: 24 | F14: 902 | K14: 0 | L14: 122 | N14: 222 | O14: =COUNTIF($L$7:$L$500,N14) -> 68 | P14: =O14/$Q$4 -> 0.384180791 | Q14: =IF(P14=0,0,(P14*((LOG(P14))/LOG(2)))) -> -0.5302243175 | T14: =N14 -> 222 | U14: =COUNTIF(L7:L36,T14) -> 14 | V14: =U14/(W4-U11) -> 0.4666666667 | W14: =IF(V14=0,0,(V14*((LOG(V14))/LOG(2)))) -> -0.5131166477 | Y14: =N14 -> 222 | Z14: =COUNTIF(L37:L65,Y14) -> 14 | AA14: =Z14/(AB4-Z11) -> 0.4827586207 | AB14: =IF(AA14=0,0,(AA14*((LOG(AA14))/LOG(2)))) -> -0.5071987939 | AD14: =N14 -> 222 | AE14: =COUNTIF(L66:L95,AD14) -> 7 | AF14: =AE14/(AG4-AE11) -> 0.2333333333 | AG14: =IF(AF14=0,0,(AF14*((LOG(AF14))/LOG(2)))) -> -0.4898916572 | AI14: =N14 -> 222 | AJ14: =COUNTIF(L96:L124,AI14) -> 13 | AK14: =AJ14/(AL4-AJ11) -> 0.4482758621 | AL14: =IF(AK14=0,0,(AK14*((LOG(AK14))/LOG(2)))) -> -0.5188978138 | AN14: =N14 -> 222 | AO14: =COUNTIF(L125:L154,AN14) -> 13 | AP14: =AO14/(AQ4-AO11) -> 0.4333333333 | AQ14: =IF(AP14=0,0,(AP14*((LOG(AP14))/LOG(2)))) -> -0.5227953802 | AS14: =N14 -> 222 | AT14: =COUNTIF(L155:L183,AS14) -> 7 | AU14: =AT14/(AV4-AT11) -> 0.2413793103 | AV14: =IF(AU14=0,0,(AU14*((LOG(AU14))/LOG(2)))) -> -0.4949787073
A15: 12 | B15: 999 | C15: 24 | D15: 1011 | E15: 24 | F15: 1016 | K15: 0 | L15: 122 | P15: =SUM(P7:P14) -> 1 | Q15: =-SUM(Q7:Q14) -> 1.042269727 | V15: =SUM(V7:V14) -> 1 | W15: =-SUM(W7:W14) -> 0.996791632 | AA15: =SUM(AA7:AA14) -> 1 | AB15: =-SUM(AB7:AB14) -> 1.181914174 | AF15: =SUM(AF7:AF14) -> 1 | AG15: =-SUM(AG7:AG14) -> 0.9815912601 | AK15: =SUM(AK7:AK14) -> 1 | AL15: =-SUM(AL7:AL14) -> 0.9922666387 | AP15: =SUM(AP7:AP14) -> 1 | AQ15: =-SUM(AQ7:AQ14) -> 0.9871377744 | AU15: =SUM(AU7:AU14) -> 1 | AV15: =-SUM(AV7:AV14) -> 0.7973265101
A16: 12 | B16: 1114 | C16: 24 | D16: 1126 | E16: 24 | F16: 1132 | K16: 0 | L16: 122 | P16: U= | Q16: =Q15/(LOG(Q4)/LOG(2)) -> 0.1395721453 | V16: U1= | W16: =W15/(LOG(W4)/LOG(2)) -> 0.2031411976 | AA16: U2= | AB16: =AB15/(LOG(AB4)/LOG(2)) -> 0.2432932889 | AF16: U3= | AG16: =AG15/(LOG(AG4)/LOG(2)) -> 0.2000434371 | AK16: U4= | AL16: =AL15/(LOG(AL4)/LOG(2)) -> 0.2042549445 | AP16: U5= | AQ16: =AQ15/(LOG(AQ4)/LOG(2)) -> 0.2011737892 | AU16: U6= | AV16: =AV15/(LOG(AV4)/LOG(2)) -> 0.1641271366
A17: 12 | B17: 1238 | C17: 24 | D17: 1257 | E17: 24 | F17: 1264 | K17: 0 | L17: 122
A18: 12 | B18: 1366 | C18: 24 | D18: 1376 | E18: 24 | F18: 1381 | K18: 0 | L18: 122
A19: 21 | B19: 1502 | C19: 22 | D19: 1523 | E19: 24 | F19: 1537 | K19: 0 | L19: 222 | N19: Total Target Seq
A20: 21 | B20: 1653 | C20: 22 | D20: 1663 | E20: 24 | F20: 1684 | K20: 0 | L20: 222 | N20: =COUNTIF(L7:L183,G3) -> 0 | P20: 30 | Q20: 29 | R20: 30 | S20: 29 | T20: 30 | U20: 29
A21: 21 | B21: 1805 | C21: 22 | D21: 1810 | E21: 24 | F21: 1819 | K21: 0 | L21: 222 | P21: % of reinforcement given in 6 equal intervals based on number of trials
A22: 21 | B22: 1939 | C22: 22 | D22: 1947 | E22: 24 | F22: 1955 | K22: 0 | L22: 222 | P22: %_1 | Q22: %_2 | R22: %_3 | S22: %_4 | T22: %_5 | U22: %_6
A23: 21 | B23: 2070 | C23: 22 | D23: 2075 | E23: 24 | F23: 2079 | K23: 0 | L23: 222 | O23: target sequence | P23: =$G$3 -> 211 | Q23: =$G$3 -> 211 | R23: =$G$3 -> 211 | S23: =$G$3 -> 211 | T23: =$G$3 -> 211 | U23: =$G$3 -> 211
A24: 12 | B24: 2177 | C24: 24 | D24: 2194 | E24: 24 | F24: 2199 | K24: 0 | L24: 122 | O24: total reinforcement | P24: =U11 -> 0 | Q24: =Z11 -> 0 | R24: =AE11 -> 0 | S24: =AJ11 -> 0 | T24: =AO11 -> 0 | U24: =AT11 -> 0
A25: 12 | B25: 2300 | C25: 24 | D25: 2317 | E25: 24 | F25: 2322 | K25: 0 | L25: 122 | O25: % target
A26: 12 | B26: 2422 | C26: 24 | D26: 2441 | E26: 24 | F26: 2446 | K26: 0 | L26: 122 | O26: CCRF
A27: 21 | B27: 2560 | C27: 22 | D27: 2565 | E27: 24 | F27: 2570 | K27: 0 | L27: 222 | O27: % CCRf
A28: 21 | B28: 2686 | C28: 22 | D28: 2691 | E28: 24 | F28: 2706 | K28: 0 | L28: 222 | O28: average response rate | P28: =F36/P20 -> 125.7666667 | Q28: =(F65-F36)/Q20 -> 142.3793103 | R28: =(F95-F65)/R20 -> 139.3333333 | S28: =(F124-F95)/S20 -> 139.6551724 | T28: =(F154-F124)/T20 -> 128.6333333 | U28: =(F183-F154)/U20 -> 135.5172414
A29: 21 | B29: 2819 | C29: 22 | D29: 2826 | E29: 24 | F29: 2840 | K29: 0 | L29: 222
A30: 21 | B30: 2958 | C30: 22 | D30: 2968 | E30: 24 | F30: 2976 | K30: 0 | L30: 222
A31: 21 | B31: 3090 | C31: 22 | D31: 3103 | E31: 24 | F31: 3112 | K31: 0 | L31: 222
A32: 21 | B32: 3235 | C32: 22 | D32: 3244 | E32: 24 | F32: 3252 | K32: 0 | L32: 222
A33: 21 | B33: 3359 | C33: 22 | D33: 3365 | E33: 24 | F33: 3371 | K33: 0 | L33: 222
A34: 21 | B34: 3490 | C34: 22 | D34: 3499 | E34: 24 | F34: 3508 | K34: 0 | L34: 222
A35: 12 | B35: 3602 | C35: 24 | D35: 3624 | E35: 24 | F35: 3643 | K35: 0 | L35: 122
A36: 12 | B36: 3743 | C36: 24 | D36: 3767 | E36: 24 | F36: 3773 | K36: 0 | L36: 122
A37: 21 | B37: 3894 | C37: 22 | D37: 3899 | E37: 24 | F37: 3908 | K37: 0 | L37: 222
A38: 12 | B38: 4010 | C38: 24 | D38: 4027 | E38: 24 | F38: 4033 | K38: 0 | L38: 122
A39: 12 | B39: 4126 | C39: 24 | D39: 4147 | E39: 24 | F39: 4154 | K39: 0 | L39: 122
A40: 12 | B40: 4250 | C40: 24 | D40: 4283 | E40: 24 | F40: 4293 | K40: 0 | L40: 122
A41: 21 | B41: 4411 | C41: 22 | D41: 4417 | E41: 24 | F41: 4427 | K41: 0 | L41: 222
A42: 12 | B42: 4525 | C42: 24 | D42: 4549 | E42: 24 | F42: 4562 | K42: 0 | L42: 122
A43: 12 | B43: 4661 | C43: 24 | D43: 4697 | E43: 24 | F43: 4702 | K43: 0 | L43: 122
A44: 21 | B44: 4823 | C44: 22 | D44: 4829 | E44: 24 | F44: 4837 | K44: 0 | L44: 222
A45: 21 | B45: 4948 | C45: 22 | D45: 4953 | E45: 24 | F45: 4965 | K45: 0 | L45: 222
A46: 21 | B46: 5090 | C46: 22 | D46: 5106 | E46: 24 | F46: 5121 | K46: 0 | L46: 222
A47: 12 | B47: 5221 | C47: 24 | D47: 5234 | E47: 24 | F47: 5240 | K47: 0 | L47: 122
A48: 21 | B48: 5350 | C48: 22 | D48: 5356 | E48: 24 | F48: 5379 | K48: 0 | L48: 222
A49: 21 | B49: 5488 | C49: 22 | D49: 5500 | E49: 24 | F49: 5508 | K49: 0 | L49: 222
A50: 12 | B50: 5605 | C50: 24 | D50: 5630 | E50: 24 | F50: 5639 | K50: 0 | L50: 122
A51: 21 | B51: 5750 | C51: 22 | D51: 5762 | E51: 24 | F51: 5789 | K51: 0 | L51: 222
A52: 12 | B52: 5891 | C52: 24 | D52: 5903 | E52: 24 | F52: 5914 | K52: 0 | L52: 122
A53: 21 | B53: 6049 | C53: 22 | D53: 6095 | E53: 24 | F53: 6120 | K53: 0 | L53: 222
A54: 12 | B54: 6220 | C54: 24 | D54: 6233 | E54: 24 | F54: 6283 | K54: 0 | L54: 122
A55: 21 | B55: 6406 | C55: 22 | D55: 6424 | E55: 24 | F55: 6432 | K55: 0 | L55: 222
A56: 21 | B56: 6558 | C56: 22 | D56: 6587 | E56: 24 | F56: 6630 | K56: 0 | L56: 222
A57: 12 | B57: 6730 | C57: 24 | D57: 6752 | E57: 24 | F57: 6841 | K57: 0 | L57: 122
A58: 12 | B58: 6936 | C58: 24 | D58: 6956 | E58: 24 | F58: 6965 | K58: 0 | L58: 122
A59: 12 | B59: 7068 | C59: 13 | D59: 7069 | E59: 24 | F59: 7085 | K59: 0 | L59: 112
A60: 12 | B60: 7183 | C60: 24 | D60: 7219 | E60: 24 | F60: 7226 | K60: 0 | L60: 122
A61: 21 | B61: 7341 | C61: 22 | D61: 7346 | E61: 24 | F61: 7357 | K61: 0 | L61: 222
A62: 12 | B62: 7443 | C62: 24 | D62: 7473 | E62: 24 | F62: 7479 | K62: 0 | L62: 122
A63: 21 | B63: 7603 | C63: 22 | D63: 7612 | E63: 24 | F63: 7653 | K63: 0 | L63: 222
A64: 12 | B64: 7753 | C64: 24 | D64: 7775 | E64: 24 | F64: 7787 | K64: 0 | L64: 122
A65: 21 | B65: 7889 | C65: 22 | D65: 7894 | E65: 24 | F65: 7902 | K65: 0 | L65: 222
A66: 12 | B66: 7997 | C66: 24 | D66: 8009 | E66: 24 | F66: 8032 | K66: 0 | L66: 122
A67: 12 | B67: 8129 | C67: 24 | D67: 8147 | E67: 24 | F67: 8154 | K67: 0 | L67: 122
A68: 12 | B68: 8251 | C68: 24 | D68: 8281 | E68: 24 | F68: 8326 | K68: 0 | L68: 122
A69: 21 | B69: 8439 | C69: 22 | D69: 8451 | E69: 24 | F69: 8456 | K69: 0 | L69: 222
A70: 12 | B70: 8554 | C70: 24 | D70: 8572 | E70: 24 | F70: 8578 | K70: 0 | L70: 122
A71: 21 | B71: 8693 | C71: 22 | D71: 8700 | E71: 24 | F71: 8707 | K71: 0 | L71: 222
A72: 21 | B72: 8835 | C72: 22 | D72: 8844 | E72: 24 | F72: 8854 | K72: 0 | L72: 222
A73: 21 | B73: 8987 | C73: 22 | D73: 8995 | E73: 24 | F73: 9003 | K73: 0 | L73: 222
A74: 12 | B74: 9102 | C74: 24 | D74: 9153 | E74: 24 | F74: 9191 | K74: 0 | L74: 122
A75: 12 | B75: 9286 | C75: 24 | D75: 9298 | E75: 24 | F75: 9308 | K75: 0 | L75: 122
A76: 12 | B76: 9404 | C76: 24 | D76: 9417 | E76: 24 | F76: 9423 | K76: 0 | L76: 122
A77: 12 | B77: 9524 | C77: 24 | D77: 9553 | E77: 24 | F77: 9578 | K77: 0 | L77: 122
A78: 12 | B78: 9679 | C78: 24 | D78: 9691 | E78: 24 | F78: 9703 | K78: 0 | L78: 122
A79: 12 | B79: 9801 | C79: 24 | D79: 9833 | E79: 24 | F79: 9856 | K79: 0 | L79: 122
A80: 12 | B80: 9955 | C80: 24 | D80: 9973 | E80: 24 | F80: 9988 | K80: 0 | L80: 122
A81: 12 | B81: 10082 | C81: 24 | D81: 10099 | E81: 24 | F81: 10112 | K81: 0 | L81: 122
A82: 12 | B82: 10210 | C82: 24 | D82: 10232 | E82: 24 | F82: 10245 | K82: 0 | L82: 122
A83: 12 | B83: 10355 | C83: 24 | D83: 10385 | E83: 24 | F83: 10393 | K83: 0 | L83: 122
A84: 21 | B84: 10502 | C84: 22 | D84: 10544 | E84: 24 | F84: 10619 | K84: 0 | L84: 222
A85: 12 | B85: 10717 | C85: 13 | D85: 10724 | E85: 24 | F85: 10741 | K85: 0 | L85: 112
A86: 12 | B86: 10836 | C86: 24 | D86: 10853 | E86: 24 | F86: 10872 | K86: 0 | L86: 122
A87: 21 | B87: 10994 | C87: 22 | D87: 11012 | E87: 24 | F87: 11019 | K87: 0 | L87: 222
A88: 12 | B88: 11118 | C88: 24 | D88: 11154 | E88: 24 | F88: 11171 | K88: 0 | L88: 122
A89: 12 | B89: 11270 | C89: 24 | D89: 11283 | E89: 24 | F89: 11288 | K89: 0 | L89: 122
A90: 12 | B90: 11384 | C90: 24 | D90: 11412 | E90: 24 | F90: 11418 | K90: 0 | L90: 122
A91: 12 | B91: 11513 | C91: 24 | D91: 11531 | E91: 24 | F91: 11540 | K91: 0 | L91: 122
A92: 12 | B92: 11638 | C92: 24 | D92: 11651 | E92: 24 | F92: 11670 | K92: 0 | L92: 122
A93: 21 | B93: 11780 | C93: 22 | D93: 11809 | E93: 24 | F93: 11815 | K93: 0 | L93: 222
A94: 12 | B94: 11916 | C94: 24 | D94: 11934 | E94: 24 | F94: 11940 | K94: 0 | L94: 122
A95: 12 | B95: 12041 | C95: 24 | D95: 12063 | E95: 24 | F95: 12082 | K95: 0 | L95: 122
A96: 12 | B96: 12182 | C96: 24 | D96: 12211 | E96: 24 | F96: 12224 | K96: 0 | L96: 122
A97: 12 | B97: 12324 | C97: 24 | D97: 12346 | E97: 24 | F97: 12353 | K97: 0 | L97: 122
A98: 21 | B98: 12468 | C98: 22 | D98: 12476 | E98: 24 | F98: 12485 | K98: 0 | L98: 222
A99: 12 | B99: 12585 | C99: 24 | D99: 12598 | E99: 24 | F99: 12627 | K99: 0 | L99: 122
A100: 21 | B100: 12735 | C100: 22 | D100: 12741 | E100: 24 | F100: 12749 | K100: 0 | L100: 222
A101: 21 | B101: 12861 | C101: 22 | D101: 12868 | E101: 24 | F101: 12875 | K101: 0 | L101: 222
A102: 12 | B102: 12970 | C102: 24 | D102: 12987 | E102: 24 | F102: 12992 | K102: 0 | L102: 122
A103: 21 | B103: 13126 | C103: 22 | D103: 13134 | E103: 24 | F103: 13205 | K103: 0 | L103: 222
A104: 12 | B104: 13306 | C104: 24 | D104: 13316 | E104: 24 | F104: 13373 | K104: 0 | L104: 122
A105: 12 | B105: 13471 | C105: 24 | D105: 13488 | E105: 24 | F105: 13503 | K105: 0 | L105: 122
A106: 12 | B106: 13609 | C106: 24 | D106: 13636 | E106: 24 | F106: 13651 | K106: 0 | L106: 122
A107: 12 | B107: 13748 | C107: 24 | D107: 13766 | E107: 24 | F107: 13803 | K107: 0 | L107: 122
A108: 21 | B108: 13924 | C108: 22 | D108: 13932 | E108: 24 | F108: 13939 | K108: 0 | L108: 222
A109: 12 | B109: 14035 | C109: 24 | D109: 14061 | E109: 24 | F109: 14076 | K109: 0 | L109: 122
A110: 21 | B110: 14196 | C110: 22 | D110: 14203 | E110: 24 | F110: 14217 | K110: 0 | L110: 222
A111: 21 | B111: 14323 | C111: 22 | D111: 14330 | E111: 24 | F111: 14337 | K111: 0 | L111: 222
A112: 21 | B112: 14449 | C112: 22 | D112: 14454 | E112: 24 | F112: 14459 | K112: 0 | L112: 222
A113: 12 | B113: 14561 | C113: 24 | D113: 14590 | E113: 24 | F113: 14599 | K113: 0 | L113: 122
A114: 12 | B114: 14700 | C114: 24 | D114: 14722 | E114: 24 | F114: 14748 | K114: 0 | L114: 122
A115: 12 | B115: 14848 | C115: 24 | D115: 14872 | E115: 24 | F115: 14880 | K115: 0 | L115: 122
A116: 12 | B116: 14975 | C116: 24 | D116: 15003 | E116: 24 | F116: 15019 | K116: 0 | L116: 122
A117: 21 | B117: 15148 | C117: 22 | D117: 15170 | E117: 24 | F117: 15196 | K117: 0 | L117: 222
A118: 21 | B118: 15307 | C118: 22 | D118: 15312 | E118: 24 | F118: 15324 | K118: 0 | L118: 222
A119: 12 | B119: 15415 | C119: 24 | D119: 15437 | E119: 24 | F119: 15443 | K119: 0 | L119: 122
A120: 21 | B120: 15583 | C120: 22 | D120: 15604 | E120: 24 | F120: 15624 | K120: 0 | L120: 222
A121: 12 | B121: 15722 | C121: 24 | D121: 15734 | E121: 24 | F121: 15740 | K121: 0 | L121: 122
A122: 12 | B122: 15839 | C122: 24 | D122: 15856 | E122: 24 | F122: 15863 | K122: 0 | L122: 122
A123: 21 | B123: 15974 | C123: 22 | D123: 15985 | E123: 24 | F123: 15992 | K123: 0 | L123: 222
A124: 21 | B124: 16109 | C124: 22 | D124: 16120 | E124: 24 | F124: 16132 | K124: 0 | L124: 222
A125: 21 | B125: 16248 | C125: 22 | D125: 16258 | E125: 24 | F125: 16265 | K125: 0 | L125: 222
A126: 12 | B126: 16360 | C126: 24 | D126: 16379 | E126: 24 | F126: 16384 | K126: 0 | L126: 122
A127: 12 | B127: 16482 | C127: 24 | D127: 16496 | E127: 24 | F127: 16501 | K127: 0 | L127: 122
A128: 12 | B128: 16597 | C128: 24 | D128: 16609 | E128: 24 | F128: 16624 | K128: 0 | L128: 122
A129: 21 | B129: 16742 | C129: 22 | D129: 16748 | E129: 24 | F129: 16760 | K129: 0 | L129: 222
A130: 21 | B130: 16868 | C130: 22 | D130: 16873 | E130: 24 | F130: 16880 | K130: 0 | L130: 222
A131: 21 | B131: 16995 | C131: 22 | D131: 17002 | E131: 24 | F131: 17009 | K131: 0 | L131: 222
A132: 12 | B132: 17109 | C132: 24 | D132: 17124 | E132: 24 | F132: 17139 | K132: 0 | L132: 122
A133: 21 | B133: 17248 | C133: 22 | D133: 17255 | E133: 24 | F133: 17261 | K133: 0 | L133: 222
A134: 12 | B134: 17360 | C134: 24 | D134: 17378 | E134: 24 | F134: 17384 | K134: 0 | L134: 122
A135: 12 | B135: 17484 | C135: 24 | D135: 17498 | E135: 24 | F135: 17515 | K135: 0 | L135: 122
A136: 21 | B136: 17630 | C136: 22 | D136: 17637 | E136: 24 | F136: 17646 | K136: 0 | L136: 222
A137: 21 | B137: 17757 | C137: 22 | D137: 17762 | E137: 24 | F137: 17768 | K137: 0 | L137: 222
A138: 12 | B138: 17888 | C138: 24 | D138: 17901 | E138: 24 | F138: 17908 | K138: 0 | L138: 122
A139: 12 | B139: 18006 | C139: 24 | D139: 18019 | E139: 24 | F139: 18026 | K139: 0 | L139: 122
A140: 12 | B140: 18124 | C140: 24 | D140: 18138 | E140: 24 | F140: 18149 | K140: 0 | L140: 122
A141: 12 | B141: 18249 | C141: 24 | D141: 18268 | E141: 24 | F141: 18276 | K141: 0 | L141: 122
A142: 21 | B142: 18428 | C142: 22 | D142: 18437 | E142: 24 | F142: 18458 | K142: 0 | L142: 222
A143: 12 | B143: 18557 | C143: 24 | D143: 18570 | E143: 24 | F143: 18576 | K143: 0 | L143: 122
A144: 12 | B144: 18671 | C144: 24 | D144: 18690 | E144: 24 | F144: 18696 | K144: 0 | L144: 122
A145: 21 | B145: 18808 | C145: 22 | D145: 18820 | E145: 24 | F145: 18830 | K145: 0 | L145: 222
A146: 12 | B146: 18931 | C146: 24 | D146: 18943 | E146: 24 | F146: 18949 | K146: 0 | L146: 122
A147: 12 | B147: 19049 | C147: 24 | D147: 19063 | E147: 24 | F147: 19070 | K147: 0 | L147: 122
A148: 21 | B148: 19176 | C148: 22 | D148: 19188 | E148: 24 | F148: 19197 | K148: 0 | L148: 222
A149: 12 | B149: 19298 | C149: 24 | D149: 19310 | E149: 24 | F149: 19317 | K149: 0 | L149: 122
A150: 12 | B150: 19442 | C150: 24 | D150: 19462 | E150: 24 | F150: 19471 | K150: 0 | L150: 122
A151: 21 | B151: 19573 | C151: 22 | D151: 19579 | E151: 24 | F151: 19596 | K151: 0 | L151: 222
A152: 12 | B152: 19695 | C152: 24 | D152: 19708 | E152: 24 | F152: 19714 | K152: 0 | L152: 122
A153: 21 | B153: 19834 | C153: 22 | D153: 19839 | E153: 24 | F153: 19855 | K153: 0 | L153: 222
A154: 21 | B154: 19972 | C154: 22 | D154: 19981 | E154: 24 | F154: 19991 | K154: 0 | L154: 222
A155: 21 | B155: 20115 | C155: 22 | D155: 20127 | E155: 24 | F155: 20135 | K155: 0 | L155: 222
A156: 12 | B156: 20228 | C156: 24 | D156: 20246 | E156: 24 | F156: 20254 | K156: 0 | L156: 122
A157: 12 | B157: 20351 | C157: 24 | D157: 20365 | E157: 24 | F157: 20376 | K157: 0 | L157: 122
A158: 12 | B158: 20477 | C158: 24 | D158: 20495 | E158: 24 | F158: 20503 | K158: 0 | L158: 122
A159: 12 | B159: 20604 | C159: 24 | D159: 20622 | E159: 24 | F159: 20645 | K159: 0 | L159: 122
A160: 12 | B160: 20743 | C160: 24 | D160: 20767 | E160: 24 | F160: 20787 | K160: 0 | L160: 122
A161: 12 | B161: 20883 | C161: 24 | D161: 20944 | E161: 24 | F161: 20956 | K161: 0 | L161: 122
A162: 21 | B162: 21063 | C162: 22 | D162: 21078 | E162: 24 | F162: 21085 | K162: 0 | L162: 222
A163: 12 | B163: 21181 | C163: 24 | D163: 21201 | E163: 24 | F163: 21208 | K163: 0 | L163: 122
A164: 21 | B164: 21321 | C164: 22 | D164: 21328 | E164: 24 | F164: 21391 | K164: 0 | L164: 222
A165: 12 | B165: 21491 | C165: 24 | D165: 21504 | E165: 24 | F165: 21514 | K165: 0 | L165: 122
A166: 12 | B166: 21612 | C166: 24 | D166: 21634 | E166: 24 | F166: 21665 | K166: 0 | L166: 122
A167: 12 | B167: 21765 | C167: 24 | D167: 21783 | E167: 24 | F167: 21789 | K167: 0 | L167: 122
A168: 12 | B168: 21888 | C168: 24 | D168: 21919 | E168: 24 | F168: 21934 | K168: 0 | L168: 122
A169: 21 | B169: 22046 | C169: 22 | D169: 22057 | E169: 24 | F169: 22067 | K169: 0 | L169: 222
A170: 12 | B170: 22164 | C170: 24 | D170: 22177 | E170: 24 | F170: 22182 | K170: 0 | L170: 122
A171: 12 | B171: 22277 | C171: 24 | D171: 22290 | E171: 24 | F171: 22296 | K171: 0 | L171: 122
A172: 12 | B172: 22395 | C172: 24 | D172: 22419 | E172: 24 | F172: 22436 | K172: 0 | L172: 122
A173: 12 | B173: 22537 | C173: 24 | D173: 22560 | E173: 24 | F173: 22580 | K173: 0 | L173: 122
A174: 21 | B174: 22691 | C174: 22 | D174: 22699 | E174: 24 | F174: 22705 | K174: 0 | L174: 222
A175: 12 | B175: 22800 | C175: 24 | D175: 22813 | E175: 24 | F175: 22878 | K175: 0 | L175: 122
A176: 12 | B176: 22975 | C176: 24 | D176: 22989 | E176: 24 | F176: 22994 | K176: 0 | L176: 122
A177: 12 | B177: 23096 | C177: 24 | D177: 23109 | E177: 24 | F177: 23115 | K177: 0 | L177: 122
A178: 12 | B178: 23212 | C178: 24 | D178: 23225 | E178: 24 | F178: 23233 | K178: 0 | L178: 122
A179: 12 | B179: 23330 | C179: 24 | D179: 23344 | E179: 24 | F179: 23351 | K179: 0 | L179: 122
A180: 12 | B180: 23450 | C180: 24 | D180: 23469 | E180: 24 | F180: 23482 | K180: 0 | L180: 122
A181: 12 | B181: 23579 | C181: 24 | D181: 23603 | E181: 24 | F181: 23612 | K181: 0 | L181: 122
A182: 21 | B182: 23786 | C182: 22 | D182: 23795 | E182: 24 | F182: 23804 | K182: 0 | L182: 222
A183: 21 | B183: 23909 | C183: 22 | D183: 23916 | E183: 24 | F183: 23921 | L183: 222

Sheet !M903820.101
A1: Report for:!M903820.101
A2: Date: | B2: <date>
A3: Hen: | B3: <hen> | F3: Correct Sequence | G3: =Start!J2 -> 211 | P3: Total Sequences in Data | Q3: =4994-COUNTBLANK(L7:L5000) -> 185 | V3: Total Sequences in Block Data | W3: =COUNTA(L7:L37) -> 31 | AA3: Total Sequences in Block Data | AB3: =COUNTA(L38:L68) -> 31 | AF3: Total Sequences in Block Data | AG3: =COUNTA(L69:L98) -> 30 | AK3: Total Sequences in Block Data | AL3: =COUNTA(L99:L129) -> 31 | AP3: Total Sequences in Block Data | AQ3: =COUNTA(L130:L160) -> 31 | AU3: Total Sequences in Block Data | AV3: =COUNTA(L161:L191) -> 31
P4: Total Sequences in Summary | Q4: =SUM(O7:O14) -> 185 | V4: Total Sequences in Block Summary | W4: =SUM(U7:U14) -> 31 | AA4: Total Sequences in Block Summary | AB4: =SUM(Z7:Z14) -> 31 | AF4: Total Sequences in Block Summary | AG4: =SUM(AE7:AE14) -> 30 | AK4: Total Sequences in Block Summary | AL4: =SUM(AJ7:AJ14) -> 31 | AP4: Total Sequences in Block Summary | AQ4: =SUM(AO7:AO14) -> 31 | AU4: Total Sequences in Block Summary | AV4: =SUM(AT7:AT14) -> 31
T5: Block 1 | Y5: Block 2 | AD5: Block 3 | AI5: Block 4 | AN5: Block 5 | AS5: Block 6
A6: Sequence Component 1 | B6: Time 1 | C6: Sequence Component 2 | D6: Time 2 | E6: Sequence Component 3 | F6: Time 3 | G6: Sequence Component 4 | H6: Time 4 | I6: Sequence Component 5 | J6: Time 5 | K6: Correct? 0=No 1=Yes | L6: Sequence | N6: Frequency | P6: Relative Frequency | Q6: Variability | T6: Frequency | V6: Relative Frequency | W6: Variability | Y6: Frequency | AA6: Relative Frequency | AB6: Variability | AD6: Frequency | AF6: Relative Frequency | AG6: Variability | AI6: Frequency | AK6: Relative Frequency | AL6: Variability | AN6: Frequency | AP6: Relative Frequency | AQ6: Variability | AS6: Frequency | AU6: Relative Frequency | AV6: Variability
A7: 12 | B7: 11 | C7: 24 | D7: 24 | E7: 24 | F7: 30 | K7: 0 | L7: 122 | N7: 111 | O7: =COUNTIF($L$7:$L$500,N7) -> 0 | P7: =O7/$Q$4 -> 0 | Q7: =IF(P7=0,0,(P7*((LOG(P7))/LOG(2)))) -> 0 | T7: =N7 -> 111 | U7: =COUNTIF(L7:L37,T7) -> 0 | V7: =U7/(W4-U11) -> 0 | W7: =IF(V7=0,0,(V7*((LOG(V7))/LOG(2)))) -> 0 | Y7: =N7 -> 111 | Z7: =COUNTIF(L38:L68,Y7) -> 0 | AA7: =Z7/(AB4-Z11) -> 0 | AB7: =IF(AA7=0,0,(AA7*((LOG(AA7))/LOG(2)))) -> 0 | AD7: =N7 -> 111 | AE7: =COUNTIF(L69:L98,AD7) -> 0 | AF7: =AE7/(AG4-AE11) -> 0 | AG7: =IF(AF7=0,0,(AF7*((LOG(AF7))/LOG(2)))) -> 0 | AI7: =N7 -> 111 | AJ7: =COUNTIF(L99:L129,AI7) -> 0 | AK7: =AJ7/(AL4-AJ11) -> 0 | AL7: =IF(AK7=0,0,(AK7*((LOG(AK7))/LOG(2)))) -> 0 | AN7: =N7 -> 111 | AO7: =COUNTIF(L130:L160,AN7) -> 0 | AP7: =AO7/(AQ4-AO11) -> 0 | AQ7: =IF(AP7=0,0,(AP7*((LOG(AP7))/LOG(2)))) -> 0 | AS7: =N7 -> 111 | AT7: =COUNTIF(L161:L191,AS7) -> 0 | AU7: =AT7/(AV4-AT11) -> 0 | AV7: =IF(AU7=0,0,(AU7*((LOG(AU7))/LOG(2)))) -> 0
A8: 12 | B8: 130 | C8: 24 | D8: 143 | E8: 24 | F8: 148 | K8: 0 | L8: 122 | N8: 112 | O8: =COUNTIF($L$7:$L$500,N8) -> 5 | P8: =O8/$Q$4 -> 0.02702702703 | Q8: =IF(P8=0,0,(P8*((LOG(P8))/LOG(2)))) -> -0.1407960369 | T8: =N8 -> 112 | U8: =COUNTIF(L7:L37,T8) -> 0 | V8: =U8/(W4-U11) -> 0 | W8: =IF(V8=0,0,(V8*((LOG(V8))/LOG(2)))) -> 0 | Y8: =N8 -> 112 | Z8: =COUNTIF(L38:L68,Y8) -> 0 | AA8: =Z8/(AB4-Z11) -> 0 | AB8: =IF(AA8=0,0,(AA8*((LOG(AA8))/LOG(2)))) -> 0 | AD8: =N8 -> 112 | AE8: =COUNTIF(L69:L98,AD8) -> 2 | AF8: =AE8/(AG4-AE11) -> 0.06666666667 | AG8: =IF(AF8=0,0,(AF8*((LOG(AF8))/LOG(2)))) -> -0.260459373 | AI8: =N8 -> 112 | AJ8: =COUNTIF(L99:L129,AI8) -> 1 | AK8: =AJ8/(AL4-AJ11) -> 0.03225806452 | AL8: =IF(AK8=0,0,(AK8*((LOG(AK8))/LOG(2)))) -> -0.1598127842 | AN8: =N8 -> 112 | AO8: =COUNTIF(L130:L160,AN8) -> 1 | AP8: =AO8/(AQ4-AO11) -> 0.03225806452 | AQ8: =IF(AP8=0,0,(AP8*((LOG(AP8))/LOG(2)))) -> -0.1598127842 | AS8: =N8 -> 112 | AT8: =COUNTIF(L161:L191,AS8) -> 1 | AU8: =AT8/(AV4-AT11) -> 0.03225806452 | AV8: =IF(AU8=0,0,(AU8*((LOG(AU8))/LOG(2)))) -> -0.1598127842
A9: 12 | B9: 243 | C9: 24 | D9: 256 | E9: 24 | F9: 261 | K9: 0 | L9: 122 | N9: 121 | O9: =COUNTIF($L$7:$L$500,N9) -> 0 | P9: =O9/$Q$4 -> 0 | Q9: =IF(P9=0,0,(P9*((LOG(P9))/LOG(2)))) -> 0 | T9: =N9 -> 121 | U9: =COUNTIF(L7:L37,T9) -> 0 | V9: =U9/(W4-U11) -> 0 | W9: =IF(V9=0,0,(V9*((LOG(V9))/LOG(2)))) -> 0 | Y9: =N9 -> 121 | Z9: =COUNTIF(L38:L68,Y9) -> 0 | AA9: =Z9/(AB4-Z11) -> 0 | AB9: =IF(AA9=0,0,(AA9*((LOG(AA9))/LOG(2)))) -> 0 | AD9: =N9 -> 121 | AE9: =COUNTIF(L69:L98,AD9) -> 0 | AF9: =AE9/(AG4-AE11) -> 0 | AG9: =IF(AF9=0,0,(AF9*((LOG(AF9))/LOG(2)))) -> 0 | AI9: =N9 -> 121 | AJ9: =COUNTIF(L99:L129,AI9) -> 0 | AK9: =AJ9/(AL4-AJ11) -> 0 | AL9: =IF(AK9=0,0,(AK9*((LOG(AK9))/LOG(2)))) -> 0 | AN9: =N9 -> 121 | AO9: =COUNTIF(L130:L160,AN9) -> 0 | AP9: =AO9/(AQ4-AO11) -> 0 | AQ9: =IF(AP9=0,0,(AP9*((LOG(AP9))/LOG(2)))) -> 0 | AS9: =N9 -> 121 | AT9: =COUNTIF(L161:L191,AS9) -> 0 | AU9: =AT9/(AV4-AT11) -> 0 | AV9: =IF(AU9=0,0,(AU9*((LOG(AU9))/LOG(2)))) -> 0
A10: 12 | B10: 361 | C10: 24 | D10: 379 | E10: 24 | F10: 387 | K10: 0 | L10: 122 | N10: 122 | O10: =COUNTIF($L$7:$L$500,N10) -> 108 | P10: =O10/$Q$4 -> 0.5837837838 | Q10: =IF(P10=0,0,(P10*((LOG(P10))/LOG(2)))) -> -0.4533045811 | T10: =N10 -> 122 | U10: =COUNTIF(L7:L37,T10) -> 22 | V10: =U10/(W4-U11) -> 0.7096774194 | W10: =IF(V10=0,0,(V10*((LOG(V10))/LOG(2)))) -> -0.3511233296 | Y10: =N10 -> 122 | Z10: =COUNTIF(L38:L68,Y10) -> 18 | AA10: =Z10/(AB4-Z11) -> 0.5806451613 | AB10: =IF(AA10=0,0,(AA10*((LOG(AA10))/LOG(2)))) -> -0.4553833407 | AD10: =N10 -> 122 | AE10: =COUNTIF(L69:L98,AD10) -> 22 | AF10: =AE10/(AG4-AE11) -> 0.7333333333 | AG10: =IF(AF10=0,0,(AF10*((LOG(AF10))/LOG(2)))) -> -0.3281365831 | AI10: =N10 -> 122 | AJ10: =COUNTIF(L99:L129,AI10) -> 12 | AK10: =AJ10/(AL4-AJ11) -> 0.3870967742 | AL10: =IF(AK10=0,0,(AK10*((LOG(AK10))/LOG(2)))) -> -0.5300259908 | AN10: =N10 -> 122 | AO10: =COUNTIF(L130:L160,AN10) -> 20 | AP10: =AO10/(AQ4-AO11) -> 0.6451612903 | AQ10: =IF(AP10=0,0,(AP10*((LOG(AP10))/LOG(2)))) -> -0.4079149777 | AS10: =N10 -> 122 | AT10: =COUNTIF(L161:L191,AS10) -> 14 | AU10: =AT10/(AV4-AT11) -> 0.4516129032 | AV10: =IF(AU10=0,0,(AU10*((LOG(AU10))/LOG(2)))) -> -0.5179283689
A11: 12 | B11: 486 | C11: 24 | D11: 510 | E11: 24 | F11: 521 | K11: 0 | L11: 122 | N11: 211 | O11: =COUNTIF($L$7:$L$500,N11) -> 0 | P11: =O11/$Q$4 -> 0 | Q11: =IF(P11=0,0,(P11*((LOG(P11))/LOG(2)))) -> 0 | T11: =N11 -> 211 | U11: =COUNTIF(L7:L37,T11) -> 0 | Y11: =N11 -> 211 | Z11: =COUNTIF(L38:L68,Y11) -> 0 | AD11: =N11 -> 211 | AE11: =COUNTIF(L69:L98,AD11) -> 0 | AI11: =N11 -> 211 | AJ11: =COUNTIF(L99:L129,AI11) -> 0 | AN11: =N11 -> 211 | AO11: =COUNTIF(L130:L160,AN11) -> 0 | AS11: =N11 -> 211 | AT11: =COUNTIF(L161:L191,AS11) -> 0
A12: 12 | B12: 622 | C12: 24 | D12: 634 | E12: 24 | F12: 645 | K12: 0 | L12: 122 | N12: 212 | O12: =COUNTIF($L$7:$L$500,N12) -> 0 | P12: =O12/$Q$4 -> 0 | Q12: =IF(P12=0,0,(P12*((LOG(P12))/LOG(2)))) -> 0 | T12: =N12 -> 212 | U12: =COUNTIF(L7:L37,T12) -> 0 | V12: =U12/(W4-U11) -> 0 | W12: =IF(V12=0,0,(V12*((LOG(V12))/LOG(2)))) -> 0 | Y12: =N12 -> 212 | Z12: =COUNTIF(L38:L68,Y12) -> 0 | AA12: =Z12/(AB4-Z11) -> 0 | AB12: =IF(AA12=0,0,(AA12*((LOG(AA12))/LOG(2)))) -> 0 | AD12: =N12 -> 212 | AE12: =COUNTIF(L69:L98,AD12) -> 0 | AF12: =AE12/(AG4-AE11) -> 0 | AG12: =IF(AF12=0,0,(AF12*((LOG(AF12))/LOG(2)))) -> 0 | AI12: =N12 -> 212 | AJ12: =COUNTIF(L99:L129,AI12) -> 0 | AK12: =AJ12/(AL4-AJ11) -> 0 | AL12: =IF(AK12=0,0,(AK12*((LOG(AK12))/LOG(2)))) -> 0 | AN12: =N12 -> 212 | AO12: =COUNTIF(L130:L160,AN12) -> 0 | AP12: =AO12/(AQ4-AO11) -> 0 | AQ12: =IF(AP12=0,0,(AP12*((LOG(AP12))/LOG(2)))) -> 0 | AS12: =N12 -> 212 | AT12: =COUNTIF(L161:L191,AS12) -> 0 | AU12: =AT12/(AV4-AT11) -> 0 | AV12: =IF(AU12=0,0,(AU12*((LOG(AU12))/LOG(2)))) -> 0
A13: 12 | B13: 741 | C13: 24 | D13: 755 | E13: 24 | F13: 761 | K13: 0 | L13: 122 | N13: 221 | O13: =COUNTIF($L$7:$L$500,N13) -> 0 | P13: =O13/$Q$4 -> 0 | Q13: =IF(P13=0,0,(P13*((LOG(P13))/LOG(2)))) -> 0 | T13: =N13 -> 221 | U13: =COUNTIF(L7:L37,T13) -> 0 | V13: =U13/(W4-U11) -> 0 | W13: =IF(V13=0,0,(V13*((LOG(V13))/LOG(2)))) -> 0 | Y13: =N13 -> 221 | Z13: =COUNTIF(L38:L68,Y13) -> 0 | AA13: =Z13/(AB4-Z11) -> 0 | AB13: =IF(AA13=0,0,(AA13*((LOG(AA13))/LOG(2)))) -> 0 | AD13: =N13 -> 221 | AE13: =COUNTIF(L69:L98,AD13) -> 0 | AF13: =AE13/(AG4-AE11) -> 0 | AG13: =IF(AF13=0,0,(AF13*((LOG(AF13))/LOG(2)))) -> 0 | AI13: =N13 -> 221 | AJ13: =COUNTIF(L99:L129,AI13) -> 0 | AK13: =AJ13/(AL4-AJ11) -> 0 | AL13: =IF(AK13=0,0,(AK13*((LOG(AK13))/LOG(2)))) -> 0 | AN13: =N13 -> 221 | AO13: =COUNTIF(L130:L160,AN13) -> 0 | AP13: =AO13/(AQ4-AO11) -> 0 | AQ13: =IF(AP13=0,0,(AP13*((LOG(AP13))/LOG(2)))) -> 0 | AS13: =N13 -> 221 | AT13: =COUNTIF(L161:L191,AS13) -> 0 | AU13: =AT13/(AV4-AT11) -> 0 | AV13: =IF(AU13=0,0,(AU13*((LOG(AU13))/LOG(2)))) -> 0
A14: 21 | B14: 873 | C14: 22 | D14: 880 | E14: 24 | F14: 887 | K14: 0 | L14: 222 | N14: 222 | O14: =COUNTIF($L$7:$L$500,N14) -> 72 | P14: =O14/$Q$4 -> 0.3891891892 | Q14: =IF(P14=0,0,(P14*((LOG(P14))/LOG(2)))) -> -0.5298641354 | T14: =N14 -> 222 | U14: =COUNTIF(L7:L37,T14) -> 9 | V14: =U14/(W4-U11) -> 0.2903225806 | W14: =IF(V14=0,0,(V14*((LOG(V14))/LOG(2)))) -> -0.518014251 | Y14: =N14 -> 222 | Z14: =COUNTIF(L38:L68,Y14) -> 13 | AA14: =Z14/(AB4-Z11) -> 0.4193548387 | AB14: =IF(AA14=0,0,(AA14*((LOG(AA14))/LOG(2)))) -> -0.5257688935 | AD14: =N14 -> 222 | AE14: =COUNTIF(L69:L98,AD14) -> 6 | AF14: =AE14/(AG4-AE11) -> 0.2 | AG14: =IF(AF14=0,0,(AF14*((LOG(AF14))/LOG(2)))) -> -0.464385619 | AI14: =N14 -> 222 | AJ14: =COUNTIF(L99:L129,AI14) -> 18 | AK14: =AJ14/(AL4-AJ11) -> 0.5806451613 | AL14: =IF(AK14=0,0,(AK14*((LOG(AK14))/LOG(2)))) -> -0.4553833407 | AN14: =N14 -> 222 | AO14: =COUNTIF(L130:L160,AN14) -> 10 | AP14: =AO14/(AQ4-AO11) -> 0.3225806452 | AQ14: =IF(AP14=0,0,(AP14*((LOG(AP14))/LOG(2)))) -> -0.526538134 | AS14: =N14 -> 222 | AT14: =COUNTIF(L161:L191,AS14) -> 16 | AU14: =AT14/(AV4-AT11) -> 0.5161290323 | AV14: =IF(AU14=0,0,(AU14*((LOG(AU14))/LOG(2)))) -> -0.4924884183
A15: 21 | B15: 1005 | C15: 22 | D15: 1019 | E15: 24 | F15: 1039 | K15: 0 | L15: 222 | P15: =SUM(P7:P14) -> 1 | Q15: =-SUM(Q7:Q14) -> 1.123964753 | V15: =SUM(V7:V14) -> 1 | W15: =-SUM(W7:W14) -> 0.8691375806 | AA15: =SUM(AA7:AA14) -> 1 | AB15: =-SUM(AB7:AB14) -> 0.9811522342 | AF15: =SUM(AF7:AF14) -> 1 | AG15: =-SUM(AG7:AG14) -> 1.052981575 | AK15: =SUM(AK7:AK14) -> 1 | AL15: =-SUM(AL7:AL14) -> 1.145222116 | AP15: =SUM(AP7:AP14) -> 1 | AQ15: =-SUM(AQ7:AQ14) -> 1.094265896 | AU15: =SUM(AU7:AU14) -> 1 | AV15: =-SUM(AV7:AV14) -> 1.170229571
A16: 12 | B16: 1136 | C16: 24 | D16: 1149 | E16: 24 | F16: 1154 | K16: 0 | L16: 122 | P16: U= | Q16: =Q15/(LOG(Q4)/LOG(2)) -> 0.1492375282 | V16: U1= | W16: =W15/(LOG(W4)/LOG(2)) -> 0.1754346268 | AA16: U2= | AB16: =AB15/(LOG(AB4)/LOG(2)) -> 0.1980446823 | AF16: U3= | AG16: =AG15/(LOG(AG4)/LOG(2)) -> 0.2145924297 | AK16: U4= | AL16: =AL15/(LOG(AL4)/LOG(2)) -> 0.231162038 | AP16: U5= | AQ16: =AQ15/(LOG(AQ4)/LOG(2)) -> 0.2208765716 | AU16: U6= | AV16: =AV15/(LOG(AV4)/LOG(2)) -> 0.2362097701
A17: 21 | B17: 1265 | C17: 22 | D17: 1271 | E17: 24 | F17: 1275 | K17: 0 | L17: 222
A18: 12 | B18: 1378 | C18: 24 | D18: 1388 | E18: 24 | F18: 1394 | K18: 0 | L18: 122
A19: 12 | B19: 1489 | C19: 24 | D19: 1506 | E19: 24 | F19: 1530 | K19: 0 | L19: 122 | N19: Total Target Seq
A20: 12 | B20: 1627 | C20: 24 | D20: 1641 | E20: 24 | F20: 1647 | K20: 0 | L20: 122 | N20: =COUNTIF(L7:L191,G3) -> 0 | P20: 31 | Q20: 31 | R20: 30 | S20: 31 | T20: 31 | U20: 31
A21: 21 | B21: 1757 | C21: 22 | D21: 1767 | E21: 24 | F21: 1775 | K21: 0 | L21: 222 | P21: % of reinforcement given in 6 equal intervals based on number of trials
A22: 21 | B22: 1891 | C22: 22 | D22: 1901 | E22: 24 | F22: 1910 | K22: 0 | L22: 222 | P22: %_1 | Q22: %_2 | R22: %_3 | S22: %_4 | T22: %_5 | U22: %_6
A23: 21 | B23: 2024 | C23: 22 | D23: 2029 | E23: 24 | F23: 2042 | K23: 0 | L23: 222 | O23: target sequence | P23: =$G$3 -> 211 | Q23: =$G$3 -> 211 | R23: =$G$3 -> 211 | S23: =$G$3 -> 211 | T23: =$G$3 -> 211 | U23: =$G$3 -> 211
A24: 12 | B24: 2138 | C24: 24 | D24: 2158 | E24: 24 | F24: 2177 | K24: 0 | L24: 122 | O24: total reinforcement | P24: =U11 -> 0 | Q24: =Z11 -> 0 | R24: =AE11 -> 0 | S24: =AJ11 -> 0 | T24: =AO11 -> 0 | U24: =AT11 -> 0
A25: 21 | B25: 2286 | C25: 22 | D25: 2292 | E25: 24 | F25: 2299 | K25: 0 | L25: 222 | O25: % target
A26: 12 | B26: 2394 | C26: 24 | D26: 2407 | E26: 24 | F26: 2412 | K26: 0 | L26: 122 | O26: CCRF
A27: 21 | B27: 2521 | C27: 22 | D27: 2527 | E27: 24 | F27: 2536 | K27: 0 | L27: 222 | O27: % CCRf
A28: 12 | B28: 2638 | C28: 24 | D28: 2666 | E28: 24 | F28: 2674 | K28: 0 | L28: 122 | O28: average response rate | P28: =F37/P20 -> 123.483871 | Q28: =(F68-F37)/Q20 -> 140.3225806 | R28: =(F98-F68)/R20 -> 130.2333333 | S28: =(F129-F98)/S20 -> 129.1612903 | T28: =(F160-F129)/T20 -> 126.1290323 | U28: =(F191-F160)/U20 -> 125.8064516
A29: 12 | B29: 2775 | C29: 24 | D29: 2794 | E29: 24 | F29: 2800 | K29: 0 | L29: 122
A30: 12 | B30: 2901 | C30: 24 | D30: 2912 | E30: 24 | F30: 2917 | K30: 0 | L30: 122
A31: 12 | B31: 3009 | C31: 24 | D31: 3032 | E31: 24 | F31: 3055 | K31: 0 | L31: 122
A32: 12 | B32: 3153 | C32: 24 | D32: 3170 | E32: 24 | F32: 3177 | K32: 0 | L32: 122
A33: 12 | B33: 3274 | C33: 24 | D33: 3293 | E33: 24 | F33: 3307 | K33: 0 | L33: 122
A34: 12 | B34: 3415 | C34: 24 | D34: 3437 | E34: 24 | F34: 3455 | K34: 0 | L34: 122
A35: 21 | B35: 3557 | C35: 22 | D35: 3564 | E35: 24 | F35: 3568 | K35: 0 | L35: 222
A36: 12 | B36: 3670 | C36: 24 | D36: 3679 | E36: 24 | F36: 3700 | K36: 0 | L36: 122
A37: 12 | B37: 3798 | C37: 24 | D37: 3820 | E37: 24 | F37: 3828 | K37: 0 | L37: 122
A38: 12 | B38: 3927 | C38: 24 | D38: 3937 | E38: 24 | F38: 3957 | K38: 0 | L38: 122
A39: 12 | B39: 4053 | C39: 24 | D39: 4067 | E39: 24 | F39: 4072 | K39: 0 | L39: 122
A40: 21 | B40: 4185 | C40: 22 | D40: 4195 | E40: 24 | F40: 4206 | K40: 0 | L40: 222
A41: 12 | B41: 4306 | C41: 24 | D41: 4319 | E41: 24 | F41: 4325 | K41: 0 | L41: 122
A42: 12 | B42: 4421 | C42: 24 | D42: 4448 | E42: 24 | F42: 4456 | K42: 0 | L42: 122
A43: 12 | B43: 4554 | C43: 24 | D43: 4594 | E43: 24 | F43: 4602 | K43: 0 | L43: 122
A44: 12 | B44: 4698 | C44: 24 | D44: 4724 | E44: 24 | F44: 4731 | K44: 0 | L44: 122
A45: 12 | B45: 4826 | C45: 24 | D45: 4842 | E45: 24 | F45: 4852 | K45: 0 | L45: 122
A46: 12 | B46: 4974 | C46: 24 | D46: 4993 | E46: 24 | F46: 5013 | K46: 0 | L46: 122
A47: 21 | B47: 5115 | C47: 22 | D47: 5126 | E47: 24 | F47: 5160 | K47: 0 | L47: 222
A48: 12 | B48: 5264 | C48: 24 | D48: 5276 | E48: 24 | F48: 5283 | K48: 0 | L48: 122
A49: 21 | B49: 5409 | C49: 22 | D49: 5429 | E49: 24 | F49: 5437 | K49: 0 | L49: 222
A50: 12 | B50: 5535 | C50: 24 | D50: 5548 | E50: 24 | F50: 5555 | K50: 0 | L50: 122
A51: 12 | B51: 5655 | C51: 24 | D51: 5670 | E51: 24 | F51: 5677 | K51: 0 | L51: 122
A52: 12 | B52: 5777 | C52: 24 | D52: 5791 | E52: 24 | F52: 5802 | K52: 0 | L52: 122
A53: 12 | B53: 5899 | C53: 24 | D53: 5921 | E53: 24 | F53: 5926 | K53: 0 | L53: 122
A54: 21 | B54: 6050 | C54: 22 | D54: 6058 | E54: 24 | F54: 6074 | K54: 0 | L54: 222
A55: 12 | B55: 6175 | C55: 24 | D55: 6195 | E55: 24 | F55: 6202 | K55: 0 | L55: 122
A56: 12 | B56: 6302 | C56: 24 | D56: 6320 | E56: 24 | F56: 6332 | K56: 0 | L56: 122
A57: 21 | B57: 6457 | C57: 22 | D57: 6534 | E57: 24 | F57: 6545 | K57: 0 | L57: 222
A58: 12 | B58: 6640 | C58: 24 | D58: 6660 | E58: 24 | F58: 6668 | K58: 0 | L58: 122
A59: 21 | B59: 6785 | C59: 22 | D59: 6823 | E59: 24 | F59: 6903 | K59: 0 | L59: 222
A60: 21 | B60: 7012 | C60: 22 | D60: 7018 | E60: 24 | F60: 7028 | K60: 0 | L60: 222
A61: 21 | B61: 7152 | C61: 22 | D61: 7182 | E61: 24 | F61: 7191 | K61: 0 | L61: 222
A62: 12 | B62: 7291 | C62: 24 | D62: 7313 | E62: 24 | F62: 7324 | K62: 0 | L62: 122
A63: 21 | B63: 7460 | C63: 22 | D63: 7469 | E63: 24 | F63: 7482 | K63: 0 | L63: 222
A64: 21 | B64: 7592 | C64: 22 | D64: 7608 | E64: 24 | F64: 7616 | K64: 0 | L64: 222
A65: 21 | B65: 7739 | C65: 22 | D65: 7752 | E65: 24 | F65: 7784 | K65: 0 | L65: 222
A66: 12 | B66: 7902 | C66: 24 | D66: 7924 | E66: 24 | F66: 7933 | K66: 0 | L66: 122
A67: 21 | B67: 8051 | C67: 22 | D67: 8055 | E67: 24 | F67: 8062 | K67: 0 | L67: 222
A68: 21 | B68: 8168 | C68: 22 | D68: 8173 | E68: 24 | F68: 8178 | K68: 0 | L68: 222
A69: 12 | B69: 8273 | C69: 24 | D69: 8291 | E69: 24 | F69: 8300 | K69: 0 | L69: 122
A70: 12 | B70: 8398 | C70: 24 | D70: 8410 | E70: 24 | F70: 8416 | K70: 0 | L70: 122
A71: 12 | B71: 8520 | C71: 24 | D71: 8540 | E71: 24 | F71: 8555 | K71: 0 | L71: 122
A72: 12 | B72: 8652 | C72: 24 | D72: 8665 | E72: 24 | F72: 8672 | K72: 0 | L72: 122
A73: 21 | B73: 8789 | C73: 22 | D73: 8797 | E73: 24 | F73: 8806 | K73: 0 | L73: 222
A74: 21 | B74: 8916 | C74: 22 | D74: 8921 | E74: 24 | F74: 8928 | K74: 0 | L74: 222
A75: 12 | B75: 9026 | C75: 24 | D75: 9040 | E75: 24 | F75: 9046 | K75: 0 | L75: 122
A76: 12 | B76: 9143 | C76: 24 | D76: 9165 | E76: 24 | F76: 9169 | K76: 0 | L76: 122
A77: 12 | B77: 9267 | C77: 24 | D77: 9282 | E77: 24 | F77: 9293 | K77: 0 | L77: 122
A78: 12 | B78: 9393 | C78: 24 | D78: 9406 | E78: 24 | F78: 9416 | K78: 0 | L78: 122
A79: 12 | B79: 9514 | C79: 24 | D79: 9526 | E79: 24 | F79: 9533 | K79: 0 | L79: 122
A80: 12 | B80: 9629 | C80: 24 | D80: 9642 | E80: 24 | F80: 9653 | K80: 0 | L80: 122
A81: 12 | B81: 9749 | C81: 24 | D81: 9762 | E81: 24 | F81: 9777 | K81: 0 | L81: 122
A82: 12 | B82: 9877 | C82: 24 | D82: 9890 | E82: 24 | F82: 9911 | K82: 0 | L82: 122
A83: 12 | B83: 10012 | C83: 24 | D83: 10031 | E83: 24 | F83: 10036 | K83: 0 | L83: 122
A84: 12 | B84: 10133 | C84: 13 | D84: 10140 | E84: 24 | F84: 10164 | K84: 0 | L84: 112
A85: 21 | B85: 10297 | C85: 22 | D85: 10306 | E85: 24 | F85: 10315 | K85: 0 | L85: 222
A86: 21 | B86: 10443 | C86: 22 | D86: 10458 | E86: 24 | F86: 10465 | K86: 0 | L86: 222
A87: 12 | B87: 10566 | C87: 24 | D87: 10587 | E87: 24 | F87: 10594 | K87: 0 | L87: 122
A88: 21 | B88: 10716 | C88: 22 | D88: 10721 | E88: 24 | F88: 10753 | K88: 0 | L88: 222
A89: 12 | B89: 10851 | C89: 24 | D89: 10868 | E89: 24 | F89: 10879 | K89: 0 | L89: 122
A90: 12 | B90: 10999 | C90: 24 | D90: 11019 | E90: 24 | F90: 11045 | K90: 0 | L90: 122
A91: 21 | B91: 11159 | C91: 22 | D91: 11169 | E91: 24 | F91: 11177 | K91: 0 | L91: 222
A92: 12 | B92: 11278 | C92: 24 | D92: 11291 | E92: 24 | F92: 11302 | K92: 0 | L92: 122
A93: 12 | B93: 11404 | C93: 24 | D93: 11430 | E93: 24 | F93: 11451 | K93: 0 | L93: 122
A94: 12 | B94: 11546 | C94: 24 | D94: 11560 | E94: 24 | F94: 11569 | K94: 0 | L94: 122
A95: 12 | B95: 11686 | C95: 13 | D95: 11691 | E95: 24 | F95: 11708 | K95: 0 | L95: 112
A96: 12 | B96: 11811 | C96: 24 | D96: 11825 | E96: 24 | F96: 11831 | K96: 0 | L96: 122
A97: 12 | B97: 11934 | C97: 24 | D97: 11955 | E97: 24 | F97: 11964 | K97: 0 | L97: 122
A98: 12 | B98: 12062 | C98: 24 | D98: 12078 | E98: 24 | F98: 12085 | K98: 0 | L98: 122
A99: 21 | B99: 12194 | C99: 22 | D99: 12202 | E99: 24 | F99: 12208 | K99: 0 | L99: 222
A100: 21 | B100: 12325 | C100: 22 | D100: 12333 | E100: 24 | F100: 12342 | K100: 0 | L100: 222
A101: 21 | B101: 12468 | C101: 22 | D101: 12484 | E101: 24 | F101: 12498 | K101: 0 | L101: 222
A102: 21 | B102: 12607 | C102: 22 | D102: 12616 | E102: 24 | F102: 12629 | K102: 0 | L102: 222
A103: 21 | B103: 12739 | C103: 22 | D103: 12749 | E103: 24 | F103: 12757 | K103: 0 | L103: 222
A104: 12 | B104: 12855 | C104: 24 | D104: 12869 | E104: 24 | F104: 12879 | K104: 0 | L104: 122
A105: 12 | B105: 12977 | C105: 24 | D105: 12992 | E105: 24 | F105: 13002 | K105: 0 | L105: 122
A106: 12 | B106: 13100 | C106: 24 | D106: 13112 | E106: 24 | F106: 13118 | K106: 0 | L106: 122
A107: 12 | B107: 13211 | C107: 24 | D107: 13224 | E107: 24 | F107: 13231 | K107: 0 | L107: 122
A108: 21 | B108: 13346 | C108: 22 | D108: 13351 | E108: 24 | F108: 13360 | K108: 0 | L108: 222
A109: 21 | B109: 13474 | C109: 22 | D109: 13484 | E109: 24 | F109: 13492 | K109: 0 | L109: 222
A110: 12 | B110: 13590 | C110: 24 | D110: 13614 | E110: 24 | F110: 13622 | K110: 0 | L110: 122
A111: 21 | B111: 13743 | C111: 22 | D111: 13752 | E111: 24 | F111: 13760 | K111: 0 | L111: 222
A112: 12 | B112: 13857 | C112: 13 | D112: 13859 | E112: 24 | F112: 13879 | K112: 0 | L112: 112
A113: 21 | B113: 13983 | C113: 22 | D113: 13993 | E113: 24 | F113: 14003 | K113: 0 | L113: 222
A114: 12 | B114: 14099 | C114: 24 | D114: 14114 | E114: 24 | F114: 14123 | K114: 0 | L114: 122
A115: 12 | B115: 14224 | C115: 24 | D115: 14248 | E115: 24 | F115: 14256 | K115: 0 | L115: 122
A116: 21 | B116: 14370 | C116: 22 | D116: 14377 | E116: 24 | F116: 14393 | K116: 0 | L116: 222
A117: 12 | B117: 14491 | C117: 24 | D117: 14503 | E117: 24 | F117: 14513 | K117: 0 | L117: 122
A118: 21 | B118: 14639 | C118: 22 | D118: 14647 | E118: 24 | F118: 14654 | K118: 0 | L118: 222
A119: 12 | B119: 14760 | C119: 24 | D119: 14779 | E119: 24 | F119: 14787 | K119: 0 | L119: 122
A120: 21 | B120: 14895 | C120: 22 | D120: 14904 | E120: 24 | F120: 14933 | K120: 0 | L120: 222
A121: 21 | B121: 15058 | C121: 22 | D121: 15066 | E121: 24 | F121: 15073 | K121: 0 | L121: 222
A122: 21 | B122: 15183 | C122: 22 | D122: 15189 | E122: 24 | F122: 15196 | K122: 0 | L122: 222
A123: 21 | B123: 15304 | C123: 22 | D123: 15311 | E123: 24 | F123: 15316 | K123: 0 | L123: 222
A124: 21 | B124: 15431 | C124: 22 | D124: 15439 | E124: 24 | F124: 15451 | K124: 0 | L124: 222
A125: 12 | B125: 15550 | C125: 24 | D125: 15564 | E125: 24 | F125: 15572 | K125: 0 | L125: 122
A126: 21 | B126: 15678 | C126: 22 | D126: 15690 | E126: 24 | F126: 15698 | K126: 0 | L126: 222
A127: 21 | B127: 15802 | C127: 22 | D127: 15814 | E127: 24 | F127: 15829 | K127: 0 | L127: 222
A128: 12 | B128: 15928 | C128: 24 | D128: 15954 | E128: 24 | F128: 15963 | K128: 0 | L128: 122
A129: 12 | B129: 16064 | C129: 24 | D129: 16082 | E129: 24 | F129: 16089 | K129: 0 | L129: 122
A130: 12 | B130: 16188 | C130: 24 | D130: 16220 | E130: 24 | F130: 16231 | K130: 0 | L130: 122
A131: 12 | B131: 16336 | C131: 24 | D131: 16351 | E131: 24 | F131: 16358 | K131: 0 | L131: 122
A132: 21 | B132: 16467 | C132: 22 | D132: 16473 | E132: 24 | F132: 16501 | K132: 0 | L132: 222
A133: 12 | B133: 16598 | C133: 24 | D133: 16623 | E133: 24 | F133: 16633 | K133: 0 | L133: 122
A134: 12 | B134: 16734 | C134: 24 | D134: 16751 | E134: 24 | F134: 16756 | K134: 0 | L134: 122
A135: 12 | B135: 16854 | C135: 24 | D135: 16866 | E135: 24 | F135: 16874 | K135: 0 | L135: 122
A136: 21 | B136: 16985 | C136: 22 | D136: 17022 | E136: 24 | F136: 17031 | K136: 0 | L136: 222
A137: 12 | B137: 17128 | C137: 24 | D137: 17142 | E137: 24 | F137: 17154 | K137: 0 | L137: 122
A138: 21 | B138: 17262 | C138: 22 | D138: 17273 | E138: 24 | F138: 17280 | K138: 0 | L138: 222
A139: 12 | B139: 17377 | C139: 24 | D139: 17394 | E139: 24 | F139: 17401 | K139: 0 | L139: 122
A140: 21 | B140: 17522 | C140: 22 | D140: 17530 | E140: 24 | F140: 17539 | K140: 0 | L140: 222
A141: 12 | B141: 17638 | C141: 24 | D141: 17652 | E141: 24 | F141: 17664 | K141: 0 | L141: 122
A142: 12 | B142: 17761 | C142: 24 | D142: 17771 | E142: 24 | F142: 17785 | K142: 0 | L142: 122
A143: 21 | B143: 17901 | C143: 22 | D143: 17907 | E143: 24 | F143: 17914 | K143: 0 | L143: 222
A144: 12 | B144: 18015 | C144: 13 | D144: 18017 | E144: 24 | F144: 18033 | K144: 0 | L144: 112
A145: 12 | B145: 18130 | C145: 24 | D145: 18143 | E145: 24 | F145: 18162 | K145: 0 | L145: 122
A146: 12 | B146: 18260 | C146: 24 | D146: 18273 | E146: 24 | F146: 18279 | K146: 0 | L146: 122
A147: 21 | B147: 18389 | C147: 22 | D147: 18396 | E147: 24 | F147: 18404 | K147: 0 | L147: 222
A148: 12 | B148: 18505 | C148: 24 | D148: 18529 | E148: 24 | F148: 18538 | K148: 0 | L148: 122
A149: 12 | B149: 18634 | C149: 24 | D149: 18647 | E149: 24 | F149: 18652 | K149: 0 | L149: 122
A150: 21 | B150: 18764 | C150: 22 | D150: 18770 | E150: 24 | F150: 18777 | K150: 0 | L150: 222
A151: 12 | B151: 18877 | C151: 24 | D151: 18894 | E151: 24 | F151: 18900 | K151: 0 | L151: 122
A152: 21 | B152: 19012 | C152: 22 | D152: 19019 | E152: 24 | F152: 19027 | K152: 0 | L152: 222
A153: 21 | B153: 19133 | C153: 22 | D153: 19141 | E153: 24 | F153: 19154 | K153: 0 | L153: 222
A154: 21 | B154: 19265 | C154: 22 | D154: 19271 | E154: 24 | F154: 19275 | K154: 0 | L154: 222
A155: 12 | B155: 19373 | C155: 24 | D155: 19387 | E155: 24 | F155: 19397 | K155: 0 | L155: 122
A156: 12 | B156: 19492 | C156: 24 | D156: 19505 | E156: 24 | F156: 19513 | K156: 0 | L156: 122
A157: 12 | B157: 19612 | C157: 24 | D157: 19627 | E157: 24 | F157: 19634 | K157: 0 | L157: 122
A158: 12 | B158: 19735 | C158: 24 | D158: 19749 | E158: 24 | F158: 19756 | K158: 0 | L158: 122
A159: 12 | B159: 19856 | C159: 24 | D159: 19871 | E159: 24 | F159: 19876 | K159: 0 | L159: 122
A160: 12 | B160: 19976 | C160: 24 | D160: 19989 | E160: 24 | F160: 19999 | K160: 0 | L160: 122
A161: 12 | B161: 20096 | C161: 24 | D161: 20110 | E161: 24 | F161: 20117 | K161: 0 | L161: 122
A162: 21 | B162: 20227 | C162: 22 | D162: 20233 | E162: 24 | F162: 20240 | K162: 0 | L162: 222
A163: 12 | B163: 20332 | C163: 13 | D163: 20342 | E163: 24 | F163: 20355 | K163: 0 | L163: 112
A164: 12 | B164: 20451 | C164: 24 | D164: 20465 | E164: 24 | F164: 20473 | K164: 0 | L164: 122
A165: 12 | B165: 20574 | C165: 24 | D165: 20584 | E165: 24 | F165: 20591 | K165: 0 | L165: 122
A166: 12 | B166: 20686 | C166: 24 | D166: 20700 | E166: 24 | F166: 20717 | K166: 0 | L166: 122
A167: 21 | B167: 20831 | C167: 22 | D167: 20845 | E167: 24 | F167: 20885 | K167: 0 | L167: 222
A168: 21 | B168: 20999 | C168: 22 | D168: 21007 | E168: 24 | F168: 21023 | K168: 0 | L168: 222
A169: 12 | B169: 21122 | C169: 24 | D169: 21141 | E169: 24 | F169: 21149 | K169: 0 | L169: 122
A170: 12 | B170: 21249 | C170: 24 | D170: 21263 | E170: 24 | F170: 21269 | K170: 0 | L170: 122
A171: 21 | B171: 21379 | C171: 22 | D171: 21389 | E171: 24 | F171: 21396 | K171: 0 | L171: 222
A172: 21 | B172: 21502 | C172: 22 | D172: 21510 | E172: 24 | F172: 21519 | K172: 0 | L172: 222
A173: 12 | B173: 21614 | C173: 24 | D173: 21626 | E173: 24 | F173: 21633 | K173: 0 | L173: 122
A174: 21 | B174: 21743 | C174: 22 | D174: 21749 | E174: 24 | F174: 21757 | K174: 0 | L174: 222
A175: 21 | B175: 21863 | C175: 22 | D175: 21870 | E175: 24 | F175: 21885 | K175: 0 | L175: 222
A176: 21 | B176: 21996 | C176: 22 | D176: 22003 | E176: 24 | F176: 22010 | K176: 0 | L176: 222
A177: 21 | B177: 22124 | C177: 22 | D177: 22132 | E177: 24 | F177: 22141 | K177: 0 | L177: 222
A178: 21 | B178: 22252 | C178: 22 | D178: 22259 | E178: 24 | F178: 22266 | K178: 0 | L178: 222
A179: 12 | B179: 22367 | C179: 24 | D179: 22381 | E179: 24 | F179: 22392 | K179: 0 | L179: 122
A180: 21 | B180: 22499 | C180: 22 | D180: 22504 | E180: 24 | F180: 22511 | K180: 0 | L180: 222
A181: 12 | B181: 22611 | C181: 24 | D181: 22626 | E181: 24 | F181: 22633 | K181: 0 | L181: 122
A182: 21 | B182: 22743 | C182: 22 | D182: 22749 | E182: 24 | F182: 22756 | K182: 0 | L182: 222
A183: 21 | B183: 22863 | C183: 22 | D183: 22876 | E183: 24 | F183: 22884 | K183: 0 | L183: 222
A184: 12 | B184: 22986 | C184: 24 | D184: 22999 | E184: 24 | F184: 23007 | K184: 0 | L184: 122
A185: 12 | B185: 23107 | C185: 24 | D185: 23120 | E185: 24 | F185: 23128 | K185: 0 | L185: 122
A186: 21 | B186: 23235 | C186: 22 | D186: 23242 | E186: 24 | F186: 23250 | K186: 0 | L186: 222
A187: 21 | B187: 23365 | C187: 22 | D187: 23370 | E187: 24 | F187: 23378 | K187: 0 | L187: 222
A188: 12 | B188: 23480 | C188: 24 | D188: 23499 | E188: 24 | F188: 23507 | K188: 0 | L188: 122
A189: 12 | B189: 23603 | C189: 24 | D189: 23616 | E189: 24 | F189: 23623 | K189: 0 | L189: 122
A190: 21 | B190: 23741 | C190: 22 | D190: 23749 | E190: 24 | F190: 23762 | K190: 0 | L190: 222
A191: 12 | B191: 23866 | C191: 24 | D191: 23892 | E191: 24 | F191: 23899 | K191: 0 | L191: 122

Sheet !M904830.101
A1: Report for:!M904830.101
A2: Date: | B2: <date>
A3: Hen: | B3: <hen> | F3: Correct Sequence | G3: =Start!J2 -> 211 | P3: Total Sequences in Data | Q3: =4994-COUNTBLANK(L7:L5000) -> 181 | V3: Total Sequences in Block Data | W3: =COUNTA(L7:L36) -> 30 | AA3: Total Sequences in Block Data | AB3: =COUNTA(L37:L66) -> 30 | AF3: Total Sequences in Block Data | AG3: =COUNTA(L67:L97) -> 31 | AK3: Total Sequences in Block Data | AL3: =COUNTA(L98:L127) -> 30 | AP3: Total Sequences in Block Data | AQ3: =COUNTA(L128:L157) -> 30 | AU3: Total Sequences in Block Data | AV3: =COUNTA(L158:L187) -> 30
P4: Total Sequences in Summary | Q4: =SUM(O7:O14) -> 181 | V4: Total Sequences in Block Summary | W4: =SUM(U7:U14) -> 30 | AA4: Total Sequences in Block Summary | AB4: =SUM(Z7:Z14) -> 30 | AF4: Total Sequences in Block Summary | AG4: =SUM(AE7:AE14) -> 31 | AK4: Total Sequences in Block Summary | AL4: =SUM(AJ7:AJ14) -> 30 | AP4: Total Sequences in Block Summary | AQ4: =SUM(AO7:AO14) -> 30 | AU4: Total Sequences in Block Summary | AV4: =SUM(AT7:AT14) -> 30
T5: Block 1 | Y5: Block 2 | AD5: Block 3 | AI5: Block 4 | AN5: Block 5 | AS5: Block 6
A6: Sequence Component 1 | B6: Time 1 | C6: Sequence Component 2 | D6: Time 2 | E6: Sequence Component 3 | F6: Time 3 | G6: Sequence Component 4 | H6: Time 4 | I6: Sequence Component 5 | J6: Time 5 | K6: Correct? 0=No 1=Yes | L6: Sequence | N6: Frequency | P6: Relative Frequency | Q6: Variability | T6: Frequency | V6: Relative Frequency | W6: Variability | Y6: Frequency | AA6: Relative Frequency | AB6: Variability | AD6: Frequency | AF6: Relative Frequency | AG6: Variability | AI6: Frequency | AK6: Relative Frequency | AL6: Variability | AN6: Frequency | AP6: Relative Frequency | AQ6: Variability | AS6: Frequency | AU6: Relative Frequency | AV6: Variability
A7: 12 | B7: 11 | C7: 24 | D7: 24 | E7: 24 | F7: 39 | K7: 0 | L7: 122 | N7: 111 | O7: =COUNTIF($L$7:$L$500,N7) -> 0 | P7: =O7/$Q$4 -> 0 | Q7: =IF(P7=0,0,(P7*((LOG(P7))/LOG(2)))) -> 0 | T7: =N7 -> 111 | U7: =COUNTIF(L7:L36,T7) -> 0 | V7: =U7/(W4-U11) -> 0 | W7: =IF(V7=0,0,(V7*((LOG(V7))/LOG(2)))) -> 0 | Y7: =N7 -> 111 | Z7: =COUNTIF(L37:L66,Y7) -> 0 | AA7: =Z7/(AB4-Z11) -> 0 | AB7: =IF(AA7=0,0,(AA7*((LOG(AA7))/LOG(2)))) -> 0 | AD7: =N7 -> 111 | AE7: =COUNTIF(L67:L97,AD7) -> 0 | AF7: =AE7/(AG4-AE11) -> 0 | AG7: =IF(AF7=0,0,(AF7*((LOG(AF7))/LOG(2)))) -> 0 | AI7: =N7 -> 111 | AJ7: =COUNTIF(L98:L127,AI7) -> 0 | AK7: =AJ7/(AL4-AJ11) -> 0 | AL7: =IF(AK7=0,0,(AK7*((LOG(AK7))/LOG(2)))) -> 0 | AN7: =N7 -> 111 | AO7: =COUNTIF(L128:L157,AN7) -> 0 | AP7: =AO7/(AQ4-AO11) -> 0 | AQ7: =IF(AP7=0,0,(AP7*((LOG(AP7))/LOG(2)))) -> 0 | AS7: =N7 -> 111 | AT7: =COUNTIF(L158:L187,AS7) -> 0 | AU7: =AT7/(AV4-AT11) -> 0 | AV7: =IF(AU7=0,0,(AU7*((LOG(AU7))/LOG(2)))) -> 0
A8: 12 | B8: 138 | C8: 24 | D8: 151 | E8: 24 | F8: 157 | K8: 0 | L8: 122 | N8: 112 | O8: =COUNTIF($L$7:$L$500,N8) -> 4 | P8: =O8/$Q$4 -> 0.02209944751 | Q8: =IF(P8=0,0,(P8*((LOG(P8))/LOG(2)))) -> -0.1215435555 | T8: =N8 -> 112 | U8: =COUNTIF(L7:L36,T8) -> 0 | V8: =U8/(W4-U11) -> 0 | W8: =IF(V8=0,0,(V8*((LOG(V8))/LOG(2)))) -> 0 | Y8: =N8 -> 112 | Z8: =COUNTIF(L37:L66,Y8) -> 0 | AA8: =Z8/(AB4-Z11) -> 0 | AB8: =IF(AA8=0,0,(AA8*((LOG(AA8))/LOG(2)))) -> 0 | AD8: =N8 -> 112 | AE8: =COUNTIF(L67:L97,AD8) -> 0 | AF8: =AE8/(AG4-AE11) -> 0 | AG8: =IF(AF8=0,0,(AF8*((LOG(AF8))/LOG(2)))) -> 0 | AI8: =N8 -> 112 | AJ8: =COUNTIF(L98:L127,AI8) -> 3 | AK8: =AJ8/(AL4-AJ11) -> 0.1 | AL8: =IF(AK8=0,0,(AK8*((LOG(AK8))/LOG(2)))) -> -0.3321928095 | AN8: =N8 -> 112 | AO8: =COUNTIF(L128:L157,AN8) -> 0 | AP8: =AO8/(AQ4-AO11) -> 0 | AQ8: =IF(AP8=0,0,(AP8*((LOG(AP8))/LOG(2)))) -> 0 | AS8: =N8 -> 112 | AT8: =COUNTIF(L158:L187,AS8) -> 1 | AU8: =AT8/(AV4-AT11) -> 0.03333333333 | AV8: =IF(AU8=0,0,(AU8*((LOG(AU8))/LOG(2)))) -> -0.1635630199
A9: 21 | B9: 273 | C9: 22 | D9: 279 | E9: 24 | F9: 287 | K9: 0 | L9: 222 | N9: 121 | O9: =COUNTIF($L$7:$L$500,N9) -> 0 | P9: =O9/$Q$4 -> 0 | Q9: =IF(P9=0,0,(P9*((LOG(P9))/LOG(2)))) -> 0 | T9: =N9 -> 121 | U9: =COUNTIF(L7:L36,T9) -> 0 | V9: =U9/(W4-U11) -> 0 | W9: =IF(V9=0,0,(V9*((LOG(V9))/LOG(2)))) -> 0 | Y9: =N9 -> 121 | Z9: =COUNTIF(L37:L66,Y9) -> 0 | AA9: =Z9/(AB4-Z11) -> 0 | AB9: =IF(AA9=0,0,(AA9*((LOG(AA9))/LOG(2)))) -> 0 | AD9: =N9 -> 121 | AE9: =COUNTIF(L67:L97,AD9) -> 0 | AF9: =AE9/(AG4-AE11) -> 0 | AG9: =IF(AF9=0,0,(AF9*((LOG(AF9))/LOG(2)))) -> 0 | AI9: =N9 -> 121 | AJ9: =COUNTIF(L98:L127,AI9) -> 0 | AK9: =AJ9/(AL4-AJ11) -> 0 | AL9: =IF(AK9=0,0,(AK9*((LOG(AK9))/LOG(2)))) -> 0 | AN9: =N9 -> 121 | AO9: =COUNTIF(L128:L157,AN9) -> 0 | AP9: =AO9/(AQ4-AO11) -> 0 | AQ9: =IF(AP9=0,0,(AP9*((LOG(AP9))/LOG(2)))) -> 0 | AS9: =N9 -> 121 | AT9: =COUNTIF(L158:L187,AS9) -> 0 | AU9: =AT9/(AV4-AT11) -> 0 | AV9: =IF(AU9=0,0,(AU9*((LOG(AU9))/LOG(2)))) -> 0
A10: 12 | B10: 394 | C10: 24 | D10: 408 | E10: 24 | F10: 423 | K10: 0 | L10: 122 | N10: 122 | O10: =COUNTIF($L$7:$L$500,N10) -> 70 | P10: =O10/$Q$4 -> 0.3867403315 | Q10: =IF(P10=0,0,(P10*((LOG(P10))/LOG(2)))) -> -0.5300519387 | T10: =N10 -> 122 | U10: =COUNTIF(L7:L36,T10) -> 9 | V10: =U10/(W4-U11) -> 0.3 | W10: =IF(V10=0,0,(V10*((LOG(V10))/LOG(2)))) -> -0.5210896782 | Y10: =N10 -> 122 | Z10: =COUNTIF(L37:L66,Y10) -> 15 | AA10: =Z10/(AB4-Z11) -> 0.5 | AB10: =IF(AA10=0,0,(AA10*((LOG(AA10))/LOG(2)))) -> -0.5 | AD10: =N10 -> 122 | AE10: =COUNTIF(L67:L97,AD10) -> 14 | AF10: =AE10/(AG4-AE11) -> 0.4516129032 | AG10: =IF(AF10=0,0,(AF10*((LOG(AF10))/LOG(2)))) -> -0.5179283689 | AI10: =N10 -> 122 | AJ10: =COUNTIF(L98:L127,AI10) -> 8 | AK10: =AJ10/(AL4-AJ11) -> 0.2666666667 | AL10: =IF(AK10=0,0,(AK10*((LOG(AK10))/LOG(2)))) -> -0.5085041588 | AN10: =N10 -> 122 | AO10: =COUNTIF(L128:L157,AN10) -> 11 | AP10: =AO10/(AQ4-AO11) -> 0.3666666667 | AQ10: =IF(AP10=0,0,(AP10*((LOG(AP10))/LOG(2)))) -> -0.5307349582 | AS10: =N10 -> 122 | AT10: =COUNTIF(L158:L187,AS10) -> 13 | AU10: =AT10/(AV4-AT11) -> 0.4333333333 | AV10: =IF(AU10=0,0,(AU10*((LOG(AU10))/LOG(2)))) -> -0.5227953802
A11: 21 | B11: 528 | C11: 22 | D11: 538 | E11: 24 | F11: 550 | K11: 0 | L11: 222 | N11: 211 | O11: =COUNTIF($L$7:$L$500,N11) -> 0 | P11: =O11/$Q$4 -> 0 | Q11: =IF(P11=0,0,(P11*((LOG(P11))/LOG(2)))) -> 0 | T11: =N11 -> 211 | U11: =COUNTIF(L7:L36,T11) -> 0 | Y11: =N11 -> 211 | Z11: =COUNTIF(L37:L66,Y11) -> 0 | AD11: =N11 -> 211 | AE11: =COUNTIF(L67:L97,AD11) -> 0 | AI11: =N11 -> 211 | AJ11: =COUNTIF(L98:L127,AI11) -> 0 | AN11: =N11 -> 211 | AO11: =COUNTIF(L128:L157,AN11) -> 0 | AS11: =N11 -> 211 | AT11: =COUNTIF(L158:L187,AS11) -> 0
A12: 21 | B12: 667 | C12: 22 | D12: 672 | E12: 24 | F12: 678 | K12: 0 | L12: 222 | N12: 212 | O12: =COUNTIF($L$7:$L$500,N12) -> 0 | P12: =O12/$Q$4 -> 0 | Q12: =IF(P12=0,0,(P12*((LOG(P12))/LOG(2)))) -> 0 | T12: =N12 -> 212 | U12: =COUNTIF(L7:L36,T12) -> 0 | V12: =U12/(W4-U11) -> 0 | W12: =IF(V12=0,0,(V12*((LOG(V12))/LOG(2)))) -> 0 | Y12: =N12 -> 212 | Z12: =COUNTIF(L37:L66,Y12) -> 0 | AA12: =Z12/(AB4-Z11) -> 0 | AB12: =IF(AA12=0,0,(AA12*((LOG(AA12))/LOG(2)))) -> 0 | AD12: =N12 -> 212 | AE12: =COUNTIF(L67:L97,AD12) -> 0 | AF12: =AE12/(AG4-AE11) -> 0 | AG12: =IF(AF12=0,0,(AF12*((LOG(AF12))/LOG(2)))) -> 0 | AI12: =N12 -> 212 | AJ12: =COUNTIF(L98:L127,AI12) -> 0 | AK12: =AJ12/(AL4-AJ11) -> 0 | AL12: =IF(AK12=0,0,(AK12*((LOG(AK12))/LOG(2)))) -> 0 | AN12: =N12 -> 212 | AO12: =COUNTIF(L128:L157,AN12) -> 0 | AP12: =AO12/(AQ4-AO11) -> 0 | AQ12: =IF(AP12=0,0,(AP12*((LOG(AP12))/LOG(2)))) -> 0 | AS12: =N12 -> 212 | AT12: =COUNTIF(L158:L187,AS12) -> 0 | AU12: =AT12/(AV4-AT11) -> 0 | AV12: =IF(AU12=0,0,(AU12*((LOG(AU12))/LOG(2)))) -> 0
A13: 21 | B13: 783 | C13: 22 | D13: 788 | E13: 24 | F13: 793 | K13: 0 | L13: 222 | N13: 221 | O13: =COUNTIF($L$7:$L$500,N13) -> 0 | P13: =O13/$Q$4 -> 0 | Q13: =IF(P13=0,0,(P13*((LOG(P13))/LOG(2)))) -> 0 | T13: =N13 -> 221 | U13: =COUNTIF(L7:L36,T13) -> 0 | V13: =U13/(W4-U11) -> 0 | W13: =IF(V13=0,0,(V13*((LOG(V13))/LOG(2)))) -> 0 | Y13: =N13 -> 221 | Z13: =COUNTIF(L37:L66,Y13) -> 0 | AA13: =Z13/(AB4-Z11) -> 0 | AB13: =IF(AA13=0,0,(AA13*((LOG(AA13))/LOG(2)))) -> 0 | AD13: =N13 -> 221 | AE13: =COUNTIF(L67:L97,AD13) -> 0 | AF13: =AE13/(AG4-AE11) -> 0 | AG13: =IF(AF13=0,0,(AF13*((LOG(AF13))/LOG(2)))) -> 0 | AI13: =N13 -> 221 | AJ13: =COUNTIF(L98:L127,AI13) -> 0 | AK13: =AJ13/(AL4-AJ11) -> 0 | AL13: =IF(AK13=0,0,(AK13*((LOG(AK13))/LOG(2)))) -> 0 | AN13: =N13 -> 221 | AO13: =COUNTIF(L128:L157,AN13) -> 0 | AP13: =AO13/(AQ4-AO11) -> 0 | AQ13: =IF(AP13=0,0,(AP13*((LOG(AP13))/LOG(2)))) -> 0 | AS13: =N13 -> 221 | AT13: =COUNTIF(L158:L187,AS13) -> 0 | AU13: =AT13/(AV4-AT11) -> 0 | AV13: =IF(AU13=0,0,(AU13*((LOG(AU13))/LOG(2)))) -> 0
A14: 21 | B14: 905 | C14: 22 | D14: 914 | E14: 24 | F14: 920 | K14: 0 | L14: 222 | N14: 222 | O14: =COUNTIF($L$7:$L$500,N14) -> 107 | P14: =O14/$Q$4 -> 0.591160221 | Q14: =IF(P14=0,0,(P14*((LOG(P14))/LOG(2)))) -> -0.4483234385 | T14: =N14 -> 222 | U14: =COUNTIF(L7:L36,T14) -> 21 | V14: =U14/(W4-U11) -> 0.7 | W14: =IF(V14=0,0,(V14*((LOG(V14))/LOG(2)))) -> -0.360201221 | Y14: =N14 -> 222 | Z14: =COUNTIF(L37:L66,Y14) -> 15 | AA14: =Z14/(AB4-Z11) -> 0.5 | AB14: =IF(AA14=0,0,(AA14*((LOG(AA14))/LOG(2)))) -> -0.5 | AD14: =N14 -> 222 | AE14: =COUNTIF(L67:L97,AD14) -> 17 | AF14: =AE14/(AG4-AE11) -> 0.5483870968 | AG14: =IF(AF14=0,0,(AF14*((LOG(AF14))/LOG(2)))) -> -0.4753054508 | AI14: =N14 -> 222 | AJ14: =COUNTIF(L98:L127,AI14) -> 19 | AK14: =AJ14/(AL4-AJ11) -> 0.6333333333 | AL14: =IF(AK14=0,0,(AK14*((LOG(AK14))/LOG(2)))) -> -0.4173432854 | AN14: =N14 -> 222 | AO14: =COUNTIF(L128:L157,AN14) -> 19 | AP14: =AO14/(AQ4-AO11) -> 0.6333333333 | AQ14: =IF(AP14=0,0,(AP14*((LOG(AP14))/LOG(2)))) -> -0.4173432854 | AS14: =N14 -> 222 | AT14: =COUNTIF(L158:L187,AS14) -> 16 | AU14: =AT14/(AV4-AT11) -> 0.5333333333 | AV14: =IF(AU14=0,0,(AU14*((LOG(AU14))/LOG(2)))) -> -0.4836749843
A15: 12 | B15: 1016 | C15: 24 | D15: 1028 | E15: 24 | F15: 1038 | K15: 0 | L15: 122 | P15: =SUM(P7:P14) -> 1 | Q15: =-SUM(Q7:Q14) -> 1.099918933 | V15: =SUM(V7:V14) -> 1 | W15: =-SUM(W7:W14) -> 0.8812908992 | AA15: =SUM(AA7:AA14) -> 1 | AB15: =-SUM(AB7:AB14) -> 1 | AF15: =SUM(AF7:AF14) -> 1 | AG15: =-SUM(AG7:AG14) -> 0.9932338197 | AK15: =SUM(AK7:AK14) -> 1 | AL15: =-SUM(AL7:AL14) -> 1.258040254 | AP15: =SUM(AP7:AP14) -> 1 | AQ15: =-SUM(AQ7:AQ14) -> 0.9480782436 | AU15: =SUM(AU7:AU14) -> 1 | AV15: =-SUM(AV7:AV14) -> 1.170033384
A16: 21 | B16: 1139 | C16: 22 | D16: 1144 | E16: 24 | F16: 1149 | K16: 0 | L16: 222 | P16: U= | Q16: =Q15/(LOG(Q4)/LOG(2)) -> 0.1466588713 | V16: U1= | W16: =W15/(LOG(W4)/LOG(2)) -> 0.1796027203 | AA16: U2= | AB16: =AB15/(LOG(AB4)/LOG(2)) -> 0.2037950471 | AF16: U3= | AG16: =AG15/(LOG(AG4)/LOG(2)) -> 0.2004833393 | AK16: U4= | AL16: =AL15/(LOG(AL4)/LOG(2)) -> 0.2563823727 | AP16: U5= | AQ16: =AQ15/(LOG(AQ4)/LOG(2)) -> 0.1932136503 | AU16: U6= | AV16: =AV15/(LOG(AV4)/LOG(2)) -> 0.2384470087
A17: 21 | B17: 1263 | C17: 22 | D17: 1268 | E17: 24 | F17: 1276 | K17: 0 | L17: 222
A18: 12 | B18: 1374 | C18: 24 | D18: 1386 | E18: 24 | F18: 1392 | K18: 0 | L18: 122
A19: 21 | B19: 1503 | C19: 22 | D19: 1511 | E19: 24 | F19: 1524 | K19: 0 | L19: 222 | N19: Total Target Seq
A20: 12 | B20: 1620 | C20: 24 | D20: 1635 | E20: 24 | F20: 1640 | K20: 0 | L20: 122 | N20: =COUNTIF(L7:L187,G3) -> 0 | P20: 30 | Q20: 30 | R20: 31 | S20: 30 | T20: 30 | U20: 30
A21: 21 | B21: 1744 | C21: 22 | D21: 1759 | E21: 24 | F21: 1764 | K21: 0 | L21: 222 | P21: % of reinforcement given in 6 equal intervals based on number of trials
A22: 21 | B22: 1873 | C22: 22 | D22: 1879 | E22: 24 | F22: 1883 | K22: 0 | L22: 222 | P22: %_1 | Q22: %_2 | R22: %_3 | S22: %_4 | T22: %_5 | U22: %_6
A23: 21 | B23: 2007 | C23: 22 | D23: 2020 | E23: 24 | F23: 2030 | K23: 0 | L23: 222 | O23: target sequence | P23: =$G$3 -> 211 | Q23: =$G$3 -> 211 | R23: =$G$3 -> 211 | S23: =$G$3 -> 211 | T23: =$G$3 -> 211 | U23: =$G$3 -> 211
A24: 21 | B24: 2141 | C24: 22 | D24: 2146 | E24: 24 | F24: 2153 | K24: 0 | L24: 222 | O24: total reinforcement | P24: =U11 -> 0 | Q24: =Z11 -> 0 | R24: =AE11 -> 0 | S24: =AJ11 -> 0 | T24: =AO11 -> 0 | U24: =AT11 -> 0
A25: 21 | B25: 2265 | C25: 22 | D25: 2270 | E25: 24 | F25: 2279 | K25: 0 | L25: 222 | O25: % target
A26: 21 | B26: 2391 | C26: 22 | D26: 2396 | E26: 24 | F26: 2403 | K26: 0 | L26: 222 | O26: CCRF
A27: 12 | B27: 2501 | C27: 24 | D27: 2511 | E27: 24 | F27: 2517 | K27: 0 | L27: 122 | O27: % CCRf
A28: 12 | B28: 2615 | C28: 24 | D28: 2634 | E28: 24 | F28: 2639 | K28: 0 | L28: 122 | O28: average response rate | P28: =F36/P20 -> 121.8 | Q28: =(F66-F36)/Q20 -> 131.5 | R28: =(F97-F66)/R20 -> 146.0322581 | S28: =(F127-F97)/S20 -> 134.5 | T28: =(F157-F127)/T20 -> 129.5 | U28: =(F187-F157)/U20 -> 131.2666667
A29: 21 | B29: 2749 | C29: 22 | D29: 2755 | E29: 24 | F29: 2768 | K29: 0 | L29: 222
A30: 21 | B30: 2881 | C30: 22 | D30: 2888 | E30: 24 | F30: 2892 | K30: 0 | L30: 222
A31: 12 | B31: 3000 | C31: 24 | D31: 3013 | E31: 24 | F31: 3019 | K31: 0 | L31: 122
A32: 21 | B32: 3126 | C32: 22 | D32: 3131 | E32: 24 | F32: 3139 | K32: 0 | L32: 222
A33: 21 | B33: 3250 | C33: 22 | D33: 3255 | E33: 24 | F33: 3265 | K33: 0 | L33: 222
A34: 21 | B34: 3370 | C34: 22 | D34: 3379 | E34: 24 | F34: 3386 | K34: 0 | L34: 222
A35: 21 | B35: 3504 | C35: 22 | D35: 3511 | E35: 24 | F35: 3525 | K35: 0 | L35: 222
A36: 21 | B36: 3638 | C36: 22 | D36: 3645 | E36: 24 | F36: 3654 | K36: 0 | L36: 222
A37: 21 | B37: 3775 | C37: 22 | D37: 3789 | E37: 24 | F37: 3797 | K37: 0 | L37: 222
A38: 21 | B38: 3914 | C38: 22 | D38: 3930 | E38: 24 | F38: 3943 | K38: 0 | L38: 222
A39: 12 | B39: 4050 | C39: 24 | D39: 4066 | E39: 24 | F39: 4074 | K39: 0 | L39: 122
A40: 12 | B40: 4172 | C40: 24 | D40: 4184 | E40: 24 | F40: 4189 | K40: 0 | L40: 122
A41: 12 | B41: 4295 | C41: 24 | D41: 4311 | E41: 24 | F41: 4317 | K41: 0 | L41: 122
A42: 12 | B42: 4424 | C42: 24 | D42: 4443 | E42: 24 | F42: 4450 | K42: 0 | L42: 122
A43: 12 | B43: 4547 | C43: 24 | D43: 4564 | E43: 24 | F43: 4570 | K43: 0 | L43: 122
A44: 21 | B44: 4680 | C44: 22 | D44: 4691 | E44: 24 | F44: 4700 | K44: 0 | L44: 222
A45: 12 | B45: 4805 | C45: 24 | D45: 4818 | E45: 24 | F45: 4823 | K45: 0 | L45: 122
A46: 21 | B46: 4935 | C46: 22 | D46: 4940 | E46: 24 | F46: 4954 | K46: 0 | L46: 222
A47: 12 | B47: 5058 | C47: 24 | D47: 5077 | E47: 24 | F47: 5086 | K47: 0 | L47: 122
A48: 21 | B48: 5200 | C48: 22 | D48: 5206 | E48: 24 | F48: 5234 | K48: 0 | L48: 222
A49: 21 | B49: 5349 | C49: 22 | D49: 5360 | E49: 24 | F49: 5374 | K49: 0 | L49: 222
A50: 21 | B50: 5496 | C50: 22 | D50: 5501 | E50: 24 | F50: 5510 | K50: 0 | L50: 222
A51: 21 | B51: 5618 | C51: 22 | D51: 5628 | E51: 24 | F51: 5634 | K51: 0 | L51: 222
A52: 21 | B52: 5749 | C52: 22 | D52: 5755 | E52: 24 | F52: 5763 | K52: 0 | L52: 222
A53: 21 | B53: 5870 | C53: 22 | D53: 5880 | E53: 24 | F53: 5885 | K53: 0 | L53: 222
A54: 12 | B54: 5985 | C54: 24 | D54: 6002 | E54: 24 | F54: 6020 | K54: 0 | L54: 122
A55: 12 | B55: 6146 | C55: 24 | D55: 6159 | E55: 24 | F55: 6167 | K55: 0 | L55: 122
A56: 21 | B56: 6278 | C56: 22 | D56: 6286 | E56: 24 | F56: 6296 | K56: 0 | L56: 222
A57: 21 | B57: 6408 | C57: 22 | D57: 6415 | E57: 24 | F57: 6434 | K57: 0 | L57: 222
A58: 21 | B58: 6547 | C58: 22 | D58: 6554 | E58: 24 | F58: 6563 | K58: 0 | L58: 222
A59: 12 | B59: 6662 | C59: 24 | D59: 6676 | E59: 24 | F59: 6682 | K59: 0 | L59: 122
A60: 21 | B60: 6790 | C60: 22 | D60: 6798 | E60: 24 | F60: 6813 | K60: 0 | L60: 222
A61: 12 | B61: 6915 | C61: 24 | D61: 6934 | E61: 24 | F61: 6941 | K61: 0 | L61: 122
A62: 12 | B62: 7034 | C62: 24 | D62: 7073 | E62: 24 | F62: 7095 | K62: 0 | L62: 122
A63: 12 | B63: 7194 | C63: 24 | D63: 7210 | E63: 24 | F63: 7215 | K63: 0 | L63: 122
A64: 12 | B64: 7314 | C64: 24 | D64: 7331 | E64: 24 | F64: 7337 | K64: 0 | L64: 122
A65: 12 | B65: 7437 | C65: 24 | D65: 7449 | E65: 24 | F65: 7456 | K65: 0 | L65: 122
A66: 21 | B66: 7574 | C66: 22 | D66: 7582 | E66: 24 | F66: 7599 | K66: 0 | L66: 222
A67: 21 | B67: 7715 | C67: 22 | D67: 7720 | E67: 24 | F67: 7727 | K67: 0 | L67: 222
A68: 12 | B68: 7823 | C68: 24 | D68: 7847 | E68: 24 | F68: 7879 | K68: 0 | L68: 122
A69: 12 | B69: 7976 | C69: 24 | D69: 7988 | E69: 24 | F69: 8001 | K69: 0 | L69: 122
A70: 12 | B70: 8100 | C70: 24 | D70: 8114 | E70: 24 | F70: 8129 | K70: 0 | L70: 122
A71: 12 | B71: 8228 | C71: 24 | D71: 8241 | E71: 24 | F71: 8248 | K71: 0 | L71: 122
A72: 21 | B72: 8369 | C72: 22 | D72: 8390 | E72: 24 | F72: 8397 | K72: 0 | L72: 222
A73: 21 | B73: 8514 | C73: 22 | D73: 8520 | E73: 24 | F73: 8557 | K73: 0 | L73: 222
A74: 12 | B74: 8660 | C74: 24 | D74: 8683 | E74: 24 | F74: 8691 | K74: 0 | L74: 122
A75: 21 | B75: 8812 | C75: 22 | D75: 8826 | E75: 24 | F75: 8846 | K75: 0 | L75: 222
A76: 12 | B76: 8953 | C76: 24 | D76: 8966 | E76: 24 | F76: 8971 | K76: 0 | L76: 122
A77: 12 | B77: 9072 | C77: 24 | D77: 9091 | E77: 24 | F77: 9105 | K77: 0 | L77: 122
A78: 21 | B78: 9221 | C78: 22 | D78: 9228 | E78: 24 | F78: 9237 | K78: 0 | L78: 222
A79: 21 | B79: 9367 | C79: 22 | D79: 9410 | E79: 24 | F79: 9433 | K79: 0 | L79: 222
A80: 21 | B80: 9545 | C80: 22 | D80: 9552 | E80: 24 | F80: 9559 | K80: 0 | L80: 222
A81: 12 | B81: 9659 | C81: 24 | D81: 9675 | E81: 24 | F81: 9681 | K81: 0 | L81: 122
A82: 21 | B82: 9794 | C82: 22 | D82: 9807 | E82: 24 | F82: 9816 | K82: 0 | L82: 222
A83: 21 | B83: 9950 | C83: 22 | D83: 9954 | E83: 24 | F83: 9963 | K83: 0 | L83: 222
A84: 12 | B84: 10061 | C84: 24 | D84: 10088 | E84: 24 | F84: 10095 | K84: 0 | L84: 122
A85: 12 | B85: 10203 | C85: 24 | D85: 10218 | E85: 24 | F85: 10226 | K85: 0 | L85: 122
A86: 21 | B86: 10334 | C86: 22 | D86: 10370 | E86: 24 | F86: 10379 | K86: 0 | L86: 222
A87: 12 | B87: 10481 | C87: 24 | D87: 10583 | E87: 24 | F87: 10591 | K87: 0 | L87: 122
A88: 12 | B88: 10687 | C88: 24 | D88: 10709 | E88: 24 | F88: 10714 | K88: 0 | L88: 122
A89: 21 | B89: 10824 | C89: 22 | D89: 10852 | E89: 24 | F89: 10875 | K89: 0 | L89: 222
A90: 21 | B90: 10992 | C90: 22 | D90: 10996 | E90: 24 | F90: 11009 | K90: 0 | L90: 222
A91: 21 | B91: 11158 | C91: 22 | D91: 11207 | E91: 24 | F91: 11227 | K91: 0 | L91: 222
A92: 21 | B92: 11345 | C92: 22 | D92: 11357 | E92: 24 | F92: 11366 | K92: 0 | L92: 222
A93: 12 | B93: 11466 | C93: 24 | D93: 11519 | E93: 24 | F93: 11527 | K93: 0 | L93: 122
A94: 21 | B94: 11682 | C94: 22 | D94: 11688 | E94: 24 | F94: 11712 | K94: 0 | L94: 222
A95: 21 | B95: 11818 | C95: 22 | D95: 11842 | E95: 24 | F95: 11849 | K95: 0 | L95: 222
A96: 21 | B96: 11965 | C96: 22 | D96: 11986 | E96: 24 | F96: 11997 | K96: 0 | L96: 222
A97: 12 | B97: 12097 | C97: 24 | D97: 12116 | E97: 24 | F97: 12126 | K97: 0 | L97: 122
A98: 12 | B98: 12232 | C98: 13 | D98: 12241 | E98: 24 | F98: 12276 | K98: 0 | L98: 112
A99: 12 | B99: 12382 | C99: 24 | D99: 12395 | E99: 24 | F99: 12410 | K99: 0 | L99: 122
A100: 12 | B100: 12516 | C100: 24 | D100: 12529 | E100: 24 | F100: 12536 | K100: 0 | L100: 122
A101: 12 | B101: 12636 | C101: 13 | D101: 12638 | E101: 24 | F101: 12651 | K101: 0 | L101: 112
A102: 12 | B102: 12749 | C102: 24 | D102: 12770 | E102: 24 | F102: 12788 | K102: 0 | L102: 122
A103: 12 | B103: 12887 | C103: 24 | D103: 12899 | E103: 24 | F103: 12906 | K103: 0 | L103: 122
A104: 21 | B104: 13025 | C104: 22 | D104: 13046 | E104: 24 | F104: 13061 | K104: 0 | L104: 222
A105: 12 | B105: 13208 | C105: 24 | D105: 13222 | E105: 24 | F105: 13228 | K105: 0 | L105: 122
A106: 12 | B106: 13325 | C106: 24 | D106: 13336 | E106: 24 | F106: 13341 | K106: 0 | L106: 122
A107: 21 | B107: 13454 | C107: 22 | D107: 13461 | E107: 24 | F107: 13467 | K107: 0 | L107: 222
A108: 21 | B108: 13582 | C108: 22 | D108: 13589 | E108: 24 | F108: 13604 | K108: 0 | L108: 222
A109: 21 | B109: 13720 | C109: 22 | D109: 13733 | E109: 24 | F109: 13742 | K109: 0 | L109: 222
A110: 12 | B110: 13848 | C110: 24 | D110: 13862 | E110: 24 | F110: 13867 | K110: 0 | L110: 122
A111: 21 | B111: 13978 | C111: 22 | D111: 13985 | E111: 24 | F111: 13992 | K111: 0 | L111: 222
A112: 12 | B112: 14092 | C112: 24 | D112: 14112 | E112: 24 | F112: 14120 | K112: 0 | L112: 122
A113: 21 | B113: 14231 | C113: 22 | D113: 14249 | E113: 24 | F113: 14258 | K113: 0 | L113: 222
A114: 21 | B114: 14383 | C114: 22 | D114: 14391 | E114: 24 | F114: 14400 | K114: 0 | L114: 222
A115: 21 | B115: 14513 | C115: 22 | D115: 14521 | E115: 24 | F115: 14530 | K115: 0 | L115: 222
A116: 21 | B116: 14648 | C116: 22 | D116: 14660 | E116: 24 | F116: 14680 | K116: 0 | L116: 222
A117: 21 | B117: 14794 | C117: 22 | D117: 14801 | E117: 24 | F117: 14810 | K117: 0 | L117: 222
A118: 21 | B118: 14943 | C118: 22 | D118: 14957 | E118: 24 | F118: 14965 | K118: 0 | L118: 222
A119: 21 | B119: 15080 | C119: 22 | D119: 15085 | E119: 24 | F119: 15100 | K119: 0 | L119: 222
A120: 21 | B120: 15206 | C120: 22 | D120: 15211 | E120: 24 | F120: 15217 | K120: 0 | L120: 222
A121: 21 | B121: 15332 | C121: 22 | D121: 15339 | E121: 24 | F121: 15363 | K121: 0 | L121: 222
A122: 21 | B122: 15473 | C122: 22 | D122: 15481 | E122: 24 | F122: 15494 | K122: 0 | L122: 222
A123: 21 | B123: 15604 | C123: 22 | D123: 15631 | E123: 24 | F123: 15639 | K123: 0 | L123: 222
A124: 21 | B124: 15748 | C124: 22 | D124: 15761 | E124: 24 | F124: 15768 | K124: 0 | L124: 222
A125: 12 | B125: 15866 | C125: 13 | D125: 15868 | E125: 24 | F125: 15884 | K125: 0 | L125: 112
A126: 21 | B126: 16002 | C126: 22 | D126: 16011 | E126: 24 | F126: 16023 | K126: 0 | L126: 222
A127: 21 | B127: 16145 | C127: 22 | D127: 16153 | E127: 24 | F127: 16161 | K127: 0 | L127: 222
A128: 21 | B128: 16290 | C128: 22 | D128: 16296 | E128: 24 | F128: 16312 | K128: 0 | L128: 222
A129: 12 | B129: 16414 | C129: 24 | D129: 16428 | E129: 24 | F129: 16435 | K129: 0 | L129: 122
A130: 21 | B130: 16554 | C130: 22 | D130: 16562 | E130: 24 | F130: 16570 | K130: 0 | L130: 222
A131: 21 | B131: 16685 | C131: 22 | D131: 16692 | E131: 24 | F131: 16699 | K131: 0 | L131: 222
A132: 21 | B132: 16823 | C132: 22 | D132: 16831 | E132: 24 | F132: 16840 | K132: 0 | L132: 222
A133: 21 | B133: 16950 | C133: 22 | D133: 16957 | E133: 24 | F133: 16963 | K133: 0 | L133: 222
A134: 21 | B134: 17080 | C134: 22 | D134: 17087 | E134: 24 | F134: 17095 | K134: 0 | L134: 222
A135: 21 | B135: 17205 | C135: 22 | D135: 17210 | E135: 24 | F135: 17217 | K135: 0 | L135: 222
A136: 21 | B136: 17329 | C136: 22 | D136: 17338 | E136: 24 | F136: 17351 | K136: 0 | L136: 222
A137: 12 | B137: 17455 | C137: 24 | D137: 17468 | E137: 24 | F137: 17474 | K137: 0 | L137: 122
A138: 21 | B138: 17585 | C138: 22 | D138: 17606 | E138: 24 | F138: 17613 | K138: 0 | L138: 222
A139: 21 | B139: 17742 | C139: 22 | D139: 17750 | E139: 24 | F139: 17770 | K139: 0 | L139: 222
A140: 21 | B140: 17887 | C140: 22 | D140: 17905 | E140: 24 | F140: 17921 | K140: 0 | L140: 222
A141: 12 | B141: 18020 | C141: 24 | D141: 18034 | E141: 24 | F141: 18041 | K141: 0 | L141: 122
A142: 12 | B142: 18138 | C142: 24 | D142: 18152 | E142: 24 | F142: 18157 | K142: 0 | L142: 122
A143: 21 | B143: 18270 | C143: 22 | D143: 18278 | E143: 24 | F143: 18286 | K143: 0 | L143: 222
A144: 12 | B144: 18388 | C144: 24 | D144: 18398 | E144: 24 | F144: 18404 | K144: 0 | L144: 122
A145: 21 | B145: 18509 | C145: 22 | D145: 18515 | E145: 24 | F145: 18532 | K145: 0 | L145: 222
A146: 12 | B146: 18629 | C146: 24 | D146: 18642 | E146: 24 | F146: 18648 | K146: 0 | L146: 122
A147: 12 | B147: 18744 | C147: 24 | D147: 18769 | E147: 24 | F147: 18778 | K147: 0 | L147: 122
A148: 21 | B148: 18890 | C148: 22 | D148: 18896 | E148: 24 | F148: 18903 | K148: 0 | L148: 222
A149: 12 | B149: 18998 | C149: 24 | D149: 19011 | E149: 24 | F149: 19017 | K149: 0 | L149: 122
A150: 21 | B150: 19121 | C150: 22 | D150: 19127 | E150: 24 | F150: 19140 | K150: 0 | L150: 222
A151: 21 | B151: 19259 | C151: 22 | D151: 19273 | E151: 24 | F151: 19295 | K151: 0 | L151: 222
A152: 12 | B152: 19394 | C152: 24 | D152: 19407 | E152: 24 | F152: 19413 | K152: 0 | L152: 122
A153: 21 | B153: 19523 | C153: 22 | D153: 19530 | E153: 24 | F153: 19539 | K153: 0 | L153: 222
A154: 21 | B154: 19656 | C154: 22 | D154: 19663 | E154: 24 | F154: 19670 | K154: 0 | L154: 222
A155: 12 | B155: 19786 | C155: 24 | D155: 19799 | E155: 24 | F155: 19804 | K155: 0 | L155: 122
A156: 21 | B156: 19917 | C156: 22 | D156: 19922 | E156: 24 | F156: 19929 | K156: 0 | L156: 222
A157: 12 | B157: 20027 | C157: 24 | D157: 20039 | E157: 24 | F157: 20046 | K157: 0 | L157: 122
A158: 12 | B158: 20144 | C158: 24 | D158: 20158 | E158: 24 | F158: 20164 | K158: 0 | L158: 122
A159: 21 | B159: 20276 | C159: 22 | D159: 20290 | E159: 24 | F159: 20298 | K159: 0 | L159: 222
A160: 21 | B160: 20411 | C160: 22 | D160: 20426 | E160: 24 | F160: 20436 | K160: 0 | L160: 222
A161: 21 | B161: 20545 | C161: 22 | D161: 20553 | E161: 24 | F161: 20561 | K161: 0 | L161: 222
A162: 21 | B162: 20673 | C162: 22 | D162: 20679 | E162: 24 | F162: 20694 | K162: 0 | L162: 222
A163: 21 | B163: 20804 | C163: 22 | D163: 20816 | E163: 24 | F163: 20825 | K163: 0 | L163: 222
A164: 21 | B164: 20931 | C164: 22 | D164: 20942 | E164: 24 | F164: 20962 | K164: 0 | L164: 222
A165: 12 | B165: 21061 | C165: 24 | D165: 21074 | E165: 24 | F165: 21081 | K165: 0 | L165: 122
A166: 12 | B166: 21179 | C166: 24 | D166: 21192 | E166: 24 | F166: 21198 | K166: 0 | L166: 122
A167: 12 | B167: 21299 | C167: 24 | D167: 21312 | E167: 24 | F167: 21319 | K167: 0 | L167: 122
A168: 12 | B168: 21417 | C168: 24 | D168: 21431 | E168: 24 | F168: 21438 | K168: 0 | L168: 122
A169: 21 | B169: 21540 | C169: 22 | D169: 21556 | E169: 24 | F169: 21565 | K169: 0 | L169: 222
A170: 21 | B170: 21681 | C170: 22 | D170: 21694 | E170: 24 | F170: 21702 | K170: 0 | L170: 222
A171: 12 | B171: 21795 | C171: 24 | D171: 21808 | E171: 24 | F171: 21813 | K171: 0 | L171: 122
A172: 21 | B172: 21935 | C172: 22 | D172: 21940 | E172: 24 | F172: 21966 | K172: 0 | L172: 222
A173: 21 | B173: 22077 | C173: 22 | D173: 22082 | E173: 24 | F173: 22097 | K173: 0 | L173: 222
A174: 12 | B174: 22195 | C174: 24 | D174: 22209 | E174: 24 | F174: 22220 | K174: 0 | L174: 122
A175: 12 | B175: 22321 | C175: 24 | D175: 22334 | E175: 24 | F175: 22341 | K175: 0 | L175: 122
A176: 12 | B176: 22442 | C176: 24 | D176: 22462 | E176: 24 | F176: 22467 | K176: 0 | L176: 122
A177: 12 | B177: 22571 | C177: 24 | D177: 22585 | E177: 24 | F177: 22592 | K177: 0 | L177: 122
A178: 21 | B178: 22704 | C178: 22 | D178: 22712 | E178: 24 | F178: 22739 | K178: 0 | L178: 222
A179: 21 | B179: 22877 | C179: 22 | D179: 22883 | E179: 24 | F179: 22901 | K179: 0 | L179: 222
A180: 12 | B180: 22993 | C180: 24 | D180: 23007 | E180: 24 | F180: 23015 | K180: 0 | L180: 122
A181: 12 | B181: 23116 | C181: 24 | D181: 23136 | E181: 24 | F181: 23141 | K181: 0 | L181: 122
A182: 21 | B182: 23252 | C182: 22 | D182: 23260 | E182: 24 | F182: 23269 | K182: 0 | L182: 222
A183: 21 | B183: 23384 | C183: 22 | D183: 23398 | E183: 24 | F183: 23407 | K183: 0 | L183: 222
A184: 21 | B184: 23515 | C184: 22 | D184: 23550 | E184: 24 | F184: 23557 | K184: 0 | L184: 222
A185: 12 | B185: 23657 | C185: 24 | D185: 23675 | E185: 24 | F185: 23682 | K185: 0 | L185: 122
A186: 12 | B186: 23775 | C186: 13 | D186: 23783 | E186: 24 | F186: 23796 | K186: 0 | L186: 112
A187: 21 | B187: 23913 | C187: 22 | D187: 23919 | E187: 24 | F187: 23984 | L187: 222

Sheet !M905830.101
A1: Report for:!M905830.101
A2: Date: | B2: <date>
A3: Hen: | B3: <hen> | F3: Correct Sequence | G3: =Start!J2 -> 211 | P3: Total Sequences in Data | Q3: =4994-COUNTBLANK(L7:L5000) -> 180 | V3: Total Sequences in Block Data | W3: =COUNTA(L7:L36) -> 30 | AA3: Total Sequences in Block Data | AB3: =COUNTA(L37:L66) -> 30 | AF3: Total Sequences in Block Data | AG3: =COUNTA(L67:L96) -> 30 | AK3: Total Sequences in Block Data | AL3: =COUNTA(L97:L126) -> 30 | AP3: Total Sequences in Block Data | AQ3: =COUNTA(L127:L156) -> 30 | AU3: Total Sequences in Block Data | AV3: =COUNTA(L157:L186) -> 30
P4: Total Sequences in Summary | Q4: =SUM(O7:O14) -> 179 | V4: Total Sequences in Block Summary | W4: =SUM(U7:U14) -> 30 | AA4: Total Sequences in Block Summary | AB4: =SUM(Z7:Z14) -> 30 | AF4: Total Sequences in Block Summary | AG4: =SUM(AE7:AE14) -> 30 | AK4: Total Sequences in Block Summary | AL4: =SUM(AJ7:AJ14) -> 30 | AP4: Total Sequences in Block Summary | AQ4: =SUM(AO7:AO14) -> 30 | AU4: Total Sequences in Block Summary | AV4: =SUM(AT7:AT14) -> 29
T5: Block 1 | Y5: Block 2 | AD5: Block 3 | AI5: Block 4 | AN5: Block 5 | AS5: Block 6
A6: Sequence Component 1 | B6: Time 1 | C6: Sequence Component 2 | D6: Time 2 | E6: Sequence Component 3 | F6: Time 3 | G6: Sequence Component 4 | H6: Time 4 | I6: Sequence Component 5 | J6: Time 5 | K6: Correct? 0=No 1=Yes | L6: Sequence | N6: Frequency | P6: Relative Frequency | Q6: Variability | T6: Frequency | V6: Relative Frequency | W6: Variability | Y6: Frequency | AA6: Relative Frequency | AB6: Variability | AD6: Frequency | AF6: Relative Frequency | AG6: Variability | AI6: Frequency | AK6: Relative Frequency | AL6: Variability | AN6: Frequency | AP6: Relative Frequency | AQ6: Variability | AS6: Frequency | AU6: Relative Frequency | AV6: Variability
A7: 21 | B7: 17 | C7: 22 | D7: 26 | E7: 24 | F7: 39 | K7: 0 | L7: 222 | N7: 111 | O7: =COUNTIF($L$7:$L$500,N7) -> 0 | P7: =O7/$Q$4 -> 0 | Q7: =IF(P7=0,0,(P7*((LOG(P7))/LOG(2)))) -> 0 | T7: =N7 -> 111 | U7: =COUNTIF(L7:L36,T7) -> 0 | V7: =U7/(W4-U11) -> 0 | W7: =IF(V7=0,0,(V7*((LOG(V7))/LOG(2)))) -> 0 | Y7: =N7 -> 111 | Z7: =COUNTIF(L37:L66,Y7) -> 0 | AA7: =Z7/(AB4-Z11) -> 0 | AB7: =IF(AA7=0,0,(AA7*((LOG(AA7))/LOG(2)))) -> 0 | AD7: =N7 -> 111 | AE7: =COUNTIF(L67:L96,AD7) -> 0 | AF7: =AE7/(AG4-AE11) -> 0 | AG7: =IF(AF7=0,0,(AF7*((LOG(AF7))/LOG(2)))) -> 0 | AI7: =N7 -> 111 | AJ7: =COUNTIF(L97:L126,AI7) -> 0 | AK7: =AJ7/(AL4-AJ11) -> 0 | AL7: =IF(AK7=0,0,(AK7*((LOG(AK7))/LOG(2)))) -> 0 | AN7: =N7 -> 111 | AO7: =COUNTIF(L127:L156,AN7) -> 0 | AP7: =AO7/(AQ4-AO11) -> 0 | AQ7: =IF(AP7=0,0,(AP7*((LOG(AP7))/LOG(2)))) -> 0 | AS7: =N7 -> 111 | AT7: =COUNTIF(L157:L186,AS7) -> 0 | AU7: =AT7/(AV4-AT11) -> 0 | AV7: =IF(AU7=0,0,(AU7*((LOG(AU7))/LOG(2)))) -> 0
A8: 12 | B8: 143 | C8: 24 | D8: 156 | E8: 24 | F8: 163 | K8: 0 | L8: 122 | N8: 112 | O8: =COUNTIF($L$7:$L$500,N8) -> 4 | P8: =O8/$Q$4 -> 0.02234636872 | Q8: =IF(P8=0,0,(P8*((LOG(P8))/LOG(2)))) -> -0.1225433693 | T8: =N8 -> 112 | U8: =COUNTIF(L7:L36,T8) -> 1 | V8: =U8/(W4-U11) -> 0.03333333333 | W8: =IF(V8=0,0,(V8*((LOG(V8))/LOG(2)))) -> -0.1635630199 | Y8: =N8 -> 112 | Z8: =COUNTIF(L37:L66,Y8) -> 2 | AA8: =Z8/(AB4-Z11) -> 0.06666666667 | AB8: =IF(AA8=0,0,(AA8*((LOG(AA8))/LOG(2)))) -> -0.260459373 | AD8: =N8 -> 112 | AE8: =COUNTIF(L67:L96,AD8) -> 1 | AF8: =AE8/(AG4-AE11) -> 0.03333333333 | AG8: =IF(AF8=0,0,(AF8*((LOG(AF8))/LOG(2)))) -> -0.1635630199 | AI8: =N8 -> 112 | AJ8: =COUNTIF(L97:L126,AI8) -> 0 | AK8: =AJ8/(AL4-AJ11) -> 0 | AL8: =IF(AK8=0,0,(AK8*((LOG(AK8))/LOG(2)))) -> 0 | AN8: =N8 -> 112 | AO8: =COUNTIF(L127:L156,AN8) -> 0 | AP8: =AO8/(AQ4-AO11) -> 0 | AQ8: =IF(AP8=0,0,(AP8*((LOG(AP8))/LOG(2)))) -> 0 | AS8: =N8 -> 112 | AT8: =COUNTIF(L157:L186,AS8) -> 0 | AU8: =AT8/(AV4-AT11) -> 0 | AV8: =IF(AU8=0,0,(AU8*((LOG(AU8))/LOG(2)))) -> 0
A9: 12 | B9: 265 | C9: 24 | D9: 278 | E9: 24 | F9: 283 | K9: 0 | L9: 122 | N9: 121 | O9: =COUNTIF($L$7:$L$500,N9) -> 0 | P9: =O9/$Q$4 -> 0 | Q9: =IF(P9=0,0,(P9*((LOG(P9))/LOG(2)))) -> 0 | T9: =N9 -> 121 | U9: =COUNTIF(L7:L36,T9) -> 0 | V9: =U9/(W4-U11) -> 0 | W9: =IF(V9=0,0,(V9*((LOG(V9))/LOG(2)))) -> 0 | Y9: =N9 -> 121 | Z9: =COUNTIF(L37:L66,Y9) -> 0 | AA9: =Z9/(AB4-Z11) -> 0 | AB9: =IF(AA9=0,0,(AA9*((LOG(AA9))/LOG(2)))) -> 0 | AD9: =N9 -> 121 | AE9: =COUNTIF(L67:L96,AD9) -> 0 | AF9: =AE9/(AG4-AE11) -> 0 | AG9: =IF(AF9=0,0,(AF9*((LOG(AF9))/LOG(2)))) -> 0 | AI9: =N9 -> 121 | AJ9: =COUNTIF(L97:L126,AI9) -> 0 | AK9: =AJ9/(AL4-AJ11) -> 0 | AL9: =IF(AK9=0,0,(AK9*((LOG(AK9))/LOG(2)))) -> 0 | AN9: =N9 -> 121 | AO9: =COUNTIF(L127:L156,AN9) -> 0 | AP9: =AO9/(AQ4-AO11) -> 0 | AQ9: =IF(AP9=0,0,(AP9*((LOG(AP9))/LOG(2)))) -> 0 | AS9: =N9 -> 121 | AT9: =COUNTIF(L157:L186,AS9) -> 0 | AU9: =AT9/(AV4-AT11) -> 0 | AV9: =IF(AU9=0,0,(AU9*((LOG(AU9))/LOG(2)))) -> 0
A10: 12 | B10: 383 | C10: 24 | D10: 397 | E10: 24 | F10: 418 | K10: 0 | L10: 122 | N10: 122 | O10: =COUNTIF($L$7:$L$500,N10) -> 58 | P10: =O10/$Q$4 -> 0.3240223464 | Q10: =IF(P10=0,0,(P10*((LOG(P10))/LOG(2)))) -> -0.5268068009 | T10: =N10 -> 122 | U10: =COUNTIF(L7:L36,T10) -> 17 | V10: =U10/(W4-U11) -> 0.5666666667 | W10: =IF(V10=0,0,(V10*((LOG(V10))/LOG(2)))) -> -0.4643423941 | Y10: =N10 -> 122 | Z10: =COUNTIF(L37:L66,Y10) -> 15 | AA10: =Z10/(AB4-Z11) -> 0.5 | AB10: =IF(AA10=0,0,(AA10*((LOG(AA10))/LOG(2)))) -> -0.5 | AD10: =N10 -> 122 | AE10: =COUNTIF(L67:L96,AD10) -> 11 | AF10: =AE10/(AG4-AE11) -> 0.3666666667 | AG10: =IF(AF10=0,0,(AF10*((LOG(AF10))/LOG(2)))) -> -0.5307349582 | AI10: =N10 -> 122 | AJ10: =COUNTIF(L97:L126,AI10) -> 2 | AK10: =AJ10/(AL4-AJ11) -> 0.06666666667 | AL10: =IF(AK10=0,0,(AK10*((LOG(AK10))/LOG(2)))) -> -0.260459373 | AN10: =N10 -> 122 | AO10: =COUNTIF(L127:L156,AN10) -> 8 | AP10: =AO10/(AQ4-AO11) -> 0.2666666667 | AQ10: =IF(AP10=0,0,(AP10*((LOG(AP10))/LOG(2)))) -> -0.5085041588 | AS10: =N10 -> 122 | AT10: =COUNTIF(L157:L186,AS10) -> 5 | AU10: =AT10/(AV4-AT11) -> 0.1724137931 | AV10: =IF(AU10=0,0,(AU10*((LOG(AU10))/LOG(2)))) -> -0.4372505
A11: 21 | B11: 537 | C11: 22 | D11: 545 | E11: 24 | F11: 559 | K11: 0 | L11: 222 | N11: 211 | O11: =COUNTIF($L$7:$L$500,N11) -> 0 | P11: =O11/$Q$4 -> 0 | Q11: =IF(P11=0,0,(P11*((LOG(P11))/LOG(2)))) -> 0 | T11: =N11 -> 211 | U11: =COUNTIF(L7:L36,T11) -> 0 | Y11: =N11 -> 211 | Z11: =COUNTIF(L37:L66,Y11) -> 0 | AD11: =N11 -> 211 | AE11: =COUNTIF(L67:L96,AD11) -> 0 | AI11: =N11 -> 211 | AJ11: =COUNTIF(L97:L126,AI11) -> 0 | AN11: =N11 -> 211 | AO11: =COUNTIF(L127:L156,AN11) -> 0 | AS11: =N11 -> 211 | AT11: =COUNTIF(L157:L186,AS11) -> 0
A12: 12 | B12: 660 | C12: 24 | D12: 670 | E12: 24 | F12: 675 | K12: 0 | L12: 122 | N12: 212 | O12: =COUNTIF($L$7:$L$500,N12) -> 0 | P12: =O12/$Q$4 -> 0 | Q12: =IF(P12=0,0,(P12*((LOG(P12))/LOG(2)))) -> 0 | T12: =N12 -> 212 | U12: =COUNTIF(L7:L36,T12) -> 0 | V12: =U12/(W4-U11) -> 0 | W12: =IF(V12=0,0,(V12*((LOG(V12))/LOG(2)))) -> 0 | Y12: =N12 -> 212 | Z12: =COUNTIF(L37:L66,Y12) -> 0 | AA12: =Z12/(AB4-Z11) -> 0 | AB12: =IF(AA12=0,0,(AA12*((LOG(AA12))/LOG(2)))) -> 0 | AD12: =N12 -> 212 | AE12: =COUNTIF(L67:L96,AD12) -> 0 | AF12: =AE12/(AG4-AE11) -> 0 | AG12: =IF(AF12=0,0,(AF12*((LOG(AF12))/LOG(2)))) -> 0 | AI12: =N12 -> 212 | AJ12: =COUNTIF(L97:L126,AI12) -> 0 | AK12: =AJ12/(AL4-AJ11) -> 0 | AL12: =IF(AK12=0,0,(AK12*((LOG(AK12))/LOG(2)))) -> 0 | AN12: =N12 -> 212 | AO12: =COUNTIF(L127:L156,AN12) -> 0 | AP12: =AO12/(AQ4-AO11) -> 0 | AQ12: =IF(AP12=0,0,(AP12*((LOG(AP12))/LOG(2)))) -> 0 | AS12: =N12 -> 212 | AT12: =COUNTIF(L157:L186,AS12) -> 0 | AU12: =AT12/(AV4-AT11) -> 0 | AV12: =IF(AU12=0,0,(AU12*((LOG(AU12))/LOG(2)))) -> 0
A13: 21 | B13: 781 | C13: 22 | D13: 788 | E13: 24 | F13: 797 | K13: 0 | L13: 222 | N13: 221 | O13: =COUNTIF($L$7:$L$500,N13) -> 0 | P13: =O13/$Q$4 -> 0 | Q13: =IF(P13=0,0,(P13*((LOG(P13))/LOG(2)))) -> 0 | T13: =N13 -> 221 | U13: =COUNTIF(L7:L36,T13) -> 0 | V13: =U13/(W4-U11) -> 0 | W13: =IF(V13=0,0,(V13*((LOG(V13))/LOG(2)))) -> 0 | Y13: =N13 -> 221 | Z13: =COUNTIF(L37:L66,Y13) -> 0 | AA13: =Z13/(AB4-Z11) -> 0 | AB13: =IF(AA13=0,0,(AA13*((LOG(AA13))/LOG(2)))) -> 0 | AD13: =N13 -> 221 | AE13: =COUNTIF(L67:L96,AD13) -> 0 | AF13: =AE13/(AG4-AE11) -> 0 | AG13: =IF(AF13=0,0,(AF13*((LOG(AF13))/LOG(2)))) -> 0 | AI13: =N13 -> 221 | AJ13: =COUNTIF(L97:L126,AI13) -> 0 | AK13: =AJ13/(AL4-AJ11) -> 0 | AL13: =IF(AK13=0,0,(AK13*((LOG(AK13))/LOG(2)))) -> 0 | AN13: =N13 -> 221 | AO13: =COUNTIF(L127:L156,AN13) -> 0 | AP13: =AO13/(AQ4-AO11) -> 0 | AQ13: =IF(AP13=0,0,(AP13*((LOG(AP13))/LOG(2)))) -> 0 | AS13: =N13 -> 221 | AT13: =COUNTIF(L157:L186,AS13) -> 0 | AU13: =AT13/(AV4-AT11) -> 0 | AV13: =IF(AU13=0,0,(AU13*((LOG(AU13))/LOG(2)))) -> 0
A14: 21 | B14: 904 | C14: 22 | D14: 909 | E14: 24 | F14: 914 | K14: 0 | L14: 222 | N14: 222 | O14: =COUNTIF($L$7:$L$500,N14) -> 117 | P14: =O14/$Q$4 -> 0.6536312849 | Q14: =IF(P14=0,0,(P14*((LOG(P14))/LOG(2)))) -> -0.4009708031 | T14: =N14 -> 222 | U14: =COUNTIF(L7:L36,T14) -> 12 | V14: =U14/(W4-U11) -> 0.4 | W14: =IF(V14=0,0,(V14*((LOG(V14))/LOG(2)))) -> -0.528771238 | Y14: =N14 -> 222 | Z14: =COUNTIF(L37:L66,Y14) -> 13 | AA14: =Z14/(AB4-Z11) -> 0.4333333333 | AB14: =IF(AA14=0,0,(AA14*((LOG(AA14))/LOG(2)))) -> -0.5227953802 | AD14: =N14 -> 222 | AE14: =COUNTIF(L67:L96,AD14) -> 18 | AF14: =AE14/(AG4-AE11) -> 0.6 | AG14: =IF(AF14=0,0,(AF14*((LOG(AF14))/LOG(2)))) -> -0.4421793565 | AI14: =N14 -> 222 | AJ14: =COUNTIF(L97:L126,AI14) -> 28 | AK14: =AJ14/(AL4-AJ11) -> 0.9333333333 | AL14: =IF(AK14=0,0,(AK14*((LOG(AK14))/LOG(2)))) -> -0.09289996198 | AN14: =N14 -> 222 | AO14: =COUNTIF(L127:L156,AN14) -> 22 | AP14: =AO14/(AQ4-AO11) -> 0.7333333333 | AQ14: =IF(AP14=0,0,(AP14*((LOG(AP14))/LOG(2)))) -> -0.3281365831 | AS14: =N14 -> 222 | AT14: =COUNTIF(L157:L186,AS14) -> 24 | AU14: =AT14/(AV4-AT11) -> 0.8275862069 | AV14: =IF(AU14=0,0,(AU14*((LOG(AU14))/LOG(2)))) -> -0.2259463402
A15: 12 | B15: 1013 | C15: 24 | D15: 1026 | E15: 24 | F15: 1032 | K15: 0 | L15: 122 | P15: =SUM(P7:P14) -> 1 | Q15: =-SUM(Q7:Q14) -> 1.050320973 | V15: =SUM(V7:V14) -> 1 | W15: =-SUM(W7:W14) -> 1.156676652 | AA15: =SUM(AA7:AA14) -> 1 | AB15: =-SUM(AB7:AB14) -> 1.283254753 | AF15: =SUM(AF7:AF14) -> 1 | AG15: =-SUM(AG7:AG14) -> 1.136477335 | AK15: =SUM(AK7:AK14) -> 1 | AL15: =-SUM(AL7:AL14) -> 0.353359335 | AP15: =SUM(AP7:AP14) -> 1 | AQ15: =-SUM(AQ7:AQ14) -> 0.8366407419 | AU15: =SUM(AU7:AU14) -> 1 | AV15: =-SUM(AV7:AV14) -> 0.6631968402
A16: 12 | B16: 1151 | C16: 13 | D16: 1154 | E16: 24 | F16: 1170 | K16: 0 | L16: 112 | P16: U= | Q16: =Q15/(LOG(Q4)/LOG(2)) -> 0.1403456478 | V16: U1= | W16: =W15/(LOG(W4)/LOG(2)) -> 0.2357249728 | AA16: U2= | AB16: =AB15/(LOG(AB4)/LOG(2)) -> 0.2615209629 | AF16: U3= | AG16: =AG15/(LOG(AG4)/LOG(2)) -> 0.2316084519 | AK16: U4= | AL16: =AL15/(LOG(AL4)/LOG(2)) -> 0.07201288232 | AP16: U5= | AQ16: =AQ15/(LOG(AQ4)/LOG(2)) -> 0.1705032394 | AU16: U6= | AV16: =AV15/(LOG(AV4)/LOG(2)) -> 0.1365169689
A17: 12 | B17: 1269 | C17: 24 | D17: 1288 | E17: 24 | F17: 1295 | K17: 0 | L17: 122
A18: 21 | B18: 1406 | C18: 22 | D18: 1411 | E18: 24 | F18: 1425 | K18: 0 | L18: 222
A19: 21 | B19: 1530 | C19: 22 | D19: 1537 | E19: 24 | F19: 1542 | K19: 0 | L19: 222 | N19: Total Target Seq
A20: 12 | B20: 1650 | C20: 24 | D20: 1667 | E20: 24 | F20: 1675 | K20: 0 | L20: 122 | N20: =COUNTIF(L7:L186,G3) -> 0 | P20: 30 | Q20: 30 | R20: 30 | S20: 30 | T20: 30 | U20: 30
A21: 21 | B21: 1796 | C21: 22 | D21: 1813 | E21: 24 | F21: 1827 | K21: 0 | L21: 222 | P21: % of reinforcement given in 6 equal intervals based on number of trials
A22: 12 | B22: 1927 | C22: 24 | D22: 1944 | E22: 24 | F22: 1949 | K22: 0 | L22: 122 | P22: %_1 | Q22: %_2 | R22: %_3 | S22: %_4 | T22: %_5 | U22: %_6
A23: 12 | B23: 2048 | C23: 24 | D23: 2058 | E23: 24 | F23: 2065 | K23: 0 | L23: 122 | O23: target sequence | P23: =$G$3 -> 211 | Q23: =$G$3 -> 211 | R23: =$G$3 -> 211 | S23: =$G$3 -> 211 | T23: =$G$3 -> 211 | U23: =$G$3 -> 211
A24: 21 | B24: 2179 | C24: 22 | D24: 2188 | E24: 24 | F24: 2195 | K24: 0 | L24: 222 | O24: total reinforcement | P24: =U11 -> 0 | Q24: =Z11 -> 0 | R24: =AE11 -> 0 | S24: =AJ11 -> 0 | T24: =AO11 -> 0 | U24: =AT11 -> 0
A25: 12 | B25: 2307 | C25: 24 | D25: 2326 | E25: 24 | F25: 2331 | K25: 0 | L25: 122 | O25: % target
A26: 12 | B26: 2434 | C26: 24 | D26: 2447 | E26: 24 | F26: 2459 | K26: 0 | L26: 122 | O26: CCRF
A27: 12 | B27: 2557 | C27: 24 | D27: 2585 | E27: 24 | F27: 2605 | K27: 0 | L27: 122 | O27: % CCRf
A28: 12 | B28: 2707 | C28: 24 | D28: 2720 | E28: 24 | F28: 2725 | K28: 0 | L28: 122 | O28: average response rate | P28: =F36/P20 -> 125.6666667 | Q28: =(F66-F36)/Q20 -> 129.7 | R28: =(F96-F66)/R20 -> 136.4 | S28: =(F126-F96)/S20 -> 139.2333333 | T28: =(F156-F126)/T20 -> 134.9333333 | U28: =(F186-F156)/U20 -> -665.9333333
A29: 12 | B29: 2834 | C29: 24 | D29: 2847 | E29: 24 | F29: 2855 | K29: 0 | L29: 122
A30: 21 | B30: 2967 | C30: 22 | D30: 2973 | E30: 24 | F30: 2982 | K30: 0 | L30: 222
A31: 12 | B31: 3088 | C31: 24 | D31: 3106 | E31: 24 | F31: 3119 | K31: 0 | L31: 122
A32: 12 | B32: 3218 | C32: 24 | D32: 3231 | E32: 24 | F32: 3240 | K32: 0 | L32: 122
A33: 12 | B33: 3343 | C33: 24 | D33: 3357 | E33: 24 | F33: 3364 | K33: 0 | L33: 122
A34: 21 | B34: 3475 | C34: 22 | D34: 3482 | E34: 24 | F34: 3495 | K34: 0 | L34: 222
A35: 21 | B35: 3608 | C35: 22 | D35: 3620 | E35: 24 | F35: 3633 | K35: 0 | L35: 222
A36: 21 | B36: 3746 | C36: 22 | D36: 3752 | E36: 24 | F36: 3770 | K36: 0 | L36: 222
A37: 21 | B37: 3898 | C37: 22 | D37: 3910 | E37: 24 | F37: 3923 | K37: 0 | L37: 222
A38: 12 | B38: 4022 | C38: 13 | D38: 4036 | E38: 24 | F38: 4059 | K38: 0 | L38: 112
A39: 21 | B39: 4174 | C39: 22 | D39: 4182 | E39: 24 | F39: 4190 | K39: 0 | L39: 222
A40: 12 | B40: 4293 | C40: 24 | D40: 4313 | E40: 24 | F40: 4319 | K40: 0 | L40: 122
A41: 21 | B41: 4429 | C41: 22 | D41: 4468 | E41: 24 | F41: 4486 | K41: 0 | L41: 222
A42: 21 | B42: 4605 | C42: 22 | D42: 4611 | E42: 24 | F42: 4617 | K42: 0 | L42: 222
A43: 12 | B43: 4716 | C43: 24 | D43: 4734 | E43: 24 | F43: 4740 | K43: 0 | L43: 122
A44: 21 | B44: 4853 | C44: 22 | D44: 4861 | E44: 24 | F44: 4868 | K44: 0 | L44: 222
A45: 12 | B45: 4966 | C45: 24 | D45: 4982 | E45: 24 | F45: 4989 | K45: 0 | L45: 122
A46: 21 | B46: 5101 | C46: 22 | D46: 5109 | E46: 24 | F46: 5116 | K46: 0 | L46: 222
A47: 12 | B47: 5211 | C47: 24 | D47: 5224 | E47: 24 | F47: 5232 | K47: 0 | L47: 122
A48: 12 | B48: 5331 | C48: 24 | D48: 5355 | E48: 24 | F48: 5367 | K48: 0 | L48: 122
A49: 12 | B49: 5468 | C49: 13 | D49: 5469 | E49: 24 | F49: 5487 | K49: 0 | L49: 112
A50: 12 | B50: 5586 | C50: 24 | D50: 5601 | E50: 24 | F50: 5608 | K50: 0 | L50: 122
A51: 12 | B51: 5716 | C51: 24 | D51: 5734 | E51: 24 | F51: 5756 | K51: 0 | L51: 122
A52: 12 | B52: 5855 | C52: 24 | D52: 5876 | E52: 24 | F52: 5883 | K52: 0 | L52: 122
A53: 12 | B53: 5974 | C53: 24 | D53: 5989 | E53: 24 | F53: 5998 | K53: 0 | L53: 122
A54: 12 | B54: 6095 | C54: 24 | D54: 6107 | E54: 24 | F54: 6115 | K54: 0 | L54: 122
A55: 21 | B55: 6225 | C55: 22 | D55: 6230 | E55: 24 | F55: 6238 | K55: 0 | L55: 222
A56: 21 | B56: 6350 | C56: 22 | D56: 6360 | E56: 24 | F56: 6367 | K56: 0 | L56: 222
A57: 21 | B57: 6478 | C57: 22 | D57: 6488 | E57: 24 | F57: 6495 | K57: 0 | L57: 222
A58: 21 | B58: 6605 | C58: 22 | D58: 6612 | E58: 24 | F58: 6620 | K58: 0 | L58: 222
A59: 12 | B59: 6719 | C59: 24 | D59: 6732 | E59: 24 | F59: 6738 | K59: 0 | L59: 122
A60: 12 | B60: 6845 | C60: 24 | D60: 6865 | E60: 24 | F60: 6872 | K60: 0 | L60: 122
A61: 12 | B61: 6969 | C61: 24 | D61: 6982 | E61: 24 | F61: 6988 | K61: 0 | L61: 122
A62: 21 | B62: 7110 | C62: 22 | D62: 7120 | E62: 24 | F62: 7142 | K62: 0 | L62: 222
A63: 12 | B63: 7241 | C63: 24 | D63: 7264 | E63: 24 | F63: 7271 | K63: 0 | L63: 122
A64: 21 | B64: 7410 | C64: 22 | D64: 7420 | E64: 24 | F64: 7431 | K64: 0 | L64: 222
A65: 12 | B65: 7530 | C65: 24 | D65: 7543 | E65: 24 | F65: 7550 | K65: 0 | L65: 122
A66: 21 | B66: 7650 | C66: 22 | D66: 7655 | E66: 24 | F66: 7661 | K66: 0 | L66: 222
A67: 21 | B67: 7771 | C67: 22 | D67: 7776 | E67: 24 | F67: 7783 | K67: 0 | L67: 222
A68: 21 | B68: 7905 | C68: 22 | D68: 7912 | E68: 24 | F68: 7931 | K68: 0 | L68: 222
A69: 21 | B69: 8044 | C69: 22 | D69: 8049 | E69: 24 | F69: 8058 | K69: 0 | L69: 222
A70: 21 | B70: 8172 | C70: 22 | D70: 8178 | E70: 24 | F70: 8186 | K70: 0 | L70: 222
A71: 12 | B71: 8282 | C71: 24 | D71: 8308 | E71: 24 | F71: 8317 | K71: 0 | L71: 122
A72: 12 | B72: 8416 | C72: 24 | D72: 8439 | E72: 24 | F72: 8454 | K72: 0 | L72: 122
A73: 12 | B73: 8553 | C73: 24 | D73: 8579 | E73: 24 | F73: 8588 | K73: 0 | L73: 122
A74: 21 | B74: 8705 | C74: 22 | D74: 8713 | E74: 24 | F74: 8722 | K74: 0 | L74: 222
A75: 12 | B75: 8840 | C75: 24 | D75: 8862 | E75: 24 | F75: 8872 | K75: 0 | L75: 122
A76: 12 | B76: 8972 | C76: 24 | D76: 8988 | E76: 24 | F76: 8996 | K76: 0 | L76: 122
A77: 12 | B77: 9107 | C77: 24 | D77: 9127 | E77: 24 | F77: 9134 | K77: 0 | L77: 122
A78: 12 | B78: 9225 | C78: 24 | D78: 9241 | E78: 24 | F78: 9258 | K78: 0 | L78: 122
A79: 21 | B79: 9377 | C79: 22 | D79: 9387 | E79: 24 | F79: 9402 | K79: 0 | L79: 222
A80: 21 | B80: 9523 | C80: 22 | D80: 9537 | E80: 24 | F80: 9545 | K80: 0 | L80: 222
A81: 12 | B81: 9647 | C81: 24 | D81: 9670 | E81: 24 | F81: 9684 | K81: 0 | L81: 122
A82: 12 | B82: 9787 | C82: 24 | D82: 9800 | E82: 24 | F82: 9809 | K82: 0 | L82: 122
A83: 21 | B83: 9932 | C83: 22 | D83: 9960 | E83: 24 | F83: 9967 | K83: 0 | L83: 222
A84: 21 | B84: 10087 | C84: 22 | D84: 10102 | E84: 24 | F84: 10128 | K84: 0 | L84: 222
A85: 12 | B85: 10226 | C85: 24 | D85: 10252 | E85: 24 | F85: 10266 | K85: 0 | L85: 122
A86: 21 | B86: 10380 | C86: 22 | D86: 10388 | E86: 24 | F86: 10397 | K86: 0 | L86: 222
A87: 21 | B87: 10507 | C87: 22 | D87: 10513 | E87: 24 | F87: 10518 | K87: 0 | L87: 222
A88: 21 | B88: 10635 | C88: 22 | D88: 10651 | E88: 24 | F88: 10666 | K88: 0 | L88: 222
A89: 21 | B89: 10774 | C89: 22 | D89: 10782 | E89: 24 | F89: 10802 | K89: 0 | L89: 222
A90: 21 | B90: 10915 | C90: 22 | D90: 10926 | E90: 24 | F90: 10938 | K90: 0 | L90: 222
A91: 21 | B91: 11054 | C91: 22 | D91: 11061 | E91: 24 | F91: 11080 | K91: 0 | L91: 222
A92: 12 | B92: 11175 | C92: 24 | D92: 11192 | E92: 24 | F92: 11200 | K92: 0 | L92: 122
A93: 21 | B93: 11312 | C93: 22 | D93: 11323 | E93: 24 | F93: 11332 | K93: 0 | L93: 222
A94: 12 | B94: 11433 | C94: 13 | D94: 11466 | E94: 24 | F94: 11479 | K94: 0 | L94: 112
A95: 21 | B95: 11592 | C95: 22 | D95: 11606 | E95: 24 | F95: 11624 | K95: 0 | L95: 222
A96: 21 | B96: 11739 | C96: 22 | D96: 11746 | E96: 24 | F96: 11753 | K96: 0 | L96: 222
A97: 21 | B97: 11868 | C97: 22 | D97: 11873 | E97: 24 | F97: 11886 | K97: 0 | L97: 222
A98: 21 | B98: 12016 | C98: 22 | D98: 12022 | E98: 24 | F98: 12050 | K98: 0 | L98: 222
A99: 21 | B99: 12218 | C99: 22 | D99: 12253 | E99: 24 | F99: 12269 | K99: 0 | L99: 222
A100: 21 | B100: 12377 | C100: 22 | D100: 12392 | E100: 24 | F100: 12406 | K100: 0 | L100: 222
A101: 21 | B101: 12512 | C101: 22 | D101: 12520 | E101: 24 | F101: 12525 | K101: 0 | L101: 222
A102: 21 | B102: 12648 | C102: 22 | D102: 12662 | E102: 24 | F102: 12685 | K102: 0 | L102: 222
A103: 21 | B103: 12797 | C103: 22 | D103: 12804 | E103: 24 | F103: 12817 | K103: 0 | L103: 222
A104: 12 | B104: 12908 | C104: 24 | D104: 12930 | E104: 24 | F104: 12961 | K104: 0 | L104: 122
A105: 21 | B105: 13067 | C105: 22 | D105: 13073 | E105: 24 | F105: 13093 | K105: 0 | L105: 222
A106: 21 | B106: 13199 | C106: 22 | D106: 13205 | E106: 24 | F106: 13216 | K106: 0 | L106: 222
A107: 21 | B107: 13332 | C107: 22 | D107: 13337 | E107: 24 | F107: 13360 | K107: 0 | L107: 222
A108: 21 | B108: 13465 | C108: 22 | D108: 13482 | E108: 24 | F108: 13496 | K108: 0 | L108: 222
A109: 12 | B109: 13599 | C109: 24 | D109: 13614 | E109: 24 | F109: 13620 | K109: 0 | L109: 122
A110: 21 | B110: 13731 | C110: 22 | D110: 13743 | E110: 24 | F110: 13748 | K110: 0 | L110: 222
A111: 21 | B111: 13891 | C111: 22 | D111: 13905 | E111: 24 | F111: 13914 | K111: 0 | L111: 222
A112: 21 | B112: 14025 | C112: 22 | D112: 14033 | E112: 24 | F112: 14040 | K112: 0 | L112: 222
A113: 21 | B113: 14143 | C113: 22 | D113: 14170 | E113: 24 | F113: 14186 | K113: 0 | L113: 222
A114: 21 | B114: 14295 | C114: 22 | D114: 14300 | E114: 24 | F114: 14306 | K114: 0 | L114: 222
A115: 21 | B115: 14415 | C115: 22 | D115: 14420 | E115: 24 | F115: 14428 | K115: 0 | L115: 222
A116: 21 | B116: 14534 | C116: 22 | D116: 14545 | E116: 24 | F116: 14551 | K116: 0 | L116: 222
A117: 21 | B117: 14655 | C117: 22 | D117: 14662 | E117: 24 | F117: 14669 | K117: 0 | L117: 222
A118: 21 | B118: 14793 | C118: 22 | D118: 14801 | E118: 24 | F118: 14807 | K118: 0 | L118: 222
A119: 21 | B119: 14921 | C119: 22 | D119: 14926 | E119: 24 | F119: 14933 | K119: 0 | L119: 222
A120: 21 | B120: 15043 | C120: 22 | D120: 15052 | E120: 24 | F120: 15059 | K120: 0 | L120: 222
A121: 21 | B121: 15167 | C121: 22 | D121: 15174 | E121: 24 | F121: 15192 | K121: 0 | L121: 222
A122: 21 | B122: 15319 | C122: 22 | D122: 15324 | E122: 24 | F122: 15340 | K122: 0 | L122: 222
A123: 21 | B123: 15447 | C123: 22 | D123: 15480 | E123: 24 | F123: 15488 | K123: 0 | L123: 222
A124: 21 | B124: 15607 | C124: 22 | D124: 15618 | E124: 24 | F124: 15626 | K124: 0 | L124: 222
A125: 21 | B125: 15753 | C125: 22 | D125: 15774 | E125: 24 | F125: 15782 | K125: 0 | L125: 222
A126: 21 | B126: 15896 | C126: 22 | D126: 15909 | E126: 24 | F126: 15930 | K126: 0 | L126: 222
A127: 12 | B127: 16029 | C127: 24 | D127: 16039 | E127: 24 | F127: 16045 | K127: 0 | L127: 122
A128: 21 | B128: 16158 | C128: 22 | D128: 16165 | E128: 24 | F128: 16179 | K128: 0 | L128: 222
A129: 21 | B129: 16300 | C129: 22 | D129: 16316 | E129: 24 | F129: 16348 | K129: 0 | L129: 222
A130: 21 | B130: 16473 | C130: 22 | D130: 16484 | E130: 24 | F130: 16493 | K130: 0 | L130: 222
A131: 21 | B131: 16602 | C131: 22 | D131: 16609 | E131: 24 | F131: 16640 | K131: 0 | L131: 222
A132: 21 | B132: 16775 | C132: 22 | D132: 16784 | E132: 24 | F132: 16797 | K132: 0 | L132: 222
A133: 21 | B133: 16909 | C133: 22 | D133: 16916 | E133: 24 | F133: 16947 | K133: 0 | L133: 222
A134: 21 | B134: 17062 | C134: 22 | D134: 17075 | E134: 24 | F134: 17093 | K134: 0 | L134: 222
A135: 21 | B135: 17201 | C135: 22 | D135: 17211 | E135: 24 | F135: 17231 | K135: 0 | L135: 222
A136: 12 | B136: 17326 | C136: 24 | D136: 17339 | E136: 24 | F136: 17346 | K136: 0 | L136: 122
A137: 12 | B137: 17443 | C137: 24 | D137: 17461 | E137: 24 | F137: 17469 | K137: 0 | L137: 122
A138: 12 | B138: 17568 | C138: 24 | D138: 17587 | E138: 24 | F138: 17596 | K138: 0 | L138: 122
A139: 21 | B139: 17715 | C139: 22 | D139: 17724 | E139: 24 | F139: 17737 | K139: 0 | L139: 222
A140: 12 | B140: 17838 | C140: 24 | D140: 17856 | E140: 24 | F140: 17862 | K140: 0 | L140: 122
A141: 12 | B141: 17961 | C141: 24 | D141: 17978 | E141: 24 | F141: 17991 | K141: 0 | L141: 122
A142: 21 | B142: 18100 | C142: 22 | D142: 18112 | E142: 24 | F142: 18120 | K142: 0 | L142: 222
A143: 12 | B143: 18215 | C143: 24 | D143: 18228 | E143: 24 | F143: 18243 | K143: 0 | L143: 122
A144: 21 | B144: 18352 | C144: 22 | D144: 18362 | E144: 24 | F144: 18367 | K144: 0 | L144: 222
A145: 21 | B145: 18480 | C145: 22 | D145: 18486 | E145: 24 | F145: 18493 | K145: 0 | L145: 222
A146: 21 | B146: 18617 | C146: 22 | D146: 18623 | E146: 24 | F146: 18632 | K146: 0 | L146: 222
A147: 21 | B147: 18742 | C147: 22 | D147: 18748 | E147: 24 | F147: 18760 | K147: 0 | L147: 222
A148: 21 | B148: 18918 | C148: 22 | D148: 18926 | E148: 24 | F148: 18946 | K148: 0 | L148: 222
A149: 21 | B149: 19062 | C149: 22 | D149: 19067 | E149: 24 | F149: 19075 | K149: 0 | L149: 222
A150: 21 | B150: 19185 | C150: 22 | D150: 19190 | E150: 24 | F150: 19197 | K150: 0 | L150: 222
A151: 21 | B151: 19301 | C151: 22 | D151: 19312 | E151: 24 | F151: 19318 | K151: 0 | L151: 222
A152: 21 | B152: 19428 | C152: 22 | D152: 19435 | E152: 24 | F152: 19448 | K152: 0 | L152: 222
A153: 21 | B153: 19559 | C153: 22 | D153: 19569 | E153: 24 | F153: 19574 | K153: 0 | L153: 222
A154: 12 | B154: 19678 | C154: 24 | D154: 19702 | E154: 24 | F154: 19712 | K154: 0 | L154: 122
A155: 21 | B155: 19830 | C155: 22 | D155: 19838 | E155: 24 | F155: 19844 | K155: 0 | L155: 222
A156: 21 | B156: 19963 | C156: 22 | D156: 19969 | E156: 24 | F156: 19978 | K156: 0 | L156: 222
A157: 21 | B157: 20090 | C157: 22 | D157: 20098 | E157: 24 | F157: 20106 | K157: 0 | L157: 222
A158: 21 | B158: 20245 | C158: 22 | D158: 20252 | E158: 24 | F158: 20261 | K158: 0 | L158: 222
A159: 21 | B159: 20374 | C159: 22 | D159: 20380 | E159: 24 | F159: 20387 | K159: 0 | L159: 222
A160: 21 | B160: 20500 | C160: 22 | D160: 20514 | E160: 24 | F160: 20530 | K160: 0 | L160: 222
A161: 21 | B161: 20638 | C161: 22 | D161: 20645 | E161: 24 | F161: 20655 | K161: 0 | L161: 222
A162: 21 | B162: 20788 | C162: 22 | D162: 20795 | E162: 24 | F162: 20803 | K162: 0 | L162: 222
A163: 21 | B163: 20912 | C163: 22 | D163: 20923 | E163: 24 | F163: 20939 | K163: 0 | L163: 222
A164: 12 | B164: 21045 | C164: 24 | D164: 21058 | E164: 24 | F164: 21072 | K164: 0 | L164: 122
A165: 12 | B165: 21193 | C165: 24 | D165: 21206 | E165: 24 | F165: 21215 | K165: 0 | L165: 122
A166: 12 | B166: 21317 | C166: 24 | D166: 21330 | E166: 24 | F166: 21338 | K166: 0 | L166: 122
A167: 21 | B167: 21471 | C167: 22 | D167: 21483 | E167: 24 | F167: 21492 | K167: 0 | L167: 222
A168: 21 | B168: 21602 | C168: 22 | D168: 21610 | E168: 24 | F168: 21617 | K168: 0 | L168: 222
A169: 21 | B169: 21728 | C169: 22 | D169: 21735 | E169: 24 | F169: 21743 | K169: 0 | L169: 222
A170: 21 | B170: 21856 | C170: 22 | D170: 21863 | E170: 24 | F170: 21870 | K170: 0 | L170: 222
A171: 21 | B171: 21983 | C171: 22 | D171: 21994 | E171: 24 | F171: 22002 | K171: 0 | L171: 222
A172: 21 | B172: 22120 | C172: 22 | D172: 22129 | E172: 24 | F172: 22137 | K172: 0 | L172: 222
A173: 12 | B173: 22249 | C173: 24 | D173: 22262 | E173: 24 | F173: 22274 | K173: 0 | L173: 122
A174: 12 | B174: 22367 | C174: 24 | D174: 22386 | E174: 24 | F174: 22393 | K174: 0 | L174: 122
A175: 21 | B175: 22506 | C175: 22 | D175: 22512 | E175: 24 | F175: 22526 | K175: 0 | L175: 222
A176: 21 | B176: 22632 | C176: 22 | D176: 22640 | E176: 24 | F176: 22646 | K176: 0 | L176: 222
A177: 21 | B177: 22765 | C177: 22 | D177: 22782 | E177: 24 | F177: 22801 | K177: 0 | L177: 222
A178: 21 | B178: 22916 | C178: 22 | D178: 22935 | E178: 24 | F178: 22944 | K178: 0 | L178: 222
A179: 21 | B179: 23052 | C179: 22 | D179: 23059 | E179: 24 | F179: 23067 | K179: 0 | L179: 222
A180: 21 | B180: 23177 | C180: 22 | D180: 23190 | E180: 24 | F180: 23200 | K180: 0 | L180: 222
A181: 21 | B181: 23318 | C181: 22 | D181: 23327 | E181: 24 | F181: 23342 | K181: 0 | L181: 222
A182: 21 | B182: 23465 | C182: 22 | D182: 23473 | E182: 24 | F182: 23497 | K182: 0 | L182: 222
A183: 21 | B183: 23610 | C183: 22 | D183: 23616 | E183: 24 | F183: 23623 | K183: 0 | L183: 222
A184: 21 | B184: 23736 | C184: 22 | D184: 23742 | E184: 24 | F184: 23757 | K184: 0 | L184: 222
A185: 21 | B185: 23877 | C185: 22 | D185: 23894 | E185: 24 | F185: 23903 | K185: 0 | L185: 222
A186: 12 | B186: 23999 | L186: 1

Sheet !M906820.101
A1: Report for:!M906820.101
A2: Date: | B2: <date>
A3: Hen: | B3: <hen> | F3: Correct Sequence | G3: =Start!J2 -> 211 | P3: Total Sequences in Data | Q3: =4994-COUNTBLANK(L7:L5000) -> 177 | V3: Total Sequences in Block Data | W3: =COUNTA(L7:L36) -> 30 | AA3: Total Sequences in Block Data | AB3: =COUNTA(L37:L65) -> 29 | AF3: Total Sequences in Block Data | AG3: =COUNTA(L66:L95) -> 30 | AK3: Total Sequences in Block Data | AL3: =COUNTA(L96:L124) -> 29 | AP3: Total Sequences in Block Data | AQ3: =COUNTA(L125:L154) -> 30 | AU3: Total Sequences in Block Data | AV3: =COUNTA(L155:L183) -> 29
P4: Total Sequences in Summary | Q4: =SUM(O7:O14) -> 177 | V4: Total Sequences in Block Summary | W4: =SUM(U7:U14) -> 30 | AA4: Total Sequences in Block Summary | AB4: =SUM(Z7:Z14) -> 29 | AF4: Total Sequences in Block Summary | AG4: =SUM(AE7:AE14) -> 30 | AK4: Total Sequences in Block Summary | AL4: =SUM(AJ7:AJ14) -> 29 | AP4: Total Sequences in Block Summary | AQ4: =SUM(AO7:AO14) -> 30 | AU4: Total Sequences in Block Summary | AV4: =SUM(AT7:AT14) -> 29
T5: Block 1 | Y5: Block 2 | AD5: Block 3 | AI5: Block 4 | AN5: Block 5 | AS5: Block 6
A6: Sequence Component 1 | B6: Time 1 | C6: Sequence Component 2 | D6: Time 2 | E6: Sequence Component 3 | F6: Time 3 | G6: Sequence Component 4 | H6: Time 4 | I6: Sequence Component 5 | J6: Time 5 | K6: Correct? 0=No 1=Yes | L6: Sequence | N6: Frequency | P6: Relative Frequency | Q6: Variability | T6: Frequency | V6: Relative Frequency | W6: Variability | Y6: Frequency | AA6: Relative Frequency | AB6: Variability | AD6: Frequency | AF6: Relative Frequency | AG6: Variability | AI6: Frequency | AK6: Relative Frequency | AL6: Variability | AN6: Frequency | AP6: Relative Frequency | AQ6: Variability | AS6: Frequency | AU6: Relative Frequency | AV6: Variability
A7: 12 | B7: 9 | C7: 13 | D7: 30 | E7: 24 | F7: 45 | K7: 0 | L7: 112 | N7: 111 | O7: =COUNTIF($L$7:$L$500,N7) -> 0 | P7: =O7/$Q$4 -> 0 | Q7: =IF(P7=0,0,(P7*((LOG(P7))/LOG(2)))) -> 0 | T7: =N7 -> 111 | U7: =COUNTIF(L7:L36,T7) -> 0 | V7: =U7/(W4-U11) -> 0 | W7: =IF(V7=0,0,(V7*((LOG(V7))/LOG(2)))) -> 0 | Y7: =N7 -> 111 | Z7: =COUNTIF(L37:L65,Y7) -> 0 | AA7: =Z7/(AB4-Z11) -> 0 | AB7: =IF(AA7=0,0,(AA7*((LOG(AA7))/LOG(2)))) -> 0 | AD7: =N7 -> 111 | AE7: =COUNTIF(L66:L95,AD7) -> 0 | AF7: =AE7/(AG4-AE11) -> 0 | AG7: =IF(AF7=0,0,(AF7*((LOG(AF7))/LOG(2)))) -> 0 | AI7: =N7 -> 111 | AJ7: =COUNTIF(L96:L124,AI7) -> 0 | AK7: =AJ7/(AL4-AJ11) -> 0 | AL7: =IF(AK7=0,0,(AK7*((LOG(AK7))/LOG(2)))) -> 0 | AN7: =N7 -> 111 | AO7: =COUNTIF(L125:L154,AN7) -> 0 | AP7: =AO7/(AQ4-AO11) -> 0 | AQ7: =IF(AP7=0,0,(AP7*((LOG(AP7))/LOG(2)))) -> 0 | AS7: =N7 -> 111 | AT7: =COUNTIF(L155:L183,AS7) -> 0 | AU7: =AT7/(AV4-AT11) -> 0 | AV7: =IF(AU7=0,0,(AU7*((LOG(AU7))/LOG(2)))) -> 0
A8: 12 | B8: 151 | C8: 24 | D8: 165 | E8: 24 | F8: 171 | K8: 0 | L8: 122 | N8: 112 | O8: =COUNTIF($L$7:$L$500,N8) -> 2 | P8: =O8/$Q$4 -> 0.01129943503 | Q8: =IF(P8=0,0,(P8*((LOG(P8))/LOG(2)))) -> -0.0730802887 | T8: =N8 -> 112 | U8: =COUNTIF(L7:L36,T8) -> 1 | V8: =U8/(W4-U11) -> 0.03333333333 | W8: =IF(V8=0,0,(V8*((LOG(V8))/LOG(2)))) -> -0.1635630199 | Y8: =N8 -> 112 | Z8: =COUNTIF(L37:L65,Y8) -> 1 | AA8: =Z8/(AB4-Z11) -> 0.03448275862 | AB8: =IF(AA8=0,0,(AA8*((LOG(AA8))/LOG(2)))) -> -0.167516586 | AD8: =N8 -> 112 | AE8: =COUNTIF(L66:L95,AD8) -> 0 | AF8: =AE8/(AG4-AE11) -> 0 | AG8: =IF(AF8=0,0,(AF8*((LOG(AF8))/LOG(2)))) -> 0 | AI8: =N8 -> 112 | AJ8: =COUNTIF(L96:L124,AI8) -> 0 | AK8: =AJ8/(AL4-AJ11) -> 0 | AL8: =IF(AK8=0,0,(AK8*((LOG(AK8))/LOG(2)))) -> 0 | AN8: =N8 -> 112 | AO8: =COUNTIF(L125:L154,AN8) -> 0 | AP8: =AO8/(AQ4-AO11) -> 0 | AQ8: =IF(AP8=0,0,(AP8*((LOG(AP8))/LOG(2)))) -> 0 | AS8: =N8 -> 112 | AT8: =COUNTIF(L155:L183,AS8) -> 0 | AU8: =AT8/(AV4-AT11) -> 0 | AV8: =IF(AU8=0,0,(AU8*((LOG(AU8))/LOG(2)))) -> 0
A9: 12 | B9: 273 | C9: 24 | D9: 285 | E9: 24 | F9: 291 | K9: 0 | L9: 122 | N9: 121 | O9: =COUNTIF($L$7:$L$500,N9) -> 0 | P9: =O9/$Q$4 -> 0 | Q9: =IF(P9=0,0,(P9*((LOG(P9))/LOG(2)))) -> 0 | T9: =N9 -> 121 | U9: =COUNTIF(L7:L36,T9) -> 0 | V9: =U9/(W4-U11) -> 0 | W9: =IF(V9=0,0,(V9*((LOG(V9))/LOG(2)))) -> 0 | Y9: =N9 -> 121 | Z9: =COUNTIF(L37:L65,Y9) -> 0 | AA9: =Z9/(AB4-Z11) -> 0 | AB9: =IF(AA9=0,0,(AA9*((LOG(AA9))/LOG(2)))) -> 0 | AD9: =N9 -> 121 | AE9: =COUNTIF(L66:L95,AD9) -> 0 | AF9: =AE9/(AG4-AE11) -> 0 | AG9: =IF(AF9=0,0,(AF9*((LOG(AF9))/LOG(2)))) -> 0 | AI9: =N9 -> 121 | AJ9: =COUNTIF(L96:L124,AI9) -> 0 | AK9: =AJ9/(AL4-AJ11) -> 0 | AL9: =IF(AK9=0,0,(AK9*((LOG(AK9))/LOG(2)))) -> 0 | AN9: =N9 -> 121 | AO9: =COUNTIF(L125:L154,AN9) -> 0 | AP9: =AO9/(AQ4-AO11) -> 0 | AQ9: =IF(AP9=0,0,(AP9*((LOG(AP9))/LOG(2)))) -> 0 | AS9: =N9 -> 121 | AT9: =COUNTIF(L155:L183,AS9) -> 0 | AU9: =AT9/(AV4-AT11) -> 0 | AV9: =IF(AU9=0,0,(AU9*((LOG(AU9))/LOG(2)))) -> 0
A10: 21 | B10: 402 | C10: 22 | D10: 408 | E10: 24 | F10: 418 | K10: 0 | L10: 222 | N10: 122 | O10: =COUNTIF($L$7:$L$500,N10) -> 63 | P10: =O10/$Q$4 -> 0.3559322034 | Q10: =IF(P10=0,0,(P10*((LOG(P10))/LOG(2)))) -> -0.530454884 | T10: =N10 -> 122 | U10: =COUNTIF(L7:L36,T10) -> 18 | V10: =U10/(W4-U11) -> 0.6 | W10: =IF(V10=0,0,(V10*((LOG(V10))/LOG(2)))) -> -0.4421793565 | Y10: =N10 -> 122 | Z10: =COUNTIF(L37:L65,Y10) -> 13 | AA10: =Z10/(AB4-Z11) -> 0.4482758621 | AB10: =IF(AA10=0,0,(AA10*((LOG(AA10))/LOG(2)))) -> -0.5188978138 | AD10: =N10 -> 122 | AE10: =COUNTIF(L66:L95,AD10) -> 10 | AF10: =AE10/(AG4-AE11) -> 0.3333333333 | AG10: =IF(AF10=0,0,(AF10*((LOG(AF10))/LOG(2)))) -> -0.5283208336 | AI10: =N10 -> 122 | AJ10: =COUNTIF(L96:L124,AI10) -> 8 | AK10: =AJ10/(AL4-AJ11) -> 0.275862069 | AL10: =IF(AK10=0,0,(AK10*((LOG(AK10))/LOG(2)))) -> -0.5125464814 | AN10: =N10 -> 122 | AO10: =COUNTIF(L125:L154,AN10) -> 7 | AP10: =AO10/(AQ4-AO11) -> 0.2333333333 | AQ10: =IF(AP10=0,0,(AP10*((LOG(AP10))/LOG(2)))) -> -0.4898916572 | AS10: =N10 -> 122 | AT10: =COUNTIF(L155:L183,AS10) -> 7 | AU10: =AT10/(AV4-AT11) -> 0.2413793103 | AV10: =IF(AU10=0,0,(AU10*((LOG(AU10))/LOG(2)))) -> -0.4949787073
A11: 12 | B11: 519 | C11: 24 | D11: 542 | E11: 24 | F11: 552 | K11: 0 | L11: 122 | N11: 211 | O11: =COUNTIF($L$7:$L$500,N11) -> 0 | P11: =O11/$Q$4 -> 0 | Q11: =IF(P11=0,0,(P11*((LOG(P11))/LOG(2)))) -> 0 | T11: =N11 -> 211 | U11: =COUNTIF(L7:L36,T11) -> 0 | Y11: =N11 -> 211 | Z11: =COUNTIF(L37:L65,Y11) -> 0 | AD11: =N11 -> 211 | AE11: =COUNTIF(L66:L95,AD11) -> 0 | AI11: =N11 -> 211 | AJ11: =COUNTIF(L96:L124,AI11) -> 0 | AN11: =N11 -> 211 | AO11: =COUNTIF(L125:L154,AN11) -> 0 | AS11: =N11 -> 211 | AT11: =COUNTIF(L155:L183,AS11) -> 0
A12: 12 | B12: 649 | C12: 24 | D12: 668 | E12: 24 | F12: 676 | K12: 0 | L12: 122 | N12: 212 | O12: =COUNTIF($L$7:$L$500,N12) -> 0 | P12: =O12/$Q$4 -> 0 | Q12: =IF(P12=0,0,(P12*((LOG(P12))/LOG(2)))) -> 0 | T12: =N12 -> 212 | U12: =COUNTIF(L7:L36,T12) -> 0 | V12: =U12/(W4-U11) -> 0 | W12: =IF(V12=0,0,(V12*((LOG(V12))/LOG(2)))) -> 0 | Y12: =N12 -> 212 | Z12: =COUNTIF(L37:L65,Y12) -> 0 | AA12: =Z12/(AB4-Z11) -> 0 | AB12: =IF(AA12=0,0,(AA12*((LOG(AA12))/LOG(2)))) -> 0 | AD12: =N12 -> 212 | AE12: =COUNTIF(L66:L95,AD12) -> 0 | AF12: =AE12/(AG4-AE11) -> 0 | AG12: =IF(AF12=0,0,(AF12*((LOG(AF12))/LOG(2)))) -> 0 | AI12: =N12 -> 212 | AJ12: =COUNTIF(L96:L124,AI12) -> 0 | AK12: =AJ12/(AL4-AJ11) -> 0 | AL12: =IF(AK12=0,0,(AK12*((LOG(AK12))/LOG(2)))) -> 0 | AN12: =N12 -> 212 | AO12: =COUNTIF(L125:L154,AN12) -> 0 | AP12: =AO12/(AQ4-AO11) -> 0 | AQ12: =IF(AP12=0,0,(AP12*((LOG(AP12))/LOG(2)))) -> 0 | AS12: =N12 -> 212 | AT12: =COUNTIF(L155:L183,AS12) -> 0 | AU12: =AT12/(AV4-AT11) -> 0 | AV12: =IF(AU12=0,0,(AU12*((LOG(AU12))/LOG(2)))) -> 0
A13: 12 | B13: 776 | C13: 24 | D13: 791 | E13: 24 | F13: 797 | K13: 0 | L13: 122 | N13: 221 | O13: =COUNTIF($L$7:$L$500,N13) -> 0 | P13: =O13/$Q$4 -> 0 | Q13: =IF(P13=0,0,(P13*((LOG(P13))/LOG(2)))) -> 0 | T13: =N13 -> 221 | U13: =COUNTIF(L7:L36,T13) -> 0 | V13: =U13/(W4-U11) -> 0 | W13: =IF(V13=0,0,(V13*((LOG(V13))/LOG(2)))) -> 0 | Y13: =N13 -> 221 | Z13: =COUNTIF(L37:L65,Y13) -> 0 | AA13: =Z13/(AB4-Z11) -> 0 | AB13: =IF(AA13=0,0,(AA13*((LOG(AA13))/LOG(2)))) -> 0 | AD13: =N13 -> 221 | AE13: =COUNTIF(L66:L95,AD13) -> 0 | AF13: =AE13/(AG4-AE11) -> 0 | AG13: =IF(AF13=0,0,(AF13*((LOG(AF13))/LOG(2)))) -> 0 | AI13: =N13 -> 221 | AJ13: =COUNTIF(L96:L124,AI13) -> 0 | AK13: =AJ13/(AL4-AJ11) -> 0 | AL13: =IF(AK13=0,0,(AK13*((LOG(AK13))/LOG(2)))) -> 0 | AN13: =N13 -> 221 | AO13: =COUNTIF(L125:L154,AN13) -> 0 | AP13: =AO13/(AQ4-AO11) -> 0 | AQ13: =IF(AP13=0,0,(AP13*((LOG(AP13))/LOG(2)))) -> 0 | AS13: =N13 -> 221 | AT13: =COUNTIF(L155:L183,AS13) -> 0 | AU13: =AT13/(AV4-AT11) -> 0 | AV13: =IF(AU13=0,0,(AU13*((LOG(AU13))/LOG(2)))) -> 0
A14: 12 | B14: 905 | C14: 24 | D14: 917 | E14: 24 | F14: 933 | K14: 0 | L14: 122 | N14: 222 | O14: =COUNTIF($L$7:$L$500,N14) -> 112 | P14: =O14/$Q$4 -> 0.6327683616 | Q14: =IF(P14=0,0,(P14*((LOG(P14))/LOG(2)))) -> -0.4177857081 | T14: =N14 -> 222 | U14: =COUNTIF(L7:L36,T14) -> 11 | V14: =U14/(W4-U11) -> 0.3666666667 | W14: =IF(V14=0,0,(V14*((LOG(V14))/LOG(2)))) -> -0.5307349582 | Y14: =N14 -> 222 | Z14: =COUNTIF(L37:L65,Y14) -> 15 | AA14: =Z14/(AB4-Z11) -> 0.5172413793 | AB14: =IF(AA14=0,0,(AA14*((LOG(AA14))/LOG(2)))) -> -0.4919433101 | AD14: =N14 -> 222 | AE14: =COUNTIF(L66:L95,AD14) -> 20 | AF14: =AE14/(AG4-AE11) -> 0.6666666667 | AG14: =IF(AF14=0,0,(AF14*((LOG(AF14))/LOG(2)))) -> -0.3899750005 | AI14: =N14 -> 222 | AJ14: =COUNTIF(L96:L124,AI14) -> 21 | AK14: =AJ14/(AL4-AJ11) -> 0.724137931 | AL14: =IF(AK14=0,0,(AK14*((LOG(AK14))/LOG(2)))) -> -0.3372046558 | AN14: =N14 -> 222 | AO14: =COUNTIF(L125:L154,AN14) -> 23 | AP14: =AO14/(AQ4-AO11) -> 0.7666666667 | AQ14: =IF(AP14=0,0,(AP14*((LOG(AP14))/LOG(2)))) -> -0.2938852903 | AS14: =N14 -> 222 | AT14: =COUNTIF(L155:L183,AS14) -> 22 | AU14: =AT14/(AV4-AT11) -> 0.7586206897 | AV14: =IF(AU14=0,0,(AU14*((LOG(AU14))/LOG(2)))) -> -0.3023478029
A15: 12 | B15: 1029 | C15: 24 | D15: 1047 | E15: 24 | F15: 1052 | K15: 0 | L15: 122 | P15: =SUM(P7:P14) -> 1 | Q15: =-SUM(Q7:Q14) -> 1.021320881 | V15: =SUM(V7:V14) -> 1 | W15: =-SUM(W7:W14) -> 1.136477335 | AA15: =SUM(AA7:AA14) -> 1 | AB15: =-SUM(AB7:AB14) -> 1.17835771 | AF15: =SUM(AF7:AF14) -> 1 | AG15: =-SUM(AG7:AG14) -> 0.9182958341 | AK15: =SUM(AK7:AK14) -> 1 | AL15: =-SUM(AL7:AL14) -> 0.8497511373 | AP15: =SUM(AP7:AP14) -> 1 | AQ15: =-SUM(AQ7:AQ14) -> 0.7837769475 | AU15: =SUM(AU7:AU14) -> 1 | AV15: =-SUM(AV7:AV14) -> 0.7973265101
A16: 12 | B16: 1168 | C16: 24 | D16: 1185 | E16: 24 | F16: 1194 | K16: 0 | L16: 122 | P16: U= | Q16: =Q15/(LOG(Q4)/LOG(2)) -> 0.136766849 | V16: U1= | W16: =W15/(LOG(W4)/LOG(2)) -> 0.2316084519 | AA16: U2= | AB16: =AB15/(LOG(AB4)/LOG(2)) -> 0.2425612021 | AF16: U3= | AG16: =AG15/(LOG(AG4)/LOG(2)) -> 0.1871441427 | AK16: U4= | AL16: =AL15/(LOG(AL4)/LOG(2)) -> 0.17491858 | AP16: U5= | AQ16: =AQ15/(LOG(AQ4)/LOG(2)) -> 0.1597298599 | AU16: U6= | AV16: =AV15/(LOG(AV4)/LOG(2)) -> 0.1641271366
A17: 21 | B17: 1313 | C17: 22 | D17: 1323 | E17: 24 | F17: 1330 | K17: 0 | L17: 222
A18: 12 | B18: 1444 | C18: 24 | D18: 1462 | E18: 24 | F18: 1467 | K18: 0 | L18: 122
A19: 21 | B19: 1589 | C19: 22 | D19: 1597 | E19: 24 | F19: 1606 | K19: 0 | L19: 222 | N19: Total Target Seq
A20: 21 | B20: 1717 | C20: 22 | D20: 1724 | E20: 24 | F20: 1729 | K20: 0 | L20: 222 | N20: =COUNTIF(L7:L183,G3) -> 0 | P20: 30 | Q20: 29 | R20: 30 | S20: 29 | T20: 30 | U20: 29
A21: 21 | B21: 1837 | C21: 22 | D21: 1845 | E21: 24 | F21: 1853 | K21: 0 | L21: 222 | P21: % of reinforcement given in 6 equal intervals based on number of trials
A22: 12 | B22: 1954 | C22: 24 | D22: 1987 | E22: 24 | F22: 1996 | K22: 0 | L22: 122 | P22: %_1 | Q22: %_2 | R22: %_3 | S22: %_4 | T22: %_5 | U22: %_6
A23: 12 | B23: 2104 | C23: 24 | D23: 2141 | E23: 24 | F23: 2150 | K23: 0 | L23: 122 | O23: target sequence | P23: =$G$3 -> 211 | Q23: =$G$3 -> 211 | R23: =$G$3 -> 211 | S23: =$G$3 -> 211 | T23: =$G$3 -> 211 | U23: =$G$3 -> 211
A24: 21 | B24: 2272 | C24: 22 | D24: 2288 | E24: 24 | F24: 2337 | K24: 0 | L24: 222 | O24: total reinforcement | P24: =U11 -> 0 | Q24: =Z11 -> 0 | R24: =AE11 -> 0 | S24: =AJ11 -> 0 | T24: =AO11 -> 0 | U24: =AT11 -> 0
A25: 21 | B25: 2440 | C25: 22 | D25: 2445 | E25: 24 | F25: 2450 | K25: 0 | L25: 222 | O25: % target
A26: 21 | B26: 2565 | C26: 22 | D26: 2570 | E26: 24 | F26: 2583 | K26: 0 | L26: 222 | O26: CCRF
A27: 12 | B27: 2684 | C27: 24 | D27: 2701 | E27: 24 | F27: 2707 | K27: 0 | L27: 122 | O27: % CCRf
A28: 12 | B28: 2810 | C28: 24 | D28: 2833 | E28: 24 | F28: 2841 | K28: 0 | L28: 122 | O28: average response rate | P28: =F36/P20 -> 128.6 | Q28: =(F65-F36)/Q20 -> 137.1034483 | R28: =(F95-F65)/R20 -> 139.7666667 | S28: =(F124-F95)/S20 -> 134.5517241 | T28: =(F154-F124)/T20 -> 133.4666667 | U28: =(F183-F154)/U20 -> 137.137931
A29: 21 | B29: 2951 | C29: 22 | D29: 2956 | E29: 24 | F29: 2961 | K29: 0 | L29: 222
A30: 12 | B30: 3060 | C30: 24 | D30: 3073 | E30: 24 | F30: 3082 | K30: 0 | L30: 122
A31: 12 | B31: 3178 | C31: 24 | D31: 3197 | E31: 24 | F31: 3204 | K31: 0 | L31: 122
A32: 12 | B32: 3310 | C32: 24 | D32: 3336 | E32: 24 | F32: 3345 | K32: 0 | L32: 122
A33: 21 | B33: 3466 | C33: 22 | D33: 3472 | E33: 24 | F33: 3492 | K33: 0 | L33: 222
A34: 12 | B34: 3587 | C34: 24 | D34: 3605 | E34: 24 | F34: 3611 | K34: 0 | L34: 122
A35: 21 | B35: 3725 | C35: 22 | D35: 3734 | E35: 24 | F35: 3741 | K35: 0 | L35: 222
A36: 12 | B36: 3834 | C36: 24 | D36: 3852 | E36: 24 | F36: 3858 | K36: 0 | L36: 122
A37: 21 | B37: 3968 | C37: 22 | D37: 3973 | E37: 24 | F37: 3987 | K37: 0 | L37: 222
A38: 12 | B38: 4098 | C38: 24 | D38: 4127 | E38: 24 | F38: 4135 | K38: 0 | L38: 122
A39: 12 | B39: 4242 | C39: 24 | D39: 4261 | E39: 24 | F39: 4268 | K39: 0 | L39: 122
A40: 21 | B40: 4386 | C40: 22 | D40: 4409 | E40: 24 | F40: 4424 | K40: 0 | L40: 222
A41: 12 | B41: 4522 | C41: 24 | D41: 4544 | E41: 24 | F41: 4557 | K41: 0 | L41: 122
A42: 12 | B42: 4676 | C42: 24 | D42: 4694 | E42: 24 | F42: 4703 | K42: 0 | L42: 122
A43: 21 | B43: 4832 | C43: 22 | D43: 4855 | E43: 24 | F43: 4874 | K43: 0 | L43: 222
A44: 12 | B44: 4975 | C44: 24 | D44: 4998 | E44: 24 | F44: 5005 | K44: 0 | L44: 122
A45: 12 | B45: 5109 | C45: 24 | D45: 5127 | E45: 24 | F45: 5132 | K45: 0 | L45: 122
A46: 12 | B46: 5231 | C46: 24 | D46: 5251 | E46: 24 | F46: 5257 | K46: 0 | L46: 122
A47: 12 | B47: 5355 | C47: 24 | D47: 5376 | E47: 24 | F47: 5385 | K47: 0 | L47: 122
A48: 12 | B48: 5485 | C48: 13 | D48: 5487 | E48: 24 | F48: 5500 | K48: 0 | L48: 112
A49: 21 | B49: 5611 | C49: 22 | D49: 5619 | E49: 24 | F49: 5627 | K49: 0 | L49: 222
A50: 21 | B50: 5755 | C50: 22 | D50: 5764 | E50: 24 | F50: 5773 | K50: 0 | L50: 222
A51: 12 | B51: 5870 | C51: 24 | D51: 5886 | E51: 24 | F51: 5892 | K51: 0 | L51: 122
A52: 21 | B52: 6005 | C52: 22 | D52: 6013 | E52: 24 | F52: 6024 | K52: 0 | L52: 222
A53: 21 | B53: 6142 | C53: 22 | D53: 6150 | E53: 24 | F53: 6157 | K53: 0 | L53: 222
A54: 21 | B54: 6261 | C54: 22 | D54: 6266 | E54: 24 | F54: 6273 | K54: 0 | L54: 222
A55: 21 | B55: 6422 | C55: 22 | D55: 6428 | E55: 24 | F55: 6438 | K55: 0 | L55: 222
A56: 21 | B56: 6552 | C56: 22 | D56: 6565 | E56: 24 | F56: 6574 | K56: 0 | L56: 222
A57: 12 | B57: 6674 | C57: 24 | D57: 6688 | E57: 24 | F57: 6697 | K57: 0 | L57: 122
A58: 12 | B58: 6794 | C58: 24 | D58: 6817 | E58: 24 | F58: 6826 | K58: 0 | L58: 122
A59: 21 | B59: 6950 | C59: 22 | D59: 6960 | E59: 24 | F59: 6986 | K59: 0 | L59: 222
A60: 21 | B60: 7102 | C60: 22 | D60: 7108 | E60: 24 | F60: 7113 | K60: 0 | L60: 222
A61: 12 | B61: 7231 | C61: 24 | D61: 7245 | E61: 24 | F61: 7260 | K61: 0 | L61: 122
A62: 21 | B62: 7368 | C62: 22 | D62: 7375 | E62: 24 | F62: 7396 | K62: 0 | L62: 222
A63: 21 | B63: 7526 | C63: 22 | D63: 7532 | E63: 24 | F63: 7540 | K63: 0 | L63: 222
A64: 21 | B64: 7656 | C64: 22 | D64: 7662 | E64: 24 | F64: 7669 | K64: 0 | L64: 222
A65: 12 | B65: 7787 | C65: 24 | D65: 7818 | E65: 24 | F65: 7834 | K65: 0 | L65: 122
A66: 12 | B66: 7935 | C66: 24 | D66: 7953 | E66: 24 | F66: 7967 | K66: 0 | L66: 122
A67: 21 | B67: 8085 | C67: 22 | D67: 8090 | E67: 24 | F67: 8097 | K67: 0 | L67: 222
A68: 21 | B68: 8208 | C68: 22 | D68: 8214 | E68: 24 | F68: 8219 | K68: 0 | L68: 222
A69: 12 | B69: 8319 | C69: 24 | D69: 8347 | E69: 24 | F69: 8393 | K69: 0 | L69: 122
A70: 21 | B70: 8516 | C70: 22 | D70: 8541 | E70: 24 | F70: 8579 | K70: 0 | L70: 222
A71: 21 | B71: 8701 | C71: 22 | D71: 8708 | E71: 24 | F71: 8719 | K71: 0 | L71: 222
A72: 21 | B72: 8838 | C72: 22 | D72: 8851 | E72: 24 | F72: 8866 | K72: 0 | L72: 222
A73: 12 | B73: 8967 | C73: 24 | D73: 8977 | E73: 24 | F73: 8988 | K73: 0 | L73: 122
A74: 12 | B74: 9088 | C74: 24 | D74: 9108 | E74: 24 | F74: 9121 | K74: 0 | L74: 122
A75: 21 | B75: 9245 | C75: 22 | D75: 9251 | E75: 24 | F75: 9261 | K75: 0 | L75: 222
A76: 12 | B76: 9368 | C76: 24 | D76: 9382 | E76: 24 | F76: 9389 | K76: 0 | L76: 122
A77: 21 | B77: 9500 | C77: 22 | D77: 9509 | E77: 24 | F77: 9516 | K77: 0 | L77: 222
A78: 21 | B78: 9630 | C78: 22 | D78: 9636 | E78: 24 | F78: 9650 | K78: 0 | L78: 222
A79: 21 | B79: 9765 | C79: 22 | D79: 9784 | E79: 24 | F79: 9792 | K79: 0 | L79: 222
A80: 21 | B80: 9912 | C80: 22 | D80: 9923 | E80: 24 | F80: 9932 | K80: 0 | L80: 222
A81: 21 | B81: 10051 | C81: 22 | D81: 10064 | E81: 24 | F81: 10077 | K81: 0 | L81: 222
A82: 21 | B82: 10218 | C82: 22 | D82: 10225 | E82: 24 | F82: 10238 | K82: 0 | L82: 222
A83: 12 | B83: 10337 | C83: 24 | D83: 10351 | E83: 24 | F83: 10358 | K83: 0 | L83: 122
A84: 12 | B84: 10466 | C84: 24 | D84: 10478 | E84: 24 | F84: 10489 | K84: 0 | L84: 122
A85: 12 | B85: 10589 | C85: 24 | D85: 10602 | E85: 24 | F85: 10617 | K85: 0 | L85: 122
A86: 21 | B86: 10732 | C86: 22 | D86: 10738 | E86: 24 | F86: 10745 | K86: 0 | L86: 222
A87: 12 | B87: 10851 | C87: 24 | D87: 10872 | E87: 24 | F87: 10878 | K87: 0 | L87: 122
A88: 21 | B88: 10994 | C88: 22 | D88: 11000 | E88: 24 | F88: 11006 | K88: 0 | L88: 222
A89: 21 | B89: 11129 | C89: 22 | D89: 11138 | E89: 24 | F89: 11147 | K89: 0 | L89: 222
A90: 21 | B90: 11261 | C90: 22 | D90: 11277 | E90: 24 | F90: 11282 | K90: 0 | L90: 222
A91: 21 | B91: 11400 | C91: 22 | D91: 11406 | E91: 24 | F91: 11414 | K91: 0 | L91: 222
A92: 12 | B92: 11510 | C92: 24 | D92: 11522 | E92: 24 | F92: 11529 | K92: 0 | L92: 122
A93: 21 | B93: 11668 | C93: 22 | D93: 11683 | E93: 24 | F93: 11692 | K93: 0 | L93: 222
A94: 21 | B94: 11852 | C94: 22 | D94: 11867 | E94: 24 | F94: 11881 | K94: 0 | L94: 222
A95: 21 | B95: 12004 | C95: 22 | D95: 12012 | E95: 24 | F95: 12027 | K95: 0 | L95: 222
A96: 21 | B96: 12162 | C96: 22 | D96: 12173 | E96: 24 | F96: 12185 | K96: 0 | L96: 222
A97: 21 | B97: 12306 | C97: 22 | D97: 12320 | E97: 24 | F97: 12336 | K97: 0 | L97: 222
A98: 21 | B98: 12456 | C98: 22 | D98: 12462 | E98: 24 | F98: 12470 | K98: 0 | L98: 222
A99: 12 | B99: 12565 | C99: 24 | D99: 12586 | E99: 24 | F99: 12594 | K99: 0 | L99: 122
A100: 12 | B100: 12713 | C100: 24 | D100: 12733 | E100: 24 | F100: 12740 | K100: 0 | L100: 122
A101: 21 | B101: 12861 | C101: 22 | D101: 12868 | E101: 24 | F101: 12879 | K101: 0 | L101: 222
A102: 12 | B102: 12988 | C102: 24 | D102: 13022 | E102: 24 | F102: 13029 | K102: 0 | L102: 122
A103: 21 | B103: 13147 | C103: 22 | D103: 13152 | E103: 24 | F103: 13159 | K103: 0 | L103: 222
A104: 21 | B104: 13288 | C104: 22 | D104: 13301 | E104: 24 | F104: 13317 | K104: 0 | L104: 222
A105: 21 | B105: 13430 | C105: 22 | D105: 13438 | E105: 24 | F105: 13450 | K105: 0 | L105: 222
A106: 21 | B106: 13570 | C106: 22 | D106: 13582 | E106: 24 | F106: 13590 | K106: 0 | L106: 222
A107: 12 | B107: 13695 | C107: 24 | D107: 13708 | E107: 24 | F107: 13713 | K107: 0 | L107: 122
A108: 12 | B108: 13818 | C108: 24 | D108: 13831 | E108: 24 | F108: 13838 | K108: 0 | L108: 122
A109: 21 | B109: 13945 | C109: 22 | D109: 13950 | E109: 24 | F109: 13958 | K109: 0 | L109: 222
A110: 21 | B110: 14081 | C110: 22 | D110: 14093 | E110: 24 | F110: 14102 | K110: 0 | L110: 222
A111: 21 | B111: 14212 | C111: 22 | D111: 14219 | E111: 24 | F111: 14232 | K111: 0 | L111: 222
A112: 12 | B112: 14333 | C112: 24 | D112: 14347 | E112: 24 | F112: 14353 | K112: 0 | L112: 122
A113: 21 | B113: 14471 | C113: 22 | D113: 14477 | E113: 24 | F113: 14485 | K113: 0 | L113: 222
A114: 21 | B114: 14600 | C114: 22 | D114: 14606 | E114: 24 | F114: 14612 | K114: 0 | L114: 222
A115: 21 | B115: 14720 | C115: 22 | D115: 14726 | E115: 24 | F115: 14732 | K115: 0 | L115: 222
A116: 21 | B116: 14841 | C116: 22 | D116: 14847 | E116: 24 | F116: 14859 | K116: 0 | L116: 222
A117: 21 | B117: 14971 | C117: 22 | D117: 14976 | E117: 24 | F117: 14985 | K117: 0 | L117: 222
A118: 21 | B118: 15132 | C118: 22 | D118: 15141 | E118: 24 | F118: 15148 | K118: 0 | L118: 222
A119: 12 | B119: 15278 | C119: 24 | D119: 15290 | E119: 24 | F119: 15296 | K119: 0 | L119: 122
A120: 21 | B120: 15428 | C120: 22 | D120: 15435 | E120: 24 | F120: 15450 | K120: 0 | L120: 222
A121: 12 | B121: 15547 | C121: 24 | D121: 15558 | E121: 24 | F121: 15564 | K121: 0 | L121: 122
A122: 21 | B122: 15674 | C122: 22 | D122: 15680 | E122: 24 | F122: 15685 | K122: 0 | L122: 222
A123: 21 | B123: 15793 | C123: 22 | D123: 15798 | E123: 24 | F123: 15804 | K123: 0 | L123: 222
A124: 21 | B124: 15911 | C124: 22 | D124: 15916 | E124: 24 | F124: 15929 | K124: 0 | L124: 222
A125: 21 | B125: 16066 | C125: 22 | D125: 16075 | E125: 24 | F125: 16082 | K125: 0 | L125: 222
A126: 21 | B126: 16190 | C126: 22 | D126: 16196 | E126: 24 | F126: 16204 | K126: 0 | L126: 222
A127: 12 | B127: 16304 | C127: 24 | D127: 16318 | E127: 24 | F127: 16334 | K127: 0 | L127: 122
A128: 21 | B128: 16451 | C128: 22 | D128: 16457 | E128: 24 | F128: 16465 | K128: 0 | L128: 222
A129: 21 | B129: 16573 | C129: 22 | D129: 16585 | E129: 24 | F129: 16590 | K129: 0 | L129: 222
A130: 21 | B130: 16708 | C130: 22 | D130: 16714 | E130: 24 | F130: 16729 | K130: 0 | L130: 222
A131: 21 | B131: 16850 | C131: 22 | D131: 16856 | E131: 24 | F131: 16874 | K131: 0 | L131: 222
A132: 21 | B132: 16994 | C132: 22 | D132: 16999 | E132: 24 | F132: 17007 | K132: 0 | L132: 222
A133: 21 | B133: 17118 | C133: 22 | D133: 17125 | E133: 24 | F133: 17132 | K133: 0 | L133: 222
A134: 21 | B134: 17247 | C134: 22 | D134: 17255 | E134: 24 | F134: 17262 | K134: 0 | L134: 222
A135: 12 | B135: 17366 | C135: 24 | D135: 17378 | E135: 24 | F135: 17396 | K135: 0 | L135: 122
A136: 21 | B136: 17509 | C136: 22 | D136: 17515 | E136: 24 | F136: 17524 | K136: 0 | L136: 222
A137: 12 | B137: 17622 | C137: 24 | D137: 17634 | E137: 24 | F137: 17640 | K137: 0 | L137: 122
A138: 21 | B138: 17755 | C138: 22 | D138: 17763 | E138: 24 | F138: 17778 | K138: 0 | L138: 222
A139: 21 | B139: 17897 | C139: 22 | D139: 17907 | E139: 24 | F139: 17915 | K139: 0 | L139: 222
A140: 21 | B140: 18032 | C140: 22 | D140: 18040 | E140: 24 | F140: 18059 | K140: 0 | L140: 222
A141: 21 | B141: 18186 | C141: 22 | D141: 18201 | E141: 24 | F141: 18210 | K141: 0 | L141: 222
A142: 21 | B142: 18332 | C142: 22 | D142: 18337 | E142: 24 | F142: 18345 | K142: 0 | L142: 222
A143: 21 | B143: 18459 | C143: 22 | D143: 18471 | E143: 24 | F143: 18480 | K143: 0 | L143: 222
A144: 21 | B144: 18602 | C144: 22 | D144: 18608 | E144: 24 | F144: 18616 | K144: 0 | L144: 222
A145: 12 | B145: 18715 | C145: 24 | D145: 18728 | E145: 24 | F145: 18734 | K145: 0 | L145: 122
A146: 21 | B146: 18852 | C146: 22 | D146: 18861 | E146: 24 | F146: 18877 | K146: 0 | L146: 222
A147: 21 | B147: 18991 | C147: 22 | D147: 18996 | E147: 24 | F147: 19001 | K147: 0 | L147: 222
A148: 21 | B148: 19127 | C148: 22 | D148: 19134 | E148: 24 | F148: 19148 | K148: 0 | L148: 222
A149: 12 | B149: 19260 | C149: 24 | D149: 19272 | E149: 24 | F149: 19280 | K149: 0 | L149: 122
A150: 21 | B150: 19398 | C150: 22 | D150: 19404 | E150: 24 | F150: 19413 | K150: 0 | L150: 222
A151: 12 | B151: 19513 | C151: 24 | D151: 19525 | E151: 24 | F151: 19533 | K151: 0 | L151: 122
A152: 21 | B152: 19646 | C152: 22 | D152: 19652 | E152: 24 | F152: 19658 | K152: 0 | L152: 222
A153: 12 | B153: 19772 | C153: 24 | D153: 19784 | E153: 24 | F153: 19797 | K153: 0 | L153: 122
A154: 21 | B154: 19916 | C154: 22 | D154: 19928 | E154: 24 | F154: 19933 | K154: 0 | L154: 222
A155: 12 | B155: 20031 | C155: 24 | D155: 20043 | E155: 24 | F155: 20053 | K155: 0 | L155: 122
A156: 21 | B156: 20174 | C156: 22 | D156: 20180 | E156: 24 | F156: 20189 | K156: 0 | L156: 222
A157: 21 | B157: 20302 | C157: 22 | D157: 20310 | E157: 24 | F157: 20319 | K157: 0 | L157: 222
A158: 21 | B158: 20457 | C158: 22 | D158: 20464 | E158: 24 | F158: 20473 | K158: 0 | L158: 222
A159: 21 | B159: 20583 | C159: 22 | D159: 20590 | E159: 24 | F159: 20601 | K159: 0 | L159: 222
A160: 21 | B160: 20764 | C160: 22 | D160: 20775 | E160: 24 | F160: 20781 | K160: 0 | L160: 222
A161: 12 | B161: 20886 | C161: 24 | D161: 20899 | E161: 24 | F161: 20919 | K161: 0 | L161: 122
A162: 21 | B162: 21028 | C162: 22 | D162: 21036 | E162: 24 | F162: 21043 | K162: 0 | L162: 222
A163: 12 | B163: 21141 | C163: 24 | D163: 21154 | E163: 24 | F163: 21166 | K163: 0 | L163: 122
A164: 21 | B164: 21278 | C164: 22 | D164: 21297 | E164: 24 | F164: 21316 | K164: 0 | L164: 222
A165: 21 | B165: 21428 | C165: 22 | D165: 21434 | E165: 24 | F165: 21441 | K165: 0 | L165: 222
A166: 21 | B166: 21551 | C166: 22 | D166: 21559 | E166: 24 | F166: 21566 | K166: 0 | L166: 222
A167: 21 | B167: 21698 | C167: 22 | D167: 21710 | E167: 24 | F167: 21718 | K167: 0 | L167: 222
A168: 21 | B168: 21861 | C168: 22 | D168: 21871 | E168: 24 | F168: 21890 | K168: 0 | L168: 222
A169: 21 | B169: 22006 | C169: 22 | D169: 22018 | E169: 24 | F169: 22033 | K169: 0 | L169: 222
A170: 21 | B170: 22140 | C170: 22 | D170: 22151 | E170: 24 | F170: 22163 | K170: 0 | L170: 222
A171: 12 | B171: 22281 | C171: 24 | D171: 22293 | E171: 24 | F171: 22300 | K171: 0 | L171: 122
A172: 21 | B172: 22431 | C172: 22 | D172: 22440 | E172: 24 | F172: 22457 | K172: 0 | L172: 222
A173: 21 | B173: 22573 | C173: 22 | D173: 22586 | E173: 24 | F173: 22602 | K173: 0 | L173: 222
A174: 12 | B174: 22701 | C174: 24 | D174: 22714 | E174: 24 | F174: 22719 | K174: 0 | L174: 122
A175: 21 | B175: 22830 | C175: 22 | D175: 22835 | E175: 24 | F175: 22843 | K175: 0 | L175: 222
A176: 21 | B176: 22948 | C176: 22 | D176: 22954 | E176: 24 | F176: 22961 | K176: 0 | L176: 222
A177: 12 | B177: 23074 | C177: 24 | D177: 23087 | E177: 24 | F177: 23096 | K177: 0 | L177: 122
A178: 21 | B178: 23217 | C178: 22 | D178: 23223 | E178: 24 | F178: 23240 | K178: 0 | L178: 222
A179: 21 | B179: 23377 | C179: 22 | D179: 23386 | E179: 24 | F179: 23393 | K179: 0 | L179: 222
A180: 12 | B180: 23494 | C180: 24 | D180: 23505 | E180: 24 | F180: 23517 | K180: 0 | L180: 122
A181: 21 | B181: 23627 | C181: 22 | D181: 23635 | E181: 24 | F181: 23644 | K181: 0 | L181: 222
A182: 21 | B182: 23772 | C182: 22 | D182: 23780 | E182: 24 | F182: 23789 | K182: 0 | L182: 222
A183: 21 | B183: 23899 | C183: 22 | D183: 23905 | E183: 24 | F183: 23910 | K183: 0 | L183: 222

Sheet !M907900.101
A1: Report for:!M907900.101
A2: Date: | B2: <date>
A3: Hen: | B3: <hen> | F3: Correct Sequence | G3: =Start!J2 -> 211 | P3: Total Sequences in Data | Q3: =4994-COUNTBLANK(L7:L5000) -> 176 | V3: Total Sequences in Block Data | W3: =COUNTA(L7:L35) -> 29 | AA3: Total Sequences in Block Data | AB3: =COUNTA(L36:L65) -> 30 | AF3: Total Sequences in Block Data | AG3: =COUNTA(L66:L94) -> 29 | AK3: Total Sequences in Block Data | AL3: =COUNTA(L95:L123) -> 29 | AP3: Total Sequences in Block Data | AQ3: =COUNTA(L124:L153) -> 30 | AU3: Total Sequences in Block Data | AV3: =COUNTA(L154:L182) -> 29
P4: Total Sequences in Summary | Q4: =SUM(O7:O14) -> 176 | V4: Total Sequences in Block Summary | W4: =SUM(U7:U14) -> 29 | AA4: Total Sequences in Block Summary | AB4: =SUM(Z7:Z14) -> 30 | AF4: Total Sequences in Block Summary | AG4: =SUM(AE7:AE14) -> 29 | AK4: Total Sequences in Block Summary | AL4: =SUM(AJ7:AJ14) -> 29 | AP4: Total Sequences in Block Summary | AQ4: =SUM(AO7:AO14) -> 30 | AU4: Total Sequences in Block Summary | AV4: =SUM(AT7:AT14) -> 29
T5: Block 1 | Y5: Block 2 | AD5: Block 3 | AI5: Block 4 | AN5: Block 5 | AS5: Block 6
A6: Sequence Component 1 | B6: Time 1 | C6: Sequence Component 2 | D6: Time 2 | E6: Sequence Component 3 | F6: Time 3 | G6: Sequence Component 4 | H6: Time 4 | I6: Sequence Component 5 | J6: Time 5 | K6: Correct? 0=No 1=Yes | L6: Sequence | N6: Frequency | P6: Relative Frequency | Q6: Variability | T6: Frequency | V6: Relative Frequency | W6: Variability | Y6: Frequency | AA6: Relative Frequency | AB6: Variability | AD6: Frequency | AF6: Relative Frequency | AG6: Variability | AI6: Frequency | AK6: Relative Frequency | AL6: Variability | AN6: Frequency | AP6: Relative Frequency | AQ6: Variability | AS6: Frequency | AU6: Relative Frequency | AV6: Variability
A7: 12 | B7: 24 | C7: 24 | D7: 41 | E7: 24 | F7: 49 | K7: 0 | L7: 122 | N7: 111 | O7: =COUNTIF($L$7:$L$500,N7) -> 0 | P7: =O7/$Q$4 -> 0 | Q7: =IF(P7=0,0,(P7*((LOG(P7))/LOG(2)))) -> 0 | T7: =N7 -> 111 | U7: =COUNTIF(L7:L35,T7) -> 0 | V7: =U7/(W4-U11) -> 0 | W7: =IF(V7=0,0,(V7*((LOG(V7))/LOG(2)))) -> 0 | Y7: =N7 -> 111 | Z7: =COUNTIF(L36:L65,Y7) -> 0 | AA7: =Z7/(AB4-Z11) -> 0 | AB7: =IF(AA7=0,0,(AA7*((LOG(AA7))/LOG(2)))) -> 0 | AD7: =N7 -> 111 | AE7: =COUNTIF(L66:L94,AD7) -> 0 | AF7: =AE7/(AG4-AE11) -> 0 | AG7: =IF(AF7=0,0,(AF7*((LOG(AF7))/LOG(2)))) -> 0 | AI7: =N7 -> 111 | AJ7: =COUNTIF(L95:L123,AI7) -> 0 | AK7: =AJ7/(AL4-AJ11) -> 0 | AL7: =IF(AK7=0,0,(AK7*((LOG(AK7))/LOG(2)))) -> 0 | AN7: =N7 -> 111 | AO7: =COUNTIF(L124:L153,AN7) -> 0 | AP7: =AO7/(AQ4-AO11) -> 0 | AQ7: =IF(AP7=0,0,(AP7*((LOG(AP7))/LOG(2)))) -> 0 | AS7: =N7 -> 111 | AT7: =COUNTIF(L154:L182,AS7) -> 0 | AU7: =AT7/(AV4-AT11) -> 0 | AV7: =IF(AU7=0,0,(AU7*((LOG(AU7))/LOG(2)))) -> 0
A8: 12 | B8: 148 | C8: 24 | D8: 160 | E8: 24 | F8: 165 | K8: 0 | L8: 122 | N8: 112 | O8: =COUNTIF($L$7:$L$500,N8) -> 0 | P8: =O8/$Q$4 -> 0 | Q8: =IF(P8=0,0,(P8*((LOG(P8))/LOG(2)))) -> 0 | T8: =N8 -> 112 | U8: =COUNTIF(L7:L35,T8) -> 0 | V8: =U8/(W4-U11) -> 0 | W8: =IF(V8=0,0,(V8*((LOG(V8))/LOG(2)))) -> 0 | Y8: =N8 -> 112 | Z8: =COUNTIF(L36:L65,Y8) -> 0 | AA8: =Z8/(AB4-Z11) -> 0 | AB8: =IF(AA8=0,0,(AA8*((LOG(AA8))/LOG(2)))) -> 0 | AD8: =N8 -> 112 | AE8: =COUNTIF(L66:L94,AD8) -> 0 | AF8: =AE8/(AG4-AE11) -> 0 | AG8: =IF(AF8=0,0,(AF8*((LOG(AF8))/LOG(2)))) -> 0 | AI8: =N8 -> 112 | AJ8: =COUNTIF(L95:L123,AI8) -> 0 | AK8: =AJ8/(AL4-AJ11) -> 0 | AL8: =IF(AK8=0,0,(AK8*((LOG(AK8))/LOG(2)))) -> 0 | AN8: =N8 -> 112 | AO8: =COUNTIF(L124:L153,AN8) -> 0 | AP8: =AO8/(AQ4-AO11) -> 0 | AQ8: =IF(AP8=0,0,(AP8*((LOG(AP8))/LOG(2)))) -> 0 | AS8: =N8 -> 112 | AT8: =COUNTIF(L154:L182,AS8) -> 0 | AU8: =AT8/(AV4-AT11) -> 0 | AV8: =IF(AU8=0,0,(AU8*((LOG(AU8))/LOG(2)))) -> 0
A9: 12 | B9: 270 | C9: 24 | D9: 279 | E9: 24 | F9: 284 | K9: 0 | L9: 122 | N9: 121 | O9: =COUNTIF($L$7:$L$500,N9) -> 0 | P9: =O9/$Q$4 -> 0 | Q9: =IF(P9=0,0,(P9*((LOG(P9))/LOG(2)))) -> 0 | T9: =N9 -> 121 | U9: =COUNTIF(L7:L35,T9) -> 0 | V9: =U9/(W4-U11) -> 0 | W9: =IF(V9=0,0,(V9*((LOG(V9))/LOG(2)))) -> 0 | Y9: =N9 -> 121 | Z9: =COUNTIF(L36:L65,Y9) -> 0 | AA9: =Z9/(AB4-Z11) -> 0 | AB9: =IF(AA9=0,0,(AA9*((LOG(AA9))/LOG(2)))) -> 0 | AD9: =N9 -> 121 | AE9: =COUNTIF(L66:L94,AD9) -> 0 | AF9: =AE9/(AG4-AE11) -> 0 | AG9: =IF(AF9=0,0,(AF9*((LOG(AF9))/LOG(2)))) -> 0 | AI9: =N9 -> 121 | AJ9: =COUNTIF(L95:L123,AI9) -> 0 | AK9: =AJ9/(AL4-AJ11) -> 0 | AL9: =IF(AK9=0,0,(AK9*((LOG(AK9))/LOG(2)))) -> 0 | AN9: =N9 -> 121 | AO9: =COUNTIF(L124:L153,AN9) -> 0 | AP9: =AO9/(AQ4-AO11) -> 0 | AQ9: =IF(AP9=0,0,(AP9*((LOG(AP9))/LOG(2)))) -> 0 | AS9: =N9 -> 121 | AT9: =COUNTIF(L154:L182,AS9) -> 0 | AU9: =AT9/(AV4-AT11) -> 0 | AV9: =IF(AU9=0,0,(AU9*((LOG(AU9))/LOG(2)))) -> 0
A10: 12 | B10: 389 | C10: 24 | D10: 402 | E10: 24 | F10: 412 | K10: 0 | L10: 122 | N10: 122 | O10: =COUNTIF($L$7:$L$500,N10) -> 44 | P10: =O10/$Q$4 -> 0.25 | Q10: =IF(P10=0,0,(P10*((LOG(P10))/LOG(2)))) -> -0.5 | T10: =N10 -> 122 | U10: =COUNTIF(L7:L35,T10) -> 13 | V10: =U10/(W4-U11) -> 0.4482758621 | W10: =IF(V10=0,0,(V10*((LOG(V10))/LOG(2)))) -> -0.5188978138 | Y10: =N10 -> 122 | Z10: =COUNTIF(L36:L65,Y10) -> 3 | AA10: =Z10/(AB4-Z11) -> 0.1 | AB10: =IF(AA10=0,0,(AA10*((LOG(AA10))/LOG(2)))) -> -0.3321928095 | AD10: =N10 -> 122 | AE10: =COUNTIF(L66:L94,AD10) -> 6 | AF10: =AE10/(AG4-AE11) -> 0.2068965517 | AG10: =IF(AF10=0,0,(AF10*((LOG(AF10))/LOG(2)))) -> -0.4702796885 | AI10: =N10 -> 122 | AJ10: =COUNTIF(L95:L123,AI10) -> 7 | AK10: =AJ10/(AL4-AJ11) -> 0.2413793103 | AL10: =IF(AK10=0,0,(AK10*((LOG(AK10))/LOG(2)))) -> -0.4949787073 | AN10: =N10 -> 122 | AO10: =COUNTIF(L124:L153,AN10) -> 7 | AP10: =AO10/(AQ4-AO11) -> 0.2333333333 | AQ10: =IF(AP10=0,0,(AP10*((LOG(AP10))/LOG(2)))) -> -0.4898916572 | AS10: =N10 -> 122 | AT10: =COUNTIF(L154:L182,AS10) -> 8 | AU10: =AT10/(AV4-AT11) -> 0.275862069 | AV10: =IF(AU10=0,0,(AU10*((LOG(AU10))/LOG(2)))) -> -0.5125464814
A11: 12 | B11: 519 | C11: 24 | D11: 529 | E11: 24 | F11: 535 | K11: 0 | L11: 122 | N11: 211 | O11: =COUNTIF($L$7:$L$500,N11) -> 0 | P11: =O11/$Q$4 -> 0 | Q11: =IF(P11=0,0,(P11*((LOG(P11))/LOG(2)))) -> 0 | T11: =N11 -> 211 | U11: =COUNTIF(L7:L35,T11) -> 0 | Y11: =N11 -> 211 | Z11: =COUNTIF(L36:L65,Y11) -> 0 | AD11: =N11 -> 211 | AE11: =COUNTIF(L66:L94,AD11) -> 0 | AI11: =N11 -> 211 | AJ11: =COUNTIF(L95:L123,AI11) -> 0 | AN11: =N11 -> 211 | AO11: =COUNTIF(L124:L153,AN11) -> 0 | AS11: =N11 -> 211 | AT11: =COUNTIF(L154:L182,AS11) -> 0
A12: 21 | B12: 652 | C12: 22 | D12: 657 | E12: 24 | F12: 662 | K12: 0 | L12: 222 | N12: 212 | O12: =COUNTIF($L$7:$L$500,N12) -> 0 | P12: =O12/$Q$4 -> 0 | Q12: =IF(P12=0,0,(P12*((LOG(P12))/LOG(2)))) -> 0 | T12: =N12 -> 212 | U12: =COUNTIF(L7:L35,T12) -> 0 | V12: =U12/(W4-U11) -> 0 | W12: =IF(V12=0,0,(V12*((LOG(V12))/LOG(2)))) -> 0 | Y12: =N12 -> 212 | Z12: =COUNTIF(L36:L65,Y12) -> 0 | AA12: =Z12/(AB4-Z11) -> 0 | AB12: =IF(AA12=0,0,(AA12*((LOG(AA12))/LOG(2)))) -> 0 | AD12: =N12 -> 212 | AE12: =COUNTIF(L66:L94,AD12) -> 0 | AF12: =AE12/(AG4-AE11) -> 0 | AG12: =IF(AF12=0,0,(AF12*((LOG(AF12))/LOG(2)))) -> 0 | AI12: =N12 -> 212 | AJ12: =COUNTIF(L95:L123,AI12) -> 0 | AK12: =AJ12/(AL4-AJ11) -> 0 | AL12: =IF(AK12=0,0,(AK12*((LOG(AK12))/LOG(2)))) -> 0 | AN12: =N12 -> 212 | AO12: =COUNTIF(L124:L153,AN12) -> 0 | AP12: =AO12/(AQ4-AO11) -> 0 | AQ12: =IF(AP12=0,0,(AP12*((LOG(AP12))/LOG(2)))) -> 0 | AS12: =N12 -> 212 | AT12: =COUNTIF(L154:L182,AS12) -> 0 | AU12: =AT12/(AV4-AT11) -> 0 | AV12: =IF(AU12=0,0,(AU12*((LOG(AU12))/LOG(2)))) -> 0
A13: 21 | B13: 783 | C13: 22 | D13: 790 | E13: 24 | F13: 799 | K13: 0 | L13: 222 | N13: 221 | O13: =COUNTIF($L$7:$L$500,N13) -> 0 | P13: =O13/$Q$4 -> 0 | Q13: =IF(P13=0,0,(P13*((LOG(P13))/LOG(2)))) -> 0 | T13: =N13 -> 221 | U13: =COUNTIF(L7:L35,T13) -> 0 | V13: =U13/(W4-U11) -> 0 | W13: =IF(V13=0,0,(V13*((LOG(V13))/LOG(2)))) -> 0 | Y13: =N13 -> 221 | Z13: =COUNTIF(L36:L65,Y13) -> 0 | AA13: =Z13/(AB4-Z11) -> 0 | AB13: =IF(AA13=0,0,(AA13*((LOG(AA13))/LOG(2)))) -> 0 | AD13: =N13 -> 221 | AE13: =COUNTIF(L66:L94,AD13) -> 0 | AF13: =AE13/(AG4-AE11) -> 0 | AG13: =IF(AF13=0,0,(AF13*((LOG(AF13))/LOG(2)))) -> 0 | AI13: =N13 -> 221 | AJ13: =COUNTIF(L95:L123,AI13) -> 0 | AK13: =AJ13/(AL4-AJ11) -> 0 | AL13: =IF(AK13=0,0,(AK13*((LOG(AK13))/LOG(2)))) -> 0 | AN13: =N13 -> 221 | AO13: =COUNTIF(L124:L153,AN13) -> 0 | AP13: =AO13/(AQ4-AO11) -> 0 | AQ13: =IF(AP13=0,0,(AP13*((LOG(AP13))/LOG(2)))) -> 0 | AS13: =N13 -> 221 | AT13: =COUNTIF(L154:L182,AS13) -> 0 | AU13: =AT13/(AV4-AT11) -> 0 | AV13: =IF(AU13=0,0,(AU13*((LOG(AU13))/LOG(2)))) -> 0
A14: 21 | B14: 936 | C14: 22 | D14: 941 | E14: 24 | F14: 960 | K14: 0 | L14: 222 | N14: 222 | O14: =COUNTIF($L$7:$L$500,N14) -> 132 | P14: =O14/$Q$4 -> 0.75 | Q14: =IF(P14=0,0,(P14*((LOG(P14))/LOG(2)))) -> -0.3112781245 | T14: =N14 -> 222 | U14: =COUNTIF(L7:L35,T14) -> 16 | V14: =U14/(W4-U11) -> 0.5517241379 | W14: =IF(V14=0,0,(V14*((LOG(V14))/LOG(2)))) -> -0.4733688249 | Y14: =N14 -> 222 | Z14: =COUNTIF(L36:L65,Y14) -> 27 | AA14: =Z14/(AB4-Z11) -> 0.9 | AB14: =IF(AA14=0,0,(AA14*((LOG(AA14))/LOG(2)))) -> -0.1368027841 | AD14: =N14 -> 222 | AE14: =COUNTIF(L66:L94,AD14) -> 23 | AF14: =AE14/(AG4-AE11) -> 0.7931034483 | AG14: =IF(AF14=0,0,(AF14*((LOG(AF14))/LOG(2)))) -> -0.2652288931 | AI14: =N14 -> 222 | AJ14: =COUNTIF(L95:L123,AI14) -> 22 | AK14: =AJ14/(AL4-AJ11) -> 0.7586206897 | AL14: =IF(AK14=0,0,(AK14*((LOG(AK14))/LOG(2)))) -> -0.3023478029 | AN14: =N14 -> 222 | AO14: =COUNTIF(L124:L153,AN14) -> 23 | AP14: =AO14/(AQ4-AO11) -> 0.7666666667 | AQ14: =IF(AP14=0,0,(AP14*((LOG(AP14))/LOG(2)))) -> -0.2938852903 | AS14: =N14 -> 222 | AT14: =COUNTIF(L154:L182,AS14) -> 21 | AU14: =AT14/(AV4-AT11) -> 0.724137931 | AV14: =IF(AU14=0,0,(AU14*((LOG(AU14))/LOG(2)))) -> -0.3372046558
A15: 21 | B15: 1082 | C15: 22 | D15: 1087 | E15: 24 | F15: 1094 | K15: 0 | L15: 222 | P15: =SUM(P7:P14) -> 1 | Q15: =-SUM(Q7:Q14) -> 0.8112781245 | V15: =SUM(V7:V14) -> 1 | W15: =-SUM(W7:W14) -> 0.9922666387 | AA15: =SUM(AA7:AA14) -> 1 | AB15: =-SUM(AB7:AB14) -> 0.4689955936 | AF15: =SUM(AF7:AF14) -> 1 | AG15: =-SUM(AG7:AG14) -> 0.7355085816 | AK15: =SUM(AK7:AK14) -> 1 | AL15: =-SUM(AL7:AL14) -> 0.7973265101 | AP15: =SUM(AP7:AP14) -> 1 | AQ15: =-SUM(AQ7:AQ14) -> 0.7837769475 | AU15: =SUM(AU7:AU14) -> 1 | AV15: =-SUM(AV7:AV14) -> 0.8497511373
A16: 12 | B16: 1197 | C16: 24 | D16: 1211 | E16: 24 | F16: 1218 | K16: 0 | L16: 122 | P16: U= | Q16: =Q15/(LOG(Q4)/LOG(2)) -> 0.1087587052 | V16: U1= | W16: =W15/(LOG(W4)/LOG(2)) -> 0.2042549445 | AA16: U2= | AB16: =AB15/(LOG(AB4)/LOG(2)) -> 0.09557897908 | AF16: U3= | AG16: =AG15/(LOG(AG4)/LOG(2)) -> 0.1514021118 | AK16: U4= | AL16: =AL15/(LOG(AL4)/LOG(2)) -> 0.1641271366 | AP16: U5= | AQ16: =AQ15/(LOG(AQ4)/LOG(2)) -> 0.1597298599 | AU16: U6= | AV16: =AV15/(LOG(AV4)/LOG(2)) -> 0.17491858
A17: 21 | B17: 1366 | C17: 22 | D17: 1371 | E17: 24 | F17: 1384 | K17: 0 | L17: 222
A18: 12 | B18: 1484 | C18: 24 | D18: 1494 | E18: 24 | F18: 1499 | K18: 0 | L18: 122
A19: 12 | B19: 1600 | C19: 24 | D19: 1615 | E19: 24 | F19: 1623 | K19: 0 | L19: 122 | N19: Total Target Seq
A20: 21 | B20: 1729 | C20: 22 | D20: 1734 | E20: 24 | F20: 1741 | K20: 0 | L20: 222 | N20: =COUNTIF(L7:L182,G3) -> 0 | P20: 29 | Q20: 30 | R20: 29 | S20: 29 | T20: 30 | U20: 29
A21: 21 | B21: 1859 | C21: 22 | D21: 1864 | E21: 24 | F21: 1869 | K21: 0 | L21: 222 | P21: % of reinforcement given in 6 equal intervals based on number of trials
A22: 21 | B22: 1985 | C22: 22 | D22: 1990 | E22: 24 | F22: 1995 | K22: 0 | L22: 222 | P22: %_1 | Q22: %_2 | R22: %_3 | S22: %_4 | T22: %_5 | U22: %_6
A23: 21 | B23: 2104 | C23: 22 | D23: 2109 | E23: 24 | F23: 2117 | K23: 0 | L23: 222 | O23: target sequence | P23: =$G$3 -> 211 | Q23: =$G$3 -> 211 | R23: =$G$3 -> 211 | S23: =$G$3 -> 211 | T23: =$G$3 -> 211 | U23: =$G$3 -> 211
A24: 12 | B24: 2228 | C24: 24 | D24: 2237 | E24: 24 | F24: 2245 | K24: 0 | L24: 122 | O24: total reinforcement | P24: =U11 -> 0 | Q24: =Z11 -> 0 | R24: =AE11 -> 0 | S24: =AJ11 -> 0 | T24: =AO11 -> 0 | U24: =AT11 -> 0
A25: 21 | B25: 2354 | C25: 22 | D25: 2363 | E25: 24 | F25: 2368 | K25: 0 | L25: 222 | O25: % target
A26: 21 | B26: 2505 | C26: 22 | D26: 2511 | E26: 24 | F26: 2525 | K26: 0 | L26: 222 | O26: CCRF
A27: 21 | B27: 2629 | C27: 22 | D27: 2634 | E27: 24 | F27: 2640 | K27: 0 | L27: 222 | O27: % CCRf
A28: 21 | B28: 2779 | C28: 22 | D28: 2783 | E28: 24 | F28: 2791 | K28: 0 | L28: 222 | O28: average response rate | P28: =F35/P20 -> 131 | Q28: =(F65-F35)/Q20 -> 140.6 | R28: =(F94-F65)/R20 -> 138.6206897 | S28: =(F123-F94)/S20 -> 137.0689655 | T28: =(F153-F123)/T20 -> 139.1666667 | U28: =(F182-F153)/U20 -> 130.9655172
A29: 21 | B29: 2905 | C29: 22 | D29: 2909 | E29: 24 | F29: 2919 | K29: 0 | L29: 222
A30: 21 | B30: 3057 | C30: 22 | D30: 3063 | E30: 24 | F30: 3069 | K30: 0 | L30: 222
A31: 12 | B31: 3176 | C31: 24 | D31: 3188 | E31: 24 | F31: 3204 | K31: 0 | L31: 122
A32: 21 | B32: 3339 | C32: 22 | D32: 3344 | E32: 24 | F32: 3359 | K32: 0 | L32: 222
A33: 12 | B33: 3486 | C33: 24 | D33: 3498 | E33: 24 | F33: 3514 | K33: 0 | L33: 122
A34: 12 | B34: 3629 | C34: 24 | D34: 3641 | E34: 24 | F34: 3650 | K34: 0 | L34: 122
A35: 12 | B35: 3760 | C35: 24 | D35: 3777 | E35: 24 | F35: 3799 | K35: 0 | L35: 122
A36: 21 | B36: 3924 | C36: 22 | D36: 3932 | E36: 24 | F36: 3940 | K36: 0 | L36: 222
A37: 12 | B37: 4043 | C37: 24 | D37: 4069 | E37: 24 | F37: 4073 | K37: 0 | L37: 122
A38: 21 | B38: 4188 | C38: 22 | D38: 4194 | E38: 24 | F38: 4204 | K38: 0 | L38: 222
A39: 21 | B39: 4340 | C39: 22 | D39: 4349 | E39: 24 | F39: 4356 | K39: 0 | L39: 222
A40: 21 | B40: 4475 | C40: 22 | D40: 4487 | E40: 24 | F40: 4500 | K40: 0 | L40: 222
A41: 21 | B41: 4623 | C41: 22 | D41: 4628 | E41: 24 | F41: 4633 | K41: 0 | L41: 222
A42: 12 | B42: 4744 | C42: 24 | D42: 4756 | E42: 24 | F42: 4761 | K42: 0 | L42: 122
A43: 12 | B43: 4892 | C43: 24 | D43: 4905 | E43: 24 | F43: 4911 | K43: 0 | L43: 122
A44: 21 | B44: 5027 | C44: 22 | D44: 5033 | E44: 24 | F44: 5039 | K44: 0 | L44: 222
A45: 21 | B45: 5158 | C45: 22 | D45: 5164 | E45: 24 | F45: 5196 | K45: 0 | L45: 222
A46: 21 | B46: 5346 | C46: 22 | D46: 5354 | E46: 24 | F46: 5361 | K46: 0 | L46: 222
A47: 21 | B47: 5504 | C47: 22 | D47: 5517 | E47: 24 | F47: 5533 | K47: 0 | L47: 222
A48: 21 | B48: 5656 | C48: 22 | D48: 5660 | E48: 24 | F48: 5665 | K48: 0 | L48: 222
A49: 21 | B49: 5779 | C49: 22 | D49: 5788 | E49: 24 | F49: 5807 | K49: 0 | L49: 222
A50: 21 | B50: 5931 | C50: 22 | D50: 5938 | E50: 24 | F50: 5945 | K50: 0 | L50: 222
A51: 21 | B51: 6083 | C51: 22 | D51: 6091 | E51: 24 | F51: 6096 | K51: 0 | L51: 222
A52: 21 | B52: 6206 | C52: 22 | D52: 6212 | E52: 24 | F52: 6229 | K52: 0 | L52: 222
A53: 21 | B53: 6356 | C53: 22 | D53: 6363 | E53: 24 | F53: 6371 | K53: 0 | L53: 222
A54: 21 | B54: 6487 | C54: 22 | D54: 6494 | E54: 24 | F54: 6515 | K54: 0 | L54: 222
A55: 21 | B55: 6627 | C55: 22 | D55: 6637 | E55: 24 | F55: 6646 | K55: 0 | L55: 222
A56: 21 | B56: 6757 | C56: 22 | D56: 6767 | E56: 24 | F56: 6777 | K56: 0 | L56: 222
A57: 21 | B57: 6884 | C57: 22 | D57: 6893 | E57: 24 | F57: 6903 | K57: 0 | L57: 222
A58: 21 | B58: 7021 | C58: 22 | D58: 7031 | E58: 24 | F58: 7045 | K58: 0 | L58: 222
A59: 21 | B59: 7180 | C59: 22 | D59: 7184 | E59: 24 | F59: 7196 | K59: 0 | L59: 222
A60: 21 | B60: 7308 | C60: 22 | D60: 7313 | E60: 24 | F60: 7317 | K60: 0 | L60: 222
A61: 21 | B61: 7434 | C61: 22 | D61: 7444 | E61: 24 | F61: 7450 | K61: 0 | L61: 222
A62: 21 | B62: 7563 | C62: 22 | D62: 7577 | E62: 24 | F62: 7584 | K62: 0 | L62: 222
A63: 21 | B63: 7696 | C63: 22 | D63: 7708 | E63: 24 | F63: 7715 | K63: 0 | L63: 222
A64: 21 | B64: 7834 | C64: 22 | D64: 7852 | E64: 24 | F64: 7861 | K64: 0 | L64: 222
A65: 21 | B65: 7995 | C65: 22 | D65: 8004 | E65: 24 | F65: 8017 | K65: 0 | L65: 222
A66: 21 | B66: 8138 | C66: 22 | D66: 8143 | E66: 24 | F66: 8151 | K66: 0 | L66: 222
A67: 21 | B67: 8268 | C67: 22 | D67: 8276 | E67: 24 | F67: 8285 | K67: 0 | L67: 222
A68: 21 | B68: 8423 | C68: 22 | D68: 8434 | E68: 24 | F68: 8448 | K68: 0 | L68: 222
A69: 21 | B69: 8567 | C69: 22 | D69: 8573 | E69: 24 | F69: 8584 | K69: 0 | L69: 222
A70: 21 | B70: 8694 | C70: 22 | D70: 8703 | E70: 24 | F70: 8709 | K70: 0 | L70: 222
A71: 21 | B71: 8836 | C71: 22 | D71: 8841 | E71: 24 | F71: 8848 | K71: 0 | L71: 222
A72: 21 | B72: 8996 | C72: 22 | D72: 9002 | E72: 24 | F72: 9011 | K72: 0 | L72: 222
A73: 21 | B73: 9150 | C73: 22 | D73: 9166 | E73: 24 | F73: 9173 | K73: 0 | L73: 222
A74: 21 | B74: 9281 | C74: 22 | D74: 9292 | E74: 24 | F74: 9299 | K74: 0 | L74: 222
A75: 21 | B75: 9409 | C75: 22 | D75: 9418 | E75: 24 | F75: 9434 | K75: 0 | L75: 222
A76: 12 | B76: 9535 | C76: 24 | D76: 9552 | E76: 24 | F76: 9557 | K76: 0 | L76: 122
A77: 21 | B77: 9673 | C77: 22 | D77: 9679 | E77: 24 | F77: 9686 | K77: 0 | L77: 222
A78: 21 | B78: 9810 | C78: 22 | D78: 9818 | E78: 24 | F78: 9831 | K78: 0 | L78: 222
A79: 21 | B79: 9964 | C79: 22 | D79: 9999 | E79: 24 | F79: 10006 | K79: 0 | L79: 222
A80: 12 | B80: 10113 | C80: 24 | D80: 10128 | E80: 24 | F80: 10134 | K80: 0 | L80: 122
A81: 21 | B81: 10258 | C81: 22 | D81: 10267 | E81: 24 | F81: 10274 | K81: 0 | L81: 222
A82: 21 | B82: 10389 | C82: 22 | D82: 10395 | E82: 24 | F82: 10400 | K82: 0 | L82: 222
A83: 21 | B83: 10512 | C83: 22 | D83: 10517 | E83: 24 | F83: 10525 | K83: 0 | L83: 222
A84: 21 | B84: 10639 | C84: 22 | D84: 10648 | E84: 24 | F84: 10661 | K84: 0 | L84: 222
A85: 21 | B85: 10782 | C85: 22 | D85: 10791 | E85: 24 | F85: 10797 | K85: 0 | L85: 222
A86: 12 | B86: 10901 | C86: 24 | D86: 10913 | E86: 24 | F86: 10918 | K86: 0 | L86: 122
A87: 21 | B87: 11030 | C87: 22 | D87: 11034 | E87: 24 | F87: 11042 | K87: 0 | L87: 222
A88: 21 | B88: 11157 | C88: 22 | D88: 11166 | E88: 24 | F88: 11185 | K88: 0 | L88: 222
A89: 21 | B89: 11333 | C89: 22 | D89: 11338 | E89: 24 | F89: 11355 | K89: 0 | L89: 222
A90: 21 | B90: 11478 | C90: 22 | D90: 11487 | E90: 24 | F90: 11492 | K90: 0 | L90: 222
A91: 12 | B91: 11588 | C91: 24 | D91: 11605 | E91: 24 | F91: 11621 | K91: 0 | L91: 122
A92: 12 | B92: 11745 | C92: 24 | D92: 11756 | E92: 24 | F92: 11761 | K92: 0 | L92: 122
A93: 12 | B93: 11869 | C93: 24 | D93: 11891 | E93: 24 | F93: 11899 | K93: 0 | L93: 122
A94: 21 | B94: 12023 | C94: 22 | D94: 12030 | E94: 24 | F94: 12037 | K94: 0 | L94: 222
A95: 21 | B95: 12159 | C95: 22 | D95: 12166 | E95: 24 | F95: 12184 | K95: 0 | L95: 222
A96: 12 | B96: 12301 | C96: 24 | D96: 12315 | E96: 24 | F96: 12322 | K96: 0 | L96: 122
A97: 21 | B97: 12439 | C97: 22 | D97: 12448 | E97: 24 | F97: 12454 | K97: 0 | L97: 222
A98: 21 | B98: 12567 | C98: 22 | D98: 12575 | E98: 24 | F98: 12581 | K98: 0 | L98: 222
A99: 21 | B99: 12702 | C99: 22 | D99: 12708 | E99: 24 | F99: 12713 | K99: 0 | L99: 222
A100: 21 | B100: 12826 | C100: 22 | D100: 12836 | E100: 24 | F100: 12843 | K100: 0 | L100: 222
A101: 21 | B101: 12969 | C101: 22 | D101: 12974 | E101: 24 | F101: 12987 | K101: 0 | L101: 222
A102: 21 | B102: 13114 | C102: 22 | D102: 13123 | E102: 24 | F102: 13131 | K102: 0 | L102: 222
A103: 12 | B103: 13236 | C103: 24 | D103: 13247 | E103: 24 | F103: 13252 | K103: 0 | L103: 122
A104: 12 | B104: 13355 | C104: 24 | D104: 13367 | E104: 24 | F104: 13376 | K104: 0 | L104: 122
A105: 21 | B105: 13526 | C105: 22 | D105: 13532 | E105: 24 | F105: 13552 | K105: 0 | L105: 222
A106: 21 | B106: 13668 | C106: 22 | D106: 13675 | E106: 24 | F106: 13681 | K106: 0 | L106: 222
A107: 21 | B107: 13800 | C107: 22 | D107: 13807 | E107: 24 | F107: 13814 | K107: 0 | L107: 222
A108: 12 | B108: 13930 | C108: 24 | D108: 13938 | E108: 24 | F108: 13943 | K108: 0 | L108: 122
A109: 21 | B109: 14058 | C109: 22 | D109: 14066 | E109: 24 | F109: 14075 | K109: 0 | L109: 222
A110: 12 | B110: 14174 | C110: 24 | D110: 14191 | E110: 24 | F110: 14196 | K110: 0 | L110: 122
A111: 12 | B111: 14296 | C111: 24 | D111: 14308 | E111: 24 | F111: 14318 | K111: 0 | L111: 122
A112: 21 | B112: 14449 | C112: 22 | D112: 14457 | E112: 24 | F112: 14463 | K112: 0 | L112: 222
A113: 21 | B113: 14580 | C113: 22 | D113: 14588 | E113: 24 | F113: 14595 | K113: 0 | L113: 222
A114: 21 | B114: 14725 | C114: 22 | D114: 14731 | E114: 24 | F114: 14737 | K114: 0 | L114: 222
A115: 21 | B115: 14864 | C115: 22 | D115: 14874 | E115: 24 | F115: 14880 | K115: 0 | L115: 222
A116: 21 | B116: 14999 | C116: 22 | D116: 15009 | E116: 24 | F116: 15016 | K116: 0 | L116: 222
A117: 21 | B117: 15150 | C117: 22 | D117: 15156 | E117: 24 | F117: 15164 | K117: 0 | L117: 222
A118: 21 | B118: 15277 | C118: 22 | D118: 15284 | E118: 24 | F118: 15310 | K118: 0 | L118: 222
A119: 21 | B119: 15420 | C119: 22 | D119: 15428 | E119: 24 | F119: 15433 | K119: 0 | L119: 222
A120: 21 | B120: 15554 | C120: 22 | D120: 15559 | E120: 24 | F120: 15576 | K120: 0 | L120: 222
A121: 21 | B121: 15718 | C121: 22 | D121: 15725 | E121: 24 | F121: 15747 | K121: 0 | L121: 222
A122: 21 | B122: 15867 | C122: 22 | D122: 15880 | E122: 24 | F122: 15896 | K122: 0 | L122: 222
A123: 12 | B123: 15991 | C123: 24 | D123: 16007 | E123: 24 | F123: 16012 | K123: 0 | L123: 122
A124: 12 | B124: 16124 | C124: 24 | D124: 16135 | E124: 24 | F124: 16140 | K124: 0 | L124: 122
A125: 21 | B125: 16266 | C125: 22 | D125: 16279 | E125: 24 | F125: 16287 | K125: 0 | L125: 222
A126: 12 | B126: 16390 | C126: 24 | D126: 16411 | E126: 24 | F126: 16422 | K126: 0 | L126: 122
A127: 21 | B127: 16531 | C127: 22 | D127: 16535 | E127: 24 | F127: 16543 | K127: 0 | L127: 222
A128: 21 | B128: 16663 | C128: 22 | D128: 16673 | E128: 24 | F128: 16678 | K128: 0 | L128: 222
A129: 21 | B129: 16855 | C129: 22 | D129: 16867 | E129: 24 | F129: 16880 | K129: 0 | L129: 222
A130: 21 | B130: 17003 | C130: 22 | D130: 17019 | E130: 24 | F130: 17034 | K130: 0 | L130: 222
A131: 21 | B131: 17155 | C131: 22 | D131: 17167 | E131: 24 | F131: 17174 | K131: 0 | L131: 222
A132: 21 | B132: 17289 | C132: 22 | D132: 17326 | E132: 24 | F132: 17334 | K132: 0 | L132: 222
A133: 12 | B133: 17432 | C133: 24 | D133: 17442 | E133: 24 | F133: 17447 | K133: 0 | L133: 122
A134: 12 | B134: 17546 | C134: 24 | D134: 17563 | E134: 24 | F134: 17570 | K134: 0 | L134: 122
A135: 21 | B135: 17686 | C135: 22 | D135: 17717 | E135: 24 | F135: 17736 | K135: 0 | L135: 222
A136: 21 | B136: 17844 | C136: 22 | D136: 17852 | E136: 24 | F136: 17859 | K136: 0 | L136: 222
A137: 21 | B137: 17972 | C137: 22 | D137: 17977 | E137: 24 | F137: 17984 | K137: 0 | L137: 222
A138: 21 | B138: 18103 | C138: 22 | D138: 18113 | E138: 24 | F138: 18121 | K138: 0 | L138: 222
A139: 21 | B139: 18229 | C139: 22 | D139: 18257 | E139: 24 | F139: 18276 | K139: 0 | L139: 222
A140: 12 | B140: 18382 | C140: 24 | D140: 18394 | E140: 24 | F140: 18401 | K140: 0 | L140: 122
A141: 21 | B141: 18518 | C141: 22 | D141: 18527 | E141: 24 | F141: 18541 | K141: 0 | L141: 222
A142: 21 | B142: 18653 | C142: 22 | D142: 18660 | E142: 24 | F142: 18678 | K142: 0 | L142: 222
A143: 21 | B143: 18793 | C143: 22 | D143: 18800 | E143: 24 | F143: 18816 | K143: 0 | L143: 222
A144: 21 | B144: 18933 | C144: 22 | D144: 18940 | E144: 24 | F144: 18948 | K144: 0 | L144: 222
A145: 21 | B145: 19057 | C145: 22 | D145: 19067 | E145: 24 | F145: 19074 | K145: 0 | L145: 222
A146: 21 | B146: 19191 | C146: 22 | D146: 19200 | E146: 24 | F146: 19208 | K146: 0 | L146: 222
A147: 21 | B147: 19322 | C147: 22 | D147: 19337 | E147: 24 | F147: 19358 | K147: 0 | L147: 222
A148: 12 | B148: 19474 | C148: 24 | D148: 19484 | E148: 24 | F148: 19498 | K148: 0 | L148: 122
A149: 12 | B149: 19604 | C149: 24 | D149: 19622 | E149: 24 | F149: 19629 | K149: 0 | L149: 122
A150: 21 | B150: 19738 | C150: 22 | D150: 19749 | E150: 24 | F150: 19771 | K150: 0 | L150: 222
A151: 21 | B151: 19900 | C151: 22 | D151: 19909 | E151: 24 | F151: 19923 | K151: 0 | L151: 222
A152: 21 | B152: 20036 | C152: 22 | D152: 20045 | E152: 24 | F152: 20051 | K152: 0 | L152: 222
A153: 21 | B153: 20166 | C153: 22 | D153: 20175 | E153: 24 | F153: 20187 | K153: 0 | L153: 222
A154: 21 | B154: 20308 | C154: 22 | D154: 20314 | E154: 24 | F154: 20327 | K154: 0 | L154: 222
A155: 21 | B155: 20435 | C155: 22 | D155: 20446 | E155: 24 | F155: 20459 | K155: 0 | L155: 222
A156: 21 | B156: 20567 | C156: 22 | D156: 20573 | E156: 24 | F156: 20582 | K156: 0 | L156: 222
A157: 21 | B157: 20692 | C157: 22 | D157: 20698 | E157: 24 | F157: 20715 | K157: 0 | L157: 222
A158: 21 | B158: 20850 | C158: 22 | D158: 20856 | E158: 24 | F158: 20865 | K158: 0 | L158: 222
A159: 21 | B159: 20985 | C159: 22 | D159: 20992 | E159: 24 | F159: 21000 | K159: 0 | L159: 222
A160: 12 | B160: 21109 | C160: 24 | D160: 21121 | E160: 24 | F160: 21129 | K160: 0 | L160: 122
A161: 12 | B161: 21230 | C161: 24 | D161: 21241 | E161: 24 | F161: 21251 | K161: 0 | L161: 122
A162: 12 | B162: 21346 | C162: 24 | D162: 21365 | E162: 24 | F162: 21375 | K162: 0 | L162: 122
A163: 21 | B163: 21491 | C163: 22 | D163: 21500 | E163: 24 | F163: 21506 | K163: 0 | L163: 222
A164: 21 | B164: 21621 | C164: 22 | D164: 21625 | E164: 24 | F164: 21632 | K164: 0 | L164: 222
A165: 21 | B165: 21749 | C165: 22 | D165: 21758 | E165: 24 | F165: 21771 | K165: 0 | L165: 222
A166: 21 | B166: 21882 | C166: 22 | D166: 21891 | E166: 24 | F166: 21899 | K166: 0 | L166: 222
A167: 21 | B167: 22006 | C167: 22 | D167: 22014 | E167: 24 | F167: 22019 | K167: 0 | L167: 222
A168: 21 | B168: 22144 | C168: 22 | D168: 22154 | E168: 24 | F168: 22161 | K168: 0 | L168: 222
A169: 21 | B169: 22272 | C169: 22 | D169: 22282 | E169: 24 | F169: 22288 | K169: 0 | L169: 222
A170: 12 | B170: 22389 | C170: 24 | D170: 22400 | E170: 24 | F170: 22428 | K170: 0 | L170: 122
A171: 21 | B171: 22536 | C171: 22 | D171: 22543 | E171: 24 | F171: 22551 | K171: 0 | L171: 222
A172: 12 | B172: 22661 | C172: 24 | D172: 22692 | E172: 24 | F172: 22700 | K172: 0 | L172: 122
A173: 21 | B173: 22813 | C173: 22 | D173: 22818 | E173: 24 | F173: 22828 | K173: 0 | L173: 222
A174: 21 | B174: 22946 | C174: 22 | D174: 22954 | E174: 24 | F174: 22961 | K174: 0 | L174: 222
A175: 21 | B175: 23084 | C175: 22 | D175: 23091 | E175: 24 | F175: 23099 | K175: 0 | L175: 222
A176: 12 | B176: 23204 | C176: 24 | D176: 23215 | E176: 24 | F176: 23224 | K176: 0 | L176: 122
A177: 21 | B177: 23336 | C177: 22 | D177: 23344 | E177: 24 | F177: 23351 | K177: 0 | L177: 222
A178: 12 | B178: 23453 | C178: 24 | D178: 23466 | E178: 24 | F178: 23471 | K178: 0 | L178: 122
A179: 21 | B179: 23583 | C179: 22 | D179: 23592 | E179: 24 | F179: 23600 | K179: 0 | L179: 222
A180: 21 | B180: 23716 | C180: 22 | D180: 23721 | E180: 24 | F180: 23727 | K180: 0 | L180: 222
A181: 12 | B181: 23834 | C181: 24 | D181: 23846 | E181: 24 | F181: 23857 | K181: 0 | L181: 122
A182: 21 | B182: 23974 | C182: 22 | D182: 23978 | E182: 24 | F182: 23985 | L182: 222

Sheet !M908820.101
A1: Report for:!M908820.101
A2: Date: | B2: <date>
A3: Hen: | B3: <hen> | F3: Correct Sequence | G3: =Start!J2 -> 211 | P3: Total Sequences in Data | Q3: =4994-COUNTBLANK(L7:L5000) -> 168 | V3: Total Sequences in Block Data | W3: =COUNTA(L7:L34) -> 28 | AA3: Total Sequences in Block Data | AB3: =COUNTA(L35:L62) -> 28 | AF3: Total Sequences in Block Data | AG3: =COUNTA(L63:L90) -> 28 | AK3: Total Sequences in Block Data | AL3: =COUNTA(L91:L118) -> 28 | AP3: Total Sequences in Block Data | AQ3: =COUNTA(L119:L146) -> 28 | AU3: Total Sequences in Block Data | AV3: =COUNTA(L147:L174) -> 28
P4: Total Sequences in Summary | Q4: =SUM(O7:O14) -> 168 | V4: Total Sequences in Block Summary | W4: =SUM(U7:U14) -> 28 | AA4: Total Sequences in Block Summary | AB4: =SUM(Z7:Z14) -> 28 | AF4: Total Sequences in Block Summary | AG4: =SUM(AE7:AE14) -> 28 | AK4: Total Sequences in Block Summary | AL4: =SUM(AJ7:AJ14) -> 28 | AP4: Total Sequences in Block Summary | AQ4: =SUM(AO7:AO14) -> 28 | AU4: Total Sequences in Block Summary | AV4: =SUM(AT7:AT14) -> 28
T5: Block 1 | Y5: Block 2 | AD5: Block 3 | AI5: Block 4 | AN5: Block 5 | AS5: Block 6
A6: Sequence Component 1 | B6: Time 1 | C6: Sequence Component 2 | D6: Time 2 | E6: Sequence Component 3 | F6: Time 3 | G6: Sequence Component 4 | H6: Time 4 | I6: Sequence Component 5 | J6: Time 5 | K6: Correct? 0=No 1=Yes | L6: Sequence | N6: Frequency | P6: Relative Frequency | Q6: Variability | T6: Frequency | V6: Relative Frequency | W6: Variability | Y6: Frequency | AA6: Relative Frequency | AB6: Variability | AD6: Frequency | AF6: Relative Frequency | AG6: Variability | AI6: Frequency | AK6: Relative Frequency | AL6: Variability | AN6: Frequency | AP6: Relative Frequency | AQ6: Variability | AS6: Frequency | AU6: Relative Frequency | AV6: Variability
A7: 12 | B7: 14 | C7: 24 | D7: 32 | E7: 24 | F7: 39 | K7: 0 | L7: 122 | N7: 111 | O7: =COUNTIF($L$7:$L$500,N7) -> 0 | P7: =O7/$Q$4 -> 0 | Q7: =IF(P7=0,0,(P7*((LOG(P7))/LOG(2)))) -> 0 | T7: =N7 -> 111 | U7: =COUNTIF(L7:L34,T7) -> 0 | V7: =U7/(W4-U11) -> 0 | W7: =IF(V7=0,0,(V7*((LOG(V7))/LOG(2)))) -> 0 | Y7: =N7 -> 111 | Z7: =COUNTIF(L35:L62,Y7) -> 0 | AA7: =Z7/(AB4-Z11) -> 0 | AB7: =IF(AA7=0,0,(AA7*((LOG(AA7))/LOG(2)))) -> 0 | AD7: =N7 -> 111 | AE7: =COUNTIF(L63:L90,AD7) -> 0 | AF7: =AE7/(AG4-AE11) -> 0 | AG7: =IF(AF7=0,0,(AF7*((LOG(AF7))/LOG(2)))) -> 0 | AI7: =N7 -> 111 | AJ7: =COUNTIF(L91:L118,AI7) -> 0 | AK7: =AJ7/(AL4-AJ11) -> 0 | AL7: =IF(AK7=0,0,(AK7*((LOG(AK7))/LOG(2)))) -> 0 | AN7: =N7 -> 111 | AO7: =COUNTIF(L119:L146,AN7) -> 0 | AP7: =AO7/(AQ4-AO11) -> 0 | AQ7: =IF(AP7=0,0,(AP7*((LOG(AP7))/LOG(2)))) -> 0 | AS7: =N7 -> 111 | AT7: =COUNTIF(L147:L174,AS7) -> 0 | AU7: =AT7/(AV4-AT11) -> 0 | AV7: =IF(AU7=0,0,(AU7*((LOG(AU7))/LOG(2)))) -> 0
A8: 21 | B8: 158 | C8: 22 | D8: 163 | E8: 24 | F8: 176 | K8: 0 | L8: 222 | N8: 112 | O8: =COUNTIF($L$7:$L$500,N8) -> 0 | P8: =O8/$Q$4 -> 0 | Q8: =IF(P8=0,0,(P8*((LOG(P8))/LOG(2)))) -> 0 | T8: =N8 -> 112 | U8: =COUNTIF(L7:L34,T8) -> 0 | V8: =U8/(W4-U11) -> 0 | W8: =IF(V8=0,0,(V8*((LOG(V8))/LOG(2)))) -> 0 | Y8: =N8 -> 112 | Z8: =COUNTIF(L35:L62,Y8) -> 0 | AA8: =Z8/(AB4-Z11) -> 0 | AB8: =IF(AA8=0,0,(AA8*((LOG(AA8))/LOG(2)))) -> 0 | AD8: =N8 -> 112 | AE8: =COUNTIF(L63:L90,AD8) -> 0 | AF8: =AE8/(AG4-AE11) -> 0 | AG8: =IF(AF8=0,0,(AF8*((LOG(AF8))/LOG(2)))) -> 0 | AI8: =N8 -> 112 | AJ8: =COUNTIF(L91:L118,AI8) -> 0 | AK8: =AJ8/(AL4-AJ11) -> 0 | AL8: =IF(AK8=0,0,(AK8*((LOG(AK8))/LOG(2)))) -> 0 | AN8: =N8 -> 112 | AO8: =COUNTIF(L119:L146,AN8) -> 0 | AP8: =AO8/(AQ4-AO11) -> 0 | AQ8: =IF(AP8=0,0,(AP8*((LOG(AP8))/LOG(2)))) -> 0 | AS8: =N8 -> 112 | AT8: =COUNTIF(L147:L174,AS8) -> 0 | AU8: =AT8/(AV4-AT11) -> 0 | AV8: =IF(AU8=0,0,(AU8*((LOG(AU8))/LOG(2)))) -> 0
A9: 12 | B9: 280 | C9: 24 | D9: 297 | E9: 24 | F9: 305 | K9: 0 | L9: 122 | N9: 121 | O9: =COUNTIF($L$7:$L$500,N9) -> 0 | P9: =O9/$Q$4 -> 0 | Q9: =IF(P9=0,0,(P9*((LOG(P9))/LOG(2)))) -> 0 | T9: =N9 -> 121 | U9: =COUNTIF(L7:L34,T9) -> 0 | V9: =U9/(W4-U11) -> 0 | W9: =IF(V9=0,0,(V9*((LOG(V9))/LOG(2)))) -> 0 | Y9: =N9 -> 121 | Z9: =COUNTIF(L35:L62,Y9) -> 0 | AA9: =Z9/(AB4-Z11) -> 0 | AB9: =IF(AA9=0,0,(AA9*((LOG(AA9))/LOG(2)))) -> 0 | AD9: =N9 -> 121 | AE9: =COUNTIF(L63:L90,AD9) -> 0 | AF9: =AE9/(AG4-AE11) -> 0 | AG9: =IF(AF9=0,0,(AF9*((LOG(AF9))/LOG(2)))) -> 0 | AI9: =N9 -> 121 | AJ9: =COUNTIF(L91:L118,AI9) -> 0 | AK9: =AJ9/(AL4-AJ11) -> 0 | AL9: =IF(AK9=0,0,(AK9*((LOG(AK9))/LOG(2)))) -> 0 | AN9: =N9 -> 121 | AO9: =COUNTIF(L119:L146,AN9) -> 0 | AP9: =AO9/(AQ4-AO11) -> 0 | AQ9: =IF(AP9=0,0,(AP9*((LOG(AP9))/LOG(2)))) -> 0 | AS9: =N9 -> 121 | AT9: =COUNTIF(L147:L174,AS9) -> 0 | AU9: =AT9/(AV4-AT11) -> 0 | AV9: =IF(AU9=0,0,(AU9*((LOG(AU9))/LOG(2)))) -> 0
A10: 21 | B10: 424 | C10: 22 | D10: 429 | E10: 24 | F10: 447 | K10: 0 | L10: 222 | N10: 122 | O10: =COUNTIF($L$7:$L$500,N10) -> 42 | P10: =O10/$Q$4 -> 0.25 | Q10: =IF(P10=0,0,(P10*((LOG(P10))/LOG(2)))) -> -0.5 | T10: =N10 -> 122 | U10: =COUNTIF(L7:L34,T10) -> 9 | V10: =U10/(W4-U11) -> 0.3214285714 | W10: =IF(V10=0,0,(V10*((LOG(V10))/LOG(2)))) -> -0.5263167602 | Y10: =N10 -> 122 | Z10: =COUNTIF(L35:L62,Y10) -> 8 | AA10: =Z10/(AB4-Z11) -> 0.2857142857 | AB10: =IF(AA10=0,0,(AA10*((LOG(AA10))/LOG(2)))) -> -0.5163871206 | AD10: =N10 -> 122 | AE10: =COUNTIF(L63:L90,AD10) -> 8 | AF10: =AE10/(AG4-AE11) -> 0.2857142857 | AG10: =IF(AF10=0,0,(AF10*((LOG(AF10))/LOG(2)))) -> -0.5163871206 | AI10: =N10 -> 122 | AJ10: =COUNTIF(L91:L118,AI10) -> 6 | AK10: =AJ10/(AL4-AJ11) -> 0.2142857143 | AL10: =IF(AK10=0,0,(AK10*((LOG(AK10))/LOG(2)))) -> -0.4762269474 | AN10: =N10 -> 122 | AO10: =COUNTIF(L119:L146,AN10) -> 6 | AP10: =AO10/(AQ4-AO11) -> 0.2142857143 | AQ10: =IF(AP10=0,0,(AP10*((LOG(AP10))/LOG(2)))) -> -0.4762269474 | AS10: =N10 -> 122 | AT10: =COUNTIF(L147:L174,AS10) -> 5 | AU10: =AT10/(AV4-AT11) -> 0.1785714286 | AV10: =IF(AU10=0,0,(AU10*((LOG(AU10))/LOG(2)))) -> -0.4438262191
A11: 21 | B11: 559 | C11: 22 | D11: 565 | E11: 24 | F11: 571 | K11: 0 | L11: 222 | N11: 211 | O11: =COUNTIF($L$7:$L$500,N11) -> 0 | P11: =O11/$Q$4 -> 0 | Q11: =IF(P11=0,0,(P11*((LOG(P11))/LOG(2)))) -> 0 | T11: =N11 -> 211 | U11: =COUNTIF(L7:L34,T11) -> 0 | Y11: =N11 -> 211 | Z11: =COUNTIF(L35:L62,Y11) -> 0 | AD11: =N11 -> 211 | AE11: =COUNTIF(L63:L90,AD11) -> 0 | AI11: =N11 -> 211 | AJ11: =COUNTIF(L91:L118,AI11) -> 0 | AN11: =N11 -> 211 | AO11: =COUNTIF(L119:L146,AN11) -> 0 | AS11: =N11 -> 211 | AT11: =COUNTIF(L147:L174,AS11) -> 0
A12: 12 | B12: 673 | C12: 24 | D12: 684 | E12: 24 | F12: 690 | K12: 0 | L12: 122 | N12: 212 | O12: =COUNTIF($L$7:$L$500,N12) -> 0 | P12: =O12/$Q$4 -> 0 | Q12: =IF(P12=0,0,(P12*((LOG(P12))/LOG(2)))) -> 0 | T12: =N12 -> 212 | U12: =COUNTIF(L7:L34,T12) -> 0 | V12: =U12/(W4-U11) -> 0 | W12: =IF(V12=0,0,(V12*((LOG(V12))/LOG(2)))) -> 0 | Y12: =N12 -> 212 | Z12: =COUNTIF(L35:L62,Y12) -> 0 | AA12: =Z12/(AB4-Z11) -> 0 | AB12: =IF(AA12=0,0,(AA12*((LOG(AA12))/LOG(2)))) -> 0 | AD12: =N12 -> 212 | AE12: =COUNTIF(L63:L90,AD12) -> 0 | AF12: =AE12/(AG4-AE11) -> 0 | AG12: =IF(AF12=0,0,(AF12*((LOG(AF12))/LOG(2)))) -> 0 | AI12: =N12 -> 212 | AJ12: =COUNTIF(L91:L118,AI12) -> 0 | AK12: =AJ12/(AL4-AJ11) -> 0 | AL12: =IF(AK12=0,0,(AK12*((LOG(AK12))/LOG(2)))) -> 0 | AN12: =N12 -> 212 | AO12: =COUNTIF(L119:L146,AN12) -> 0 | AP12: =AO12/(AQ4-AO11) -> 0 | AQ12: =IF(AP12=0,0,(AP12*((LOG(AP12))/LOG(2)))) -> 0 | AS12: =N12 -> 212 | AT12: =COUNTIF(L147:L174,AS12) -> 0 | AU12: =AT12/(AV4-AT11) -> 0 | AV12: =IF(AU12=0,0,(AU12*((LOG(AU12))/LOG(2)))) -> 0
A13: 21 | B13: 802 | C13: 22 | D13: 807 | E13: 24 | F13: 813 | K13: 0 | L13: 222 | N13: 221 | O13: =COUNTIF($L$7:$L$500,N13) -> 0 | P13: =O13/$Q$4 -> 0 | Q13: =IF(P13=0,0,(P13*((LOG(P13))/LOG(2)))) -> 0 | T13: =N13 -> 221 | U13: =COUNTIF(L7:L34,T13) -> 0 | V13: =U13/(W4-U11) -> 0 | W13: =IF(V13=0,0,(V13*((LOG(V13))/LOG(2)))) -> 0 | Y13: =N13 -> 221 | Z13: =COUNTIF(L35:L62,Y13) -> 0 | AA13: =Z13/(AB4-Z11) -> 0 | AB13: =IF(AA13=0,0,(AA13*((LOG(AA13))/LOG(2)))) -> 0 | AD13: =N13 -> 221 | AE13: =COUNTIF(L63:L90,AD13) -> 0 | AF13: =AE13/(AG4-AE11) -> 0 | AG13: =IF(AF13=0,0,(AF13*((LOG(AF13))/LOG(2)))) -> 0 | AI13: =N13 -> 221 | AJ13: =COUNTIF(L91:L118,AI13) -> 0 | AK13: =AJ13/(AL4-AJ11) -> 0 | AL13: =IF(AK13=0,0,(AK13*((LOG(AK13))/LOG(2)))) -> 0 | AN13: =N13 -> 221 | AO13: =COUNTIF(L119:L146,AN13) -> 0 | AP13: =AO13/(AQ4-AO11) -> 0 | AQ13: =IF(AP13=0,0,(AP13*((LOG(AP13))/LOG(2)))) -> 0 | AS13: =N13 -> 221 | AT13: =COUNTIF(L147:L174,AS13) -> 0 | AU13: =AT13/(AV4-AT11) -> 0 | AV13: =IF(AU13=0,0,(AU13*((LOG(AU13))/LOG(2)))) -> 0
A14: 12 | B14: 938 | C14: 24 | D14: 946 | E14: 24 | F14: 953 | K14: 0 | L14: 122 | N14: 222 | O14: =COUNTIF($L$7:$L$500,N14) -> 126 | P14: =O14/$Q$4 -> 0.75 | Q14: =IF(P14=0,0,(P14*((LOG(P14))/LOG(2)))) -> -0.3112781245 | T14: =N14 -> 222 | U14: =COUNTIF(L7:L34,T14) -> 19 | V14: =U14/(W4-U11) -> 0.6785714286 | W14: =IF(V14=0,0,(V14*((LOG(V14))/LOG(2)))) -> -0.3796114558 | Y14: =N14 -> 222 | Z14: =COUNTIF(L35:L62,Y14) -> 20 | AA14: =Z14/(AB4-Z11) -> 0.7142857143 | AB14: =IF(AA14=0,0,(AA14*((LOG(AA14))/LOG(2)))) -> -0.346733448 | AD14: =N14 -> 222 | AE14: =COUNTIF(L63:L90,AD14) -> 20 | AF14: =AE14/(AG4-AE11) -> 0.7142857143 | AG14: =IF(AF14=0,0,(AF14*((LOG(AF14))/LOG(2)))) -> -0.346733448 | AI14: =N14 -> 222 | AJ14: =COUNTIF(L91:L118,AI14) -> 22 | AK14: =AJ14/(AL4-AJ11) -> 0.7857142857 | AL14: =IF(AK14=0,0,(AK14*((LOG(AK14))/LOG(2)))) -> -0.2733683098 | AN14: =N14 -> 222 | AO14: =COUNTIF(L119:L146,AN14) -> 22 | AP14: =AO14/(AQ4-AO11) -> 0.7857142857 | AQ14: =IF(AP14=0,0,(AP14*((LOG(AP14))/LOG(2)))) -> -0.2733683098 | AS14: =N14 -> 222 | AT14: =COUNTIF(L147:L174,AS14) -> 23 | AU14: =AT14/(AV4-AT11) -> 0.8214285714 | AV14: =IF(AU14=0,0,(AU14*((LOG(AU14))/LOG(2)))) -> -0.2331156506
A15: 12 | B15: 1055 | C15: 24 | D15: 1065 | E15: 24 | F15: 1076 | K15: 0 | L15: 122 | P15: =SUM(P7:P14) -> 1 | Q15: =-SUM(Q7:Q14) -> 0.8112781245 | V15: =SUM(V7:V14) -> 1 | W15: =-SUM(W7:W14) -> 0.905928216 | AA15: =SUM(AA7:AA14) -> 1 | AB15: =-SUM(AB7:AB14) -> 0.8631205686 | AF15: =SUM(AF7:AF14) -> 1 | AG15: =-SUM(AG7:AG14) -> 0.8631205686 | AK15: =SUM(AK7:AK14) -> 1 | AL15: =-SUM(AL7:AL14) -> 0.7495952573 | AP15: =SUM(AP7:AP14) -> 1 | AQ15: =-SUM(AQ7:AQ14) -> 0.7495952573 | AU15: =SUM(AU7:AU14) -> 1 | AV15: =-SUM(AV7:AV14) -> 0.6769418698
A16: 12 | B16: 1178 | C16: 24 | D16: 1189 | E16: 24 | F16: 1200 | K16: 0 | L16: 122 | P16: U= | Q16: =Q15/(LOG(Q4)/LOG(2)) -> 0.1097461159 | V16: U1= | W16: =W15/(LOG(W4)/LOG(2)) -> 0.1884462934 | AA16: U2= | AB16: =AB15/(LOG(AB4)/LOG(2)) -> 0.1795416778 | AF16: U3= | AG16: =AG15/(LOG(AG4)/LOG(2)) -> 0.1795416778 | AK16: U4= | AL16: =AL15/(LOG(AL4)/LOG(2)) -> 0.1559267559 | AP16: U5= | AQ16: =AQ15/(LOG(AQ4)/LOG(2)) -> 0.1559267559 | AU16: U6= | AV16: =AV15/(LOG(AV4)/LOG(2)) -> 0.1408137907
A17: 21 | B17: 1319 | C17: 22 | D17: 1327 | E17: 24 | F17: 1335 | K17: 0 | L17: 222
A18: 12 | B18: 1445 | C18: 24 | D18: 1463 | E18: 24 | F18: 1471 | K18: 0 | L18: 122
A19: 12 | B19: 1577 | C19: 24 | D19: 1586 | E19: 24 | F19: 1596 | K19: 0 | L19: 122 | N19: Total Target Seq
A20: 21 | B20: 1707 | C20: 22 | D20: 1712 | E20: 24 | F20: 1719 | K20: 0 | L20: 222 | N20: =COUNTIF(L7:L174,G3) -> 0 | P20: 28 | Q20: 28 | R20: 28 | S20: 28 | T20: 28 | U20: 28
A21: 21 | B21: 1831 | C21: 22 | D21: 1836 | E21: 24 | F21: 1842 | K21: 0 | L21: 222 | P21: % of reinforcement given in 6 equal intervals based on number of trials
A22: 21 | B22: 1957 | C22: 22 | D22: 1962 | E22: 24 | F22: 1976 | K22: 0 | L22: 222 | P22: %_1 | Q22: %_2 | R22: %_3 | S22: %_4 | T22: %_5 | U22: %_6
A23: 21 | B23: 2111 | C23: 22 | D23: 2117 | E23: 24 | F23: 2131 | K23: 0 | L23: 222 | O23: target sequence | P23: =$G$3 -> 211 | Q23: =$G$3 -> 211 | R23: =$G$3 -> 211 | S23: =$G$3 -> 211 | T23: =$G$3 -> 211 | U23: =$G$3 -> 211
A24: 21 | B24: 2244 | C24: 22 | D24: 2255 | E24: 24 | F24: 2263 | K24: 0 | L24: 222 | O24: total reinforcement | P24: =U11 -> 0 | Q24: =Z11 -> 0 | R24: =AE11 -> 0 | S24: =AJ11 -> 0 | T24: =AO11 -> 0 | U24: =AT11 -> 0
A25: 21 | B25: 2377 | C25: 22 | D25: 2385 | E25: 24 | F25: 2404 | K25: 0 | L25: 222 | O25: % target
A26: 21 | B26: 2512 | C26: 22 | D26: 2517 | E26: 24 | F26: 2530 | K26: 0 | L26: 222 | O26: CCRF
A27: 12 | B27: 2631 | C27: 24 | D27: 2643 | E27: 24 | F27: 2654 | K27: 0 | L27: 122 | O27: % CCRf
A28: 21 | B28: 2764 | C28: 22 | D28: 2775 | E28: 24 | F28: 2792 | K28: 0 | L28: 222 | O28: average response rate | P28: =F34/P20 -> 127.1428571 | Q28: =(F62-F34)/Q20 -> 135.1428571 | R28: =(F90-F62)/R20 -> 131 | S28: =(F118-F90)/S20 -> 154.75 | T28: =(F146-F118)/T20 -> 147.8214286 | U28: =(F174-F146)/U20 -> 160.5
A29: 21 | B29: 2906 | C29: 22 | D29: 2911 | E29: 24 | F29: 2924 | K29: 0 | L29: 222
A30: 21 | B30: 3026 | C30: 22 | D30: 3031 | E30: 24 | F30: 3037 | K30: 0 | L30: 222
A31: 21 | B31: 3146 | C31: 22 | D31: 3151 | E31: 24 | F31: 3157 | K31: 0 | L31: 222
A32: 21 | B32: 3281 | C32: 22 | D32: 3289 | E32: 24 | F32: 3298 | K32: 0 | L32: 222
A33: 21 | B33: 3424 | C33: 22 | D33: 3429 | E33: 24 | F33: 3437 | K33: 0 | L33: 222
A34: 21 | B34: 3549 | C34: 22 | D34: 3555 | E34: 24 | F34: 3560 | K34: 0 | L34: 222
A35: 21 | B35: 3691 | C35: 22 | D35: 3697 | E35: 24 | F35: 3703 | K35: 0 | L35: 222
A36: 21 | B36: 3824 | C36: 22 | D36: 3835 | E36: 24 | F36: 3856 | K36: 0 | L36: 222
A37: 21 | B37: 3987 | C37: 22 | D37: 3992 | E37: 24 | F37: 4007 | K37: 0 | L37: 222
A38: 21 | B38: 4127 | C38: 22 | D38: 4132 | E38: 24 | F38: 4140 | K38: 0 | L38: 222
A39: 12 | B39: 4238 | C39: 24 | D39: 4251 | E39: 24 | F39: 4263 | K39: 0 | L39: 122
A40: 21 | B40: 4376 | C40: 22 | D40: 4384 | E40: 24 | F40: 4397 | K40: 0 | L40: 222
A41: 21 | B41: 4506 | C41: 22 | D41: 4512 | E41: 24 | F41: 4530 | K41: 0 | L41: 222
A42: 21 | B42: 4641 | C42: 22 | D42: 4656 | E42: 24 | F42: 4689 | K42: 0 | L42: 222
A43: 12 | B43: 4810 | C43: 24 | D43: 4832 | E43: 24 | F43: 4850 | K43: 0 | L43: 122
A44: 21 | B44: 4984 | C44: 22 | D44: 4991 | E44: 24 | F44: 5004 | K44: 0 | L44: 222
A45: 12 | B45: 5104 | C45: 24 | D45: 5113 | E45: 24 | F45: 5119 | K45: 0 | L45: 122
A46: 21 | B46: 5227 | C46: 22 | D46: 5232 | E46: 24 | F46: 5239 | K46: 0 | L46: 222
A47: 21 | B47: 5341 | C47: 22 | D47: 5346 | E47: 24 | F47: 5351 | K47: 0 | L47: 222
A48: 21 | B48: 5463 | C48: 22 | D48: 5468 | E48: 24 | F48: 5474 | K48: 0 | L48: 222
A49: 21 | B49: 5583 | C49: 22 | D49: 5593 | E49: 24 | F49: 5602 | K49: 0 | L49: 222
A50: 21 | B50: 5712 | C50: 22 | D50: 5724 | E50: 24 | F50: 5739 | K50: 0 | L50: 222
A51: 21 | B51: 5849 | C51: 22 | D51: 5861 | E51: 24 | F51: 5876 | K51: 0 | L51: 222
A52: 21 | B52: 5990 | C52: 22 | D52: 5994 | E52: 24 | F52: 6007 | K52: 0 | L52: 222
A53: 21 | B53: 6115 | C53: 22 | D53: 6126 | E53: 24 | F53: 6138 | K53: 0 | L53: 222
A54: 21 | B54: 6261 | C54: 22 | D54: 6317 | E54: 24 | F54: 6328 | K54: 0 | L54: 222
A55: 12 | B55: 6429 | C55: 24 | D55: 6438 | E55: 24 | F55: 6443 | K55: 0 | L55: 122
A56: 21 | B56: 6567 | C56: 22 | D56: 6578 | E56: 24 | F56: 6592 | K56: 0 | L56: 222
A57: 12 | B57: 6705 | C57: 24 | D57: 6714 | E57: 24 | F57: 6720 | K57: 0 | L57: 122
A58: 12 | B58: 6816 | C58: 24 | D58: 6827 | E58: 24 | F58: 6832 | K58: 0 | L58: 122
A59: 21 | B59: 6939 | C59: 22 | D59: 6950 | E59: 24 | F59: 6959 | K59: 0 | L59: 222
A60: 12 | B60: 7071 | C60: 24 | D60: 7082 | E60: 24 | F60: 7093 | K60: 0 | L60: 122
A61: 21 | B61: 7203 | C61: 22 | D61: 7210 | E61: 24 | F61: 7219 | K61: 0 | L61: 222
A62: 12 | B62: 7327 | C62: 24 | D62: 7339 | E62: 24 | F62: 7344 | K62: 0 | L62: 122
A63: 21 | B63: 7447 | C63: 22 | D63: 7452 | E63: 24 | F63: 7460 | K63: 0 | L63: 222
A64: 21 | B64: 7580 | C64: 22 | D64: 7588 | E64: 24 | F64: 7594 | K64: 0 | L64: 222
A65: 21 | B65: 7706 | C65: 22 | D65: 7710 | E65: 24 | F65: 7723 | K65: 0 | L65: 222
A66: 12 | B66: 7823 | C66: 24 | D66: 7832 | E66: 24 | F66: 7843 | K66: 0 | L66: 122
A67: 21 | B67: 7952 | C67: 22 | D67: 7958 | E67: 24 | F67: 7964 | K67: 0 | L67: 222
A68: 21 | B68: 8075 | C68: 22 | D68: 8086 | E68: 24 | F68: 8108 | K68: 0 | L68: 222
A69: 21 | B69: 8211 | C69: 22 | D69: 8217 | E69: 24 | F69: 8222 | K69: 0 | L69: 222
A70: 12 | B70: 8322 | C70: 24 | D70: 8333 | E70: 24 | F70: 8338 | K70: 0 | L70: 122
A71: 21 | B71: 8448 | C71: 22 | D71: 8456 | E71: 24 | F71: 8463 | K71: 0 | L71: 222
A72: 21 | B72: 8582 | C72: 22 | D72: 8598 | E72: 24 | F72: 8612 | K72: 0 | L72: 222
A73: 12 | B73: 8712 | C73: 24 | D73: 8722 | E73: 24 | F73: 8733 | K73: 0 | L73: 122
A74: 12 | B74: 8840 | C74: 24 | D74: 8850 | E74: 24 | F74: 8861 | K74: 0 | L74: 122
A75: 21 | B75: 8980 | C75: 22 | D75: 8988 | E75: 24 | F75: 9000 | K75: 0 | L75: 222
A76: 21 | B76: 9119 | C76: 22 | D76: 9126 | E76: 24 | F76: 9137 | K76: 0 | L76: 222
A77: 12 | B77: 9236 | C77: 24 | D77: 9246 | E77: 24 | F77: 9259 | K77: 0 | L77: 122
A78: 12 | B78: 9358 | C78: 24 | D78: 9372 | E78: 24 | F78: 9384 | K78: 0 | L78: 122
A79: 21 | B79: 9537 | C79: 22 | D79: 9552 | E79: 24 | F79: 9559 | K79: 0 | L79: 222
A80: 21 | B80: 9697 | C80: 22 | D80: 9705 | E80: 24 | F80: 9719 | K80: 0 | L80: 222
A81: 21 | B81: 9825 | C81: 22 | D81: 9830 | E81: 24 | F81: 9842 | K81: 0 | L81: 222
A82: 21 | B82: 9949 | C82: 22 | D82: 9960 | E82: 24 | F82: 9974 | K82: 0 | L82: 222
A83: 21 | B83: 10087 | C83: 22 | D83: 10092 | E83: 24 | F83: 10102 | K83: 0 | L83: 222
A84: 12 | B84: 10196 | C84: 24 | D84: 10205 | E84: 24 | F84: 10212 | K84: 0 | L84: 122
A85: 21 | B85: 10317 | C85: 22 | D85: 10323 | E85: 24 | F85: 10330 | K85: 0 | L85: 222
A86: 21 | B86: 10439 | C86: 22 | D86: 10460 | E86: 24 | F86: 10481 | K86: 0 | L86: 222
A87: 12 | B87: 10588 | C87: 24 | D87: 10600 | E87: 24 | F87: 10605 | K87: 0 | L87: 122
A88: 21 | B88: 10714 | C88: 22 | D88: 10727 | E88: 24 | F88: 10740 | K88: 0 | L88: 222
A89: 21 | B89: 10858 | C89: 22 | D89: 10863 | E89: 24 | F89: 10876 | K89: 0 | L89: 222
A90: 21 | B90: 10989 | C90: 22 | D90: 11007 | E90: 24 | F90: 11012 | K90: 0 | L90: 222
A91: 21 | B91: 11128 | C91: 22 | D91: 11139 | E91: 24 | F91: 11157 | K91: 0 | L91: 222
A92: 12 | B92: 11261 | C92: 24 | D92: 11274 | E92: 24 | F92: 11286 | K92: 0 | L92: 122
A93: 21 | B93: 11406 | C93: 22 | D93: 11413 | E93: 24 | F93: 11453 | K93: 0 | L93: 222
A94: 21 | B94: 11574 | C94: 22 | D94: 11579 | E94: 24 | F94: 11591 | K94: 0 | L94: 222
A95: 21 | B95: 11744 | C95: 22 | D95: 11753 | E95: 24 | F95: 11771 | K95: 0 | L95: 222
A96: 21 | B96: 11907 | C96: 22 | D96: 11935 | E96: 24 | F96: 11957 | K96: 0 | L96: 222
A97: 21 | B97: 12076 | C97: 22 | D97: 12089 | E97: 24 | F97: 12103 | K97: 0 | L97: 222
A98: 21 | B98: 12235 | C98: 22 | D98: 12256 | E98: 24 | F98: 12334 | K98: 0 | L98: 222
A99: 21 | B99: 12446 | C99: 22 | D99: 12452 | E99: 24 | F99: 12464 | K99: 0 | L99: 222
A100: 21 | B100: 12594 | C100: 22 | D100: 12606 | E100: 24 | F100: 12622 | K100: 0 | L100: 222
A101: 21 | B101: 12740 | C101: 22 | D101: 12766 | E101: 24 | F101: 12778 | K101: 0 | L101: 222
A102: 21 | B102: 12917 | C102: 22 | D102: 12929 | E102: 24 | F102: 12945 | K102: 0 | L102: 222
A103: 21 | B103: 13071 | C103: 22 | D103: 13076 | E103: 24 | F103: 13085 | K103: 0 | L103: 222
A104: 21 | B104: 13223 | C104: 22 | D104: 13234 | E104: 24 | F104: 13250 | K104: 0 | L104: 222
A105: 21 | B105: 13364 | C105: 22 | D105: 13376 | E105: 24 | F105: 13420 | K105: 0 | L105: 222
A106: 12 | B106: 13526 | C106: 24 | D106: 13539 | E106: 24 | F106: 13568 | K106: 0 | L106: 122
A107: 21 | B107: 13683 | C107: 22 | D107: 13696 | E107: 24 | F107: 13716 | K107: 0 | L107: 222
A108: 12 | B108: 13821 | C108: 24 | D108: 13833 | E108: 24 | F108: 13851 | K108: 0 | L108: 122
A109: 12 | B109: 13952 | C109: 24 | D109: 13961 | E109: 24 | F109: 13968 | K109: 0 | L109: 122
A110: 12 | B110: 14075 | C110: 24 | D110: 14088 | E110: 24 | F110: 14094 | K110: 0 | L110: 122
A111: 21 | B111: 14218 | C111: 22 | D111: 14231 | E111: 24 | F111: 14257 | K111: 0 | L111: 222
A112: 21 | B112: 14372 | C112: 22 | D112: 14383 | E112: 24 | F112: 14388 | K112: 0 | L112: 222
A113: 21 | B113: 14512 | C113: 22 | D113: 14520 | E113: 24 | F113: 14557 | K113: 0 | L113: 222
A114: 21 | B114: 14692 | C114: 22 | D114: 14722 | E114: 24 | F114: 14734 | K114: 0 | L114: 222
A115: 21 | B115: 14856 | C115: 22 | D115: 14867 | E115: 24 | F115: 14899 | K115: 0 | L115: 222
A116: 12 | B116: 15005 | C116: 24 | D116: 15018 | E116: 24 | F116: 15024 | K116: 0 | L116: 122
A117: 21 | B117: 15157 | C117: 22 | D117: 15165 | E117: 24 | F117: 15178 | K117: 0 | L117: 222
A118: 21 | B118: 15310 | C118: 22 | D118: 15338 | E118: 24 | F118: 15345 | K118: 0 | L118: 222
A119: 21 | B119: 15450 | C119: 22 | D119: 15464 | E119: 24 | F119: 15476 | K119: 0 | L119: 222
A120: 21 | B120: 15585 | C120: 22 | D120: 15590 | E120: 24 | F120: 15596 | K120: 0 | L120: 222
A121: 21 | B121: 15709 | C121: 22 | D121: 15715 | E121: 24 | F121: 15727 | K121: 0 | L121: 222
A122: 21 | B122: 15840 | C122: 22 | D122: 15853 | E122: 24 | F122: 15861 | K122: 0 | L122: 222
A123: 21 | B123: 15974 | C123: 22 | D123: 15989 | E123: 24 | F123: 16003 | K123: 0 | L123: 222
A124: 21 | B124: 16109 | C124: 22 | D124: 16115 | E124: 24 | F124: 16130 | K124: 0 | L124: 222
A125: 21 | B125: 16241 | C125: 22 | D125: 16248 | E125: 24 | F125: 16270 | K125: 0 | L125: 222
A126: 21 | B126: 16389 | C126: 22 | D126: 16440 | E126: 24 | F126: 16475 | K126: 0 | L126: 222
A127: 21 | B127: 16587 | C127: 22 | D127: 16592 | E127: 24 | F127: 16605 | K127: 0 | L127: 222
A128: 21 | B128: 16722 | C128: 22 | D128: 16751 | E128: 24 | F128: 16769 | K128: 0 | L128: 222
A129: 21 | B129: 16907 | C129: 22 | D129: 16929 | E129: 24 | F129: 16937 | K129: 0 | L129: 222
A130: 21 | B130: 17081 | C130: 22 | D130: 17091 | E130: 24 | F130: 17110 | K130: 0 | L130: 222
A131: 21 | B131: 17236 | C131: 22 | D131: 17253 | E131: 24 | F131: 17290 | K131: 0 | L131: 222
A132: 12 | B132: 17401 | C132: 24 | D132: 17433 | E132: 24 | F132: 17447 | K132: 0 | L132: 122
A133: 21 | B133: 17603 | C133: 22 | D133: 17620 | E133: 24 | F133: 17687 | K133: 0 | L133: 222
A134: 21 | B134: 17803 | C134: 22 | D134: 17811 | E134: 24 | F134: 17820 | K134: 0 | L134: 222
A135: 12 | B135: 17933 | C135: 24 | D135: 17955 | E135: 24 | F135: 17969 | K135: 0 | L135: 122
A136: 21 | B136: 18078 | C136: 22 | D136: 18090 | E136: 24 | F136: 18102 | K136: 0 | L136: 222
A137: 21 | B137: 18219 | C137: 22 | D137: 18239 | E137: 24 | F137: 18247 | K137: 0 | L137: 222
A138: 21 | B138: 18404 | C138: 22 | D138: 18417 | E138: 24 | F138: 18429 | K138: 0 | L138: 222
A139: 12 | B139: 18532 | C139: 24 | D139: 18542 | E139: 24 | F139: 18549 | K139: 0 | L139: 122
A140: 21 | B140: 18660 | C140: 22 | D140: 18672 | E140: 24 | F140: 18686 | K140: 0 | L140: 222
A141: 12 | B141: 18792 | C141: 24 | D141: 18809 | E141: 24 | F141: 18815 | K141: 0 | L141: 122
A142: 21 | B142: 18941 | C142: 22 | D142: 18948 | E142: 24 | F142: 18956 | K142: 0 | L142: 222
A143: 21 | B143: 19084 | C143: 22 | D143: 19089 | E143: 24 | F143: 19097 | K143: 0 | L143: 222
A144: 21 | B144: 19210 | C144: 22 | D144: 19218 | E144: 24 | F144: 19227 | K144: 0 | L144: 222
A145: 12 | B145: 19334 | C145: 24 | D145: 19346 | E145: 24 | F145: 19352 | K145: 0 | L145: 122
A146: 12 | B146: 19456 | C146: 24 | D146: 19472 | E146: 24 | F146: 19484 | K146: 0 | L146: 122
A147: 21 | B147: 19596 | C147: 22 | D147: 19603 | E147: 24 | F147: 19611 | K147: 0 | L147: 222
A148: 12 | B148: 19714 | C148: 24 | D148: 19726 | E148: 24 | F148: 19777 | K148: 0 | L148: 122
A149: 21 | B149: 19895 | C149: 22 | D149: 19908 | E149: 24 | F149: 19915 | K149: 0 | L149: 222
A150: 12 | B150: 20013 | C150: 24 | D150: 20038 | E150: 24 | F150: 20043 | K150: 0 | L150: 122
A151: 21 | B151: 20155 | C151: 22 | D151: 20166 | E151: 24 | F151: 20198 | K151: 0 | L151: 222
A152: 21 | B152: 20359 | C152: 22 | D152: 20368 | E152: 24 | F152: 20388 | K152: 0 | L152: 222
A153: 21 | B153: 20501 | C153: 22 | D153: 20506 | E153: 24 | F153: 20534 | K153: 0 | L153: 222
A154: 21 | B154: 20647 | C154: 22 | D154: 20667 | E154: 24 | F154: 20683 | K154: 0 | L154: 222
A155: 21 | B155: 20823 | C155: 22 | D155: 20840 | E155: 24 | F155: 20882 | K155: 0 | L155: 222
A156: 21 | B156: 20999 | C156: 22 | D156: 21011 | E156: 24 | F156: 21024 | K156: 0 | L156: 222
A157: 21 | B157: 21157 | C157: 22 | D157: 21180 | E157: 24 | F157: 21204 | K157: 0 | L157: 222
A158: 21 | B158: 21335 | C158: 22 | D158: 21341 | E158: 24 | F158: 21375 | K158: 0 | L158: 222
A159: 21 | B159: 21481 | C159: 22 | D159: 21497 | E159: 24 | F159: 21502 | K159: 0 | L159: 222
A160: 21 | B160: 21694 | C160: 22 | D160: 21706 | E160: 24 | F160: 21727 | K160: 0 | L160: 222
A161: 12 | B161: 21825 | C161: 24 | D161: 21835 | E161: 24 | F161: 21846 | K161: 0 | L161: 122
A162: 21 | B162: 22027 | C162: 22 | D162: 22060 | E162: 24 | F162: 22079 | K162: 0 | L162: 222
A163: 12 | B163: 22180 | C163: 24 | D163: 22218 | E163: 24 | F163: 22232 | K163: 0 | L163: 122
A164: 21 | B164: 22357 | C164: 22 | D164: 22386 | E164: 24 | F164: 22414 | K164: 0 | L164: 222
A165: 21 | B165: 22532 | C165: 22 | D165: 22542 | E165: 24 | F165: 22556 | K165: 0 | L165: 222
A166: 21 | B166: 22666 | C166: 22 | D166: 22679 | E166: 24 | F166: 22688 | K166: 0 | L166: 222
A167: 21 | B167: 22812 | C167: 22 | D167: 22834 | E167: 24 | F167: 22841 | K167: 0 | L167: 222
A168: 21 | B168: 22958 | C168: 22 | D168: 22964 | E168: 24 | F168: 22979 | K168: 0 | L168: 222
A169: 21 | B169: 23158 | C169: 22 | D169: 23170 | E169: 24 | F169: 23190 | K169: 0 | L169: 222
A170: 21 | B170: 23320 | C170: 22 | D170: 23324 | E170: 24 | F170: 23335 | K170: 0 | L170: 222
A171: 21 | B171: 23453 | C171: 22 | D171: 23468 | E171: 24 | F171: 23493 | K171: 0 | L171: 222
A172: 12 | B172: 23602 | C172: 24 | D172: 23619 | E172: 24 | F172: 23625 | K172: 0 | L172: 122
A173: 21 | B173: 23744 | C173: 22 | D173: 23784 | E173: 24 | F173: 23791 | K173: 0 | L173: 222
A174: 21 | B174: 23945 | C174: 22 | D174: 23959 | E174: 24 | F174: 23978 | L174: 222

Sheet !M909850.101
A1: Report for:!M909850.101
A2: Date: | B2: <date>
A3: Hen: | B3: <hen> | F3: Correct Sequence | G3: =Start!J2 -> 211 | P3: Total Sequences in Data | Q3: =4994-COUNTBLANK(L7:L5000) -> 143 | V3: Total Sequences in Block Data | W3: =COUNTA(L7:L30) -> 24 | AA3: Total Sequences in Block Data | AB3: =COUNTA(L31:L54) -> 24 | AF3: Total Sequences in Block Data | AG3: =COUNTA(L55:L77) -> 23 | AK3: Total Sequences in Block Data | AL3: =COUNTA(L78:L101) -> 24 | AP3: Total Sequences in Block Data | AQ3: =COUNTA(L102:L125) -> 24 | AU3: Total Sequences in Block Data | AV3: =COUNTA(L126:L149) -> 24
P4: Total Sequences in Summary | Q4: =SUM(O7:O14) -> 142 | V4: Total Sequences in Block Summary | W4: =SUM(U7:U14) -> 24 | AA4: Total Sequences in Block Summary | AB4: =SUM(Z7:Z14) -> 24 | AF4: Total Sequences in Block Summary | AG4: =SUM(AE7:AE14) -> 23 | AK4: Total Sequences in Block Summary | AL4: =SUM(AJ7:AJ14) -> 24 | AP4: Total Sequences in Block Summary | AQ4: =SUM(AO7:AO14) -> 24 | AU4: Total Sequences in Block Summary | AV4: =SUM(AT7:AT14) -> 23
T5: Block 1 | Y5: Block 2 | AD5: Block 3 | AI5: Block 4 | AN5: Block 5 | AS5: Block 6
A6: Sequence Component 1 | B6: Time 1 | C6: Sequence Component 2 | D6: Time 2 | E6: Sequence Component 3 | F6: Time 3 | G6: Sequence Component 4 | H6: Time 4 | I6: Sequence Component 5 | J6: Time 5 | K6: Correct? 0=No 1=Yes | L6: Sequence | N6: Frequency | P6: Relative Frequency | Q6: Variability | T6: Frequency | V6: Relative Frequency | W6: Variability | Y6: Frequency | AA6: Relative Frequency | AB6: Variability | AD6: Frequency | AF6: Relative Frequency | AG6: Variability | AI6: Frequency | AK6: Relative Frequency | AL6: Variability | AN6: Frequency | AP6: Relative Frequency | AQ6: Variability | AS6: Frequency | AU6: Relative Frequency | AV6: Variability
A7: 12 | B7: 9 | C7: 13 | D7: 18 | E7: 24 | F7: 32 | K7: 0 | L7: 112 | N7: 111 | O7: =COUNTIF($L$7:$L$500,N7) -> 0 | P7: =O7/$Q$4 -> 0 | Q7: =IF(P7=0,0,(P7*((LOG(P7))/LOG(2)))) -> 0 | T7: =N7 -> 111 | U7: =COUNTIF(L7:L30,T7) -> 0 | V7: =U7/(W4-U11) -> 0 | W7: =IF(V7=0,0,(V7*((LOG(V7))/LOG(2)))) -> 0 | Y7: =N7 -> 111 | Z7: =COUNTIF(L31:L54,Y7) -> 0 | AA7: =Z7/(AB4-Z11) -> 0 | AB7: =IF(AA7=0,0,(AA7*((LOG(AA7))/LOG(2)))) -> 0 | AD7: =N7 -> 111 | AE7: =COUNTIF(L55:L77,AD7) -> 0 | AF7: =AE7/(AG4-AE11) -> 0 | AG7: =IF(AF7=0,0,(AF7*((LOG(AF7))/LOG(2)))) -> 0 | AI7: =N7 -> 111 | AJ7: =COUNTIF(L78:L101,AI7) -> 0 | AK7: =AJ7/(AL4-AJ11) -> 0 | AL7: =IF(AK7=0,0,(AK7*((LOG(AK7))/LOG(2)))) -> 0 | AN7: =N7 -> 111 | AO7: =COUNTIF(L102:L125,AN7) -> 0 | AP7: =AO7/(AQ4-AO11) -> 0 | AQ7: =IF(AP7=0,0,(AP7*((LOG(AP7))/LOG(2)))) -> 0 | AS7: =N7 -> 111 | AT7: =COUNTIF(L126:L149,AS7) -> 0 | AU7: =AT7/(AV4-AT11) -> 0 | AV7: =IF(AU7=0,0,(AU7*((LOG(AU7))/LOG(2)))) -> 0
A8: 12 | B8: 145 | C8: 24 | D8: 161 | E8: 24 | F8: 169 | K8: 0 | L8: 122 | N8: 112 | O8: =COUNTIF($L$7:$L$500,N8) -> 5 | P8: =O8/$Q$4 -> 0.03521126761 | Q8: =IF(P8=0,0,(P8*((LOG(P8))/LOG(2)))) -> -0.1699936276 | T8: =N8 -> 112 | U8: =COUNTIF(L7:L30,T8) -> 1 | V8: =U8/(W4-U11) -> 0.04166666667 | W8: =IF(V8=0,0,(V8*((LOG(V8))/LOG(2)))) -> -0.1910401042 | Y8: =N8 -> 112 | Z8: =COUNTIF(L31:L54,Y8) -> 1 | AA8: =Z8/(AB4-Z11) -> 0.04166666667 | AB8: =IF(AA8=0,0,(AA8*((LOG(AA8))/LOG(2)))) -> -0.1910401042 | AD8: =N8 -> 112 | AE8: =COUNTIF(L55:L77,AD8) -> 1 | AF8: =AE8/(AG4-AE11) -> 0.04347826087 | AG8: =IF(AF8=0,0,(AF8*((LOG(AF8))/LOG(2)))) -> -0.1966766068 | AI8: =N8 -> 112 | AJ8: =COUNTIF(L78:L101,AI8) -> 1 | AK8: =AJ8/(AL4-AJ11) -> 0.04166666667 | AL8: =IF(AK8=0,0,(AK8*((LOG(AK8))/LOG(2)))) -> -0.1910401042 | AN8: =N8 -> 112 | AO8: =COUNTIF(L102:L125,AN8) -> 0 | AP8: =AO8/(AQ4-AO11) -> 0 | AQ8: =IF(AP8=0,0,(AP8*((LOG(AP8))/LOG(2)))) -> 0 | AS8: =N8 -> 112 | AT8: =COUNTIF(L126:L149,AS8) -> 1 | AU8: =AT8/(AV4-AT11) -> 0.04347826087 | AV8: =IF(AU8=0,0,(AU8*((LOG(AU8))/LOG(2)))) -> -0.1966766068
A9: 12 | B9: 273 | C9: 24 | D9: 288 | E9: 24 | F9: 299 | K9: 0 | L9: 122 | N9: 121 | O9: =COUNTIF($L$7:$L$500,N9) -> 0 | P9: =O9/$Q$4 -> 0 | Q9: =IF(P9=0,0,(P9*((LOG(P9))/LOG(2)))) -> 0 | T9: =N9 -> 121 | U9: =COUNTIF(L7:L30,T9) -> 0 | V9: =U9/(W4-U11) -> 0 | W9: =IF(V9=0,0,(V9*((LOG(V9))/LOG(2)))) -> 0 | Y9: =N9 -> 121 | Z9: =COUNTIF(L31:L54,Y9) -> 0 | AA9: =Z9/(AB4-Z11) -> 0 | AB9: =IF(AA9=0,0,(AA9*((LOG(AA9))/LOG(2)))) -> 0 | AD9: =N9 -> 121 | AE9: =COUNTIF(L55:L77,AD9) -> 0 | AF9: =AE9/(AG4-AE11) -> 0 | AG9: =IF(AF9=0,0,(AF9*((LOG(AF9))/LOG(2)))) -> 0 | AI9: =N9 -> 121 | AJ9: =COUNTIF(L78:L101,AI9) -> 0 | AK9: =AJ9/(AL4-AJ11) -> 0 | AL9: =IF(AK9=0,0,(AK9*((LOG(AK9))/LOG(2)))) -> 0 | AN9: =N9 -> 121 | AO9: =COUNTIF(L102:L125,AN9) -> 0 | AP9: =AO9/(AQ4-AO11) -> 0 | AQ9: =IF(AP9=0,0,(AP9*((LOG(AP9))/LOG(2)))) -> 0 | AS9: =N9 -> 121 | AT9: =COUNTIF(L126:L149,AS9) -> 0 | AU9: =AT9/(AV4-AT11) -> 0 | AV9: =IF(AU9=0,0,(AU9*((LOG(AU9))/LOG(2)))) -> 0
A10: 12 | B10: 400 | C10: 24 | D10: 413 | E10: 24 | F10: 419 | K10: 0 | L10: 122 | N10: 122 | O10: =COUNTIF($L$7:$L$500,N10) -> 56 | P10: =O10/$Q$4 -> 0.3943661972 | Q10: =IF(P10=0,0,(P10*((LOG(P10))/LOG(2)))) -> -0.529394106 | T10: =N10 -> 122 | U10: =COUNTIF(L7:L30,T10) -> 14 | V10: =U10/(W4-U11) -> 0.5833333333 | W10: =IF(V10=0,0,(V10*((LOG(V10))/LOG(2)))) -> -0.4536044209 | Y10: =N10 -> 122 | Z10: =COUNTIF(L31:L54,Y10) -> 8 | AA10: =Z10/(AB4-Z11) -> 0.3333333333 | AB10: =IF(AA10=0,0,(AA10*((LOG(AA10))/LOG(2)))) -> -0.5283208336 | AD10: =N10 -> 122 | AE10: =COUNTIF(L55:L77,AD10) -> 8 | AF10: =AE10/(AG4-AE11) -> 0.347826087 | AG10: =IF(AF10=0,0,(AF10*((LOG(AF10))/LOG(2)))) -> -0.5299345934 | AI10: =N10 -> 122 | AJ10: =COUNTIF(L78:L101,AI10) -> 8 | AK10: =AJ10/(AL4-AJ11) -> 0.3333333333 | AL10: =IF(AK10=0,0,(AK10*((LOG(AK10))/LOG(2)))) -> -0.5283208336 | AN10: =N10 -> 122 | AO10: =COUNTIF(L102:L125,AN10) -> 5 | AP10: =AO10/(AQ4-AO11) -> 0.2083333333 | AQ10: =IF(AP10=0,0,(AP10*((LOG(AP10))/LOG(2)))) -> -0.4714655012 | AS10: =N10 -> 122 | AT10: =COUNTIF(L126:L149,AS10) -> 13 | AU10: =AT10/(AV4-AT11) -> 0.5652173913 | AV10: =IF(AU10=0,0,(AU10*((LOG(AU10))/LOG(2)))) -> -0.465243004
A11: 12 | B11: 515 | C11: 24 | D11: 529 | E11: 24 | F11: 542 | K11: 0 | L11: 122 | N11: 211 | O11: =COUNTIF($L$7:$L$500,N11) -> 0 | P11: =O11/$Q$4 -> 0 | Q11: =IF(P11=0,0,(P11*((LOG(P11))/LOG(2)))) -> 0 | T11: =N11 -> 211 | U11: =COUNTIF(L7:L30,T11) -> 0 | Y11: =N11 -> 211 | Z11: =COUNTIF(L31:L54,Y11) -> 0 | AD11: =N11 -> 211 | AE11: =COUNTIF(L55:L77,AD11) -> 0 | AI11: =N11 -> 211 | AJ11: =COUNTIF(L78:L101,AI11) -> 0 | AN11: =N11 -> 211 | AO11: =COUNTIF(L102:L125,AN11) -> 0 | AS11: =N11 -> 211 | AT11: =COUNTIF(L126:L149,AS11) -> 0
A12: 12 | B12: 641 | C12: 24 | D12: 657 | E12: 24 | F12: 662 | K12: 0 | L12: 122 | N12: 212 | O12: =COUNTIF($L$7:$L$500,N12) -> 0 | P12: =O12/$Q$4 -> 0 | Q12: =IF(P12=0,0,(P12*((LOG(P12))/LOG(2)))) -> 0 | T12: =N12 -> 212 | U12: =COUNTIF(L7:L30,T12) -> 0 | V12: =U12/(W4-U11) -> 0 | W12: =IF(V12=0,0,(V12*((LOG(V12))/LOG(2)))) -> 0 | Y12: =N12 -> 212 | Z12: =COUNTIF(L31:L54,Y12) -> 0 | AA12: =Z12/(AB4-Z11) -> 0 | AB12: =IF(AA12=0,0,(AA12*((LOG(AA12))/LOG(2)))) -> 0 | AD12: =N12 -> 212 | AE12: =COUNTIF(L55:L77,AD12) -> 0 | AF12: =AE12/(AG4-AE11) -> 0 | AG12: =IF(AF12=0,0,(AF12*((LOG(AF12))/LOG(2)))) -> 0 | AI12: =N12 -> 212 | AJ12: =COUNTIF(L78:L101,AI12) -> 0 | AK12: =AJ12/(AL4-AJ11) -> 0 | AL12: =IF(AK12=0,0,(AK12*((LOG(AK12))/LOG(2)))) -> 0 | AN12: =N12 -> 212 | AO12: =COUNTIF(L102:L125,AN12) -> 0 | AP12: =AO12/(AQ4-AO11) -> 0 | AQ12: =IF(AP12=0,0,(AP12*((LOG(AP12))/LOG(2)))) -> 0 | AS12: =N12 -> 212 | AT12: =COUNTIF(L126:L149,AS12) -> 0 | AU12: =AT12/(AV4-AT11) -> 0 | AV12: =IF(AU12=0,0,(AU12*((LOG(AU12))/LOG(2)))) -> 0
A13: 21 | B13: 770 | C13: 22 | D13: 775 | E13: 24 | F13: 782 | K13: 0 | L13: 222 | N13: 221 | O13: =COUNTIF($L$7:$L$500,N13) -> 0 | P13: =O13/$Q$4 -> 0 | Q13: =IF(P13=0,0,(P13*((LOG(P13))/LOG(2)))) -> 0 | T13: =N13 -> 221 | U13: =COUNTIF(L7:L30,T13) -> 0 | V13: =U13/(W4-U11) -> 0 | W13: =IF(V13=0,0,(V13*((LOG(V13))/LOG(2)))) -> 0 | Y13: =N13 -> 221 | Z13: =COUNTIF(L31:L54,Y13) -> 0 | AA13: =Z13/(AB4-Z11) -> 0 | AB13: =IF(AA13=0,0,(AA13*((LOG(AA13))/LOG(2)))) -> 0 | AD13: =N13 -> 221 | AE13: =COUNTIF(L55:L77,AD13) -> 0 | AF13: =AE13/(AG4-AE11) -> 0 | AG13: =IF(AF13=0,0,(AF13*((LOG(AF13))/LOG(2)))) -> 0 | AI13: =N13 -> 221 | AJ13: =COUNTIF(L78:L101,AI13) -> 0 | AK13: =AJ13/(AL4-AJ11) -> 0 | AL13: =IF(AK13=0,0,(AK13*((LOG(AK13))/LOG(2)))) -> 0 | AN13: =N13 -> 221 | AO13: =COUNTIF(L102:L125,AN13) -> 0 | AP13: =AO13/(AQ4-AO11) -> 0 | AQ13: =IF(AP13=0,0,(AP13*((LOG(AP13))/LOG(2)))) -> 0 | AS13: =N13 -> 221 | AT13: =COUNTIF(L126:L149,AS13) -> 0 | AU13: =AT13/(AV4-AT11) -> 0 | AV13: =IF(AU13=0,0,(AU13*((LOG(AU13))/LOG(2)))) -> 0
A14: 21 | B14: 904 | C14: 22 | D14: 909 | E14: 24 | F14: 916 | K14: 0 | L14: 222 | N14: 222 | O14: =COUNTIF($L$7:$L$500,N14) -> 81 | P14: =O14/$Q$4 -> 0.5704225352 | Q14: =IF(P14=0,0,(P14*((LOG(P14))/LOG(2)))) -> -0.4619835665 | T14: =N14 -> 222 | U14: =COUNTIF(L7:L30,T14) -> 9 | V14: =U14/(W4-U11) -> 0.375 | W14: =IF(V14=0,0,(V14*((LOG(V14))/LOG(2)))) -> -0.5306390622 | Y14: =N14 -> 222 | Z14: =COUNTIF(L31:L54,Y14) -> 15 | AA14: =Z14/(AB4-Z11) -> 0.625 | AB14: =IF(AA14=0,0,(AA14*((LOG(AA14))/LOG(2)))) -> -0.4237949407 | AD14: =N14 -> 222 | AE14: =COUNTIF(L55:L77,AD14) -> 14 | AF14: =AE14/(AG4-AE11) -> 0.6086956522 | AG14: =IF(AF14=0,0,(AF14*((LOG(AF14))/LOG(2)))) -> -0.4359521077 | AI14: =N14 -> 222 | AJ14: =COUNTIF(L78:L101,AI14) -> 15 | AK14: =AJ14/(AL4-AJ11) -> 0.625 | AL14: =IF(AK14=0,0,(AK14*((LOG(AK14))/LOG(2)))) -> -0.4237949407 | AN14: =N14 -> 222 | AO14: =COUNTIF(L102:L125,AN14) -> 19 | AP14: =AO14/(AQ4-AO11) -> 0.7916666667 | AQ14: =IF(AP14=0,0,(AP14*((LOG(AP14))/LOG(2)))) -> -0.2668193649 | AS14: =N14 -> 222 | AT14: =COUNTIF(L126:L149,AS14) -> 9 | AU14: =AT14/(AV4-AT11) -> 0.3913043478 | AV14: =IF(AU14=0,0,(AU14*((LOG(AU14))/LOG(2)))) -> -0.5296840257
A15: 21 | B15: 1030 | C15: 22 | D15: 1034 | E15: 24 | F15: 1041 | K15: 0 | L15: 222 | P15: =SUM(P7:P14) -> 1 | Q15: =-SUM(Q7:Q14) -> 1.1613713 | V15: =SUM(V7:V14) -> 1 | W15: =-SUM(W7:W14) -> 1.175283587 | AA15: =SUM(AA7:AA14) -> 1 | AB15: =-SUM(AB7:AB14) -> 1.143155878 | AF15: =SUM(AF7:AF14) -> 1 | AG15: =-SUM(AG7:AG14) -> 1.162563308 | AK15: =SUM(AK7:AK14) -> 1 | AL15: =-SUM(AL7:AL14) -> 1.143155878 | AP15: =SUM(AP7:AP14) -> 1 | AQ15: =-SUM(AQ7:AQ14) -> 0.7382848661 | AU15: =SUM(AU7:AU14) -> 1 | AV15: =-SUM(AV7:AV14) -> 1.191603637
A16: 12 | B16: 1164 | C16: 24 | D16: 1172 | E16: 24 | F16: 1183 | K16: 0 | L16: 122 | P16: U= | Q16: =Q15/(LOG(Q4)/LOG(2)) -> 0.1624352975 | V16: U1= | W16: =W15/(LOG(W4)/LOG(2)) -> 0.2563343947 | AA16: U2= | AB16: =AB15/(LOG(AB4)/LOG(2)) -> 0.2493272035 | AF16: U3= | AG16: =AG15/(LOG(AG4)/LOG(2)) -> 0.2570017431 | AK16: U4= | AL16: =AL15/(LOG(AL4)/LOG(2)) -> 0.2493272035 | AP16: U5= | AQ16: =AQ15/(LOG(AQ4)/LOG(2)) -> 0.161023098 | AU16: U6= | AV16: =AV15/(LOG(AV4)/LOG(2)) -> 0.2634215355
A17: 12 | B17: 1312 | C17: 24 | D17: 1331 | E17: 24 | F17: 1339 | K17: 0 | L17: 122
A18: 21 | B18: 1447 | C18: 22 | D18: 1452 | E18: 24 | F18: 1460 | K18: 0 | L18: 222
A19: 12 | B19: 1567 | C19: 24 | D19: 1582 | E19: 24 | F19: 1589 | K19: 0 | L19: 122 | N19: Total Target Seq
A20: 12 | B20: 1693 | C20: 24 | D20: 1709 | E20: 24 | F20: 1714 | K20: 0 | L20: 122 | N20: =COUNTIF(L7:L149,G3) -> 0 | P20: 24 | Q20: 24 | R20: 23 | S20: 24 | T20: 24 | U20: 24
A21: 21 | B21: 1816 | C21: 22 | D21: 1821 | E21: 24 | F21: 1826 | K21: 0 | L21: 222 | P21: % of reinforcement given in 6 equal intervals based on number of trials
A22: 12 | B22: 1922 | C22: 24 | D22: 1931 | E22: 24 | F22: 1941 | K22: 0 | L22: 122 | P22: %_1 | Q22: %_2 | R22: %_3 | S22: %_4 | T22: %_5 | U22: %_6
A23: 12 | B23: 2041 | C23: 24 | D23: 2055 | E23: 24 | F23: 2062 | K23: 0 | L23: 122 | O23: target sequence | P23: =$G$3 -> 211 | Q23: =$G$3 -> 211 | R23: =$G$3 -> 211 | S23: =$G$3 -> 211 | T23: =$G$3 -> 211 | U23: =$G$3 -> 211
A24: 21 | B24: 2168 | C24: 22 | D24: 2179 | E24: 24 | F24: 2186 | K24: 0 | L24: 222 | O24: total reinforcement | P24: =U11 -> 0 | Q24: =Z11 -> 0 | R24: =AE11 -> 0 | S24: =AJ11 -> 0 | T24: =AO11 -> 0 | U24: =AT11 -> 0
A25: 21 | B25: 2299 | C25: 22 | D25: 2311 | E25: 24 | F25: 2332 | K25: 0 | L25: 222 | O25: % target
A26: 12 | B26: 2428 | C26: 24 | D26: 2437 | E26: 24 | F26: 2448 | K26: 0 | L26: 122 | O26: CCRF
A27: 21 | B27: 2558 | C27: 22 | D27: 2565 | E27: 24 | F27: 2572 | K27: 0 | L27: 222 | O27: % CCRf
A28: 12 | B28: 2673 | C28: 24 | D28: 2681 | E28: 24 | F28: 2699 | K28: 0 | L28: 122 | O28: average response rate | P28: =F30/P20 -> 124.1666667 | Q28: =(F54-F30)/Q20 -> 167.5833333 | R28: =(F77-F54)/R20 -> 190.3913043 | S28: =(F101-F77)/S20 -> 166.25 | T28: =(F125-F101)/T20 -> 186.5833333 | U28: =(F149-F125)/U20 -> -827.0416667
A29: 21 | B29: 2816 | C29: 22 | D29: 2829 | E29: 24 | F29: 2866 | K29: 0 | L29: 222
A30: 12 | B30: 2967 | C30: 24 | D30: 2976 | E30: 24 | F30: 2980 | K30: 0 | L30: 122
A31: 21 | B31: 3095 | C31: 22 | D31: 3102 | E31: 24 | F31: 3118 | K31: 0 | L31: 222
A32: 21 | B32: 3252 | C32: 22 | D32: 3273 | E32: 24 | F32: 3287 | K32: 0 | L32: 222
A33: 12 | B33: 3412 | C33: 24 | D33: 3422 | E33: 24 | F33: 3427 | K33: 0 | L33: 122
A34: 21 | B34: 3537 | C34: 22 | D34: 3542 | E34: 24 | F34: 3555 | K34: 0 | L34: 222
A35: 21 | B35: 3677 | C35: 22 | D35: 3682 | E35: 24 | F35: 3694 | K35: 0 | L35: 222
A36: 21 | B36: 3818 | C36: 22 | D36: 3847 | E36: 24 | F36: 3860 | K36: 0 | L36: 222
A37: 21 | B37: 3975 | C37: 22 | D37: 3987 | E37: 24 | F37: 3995 | K37: 0 | L37: 222
A38: 12 | B38: 4101 | C38: 24 | D38: 4117 | E38: 24 | F38: 4122 | K38: 0 | L38: 122
A39: 12 | B39: 4247 | C39: 24 | D39: 4257 | E39: 24 | F39: 4264 | K39: 0 | L39: 122
A40: 12 | B40: 4364 | C40: 24 | D40: 4374 | E40: 24 | F40: 4380 | K40: 0 | L40: 122
A41: 12 | B41: 4509 | C41: 24 | D41: 4525 | E41: 24 | F41: 4529 | K41: 0 | L41: 122
A42: 12 | B42: 4645 | C42: 24 | D42: 4660 | E42: 24 | F42: 4665 | K42: 0 | L42: 122
A43: 21 | B43: 4806 | C43: 22 | D43: 4816 | E43: 24 | F43: 4912 | K43: 0 | L43: 222
A44: 12 | B44: 5008 | C44: 13 | D44: 5018 | E44: 24 | F44: 5039 | K44: 0 | L44: 112
A45: 12 | B45: 5149 | C45: 24 | D45: 5182 | E45: 24 | F45: 5191 | K45: 0 | L45: 122
A46: 21 | B46: 5308 | C46: 22 | D46: 5331 | E46: 24 | F46: 5402 | K46: 0 | L46: 222
A47: 12 | B47: 5518 | C47: 24 | D47: 5539 | E47: 24 | F47: 5562 | K47: 0 | L47: 122
A48: 21 | B48: 5705 | C48: 22 | D48: 5713 | E48: 24 | F48: 5762 | K48: 0 | L48: 222
A49: 21 | B49: 5895 | C49: 22 | D49: 5912 | E49: 24 | F49: 5933 | K49: 0 | L49: 222
A50: 21 | B50: 6106 | C50: 22 | D50: 6126 | E50: 24 | F50: 6280 | K50: 0 | L50: 222
A51: 21 | B51: 6410 | C51: 22 | D51: 6418 | E51: 24 | F51: 6436 | K51: 0 | L51: 222
A52: 21 | B52: 6561 | C52: 22 | D52: 6565 | E52: 24 | F52: 6575 | K52: 0 | L52: 222
A53: 21 | B53: 6688 | C53: 22 | D53: 6693 | E53: 24 | F53: 6753 | K53: 0 | L53: 222
A54: 21 | B54: 6946 | C54: 22 | D54: 6990 | E54: 24 | F54: 7002 | K54: 0 | L54: 222
A55: 12 | B55: 7116 | C55: 24 | D55: 7147 | E55: 24 | F55: 7172 | K55: 0 | L55: 122
A56: 21 | B56: 7301 | C56: 22 | D56: 7306 | E56: 24 | F56: 7342 | K56: 0 | L56: 222
A57: 21 | B57: 7483 | C57: 22 | D57: 7521 | E57: 24 | F57: 7601 | K57: 0 | L57: 222
A58: 21 | B58: 7784 | C58: 22 | D58: 7799 | E58: 24 | F58: 7886 | K58: 0 | L58: 222
A59: 21 | B59: 8030 | C59: 22 | D59: 8038 | E59: 24 | F59: 8051 | K59: 0 | L59: 222
A60: 21 | B60: 8193 | C60: 22 | D60: 8198 | E60: 24 | F60: 8211 | K60: 0 | L60: 222
A61: 12 | B61: 8359 | C61: 24 | D61: 8376 | E61: 24 | F61: 8446 | K61: 0 | L61: 122
A62: 21 | B62: 8600 | C62: 22 | D62: 8621 | E62: 24 | F62: 8670 | K62: 0 | L62: 222
A63: 21 | B63: 8853 | C63: 22 | D63: 8873 | E63: 24 | F63: 8893 | K63: 0 | L63: 222
A64: 21 | B64: 9113 | C64: 22 | D64: 9133 | E64: 24 | F64: 9148 | K64: 0 | L64: 222
A65: 12 | B65: 9259 | C65: 24 | D65: 9291 | E65: 24 | F65: 9308 | K65: 0 | L65: 122
A66: 21 | B66: 9439 | C66: 22 | D66: 9451 | E66: 24 | F66: 9463 | K66: 0 | L66: 222
A67: 21 | B67: 9621 | C67: 22 | D67: 9626 | E67: 24 | F67: 9635 | K67: 0 | L67: 222
A68: 21 | B68: 9782 | C68: 22 | D68: 9799 | E68: 24 | F68: 9845 | K68: 0 | L68: 222
A69: 21 | B69: 9986 | C69: 22 | D69: 10010 | E69: 24 | F69: 10019 | K69: 0 | L69: 222
A70: 21 | B70: 10161 | C70: 22 | D70: 10174 | E70: 24 | F70: 10200 | K70: 0 | L70: 222
A71: 21 | B71: 10332 | C71: 22 | D71: 10350 | E71: 24 | F71: 10379 | K71: 0 | L71: 222
A72: 12 | B72: 10494 | C72: 24 | D72: 10525 | E72: 24 | F72: 10577 | K72: 0 | L72: 122
A73: 12 | B73: 10720 | C73: 24 | D73: 10766 | E73: 24 | F73: 10830 | K73: 0 | L73: 122
A74: 12 | B74: 10938 | C74: 24 | D74: 10954 | E74: 24 | F74: 10972 | K74: 0 | L74: 122
A75: 12 | B75: 11070 | C75: 13 | D75: 11079 | E75: 24 | F75: 11091 | K75: 0 | L75: 112
A76: 12 | B76: 11212 | C76: 24 | D76: 11234 | E76: 24 | F76: 11244 | K76: 0 | L76: 122
A77: 12 | B77: 11353 | C77: 24 | D77: 11369 | E77: 24 | F77: 11381 | K77: 0 | L77: 122
A78: 12 | B78: 11489 | C78: 24 | D78: 11499 | E78: 24 | F78: 11507 | K78: 0 | L78: 122
A79: 21 | B79: 11625 | C79: 22 | D79: 11631 | E79: 24 | F79: 11682 | K79: 0 | L79: 222
A80: 21 | B80: 11835 | C80: 22 | D80: 11850 | E80: 24 | F80: 11867 | K80: 0 | L80: 222
A81: 12 | B81: 11972 | C81: 13 | D81: 11984 | E81: 24 | F81: 11998 | K81: 0 | L81: 112
A82: 12 | B82: 12102 | C82: 24 | D82: 12182 | E82: 24 | F82: 12193 | K82: 0 | L82: 122
A83: 21 | B83: 12350 | C83: 22 | D83: 12357 | E83: 24 | F83: 12372 | K83: 0 | L83: 222
A84: 21 | B84: 12511 | C84: 22 | D84: 12522 | E84: 24 | F84: 12560 | K84: 0 | L84: 222
A85: 12 | B85: 12670 | C85: 24 | D85: 12735 | E85: 24 | F85: 12752 | K85: 0 | L85: 122
A86: 21 | B86: 12917 | C86: 22 | D86: 12922 | E86: 24 | F86: 12929 | K86: 0 | L86: 222
A87: 12 | B87: 13039 | C87: 24 | D87: 13052 | E87: 24 | F87: 13068 | K87: 0 | L87: 122
A88: 12 | B88: 13177 | C88: 24 | D88: 13190 | E88: 24 | F88: 13197 | K88: 0 | L88: 122
A89: 21 | B89: 13328 | C89: 22 | D89: 13391 | E89: 24 | F89: 13403 | K89: 0 | L89: 222
A90: 12 | B90: 13502 | C90: 24 | D90: 13515 | E90: 24 | F90: 13526 | K90: 0 | L90: 122
A91: 21 | B91: 13665 | C91: 22 | D91: 13673 | E91: 24 | F91: 13680 | K91: 0 | L91: 222
A92: 21 | B92: 13828 | C92: 22 | D92: 13836 | E92: 24 | F92: 13844 | K92: 0 | L92: 222
A93: 12 | B93: 13966 | C93: 24 | D93: 14000 | E93: 24 | F93: 14019 | K93: 0 | L93: 122
A94: 21 | B94: 14145 | C94: 22 | D94: 14153 | E94: 24 | F94: 14160 | K94: 0 | L94: 222
A95: 21 | B95: 14275 | C95: 22 | D95: 14279 | E95: 24 | F95: 14315 | K95: 0 | L95: 222
A96: 21 | B96: 14453 | C96: 22 | D96: 14490 | E96: 24 | F96: 14522 | K96: 0 | L96: 222
A97: 21 | B97: 14625 | C97: 22 | D97: 14634 | E97: 24 | F97: 14658 | K97: 0 | L97: 222
A98: 21 | B98: 14769 | C98: 22 | D98: 14819 | E98: 24 | F98: 14830 | K98: 0 | L98: 222
A99: 12 | B99: 14926 | C99: 24 | D99: 14936 | E99: 24 | F99: 14943 | K99: 0 | L99: 122
A100: 21 | B100: 15065 | C100: 22 | D100: 15078 | E100: 24 | F100: 15219 | K100: 0 | L100: 222
A101: 21 | B101: 15349 | C101: 22 | D101: 15358 | E101: 24 | F101: 15371 | K101: 0 | L101: 222
A102: 21 | B102: 15522 | C102: 22 | D102: 15570 | E102: 24 | F102: 15598 | K102: 0 | L102: 222
A103: 21 | B103: 15728 | C103: 22 | D103: 15746 | E103: 24 | F103: 15768 | K103: 0 | L103: 222
A104: 21 | B104: 15899 | C104: 22 | D104: 15919 | E104: 24 | F104: 15926 | K104: 0 | L104: 222
A105: 21 | B105: 16040 | C105: 22 | D105: 16054 | E105: 24 | F105: 16069 | K105: 0 | L105: 222
A106: 21 | B106: 16195 | C106: 22 | D106: 16201 | E106: 24 | F106: 16242 | K106: 0 | L106: 222
A107: 21 | B107: 16363 | C107: 22 | D107: 16385 | E107: 24 | F107: 16407 | K107: 0 | L107: 222
A108: 21 | B108: 16587 | C108: 22 | D108: 16617 | E108: 24 | F108: 16631 | K108: 0 | L108: 222
A109: 21 | B109: 16809 | C109: 22 | D109: 16826 | E109: 24 | F109: 16894 | K109: 0 | L109: 222
A110: 21 | B110: 17040 | C110: 22 | D110: 17046 | E110: 24 | F110: 17059 | K110: 0 | L110: 222
A111: 12 | B111: 17175 | C111: 24 | D111: 17186 | E111: 24 | F111: 17204 | K111: 0 | L111: 122
A112: 12 | B112: 17315 | C112: 24 | D112: 17347 | E112: 24 | F112: 17380 | K112: 0 | L112: 122
